Workbook

Sheet Erläuterung
A1: Erläuterung zum Excel-Werkzeug Kriterium 2.1.1 (V_BNB_BN_2015)
A4: Allgemeiner Hinweis | B4: Das Excel-Werkzeug Kriterium 2.1.1 wurde entwickelt als Berechnungshilfe für die Ermittlung der Lebenszykluskosten (LCC) nach BNB. Maßgebend ist die Umsetzung der im Steckbrief definierten Rahmenbedingungen. Das vorliegende Excel-Werkzeug Kriterium 2.1.1 wird für die Anwendung des BNB_BN 2015, BNB_BK_2017, BNB_UN_2017 und BNB_UK_2017 zur Verfügung gestellt.
B5: Das Excel-Werkzeug Kriterium 2.1.1 wurde geschrieben unter MS-Excel 2010 und nutzt Makros. Die Ausführung von Makros muss gestattet werden.
A6: Hinweis zur Fehlermeldung bei Makroaktivierung: | B6: Bei der Anwendung dieses Tools können Fehlermeldungen in Bezug auf die Aktivierung von Makros auftreten. Diese stehen in der Regel im Zusammenhang mit dem Speicherort der Datei und den IT-Sicherheitseinstellungen in Verwaltungen. Da Makros im Allgemeinen als Sicherheitslücken eingestuft werden, besteht hier als eine mögliche Lösung, die Excel-Datei an einem "vertrauenswürdigen Speicherort" abzuspeichern und dort zu öffnen. Die Vorgehensweise ist wie folgt: 1. Excel Datei Öffnen 2. Den Menüpunkt „Datei“ Öffnen 3. Den Menüpunkt „Optionen“ Öffnen 4. Den Menüpunkt „Trust Center“ Öffnen 5. Den Button für „Einstellungen für das Trust Center…“ Öffnen 6. Und den Menüpunkt „Vertrauenswürdige Speicherorte“ Anklicken
A8: Allgemeine Funktionsweise | B8: Automatisch berechnete Felder sind dunkelgrau, Eingabefelder hellgrau hinterlegt. In den Tabellen " Bauteile", "Bauteilreinigung", "Bodenreinigung" und "Energieversorgung" wird jeweils über den Button + xy hinzufügen + eine neue Eingabezeile erzeugt, das Löschen der Zeile ist über den x-Button am Zeilenanfang möglich. In den Tabellen " Bauteile", "Bauteilreinigung" und "Bodenreinigung" sind jeweils in einzelnen Spalten Sortierbutton ergänzt, so dass wahlweise nach unterschiedlichen Kriterien sortiert werden kann. Über die Schalter "+" bzw. "-" oberhalb der Spaltenbezeichnungen der Tabellenbereiche können zur besseren Übersicht einzelne Tabellenbereiche ein- bzw. ausgeblendet werden.
A10: Tabelle „Bewertung 2.1.1“ | B10: Ist die Ergebnistabelle der Barwerte für alle eingegebenen Herstellungs- und Nutzungskosten. Der erreichte BNB-Punktwert wird ebenfalls ausgewiesen. Außerdem werden die einzelnen Herstellungs-/ Nutzungskostenanteile grafisch dargestellt.
A12: Tabelle „Bauteilkostenübersicht“ | B12: Ist die Ergebnistabelle zur Kontrolle und Überprüfung der eingegebenen Bauteilkosten mit den Zwischensummen der einzelnen Kostengruppen.
A14: Tabelle „Bauteile“ | B14: Hier können Sie die Herstellungskosten für die KGR 300, 400 und je nach Erfordernis 500 bauteilbezogen erfassen. Für jedes Bauteil werden zunächst eine Bezeichnung, der Einbauort und optional über das Eingabefeld "OZ" eine beliebige Ordnungszahl erfasst. In dem Bereich Grunddaten (Spalte F-I) wird die Kostengruppe (über Auswahlfeld) zugeordnet. Außerdem wird die LCC-Relevanz (Standard Ja; Nein für Gebäude mit erhöhten baulichen Anforderungen, bei denen Sonderbedingungen geltend gemacht werden können, indem projektspezifische Mehrkosten abgezogen bzw. anzusetzende Kosten eingetragen werden.) und die Kostenzuordnung zum Bestand (Standard bzw. für Neubau immer Nein) abgefragt. Optional ist ein Kommentar pro Bauteil möglich (Spalte I). Die aufzuführenden Mehrkosten sind als separate Zeile einzufügen und über das Auswahlfeld "LCC" (Spalte G) mit "Nein" zuzuordnen, wodurch sie automatisch in den Spalten P-Q ausgewiesen und aus der Berechnung herausgenommen werden. Im Bereich Herstellungskosten (Spalte M-O) erfolgt die Eingabe der tatsächlichen Netto-Herstellungskosten. Die Preisindizierung auf das Bezugsjahr des Steckbriefes wird automatisch berechnet. Voraussetzung ist die Eingabe des entsprechenden Preisindex in der Tabelle "Konfiguration". Im Bereich Nutzungsdauer (Spalte S-Y) kann über ein Auswahlfeld die entsprechende Nutzungsdauer zugeordnet werden. Standardmäßig ist 1 Jahr als ND voreingestellt. Damit ist die Angabe der Nutzungsdauer unerlässlich. Die hinterlegten Nutzungsdauern der KGR 300 entsprechen den Werten der Tabelle "Nutzungsdauern von Bauteilen" gemäß Veröffentlichung auf dem Internetportal Nachhaltiges Bauen des BMVBS --> siehe auch http://www.nachhaltigesbauen.de/baustoff-und-gebaeudedaten/nutzungsdauern-von-bauteilen.html). Für die KGR 400 sind die Angaben zur mittleren Lebensdauer der VDI 2067: 2000 enthalten. Falls die in den Spalten E + F zuvor definierte Kostengruppe von der im Auswahlfeld der Spalte S benannten KGR (3.Ebene) abweicht, bleibt das Feld gelb markiert. Falls keine eindeutige Zuordnung gefunden werden kann, ist auch eine Handeingabe möglich. Handeingaben bzw. Abweichungen sind zu begründen. Im Bereich regelmäßige Kosten (Spalte AC-AI) werden jedem Bauteil die Inspektions- und Wartungskosten sowie die regelmäßigen Instandsetzungskosten wiederum über ein Auswahlfeld zugewiesen. Gemäß Anlage 3 des Steckbriefes werden für die KGR 300 einheitlich für die Inspektions- und Wartungskosten 0,1% der Herstellungskosten und 0,35% für die Instandsetzungskosten angesetzt. Für die KGR 400 sind ebenfalls gemäß Anlage 2 die je nach Kostengruppe unterschiedlichen Inspektions- und Wartungskosten sowie die laufenden Instandsetzungskosten zuzuordnen. Außerdem besteht zusätzlich die Option der Handeingabe für abweichende laufende Kosten (z.B. gemäß Wartungsvertrag). Alle weiteren Spalten beinhalten Ergebniswerte der Berechnung des Barwertes auf Basis der vorab beschriebenen Eingaben für den vorgegebenen Betrachtungszeitraum. Die Einzelwerte sind jahresweise ablesbar. Grundsätzich bezieht sich die Berechnung auf die preisindizierten Herstellungskosten, wobei die Preisinidzierung bei der Handgabe (Spalte AH + AI) eigenständig vorzunehmen ist.
A16: Tabelle „Bauteilreinigung“ | B16: In dieser Tabelle werden nachvollziehbar die zu reinigenden Bauteile über die Bauteilbezeichnung, den Einbauort und die entsprechende zu reinigende Fläche erfasst. Zu beachten ist die Anzahl der zu reinigenden Seiten (z.B. Fenster 2x). Wesentlich ist die Zuordnung über das Auswahlfeld der Spalte F gemäß Zugänglichkeit und Bauteiloberfläche für die Ermittlung des Reinigungsaufwandes. Die Berechnung der Reinigungskosten erfolgt automatisch über die hinterlegten Kostenkennwerte entsprechend Steckbrief Anlage 1. Die weiteren Spalten beinhalten die Ergebniswerte der Berechnung des Barwertes für den vorgegebenen Betrachtungszeitraum. Die Einzelwerte sind jahresweise ablesbar.
A18: Tabelle „Bodenreinigung“ | B18: In dieser Tabelle werden nachvollziehbar die zu reinigenden Bodenflächen über die Raumbezeichnung, die Raumnummer und die entsprechende zu reinigende Bodenfläche erfasst. Wesentlich ist die Zuordnung über das Auswahlfeld der Spalte F gemäß Oberflächentyp/ -material und Belastung für die Ermittlung des Reinigungsaufwandes. Die Berechnung der Reinigungskosten erfolgt automatisch über die hinterlegten Kostenkennwerte entsprechend Steckbrief Anlage 1. Die weiteren Spalten beinhalten die Ergebniswerte der Berechnung des Barwertes für den vorgegebenen Betrachtungszeitraum. Die Einzelwerte sind jahresweise ablesbar.
A20: Tabelle „Energieversorgung“ | B20: Mit der Auswahl des Energieträgers werden die Energiekosten gemäß Anlage 3 des Steckbriefs automatisch zugeordnet. Die weiteren Spalten beinhalten die Ergebniswerte der Berechnung des Barwertes für den vorgegebenen Betrachtungszeitraum. Die Einzelwerte sind jahresweise ablesbar.
A22: Tabelle „Wasser-/ Abwasser“ | B22: In dieser Tabelle werden der Gesamtfrischwasserbedarf, das Abwasseraufkommen aus Brauchwasser und die in die Kanalisation eingeleiteten Niederschlagsmengen über die Größe der versiegelten Flächen erfasst und die entsprechenden jährlichen Kosten über die Kostenkennwerte gemäß Anlage 3 des Steckbriefes automatisch berechnet. Für die Berechnung der Frischwasser- und Abwassermengen steht gesondert das Excel-Werkzeug Kriterium 1.2.3 zur Verfügung. Die weiteren Spalten beinhalten die Ergebniswerte der Berechnung des Barwertes für den vorgegebenen Betrachtungszeitraum. Die Einzelwerte sind jahresweise ablesbar.
A24: Tabelle „Konfiguration“ | B24: Diese Tabelle beinhaltet mit Betrachtungszeitraum, allgemeine Preissteigerung, Preissteigerung Energie und Kalkulationszins die grundlegenden Rahmenparameter der Lebenszykluskostenberechnung. Diese Werte sind mit BNB-Modul bzw. Version eindeutig definiert. Außerdem ist hier projektbezogen der entsprechende Baupreisindex für Bürogebäude einzugeben, da jede BNB-Version sich auf einen definierten Preisstand bezieht. Der jeweils relevante Baupreisindex ist der Tabelle des statistischen Bundesamteszu entnehmen --> https://www.destatis.de/DE/ZahlenFakten/Indikatoren/Konjunkturindikatoren/Preise/bpr110.html Als objektbezogener Wert sind die Kategorie der Lebenszykluskosten und die Bruttogeschossfläche BGF einzugeben, damit die flächenbezogene Berechnung des Barwertes möglich ist. Abweichende Werte für die Rahmenparameter erhöhen die flexible Anwendung des Excel-Werkzeugs für alternative Wirtschaftlichkeitsbetrachtungen, unabhängig vom BNB-System.

Sheet Bewertung-2.1.1
A1: Berechnung LCC nach BNB BN 2.1.1 v2015 Zusammenfassung | D1: BBR-LCC Ver. 15-1.1/20180109 BBR A1 | G1: =Konfiguration!N2 -> BNB_BN 2015 | H1: =K8 -> 77.53614302
A2: Projekt: | B2: Beispieleingabe (Szenario: 10 Mio Euro netto Herstellungskosten für KG 300 und 400) | G2: =Konfiguration!N3 -> BNB_UN 2017 Schulgebäude | H2: =K27 -> 100
A3: Projektnummer:
A4: Bearbeiter:
A5: LCC-Stand: | B5: 2018-01-08
G6: =G1 -> BNB_BN 2015
B7: Indikator | C7: Wert | G7: Punkte | H7: Maßstab | I7: Maßstab | J7: LCC | K7: Punktzahl
A8: 1 | B8: Herstellungskosten KG 300 | C8: =ERG_Herstell300 -> 7032142.857 | G8: 100 | H8: =3300-0.01 -> 3299.99 | J8: =IF(AND(ISNUMBER(C32),C32>0),C32,LCC) -> 3973.905709 | K8: =IF(Konfiguration!B19=1, P23, U23) -> 77.53614302 | L8: =IF($J$8<=H8,1,0) -> 0 | M8: =IF($J$8>0,1,0) -> 1 | N8: =G8*L8*M8 -> 0 | O8: =IF($J$8<=H8,1,0) -> 0 | P8: =N8*O8 -> 0 | Q8: =IF($J$8<=I8,1,0) -> 0 | R8: =IF($J$8>0,1,0) -> 1 | S8: =G8*Q8*R8 -> 0 | T8: =IF($J$8<=I8,1,0) -> 0 | AB8: =A8 -> 1 | AC8: Herst. KG 300 | AD8: =(C8-C9)/BGFabc -> 879.0178571
A9: 2 | B9: Kosten durch Sonderbedingungen | C9: =SUM(IF((Bauteile!G1:G100028="nein"),IF(MID(Bauteile!E1:E100028,1,1)="3",Bauteile!R1:R100028))) -> 0
A10: 3 | B10: Herstellungskosten KG 400 | C10: =ERG_Herstell400 -> 2789285.714 | G10: 90 | H10: =3600-0.01 -> 3599.99 | L10: =IF($J$8<=H10,1,0) -> 0 | M10: =IF($J$8>H8,1,0) -> 1 | N10: =G10*L10*M10 -> 0 | O10: =IF($J$8<=H10,1,0) -> 0 | P10: =N10+M10*O10*(G8-G10)*(H10-$J$8)/(H10-H8) -> 0 | Q10: =IF($J$8<=I10,1,0) -> 0 | R10: =IF($J$8>I8,1,0) -> 1 | S10: =G10*Q10*R10 -> 0 | T10: =IF($J$8<=I10,1,0) -> 0 | AB10: 3 | AC10: Herst. KG 400+500 | AD10: =((C10+C12)-(C11+C13))/BGFabc -> 348.6607143
A11: 4 | B11: Kosten durch Sonderbedingungen | C11: =SUM(IF((Bauteile!G1:G100028="nein"),IF(MID(Bauteile!E1:E100028,1,1)="4",Bauteile!R1:R100028))) -> 0
A12: 5 | B12: Herstellungskosten KG 500 | C12: =ERG_Herstell500 -> 0 | G12: 80 | H12: =3900-0.01 -> 3899.99 | L12: 0 | M12: =IF($J$8>H10,1,0) -> 1 | N12: 0 | O12: 0 | P12: =N12+M12*O12*(G10-G12)*(H12-$J$8)/(H12-H10) -> 0 | Q12: 0 | R12: =IF($J$8>I10,1,0) -> 1 | S12: 0 | T12: 0 | AB12: =A16 -> 9 | AC12: Ersatzinvestitionen KG 300 | AD12: =C16/BGFabc -> 25.03924495
A13: 6 | B13: Kosten durch Sonderbedingungen | C13: =SUM(IF((Bauteile!G1:G100028="nein"),IF(MID(Bauteile!E1:E100028,1,1)="5",Bauteile!R1:R100028))) -> 0
A14: 7 | B14: Herstellungskosten KG 300 + 400 + 500 | C14: =C8+C10+C12 -> 9821428.571
A15: 8 | B15: Kosten durch Sonderbedingungen | C15: =C9+C11+C13 -> 0 | G15: 70 | H15: =4200-0.01 -> 4199.99 | L15: 1 | M15: =IF($J$8>H12,1,0) -> 1 | N15: 70 | O15: 1 | P15: =N15+M15*O15*(G12-G15)*(H15-$J$8)/(H15-H12) -> 77.53614302 | Q15: 0 | R15: =IF($J$8>I12,1,0) -> 1 | S15: 0 | T15: 0 | AB15: =A17 -> 10 | AC15: Ersatzinvestitionen KG 400+500 | AD15: =C17/BGFabc -> 454.5644076
A16: 9 | B16: Barwert Ersatzinvestitionen KG 300 | C16: =ERG_BARERSATZ300 -> 200313.9596 | G16: 60 | H16: =4500-0.01 -> 4499.99 | L16: 1 | M16: =IF($J$8>H15,1,0) -> 0 | N16: 0 | O16: 1 | P16: =N16+M16*O16*(G15-G16)*(H16-$J$8)/(H16-H15) -> 0 | Q16: 0 | R16: =IF($J$8>I15,1,0) -> 1 | S16: 0 | T16: 0 | AB16: =A19 -> 12 | AC16: Inspektion und Wartung KG 300 | AD16: =C19/BGFabc -> 49.94355238
A17: 10 | B17: Barwert Ersatzinvestitionen KG 400 + 500 | C17: =ERG_BARERSATZ400+ERG_BARERSATZ500 -> 3636515.261 | G17: 50 | H17: =4800-0.01 -> 4799.99 | L17: 1 | M17: 0 | N17: 0 | O17: 1 | P17: 0 | Q17: 0 | R17: 1 | S17: 0 | T17: 0 | AB17: =A20 -> 13 | AC17: Inspektion und Wartung KG 400+500 | AD17: =C20/BGFabc -> 173.8168155
A18: 11 | B18: Barwert Ersatzinvestitionen KG 300 + 400 + 500 | C18: =C16+C17 -> 3836829.221 | G18: 40 | H18: =5200-0.01 -> 5199.99 | L18: 1 | M18: 0 | N18: 0 | O18: 1 | P18: 0 | Q18: 0 | R18: 1 | S18: 0 | T18: 0 | AB18: =A22 -> 15 | AC18: Instandhaltung KG 300 | AD18: =C22/BGFabc -> 174.8024333
A19: 12 | B19: Barwert regelmäßige Inspektion und Wartung KG 300 | C19: =ERG_BARWART300 -> 399548.419 | G19: 30 | H19: =5600-0.01 -> 5599.99 | L19: 1 | M19: 0 | N19: 0 | O19: 1 | P19: 0 | Q19: 0 | R19: 1 | S19: 0 | T19: 0 | AB19: =A23 -> 16 | AC19: Instandhaltung KG 400+500 | AD19: =C23/BGFabc -> 180.6296461
A20: 13 | B20: Barwert regelmäßige Inspektion und Wartung KG 400 + 500 | C20: =ERG_BARWART400+ERG_BARWART500 -> 1390534.524 | G20: 20 | H20: =6000-0.01 -> 5999.99 | L20: 1 | M20: 0 | N20: 0 | O20: 1 | P20: 0 | Q20: 0 | R20: 1 | S20: 0 | T20: 0 | AB20: =A27 -> 20 | AC20: Reinigung | AD20: =C27/BGFabc -> 403.2855191
A21: 14 | B21: Barwert regelmäßige Inspektion und Wartung KG 300 + 400 + 500 | C21: =C19+C20 -> 1790082.943 | G21: 10 | H21: =6400 -> 6400 | L21: =IF($J$8>H20,1,0) -> 0 | M21: 0 | N21: 0 | O21: =IF($J$8<H21,1,0) -> 1 | P21: 0 | Q21: =IF($J$8>I20,1,0) -> 1 | R21: 1 | S21: 10 | T21: =IF($J$8<I21,1,0) -> 0 | AB21: =A28 -> 21 | AC21: Energie | AD21: =C28/BGFabc -> 1217.385016
A22: 15 | B22: Barwert regelmäßige Instandsetzungskosten KG 300 | C22: =ERG_BARINST300 -> 1398419.467 | G22: 0 | H22: Kein Nachweis | I22: Kein Nachweis | P22: 0 | AB22: =A29 -> 22 | AC22: Wasser/ Abwasser | AD22: =C29/BGFabc -> 66.76050272
A23: 16 | B23: Barwert regelmäßige Instandsetzungskosten KG 400 + 500 | C23: =ERG_BARINST400+ERG_BARINST500 -> 1445037.169 | P23: =SUM(P8:P22) -> 77.53614302
A24: 17 | B24: Barwert regelmäßige Instandsetzungskosten KG 300 + 400 + 500 | C24: =C22+C23 -> 2843456.636
A25: 18 | B25: Barwert regelmäßige Kosten Bauteilreinigung | C25: =ERG_Reinigung -> 1294490.883 | G25: =G2 -> BNB_UN 2017 Schulgebäude
A26: 19 | B26: Barwert regelmäßige Kosten Bodenreinigung | C26: =ERG_Bodenreinigung -> 1931793.27 | G26: Punkte | H26: Maßstab Kategorie I | I26: Maßstab Kategorie II | J26: LCC | K26: Punktzahl
A27: 20 | B27: Barwert regelmäßige Kosten Reinigung | C27: =C25+C26 -> 3226284.153 | G27: 100 | H27: 3700 | J27: =IF(AND(ISNUMBER($C$32),$C$32>0),$C$32,LCC) -> 3973.905709 | K27: 100 | L27: =IF($J27<=H27,1,0) -> 0 | M27: =IF($J27>0,1,0) -> 1 | N27: =G27*L27*M27 -> 0 | O27: =IF($J$27<=H27,1,0) -> 0 | P27: =N27*O27 -> 0 | Q27: =IF($J27<=I27,1,0) -> 0 | R27: =IF($J27>0,1,0) -> 1 | S27: =G27*Q27*R27 -> 0 | T27: =IF($J27<=I27,1,0) -> 0
A28: 21 | B28: Barwert regelmäßige Kosten Energie | C28: =ERG_Energie -> 9739080.131 | G28: 90 | H28: 3830 | L28: =IF($J27<=H28,1,0) -> 0 | M28: =IF($J27>H27,1,0) -> 1 | N28: =G28*L28*M28 -> 0 | O28: 0 | P28: =N28+M28*O28*(G27-G28)*(H28-$J27)/(H28-H27) -> 0 | Q28: =IF($J27<=I28,1,0) -> 0 | R28: =IF($J27>I27,1,0) -> 1 | S28: 0 | T28: =IF($J27<=I28,1,0) -> 0
A29: 22 | B29: Barwert regelmäßige Kosten Wasser / Abwasser | C29: =ERG_Wasser -> 534084.0218 | G29: 80 | H29: 3960 | L29: =IF($J27<=H29,1,0) -> 0 | M29: =IF($J27>H28,1,0) -> 1 | N29: =G29*L29*M29 -> 0 | O29: 0 | P29: =N29+M29*O29*(G28-G29)*(H29-$J27)/(H29-H28) -> 0 | Q29: =IF($J27<=I29,1,0) -> 0 | R29: =IF($J27>I28,1,0) -> 1 | S29: 0 | T29: =IF($J27<=I29,1,0) -> 0
A30: 23 | B30: Barwert Gesamt | C30: =C14+C18+C21+C24+C27+C28+C29 -> 31791245.68 | G30: 70 | H30: 4090 | L30: =IF($J27<=H30,1,0) -> 1 | M30: =IF($J27>H29,1,0) -> 1 | N30: 70 | O30: 1 | P30: =N30+M30*O30*(G29-G30)*(H30-$J27)/(H30-H29) -> 78.93033004 | Q30: =IF($J27<=I30,1,0) -> 0 | R30: =IF($J27>I29,1,0) -> 1 | S30: 0 | T30: =IF($J27<=I30,1,0) -> 0
A31: 24 | B31: Lebenszykluskosten je m² BGF | C31: =IF(ISNUMBER(C30/Konfiguration!B20),C30/Konfiguration!B20,"Daten fehlen") -> 3973.905709 | G31: 60 | H31: 4220 | L31: =IF($J27<=H31,1,0) -> 1 | M31: =IF($J27>H30,1,0) -> 0 | N31: 0 | O31: 1 | P31: =N31+M31*O31*(G30-G31)*(H31-$J27)/(H31-H30) -> 0 | Q31: =IF($J27<=I31,1,0) -> 0 | R31: =IF($J27>I30,1,0) -> 1 | S31: 0 | T31: =IF($J27<=I31,1,0) -> 0
A32: 25 | B32: Alternativ: Handeingabe Lebenszykluskosten je m² BGF | G32: 50 | H32: 4350 | L32: =IF($J27<=H32,1,0) -> 1 | M32: =IF($J27>H31,1,0) -> 0 | N32: 0 | O32: 1 | P32: =N32+M32*O32*(G31-G32)*(H32-$J27)/(H32-H31) -> 0 | Q32: =IF($J27<=I32,1,0) -> 0 | R32: =IF($J27>I31,1,0) -> 1 | S32: 0 | T32: =IF($J27<=I32,1,0) -> 0
B33: Punktzahl 2.1.1 | C33: =IF(ISNUMBER(VLOOKUP(Konfiguration!B3,G1:H3,2,FALSE)),VLOOKUP(Konfiguration!B3,G1:H3,2,FALSE),"Daten fehlen") -> 77.53614302
B34: =Konfiguration!B3 -> BNB_BN 2015 | G34: 40 | H34: 4513 | L34: =IF($J27<=H34,1,0) -> 1 | M34: =IF($J27>H32,1,0) -> 0 | N34: 0 | O34: 1 | P34: =N34+M34*O34*(G32-G34)*(H34-$J27)/(H34-H32) -> 0 | Q34: =IF($J27<=I34,1,0) -> 0 | R34: =IF($J27>I32,1,0) -> 1 | S34: 0 | T34: =IF($J27<=I34,1,0) -> 0
G35: 30 | H35: 4625 | L35: =IF($J27<=H35,1,0) -> 1 | M35: =IF($J27>H34,1,0) -> 0 | N35: 0 | O35: 1 | P35: =N35+M35*O35*(G34-G35)*(H35-$J27)/(H35-H34) -> 0 | Q35: =IF($J27<=I35,1,0) -> 0 | R35: =IF($J27>I34,1,0) -> 1 | S35: 0 | T35: =IF($J27<=I35,1,0) -> 0
G36: 20 | H36: 4838 | L36: =IF($J27<=H36,1,0) -> 1 | M36: =IF($J27>H35,1,0) -> 0 | N36: 0 | O36: 1 | P36: =N36+M36*O36*(G35-G36)*(H36-$J27)/(H36-H35) -> 0 | Q36: =IF($J27<=I36,1,0) -> 0 | R36: =IF($J27>I35,1,0) -> 1 | S36: 0 | T36: =IF($J27<=I36,1,0) -> 0
G37: 10 | H37: 5000 | L37: =IF($J27>H36,1,0) -> 0 | M37: =IF($J27>H36,1,0) -> 0 | N37: 0 | O37: =IF($J$27<H37,1,0) -> 1 | P37: =N37+M37*O37*(G36-G37)*(H37-$J27)/(H37-H36) -> 0 | Q37: =IF($J27>I36,1,0) -> 1 | R37: =IF($J27>I36,1,0) -> 1 | S37: 10 | T37: =IF($J27<I37,1,0) -> 0
G38: 0 | H38: Kein Nachweis | I38: Kein Nachweis | P38: 0
P39: =SUM(P27:P38) -> 78.93033004 | U39: =SUM(U27:U38) -> 0
G45: =G3 -> 0
G46: Punkte | H46: Maßstab Kategorie I | I46: Maßstab Kategorie II | J46: LCC | K46: Punktzahl
G47: 100 | H47: =3050-0.01 -> 3049.99 | J47: =IF(AND(ISNUMBER($C$32),$C$32>0),$C$32,LCC) -> 3973.905709 | K47: 100 | L47: =IF($J47<=H47,1,0) -> 0 | M47: =IF($J47>0,1,0) -> 1 | N47: =G47*L47*M47 -> 0 | O47: =IF($J47<=H47,1,0) -> 0 | P47: =N47*O47 -> 0 | Q47: =IF($J47<=I47,1,0) -> 0 | R47: =IF($J47>0,1,0) -> 1 | S47: =G47*Q47*R47 -> 0 | T47: =IF($J47<=I47,1,0) -> 0
G48: 90 | H48: =3130-0.01 -> 3129.99 | L48: =IF($J47<=H48,1,0) -> 0 | M48: =IF($J47>H47,1,0) -> 1 | N48: =G48*L48*M48 -> 0 | O48: =IF($J47<=H48,1,0) -> 0 | P48: =N48+M48*O48*(G47-G48)*(H48-$J47)/(H48-H47) -> 0 | Q48: =IF($J47<=I48,1,0) -> 0 | R48: =IF($J47>I47,1,0) -> 1 | S48: 0 | T48: =IF($J47<=I48,1,0) -> 0
G49: 80 | H49: =3210-0.01 -> 3209.99 | L49: =IF($J47<=H49,1,0) -> 0 | M49: =IF($J47>H48,1,0) -> 1 | N49: =G49*L49*M49 -> 0 | O49: =IF($J47<=H49,1,0) -> 0 | P49: =N49+M49*O49*(G48-G49)*(H49-$J47)/(H49-H48) -> 0 | Q49: =IF($J47<=I49,1,0) -> 0 | R49: =IF($J47>I48,1,0) -> 1 | S49: 0 | T49: =IF($J47<=I49,1,0) -> 0
G50: 70 | H50: =3290-0.01 -> 3289.99 | L50: =IF($J47<=H50,1,0) -> 0 | M50: =IF($J47>H49,1,0) -> 1 | N50: 0 | O50: =IF($J47<=H50,1,0) -> 0 | P50: =N50+M50*O50*(G49-G50)*(H50-$J47)/(H50-H49) -> 0 | Q50: =IF($J47<=I50,1,0) -> 0 | R50: =IF($J47>I49,1,0) -> 1 | S50: 0 | T50: =IF($J47<=I50,1,0) -> 0
G51: 60 | H51: =3370-0.01 -> 3369.99 | L51: =IF($J47<=H51,1,0) -> 0 | M51: =IF($J47>H50,1,0) -> 1 | N51: 0 | O51: =IF($J47<=H51,1,0) -> 0 | P51: =N51+M51*O51*(G50-G51)*(H51-$J47)/(H51-H50) -> 0 | Q51: =IF($J47<=I51,1,0) -> 0 | R51: =IF($J47>I50,1,0) -> 1 | S51: 0 | T51: =IF($J47<=I51,1,0) -> 0
G52: 50 | H52: =3450-0.01 -> 3449.99 | L52: =IF($J47<=H52,1,0) -> 0 | M52: =IF($J47>H51,1,0) -> 1 | N52: 0 | O52: =IF($J47<=H52,1,0) -> 0 | P52: =N52+M52*O52*(G51-G52)*(H52-$J47)/(H52-H51) -> 0 | Q52: =IF($J47<=I52,1,0) -> 0 | R52: =IF($J47>I51,1,0) -> 1 | S52: 0 | T52: =IF($J47<=I52,1,0) -> 0
G53: 40 | H53: =3550-0.01 -> 3549.99 | L53: =IF($J47<=H53,1,0) -> 0 | M53: =IF($J47>H52,1,0) -> 1 | N53: 0 | O53: =IF($J47<=H53,1,0) -> 0 | P53: =N53+M53*O53*(G52-G53)*(H53-$J47)/(H53-H52) -> 0 | Q53: =IF($J47<=I53,1,0) -> 0 | R53: =IF($J47>I52,1,0) -> 1 | S53: 0 | T53: =IF($J47<=I53,1,0) -> 0
G54: 30 | H54: =3650-0.01 -> 3649.99 | L54: =IF($J47<=H54,1,0) -> 0 | M54: =IF($J47>H53,1,0) -> 1 | N54: 0 | O54: =IF($J47<=H54,1,0) -> 0 | P54: =N54+M54*O54*(G53-G54)*(H54-$J47)/(H54-H53) -> 0 | Q54: =IF($J47<=I54,1,0) -> 0 | R54: =IF($J47>I53,1,0) -> 1 | S54: 0 | T54: =IF($J47<=I54,1,0) -> 0
G55: 20 | H55: =3750-0.01 -> 3749.99 | L55: =IF($J47<=H55,1,0) -> 0 | M55: =IF($J47>H54,1,0) -> 1 | N55: 0 | O55: =IF($J47<=H55,1,0) -> 0 | P55: =N55+M55*O55*(G54-G55)*(H55-$J47)/(H55-H54) -> 0 | Q55: =IF($J47<=I55,1,0) -> 0 | R55: =IF($J47>I54,1,0) -> 1 | S55: 0 | T55: =IF($J47<=I55,1,0) -> 0
G56: 10 | H56: =3850 -> 3850 | L56: =IF($J47>H55,1,0) -> 1 | M56: =IF($J47>H55,1,0) -> 1 | N56: 10 | O56: =IF($J47<H56,1,0) -> 0 | P56: =N56+M56*O56*(G55-G56)*(H56-$J47)/(H56-H55) -> 10 | Q56: =IF($J47>I55,1,0) -> 1 | R56: =IF($J47>I55,1,0) -> 1 | S56: 10 | T56: =IF($J47<I56,1,0) -> 0
G57: 0 | H57: Kein Nachweis | I57: Kein Nachweis | P57: 0
P58: =SUM(P47:P57) -> 10 | U58: =SUM(U47:U57) -> 0

Sheet Bauteilkostenübersicht
B2: Projekt: | C2: =IF(ISTEXT(Projekt),Projekt,"") -> Beispieleingabe (Szenario: 10 Mio Euro netto Herstellungskosten für KG 300 und 400)
B3: Stand: | C3: =IF(ISNUMBER(LCC_Stand),LCC_Stand,"") -> 2018-01-08
B4: Bauwerkskosten (Summe KG 300 und 400) | D4: =D7+D76 -> 10000000 | E4: =E7+E76 -> 11900000
B6: Kostengruppen (KG) nach DIN 276 | D6: in EURO netto | E6: in EURO brutto
B7: 300 | C7: Bauwerk - Baukonstruktionen | D7: =D8+D9+D15+D25+D36+D45+D51+D58+D63 -> 7160000 | E7: =E8+E9+E15+E25+E36+E45+E51+E58+E63 -> 8520400
B8: 300 | C8: Bauwerk - Baukonstruktionen - Eingaben 1. Ebene | D8: =SUMIF(Bauteile!$E$11:$J$43,$B8,Bauteile!$J$11:$J$43) -> 0 | E8: =ROUND(D8*1.19,2) -> 0
B9: 310 | C9: Baugrube | D9: =SUM(D10:D14) -> 87000 | E9: =SUM(E10:E14) -> 103530
B10: 310 | C10: Baugrube - Eingaben 2. Ebene | D10: =SUMIF(Bauteile!$E$11:$J$43,$B10,Bauteile!$J$11:$J$43) -> 87000 | E10: =ROUND(D10*1.19,2) -> 103530
B11: 311 | C11: Baugrubenherstellung | D11: =SUMIF(Bauteile!$E$11:$J$43,$B11,Bauteile!$J$11:$J$43) -> 0 | E11: =ROUND(D11*1.19,2) -> 0
B12: 312 | C12: Baugrubenumschließung | D12: =SUMIF(Bauteile!$E$11:$J$43,$B12,Bauteile!$J$11:$J$43) -> 0 | E12: =ROUND(D12*1.19,2) -> 0
B13: 313 | C13: Wasserhaltung | D13: =SUMIF(Bauteile!$E$11:$J$43,$B13,Bauteile!$J$11:$J$43) -> 0 | E13: 0
B14: 319 | C14: Baugrube, Sonstiges | D14: =SUMIF(Bauteile!$E$11:$J$43,$B14,Bauteile!$J$11:$J$43) -> 0 | E14: 0
B15: 320 | C15: Gründung | D15: =SUM(D16:D24) -> 293000 | E15: =SUM(E16:E24) -> 348670
B16: 320 | C16: Gründung - Eingaben 2. Ebene | D16: =SUMIF(Bauteile!$E$11:$J$43,$B16,Bauteile!$J$11:$J$43) -> 293000 | E16: =ROUND(D16*1.19,2) -> 348670
B17: 321 | C17: Baugrundverbesserung | D17: =SUMIF(Bauteile!$E$11:$J$43,$B17,Bauteile!$J$11:$J$43) -> 0 | E17: =ROUND(D17*1.19,2) -> 0
B18: 322 | C18: Flachgründungen | D18: =SUMIF(Bauteile!$E$11:$J$43,$B18,Bauteile!$J$11:$J$43) -> 0 | E18: =ROUND(D18*1.19,2) -> 0
B19: 323 | C19: Tiefgründungen | D19: =SUMIF(Bauteile!$E$11:$J$43,$B19,Bauteile!$J$11:$J$43) -> 0 | E19: 0
B20: 324 | C20: Unterböden und Bodenplatten | D20: =SUMIF(Bauteile!$E$11:$J$43,$B20,Bauteile!$J$11:$J$43) -> 0 | E20: 0
B21: 325 | C21: Bodenbeläge | D21: =SUMIF(Bauteile!$E$11:$J$43,$B21,Bauteile!$J$11:$J$43) -> 0 | E21: 0
B22: 326 | C22: Bauwerksabdichtungen | D22: =SUMIF(Bauteile!$E$11:$J$43,$B22,Bauteile!$J$11:$J$43) -> 0 | E22: 0
B23: 327 | C23: Drainagen | D23: =SUMIF(Bauteile!$E$11:$J$43,$B23,Bauteile!$J$11:$J$43) -> 0 | E23: 0
B24: 329 | C24: Gründungen, Sonstiges | D24: =SUMIF(Bauteile!$E$11:$J$43,$B24,Bauteile!$J$11:$J$43) -> 0 | E24: 0
B25: 330 | C25: Außenwände | D25: =SUM(D26:D35) -> 2175000 | E25: =SUM(E26:E35) -> 2588250
B26: 330 | C26: Außenwände - Eingaben 2. Ebene | D26: =SUMIF(Bauteile!$E$11:$J$43,$B26,Bauteile!$J$11:$J$43) -> 2175000 | E26: =ROUND(D26*1.19,2) -> 2588250
B27: 331 | C27: Tragende Außenwände | D27: =SUMIF(Bauteile!$E$11:$J$43,$B27,Bauteile!$J$11:$J$43) -> 0 | E27: =ROUND(D27*1.19,2) -> 0
B28: 332 | C28: Nichttragende Außenwände | D28: =SUMIF(Bauteile!$E$11:$J$43,$B28,Bauteile!$J$11:$J$43) -> 0 | E28: =ROUND(D28*1.19,2) -> 0
B29: 333 | C29: Außenstützen | D29: =SUMIF(Bauteile!$E$11:$J$43,$B29,Bauteile!$J$11:$J$43) -> 0 | E29: 0
B30: 334 | C30: Außentüren und -fenster | D30: =SUMIF(Bauteile!$E$11:$J$43,$B30,Bauteile!$J$11:$J$43) -> 0 | E30: 0
B31: 335 | C31: Außenwandbekleidungen außen | D31: =SUMIF(Bauteile!$E$11:$J$43,$B31,Bauteile!$J$11:$J$43) -> 0 | E31: 0
B32: 336 | C32: Außenwandbekleidungen innen | D32: =SUMIF(Bauteile!$E$11:$J$43,$B32,Bauteile!$J$11:$J$43) -> 0 | E32: 0
B33: 337 | C33: Elementierte Außenwände | D33: =SUMIF(Bauteile!$E$11:$J$43,$B33,Bauteile!$J$11:$J$43) -> 0 | E33: 0
B34: 338 | C34: Sonnenschutz | D34: =SUMIF(Bauteile!$E$11:$J$43,$B34,Bauteile!$J$11:$J$43) -> 0 | E34: 0
B35: 339 | C35: Außenwände, Sonstiges | D35: =SUMIF(Bauteile!$E$11:$J$43,$B35,Bauteile!$J$11:$J$43) -> 0 | E35: 0
B36: 340 | C36: Innenwände | D36: =SUM(D37:D44) -> 1954000 | E36: =SUM(E37:E44) -> 2325260
B37: 340 | C37: Innenwände - Eingaben 2. Ebene | D37: =SUMIF(Bauteile!$E$11:$J$43,$B37,Bauteile!$J$11:$J$43) -> 1954000 | E37: =ROUND(D37*1.19,2) -> 2325260
B38: 341 | C38: Tragende Innenwände | D38: =SUMIF(Bauteile!$E$11:$J$43,$B38,Bauteile!$J$11:$J$43) -> 0 | E38: =ROUND(D38*1.19,2) -> 0
B39: 342 | C39: Nichttragende Innenwände | D39: =SUMIF(Bauteile!$E$11:$J$43,$B39,Bauteile!$J$11:$J$43) -> 0 | E39: =ROUND(D39*1.19,2) -> 0
B40: 343 | C40: Innenstützen | D40: =SUMIF(Bauteile!$E$11:$J$43,$B40,Bauteile!$J$11:$J$43) -> 0 | E40: 0
B41: 344 | C41: Innentüren und -fenster | D41: =SUMIF(Bauteile!$E$11:$J$43,$B41,Bauteile!$J$11:$J$43) -> 0 | E41: 0
B42: 345 | C42: Innenwandbekleidungen | D42: =SUMIF(Bauteile!$E$11:$J$43,$B42,Bauteile!$J$11:$J$43) -> 0 | E42: 0
B43: 346 | C43: Elementierte Innenwände | D43: =SUMIF(Bauteile!$E$11:$J$43,$B43,Bauteile!$J$11:$J$43) -> 0 | E43: 0
B44: 349 | C44: Innenwände, Sonstiges | D44: =SUMIF(Bauteile!$E$11:$J$43,$B44,Bauteile!$J$11:$J$43) -> 0 | E44: 0
B45: 350 | C45: Decken | D45: =SUM(D46:D50) -> 1831000 | E45: =SUM(E46:E50) -> 2178890
B46: 350 | C46: Decken - Eingaben 2. Ebene | D46: =SUMIF(Bauteile!$E$11:$J$43,$B46,Bauteile!$J$11:$J$43) -> 1831000 | E46: =ROUND(D46*1.19,2) -> 2178890
B47: 351 | C47: Deckenkonstruktion | D47: =SUMIF(Bauteile!$E$11:$J$43,$B47,Bauteile!$J$11:$J$43) -> 0 | E47: =ROUND(D47*1.19,2) -> 0
B48: 352 | C48: Deckenbeläge | D48: =SUMIF(Bauteile!$E$11:$J$43,$B48,Bauteile!$J$11:$J$43) -> 0 | E48: =ROUND(D48*1.19,2) -> 0
B49: 353 | C49: Deckenbekleidungen | D49: =SUMIF(Bauteile!$E$11:$J$43,$B49,Bauteile!$J$11:$J$43) -> 0 | E49: 0
B50: 359 | C50: Decken, Sonstiges | D50: =SUMIF(Bauteile!$E$11:$J$43,$B50,Bauteile!$J$11:$J$43) -> 0 | E50: 0
B51: 360 | C51: Dächer | D51: =SUM(D52:D57) -> 305000 | E51: =SUM(E52:E57) -> 362950
B52: 360 | C52: Dächer - Eingaben 2. Ebene | D52: =SUMIF(Bauteile!$E$11:$J$43,$B52,Bauteile!$J$11:$J$43) -> 305000 | E52: =ROUND(D52*1.19,2) -> 362950
B53: 361 | C53: Dachkonstruktionen | D53: =SUMIF(Bauteile!$E$11:$J$43,$B53,Bauteile!$J$11:$J$43) -> 0 | E53: =ROUND(D53*1.19,2) -> 0
B54: 362 | C54: Dachfenster, Dachöffnungen | D54: =SUMIF(Bauteile!$E$11:$J$43,$B54,Bauteile!$J$11:$J$43) -> 0 | E54: =ROUND(D54*1.19,2) -> 0
B55: 363 | C55: Dachbeläge | D55: =SUMIF(Bauteile!$E$11:$J$43,$B55,Bauteile!$J$11:$J$43) -> 0 | E55: 0
B56: 364 | C56: Dachbekleidungen - Putz und Bekleidungen | D56: =SUMIF(Bauteile!$E$11:$J$43,$B56,Bauteile!$J$11:$J$43) -> 0 | E56: 0
B57: 369 | C57: Dächer, Sonstiges | D57: =SUMIF(Bauteile!$E$11:$J$43,$B57,Bauteile!$J$11:$J$43) -> 0 | E57: 0
B58: 370 | C58: Baukonstruktive Einbauten | D58: =SUM(D59:D62) -> 176000 | E58: =SUM(E59:E62) -> 209440
B59: 370 | C59: Baukonstruktive Einbauten - Eingaben 2. Ebene | D59: =SUMIF(Bauteile!$E$11:$J$43,$B59,Bauteile!$J$11:$J$43) -> 176000 | E59: =ROUND(D59*1.19,2) -> 209440
B60: 371 | C60: Allgemeine Einbauten | D60: =SUMIF(Bauteile!$E$11:$J$43,$B60,Bauteile!$J$11:$J$43) -> 0 | E60: =ROUND(D60*1.19,2) -> 0
B61: 372 | C61: Besondere Einbauten | D61: =SUMIF(Bauteile!$E$11:$J$43,$B61,Bauteile!$J$11:$J$43) -> 0 | E61: =ROUND(D61*1.19,2) -> 0
B62: 379 | C62: Baukonstruktive Einbauten, Sonstiges | D62: =SUMIF(Bauteile!$E$11:$J$43,$B62,Bauteile!$J$11:$J$43) -> 0 | E62: 0
B63: 390 | C63: Sonstige Maßnahmen für Baukonstruktionen | D63: =SUM(D64:D73) -> 339000 | E63: =SUM(E64:E73) -> 403410
B64: 390 | C64: Sonstige Maßnahmen für Baukonstruktionen - Eingaben 2. Ebene | D64: =SUMIF(Bauteile!$E$11:$J$43,$B64,Bauteile!$J$11:$J$43) -> 339000 | E64: =ROUND(D64*1.19,2) -> 403410
B65: 391 | C65: Baustelleneinrichtung | D65: =SUMIF(Bauteile!$E$11:$J$43,$B65,Bauteile!$J$11:$J$43) -> 0 | E65: =ROUND(D65*1.19,2) -> 0
B66: 392 | C66: Gerüste | D66: =SUMIF(Bauteile!$E$11:$J$43,$B66,Bauteile!$J$11:$J$43) -> 0 | E66: =ROUND(D66*1.19,2) -> 0
B67: 393 | C67: Sicherungsmaßnahmen | D67: =SUMIF(Bauteile!$E$11:$J$43,$B67,Bauteile!$J$11:$J$43) -> 0 | E67: 0
B68: 394 | C68: Abbruchmaßnahmen | D68: =SUMIF(Bauteile!$E$11:$J$43,$B68,Bauteile!$J$11:$J$43) -> 0 | E68: 0
B69: 395 | C69: Instandsetzungen | D69: =SUMIF(Bauteile!$E$11:$J$43,$B69,Bauteile!$J$11:$J$43) -> 0 | E69: 0
B70: 396 | C70: Materialentsorgung | D70: =SUMIF(Bauteile!$E$11:$J$43,$B70,Bauteile!$J$11:$J$43) -> 0 | E70: 0
B71: 397 | C71: Zusätzliche Maßnahmen | D71: =SUMIF(Bauteile!$E$11:$J$43,$B71,Bauteile!$J$11:$J$43) -> 0 | E71: 0
B72: 398 | C72: Provisorische Baukonstruktionen | D72: =SUMIF(Bauteile!$E$11:$J$43,$B72,Bauteile!$J$11:$J$43) -> 0 | E72: 0
B73: 399 | C73: Sonstige Maßnahmen für Baukonstruktionen, Sonstiges | D73: =SUMIF(Bauteile!$E$11:$J$43,$B73,Bauteile!$J$11:$J$43) -> 0 | E73: 0
B75: Kostengruppen (KG) nach DIN 276 | D75: in EURO netto | E75: in EURO brutto
B76: 400 | C76: Bauwerk - Technische Anlagen | D76: =D77+D78+D84+D90+D97+D106+D116+D124+D135+D143 -> 2840000 | E76: =E77+E78+E84+E90+E97+E106+E116+E124+E135+E143 -> 3379600
B77: 400 | C77: Bauwerk - Technische Anlagen - Eingaben 1. Ebene | D77: =SUMIF(Bauteile!$E$11:$J$43,$B77,Bauteile!$J$11:$J$43) -> 0 | E77: =ROUND(D77*1.19,2) -> 0
B78: 410 | C78: Abwasser-, Wasser-, Gasanlagen | D78: =SUM(D79:D83) -> 359000 | E78: =SUM(E79:E83) -> 427210
B79: 410 | C79: Abwasser-, Wasser-, Gasanlagen - Eingaben 2. Ebene | D79: =SUMIF(Bauteile!$E$11:$J$43,$B79,Bauteile!$J$11:$J$43) -> 359000 | E79: =ROUND(D79*1.19,2) -> 427210
B80: 411 | C80: Abwasseranlagen | D80: =SUMIF(Bauteile!$E$11:$J$43,$B80,Bauteile!$J$11:$J$43) -> 0 | E80: =ROUND(D80*1.19,2) -> 0
B81: 412 | C81: Wasseranlagen | D81: =SUMIF(Bauteile!$E$11:$J$43,$B81,Bauteile!$J$11:$J$43) -> 0 | E81: =ROUND(D81*1.19,2) -> 0
B82: 413 | C82: Gasanlagen | D82: =SUMIF(Bauteile!$E$11:$J$43,$B82,Bauteile!$J$11:$J$43) -> 0 | E82: 0
B83: 419 | C83: Abwasser-, Wasser-, Gasanlagen, Sonstiges | D83: =SUMIF(Bauteile!$E$11:$J$43,$B83,Bauteile!$J$11:$J$43) -> 0 | E83: 0
B84: 420 | C84: Wärmeversorgungsanlagen | D84: =SUM(D85:D89) -> 488000 | E84: =SUM(E85:E89) -> 580720
B85: 420 | C85: Wärmeversorgungsanlagen - Eingaben 2. Ebene | D85: =SUMIF(Bauteile!$E$11:$J$43,$B85,Bauteile!$J$11:$J$43) -> 488000 | E85: =ROUND(D85*1.19,2) -> 580720
B86: 421 | C86: Wärmeerzeugungsanlagen | D86: =SUMIF(Bauteile!$E$11:$J$43,$B86,Bauteile!$J$11:$J$43) -> 0 | E86: =ROUND(D86*1.19,2) -> 0
B87: 422 | C87: Wärmeverteilnetze | D87: =SUMIF(Bauteile!$E$11:$J$43,$B87,Bauteile!$J$11:$J$43) -> 0 | E87: =ROUND(D87*1.19,2) -> 0
B88: 423 | C88: Raumheizflächen | D88: =SUMIF(Bauteile!$E$11:$J$43,$B88,Bauteile!$J$11:$J$43) -> 0 | E88: 0
B89: 429 | C89: Wärmeversorgungsanlagen, Sonstiges | D89: =SUMIF(Bauteile!$E$11:$J$43,$B89,Bauteile!$J$11:$J$43) -> 0 | E89: 0
B90: 430 | C90: Lufttechnische Anlagen | D90: =SUM(D91:D96) -> 285000 | E90: =SUM(E91:E96) -> 339150
B91: 430 | C91: Lufttechnische Anlagen - Eingaben 2. Ebene | D91: =SUMIF(Bauteile!$E$11:$J$43,$B91,Bauteile!$J$11:$J$43) -> 285000 | E91: =ROUND(D91*1.19,2) -> 339150
B92: 431 | C92: Lüftungsanlagen | D92: =SUMIF(Bauteile!$E$11:$J$43,$B92,Bauteile!$J$11:$J$43) -> 0 | E92: =ROUND(D92*1.19,2) -> 0
B93: 432 | C93: Teilklimaanlagen | D93: =SUMIF(Bauteile!$E$11:$J$43,$B93,Bauteile!$J$11:$J$43) -> 0 | E93: =ROUND(D93*1.19,2) -> 0
B94: 433 | C94: Klimaanlagen | D94: =SUMIF(Bauteile!$E$11:$J$43,$B94,Bauteile!$J$11:$J$43) -> 0 | E94: 0
B95: 434 | C95: Kälteanlagen | D95: =SUMIF(Bauteile!$E$11:$J$43,$B95,Bauteile!$J$11:$J$43) -> 0 | E95: 0
B96: 439 | C96: Lufttechnische Anlagen, Sonstiges | D96: =SUMIF(Bauteile!$E$11:$J$43,$B96,Bauteile!$J$11:$J$43) -> 0 | E96: 0
B97: 440 | C97: Starkstromanlagen | D97: =SUM(D98:D105) -> 766000 | E97: =SUM(E98:E105) -> 911540
B98: 440 | C98: Starkstromanlagen - Eingaben 2. Ebene | D98: =SUMIF(Bauteile!$E$11:$J$43,$B98,Bauteile!$J$11:$J$43) -> 766000 | E98: =ROUND(D98*1.19,2) -> 911540
B99: 441 | C99: Hoch- und Mittelspannungsanlagen | D99: =SUMIF(Bauteile!$E$11:$J$43,$B99,Bauteile!$J$11:$J$43) -> 0 | E99: =ROUND(D99*1.19,2) -> 0
B100: 442 | C100: Eigenstromversorgungsanlagen | D100: =SUMIF(Bauteile!$E$11:$J$43,$B100,Bauteile!$J$11:$J$43) -> 0 | E100: =ROUND(D100*1.19,2) -> 0
B101: 443 | C101: Niederspannungsschaltanlagen | D101: =SUMIF(Bauteile!$E$11:$J$43,$B101,Bauteile!$J$11:$J$43) -> 0 | E101: 0
B102: 444 | C102: Niederspannungsinstallationsanlagen | D102: =SUMIF(Bauteile!$E$11:$J$43,$B102,Bauteile!$J$11:$J$43) -> 0 | E102: 0
B103: 445 | C103: Beleuchtungsanlagen | D103: =SUMIF(Bauteile!$E$11:$J$43,$B103,Bauteile!$J$11:$J$43) -> 0 | E103: 0
B104: 446 | C104: Blitzschutz- und Erdungsanlagen | D104: =SUMIF(Bauteile!$E$11:$J$43,$B104,Bauteile!$J$11:$J$43) -> 0 | E104: 0
B105: 449 | C105: Starkstromanlagen, Sonstiges | D105: =SUMIF(Bauteile!$E$11:$J$43,$B105,Bauteile!$J$11:$J$43) -> 0 | E105: 0
B106: 450 | C106: Fernmelde- und informationstechnische Anlagen | D106: =SUM(D107:D115) -> 271000 | E106: =SUM(E107:E115) -> 322490
B107: 450 | C107: Telekommunikationsanlagen - Eingaben 2. Ebene | D107: =SUMIF(Bauteile!$E$11:$J$43,$B107,Bauteile!$J$11:$J$43) -> 271000 | E107: =ROUND(D107*1.19,2) -> 322490
B108: 451 | C108: Telekommunikationsanlagen | D108: =SUMIF(Bauteile!$E$11:$J$43,$B108,Bauteile!$J$11:$J$43) -> 0 | E108: =ROUND(D108*1.19,2) -> 0
B109: 452 | C109: Such- und Signalanlagen | D109: =SUMIF(Bauteile!$E$11:$J$43,$B109,Bauteile!$J$11:$J$43) -> 0 | E109: =ROUND(D109*1.19,2) -> 0
B110: 453 | C110: Zeitdienstanlagen | D110: =SUMIF(Bauteile!$E$11:$J$43,$B110,Bauteile!$J$11:$J$43) -> 0 | E110: 0
B111: 454 | C111: Elektroakustische Anlagen | D111: =SUMIF(Bauteile!$E$11:$J$43,$B111,Bauteile!$J$11:$J$43) -> 0 | E111: 0
B112: 455 | C112: Fernseh- und Antennenanlagen | D112: =SUMIF(Bauteile!$E$11:$J$43,$B112,Bauteile!$J$11:$J$43) -> 0 | E112: 0
B113: 456 | C113: Gefahrenmelde- und Alarmanlagen | D113: =SUMIF(Bauteile!$E$11:$J$43,$B113,Bauteile!$J$11:$J$43) -> 0 | E113: 0
B114: 457 | C114: Übertragungsnetze | D114: =SUMIF(Bauteile!$E$11:$J$43,$B114,Bauteile!$J$11:$J$43) -> 0 | E114: 0
B115: 459 | C115: Fernmelde- und informationstechnische Anlagen, Sonst. | D115: =SUMIF(Bauteile!$E$11:$J$43,$B115,Bauteile!$J$11:$J$43) -> 0 | E115: 0
B116: 460 | C116: Förderanlagen | D116: =SUM(D117:D123) -> 197000 | E116: =SUM(E117:E123) -> 234430
B117: 460 | C117: Förderanlagen - Eingaben 2. Ebene | D117: =SUMIF(Bauteile!$E$11:$J$43,$B117,Bauteile!$J$11:$J$43) -> 197000 | E117: =ROUND(D117*1.19,2) -> 234430
B118: 461 | C118: Aufzugsanlagen | D118: =SUMIF(Bauteile!$E$11:$J$43,$B118,Bauteile!$J$11:$J$43) -> 0 | E118: =ROUND(D118*1.19,2) -> 0
B119: 462 | C119: Fahrtreppen, Fahrsteige | D119: =SUMIF(Bauteile!$E$11:$J$43,$B119,Bauteile!$J$11:$J$43) -> 0 | E119: =ROUND(D119*1.19,2) -> 0
B120: 463 | C120: Befahranlagen | D120: =SUMIF(Bauteile!$E$11:$J$43,$B120,Bauteile!$J$11:$J$43) -> 0 | E120: 0
B121: 464 | C121: Transportanlagen | D121: =SUMIF(Bauteile!$E$11:$J$43,$B121,Bauteile!$J$11:$J$43) -> 0 | E121: 0
B122: 465 | C122: Krananlagen | D122: =SUMIF(Bauteile!$E$11:$J$43,$B122,Bauteile!$J$11:$J$43) -> 0 | E122: 0
B123: 469 | C123: Förderanlagen, Sonstiges | D123: =SUMIF(Bauteile!$E$11:$J$43,$B123,Bauteile!$J$11:$J$43) -> 0 | E123: 0
B124: 470 | C124: Nutzungsspezifische Anlagen | D124: =SUM(D125:D134) -> 142000 | E124: =SUM(E125:E134) -> 168980
B125: 470 | C125: Nutzungsspezifische Anlagen - Eingaben 2. Ebene | D125: =SUMIF(Bauteile!$E$11:$J$43,$B125,Bauteile!$J$11:$J$43) -> 142000 | E125: =ROUND(D125*1.19,2) -> 168980
B126: 471 | C126: Küchentechnische Anlagen | D126: =SUMIF(Bauteile!$E$11:$J$43,$B126,Bauteile!$J$11:$J$43) -> 0 | E126: =ROUND(D126*1.19,2) -> 0
B127: 472 | C127: Wäscherei- und Reinigungsanlagen | D127: =SUMIF(Bauteile!$E$11:$J$43,$B127,Bauteile!$J$11:$J$43) -> 0 | E127: =ROUND(D127*1.19,2) -> 0
B128: 473 | C128: Medienversorgungsanlagen | D128: =SUMIF(Bauteile!$E$11:$J$43,$B128,Bauteile!$J$11:$J$43) -> 0 | E128: 0
B129: 474 | C129: Medizin- und labortechnische Anlagen | D129: =SUMIF(Bauteile!$E$11:$J$43,$B129,Bauteile!$J$11:$J$43) -> 0 | E129: 0
B130: 475 | C130: Feuerlöschanlagen | D130: =SUMIF(Bauteile!$E$11:$J$43,$B130,Bauteile!$J$11:$J$43) -> 0 | E130: 0
B131: 476 | C131: Badetechnische Anlagen | D131: =SUMIF(Bauteile!$E$11:$J$43,$B131,Bauteile!$J$11:$J$43) -> 0 | E131: 0
B132: 477 | C132: Prozesswärme-, kälte-, und luftanlagen | D132: =SUMIF(Bauteile!$E$11:$J$43,$B132,Bauteile!$J$11:$J$43) -> 0 | E132: 0
B133: 478 | C133: Entsorgungsanlagen | D133: =SUMIF(Bauteile!$E$11:$J$43,$B133,Bauteile!$J$11:$J$43) -> 0 | E133: 0
B134: 479 | C134: Nutzungsspezifische Anlagen, Sonstiges | D134: =SUMIF(Bauteile!$E$11:$J$43,$B134,Bauteile!$J$11:$J$43) -> 0 | E134: 0
B135: 480 | C135: Gebäudeautomation | D135: =SUM(D136:D142) -> 264000 | E135: =SUM(E136:E142) -> 314160
B136: 480 | C136: Gebäudeautomation - Eingaben 2. Ebene | D136: =SUMIF(Bauteile!$E$11:$J$43,$B136,Bauteile!$J$11:$J$43) -> 264000 | E136: =ROUND(D136*1.19,2) -> 314160
B137: 481 | C137: Automationssysteme | D137: =SUMIF(Bauteile!$E$11:$J$43,$B137,Bauteile!$J$11:$J$43) -> 0 | E137: =ROUND(D137*1.19,2) -> 0
B138: 482 | C138: Schaltschränke | D138: =SUMIF(Bauteile!$E$11:$J$43,$B138,Bauteile!$J$11:$J$43) -> 0 | E138: =ROUND(D138*1.19,2) -> 0
B139: 483 | C139: Management- und Bedieneinrichtungen | D139: =SUMIF(Bauteile!$E$11:$J$43,$B139,Bauteile!$J$11:$J$43) -> 0 | E139: 0
B140: 484 | C140: Raumautomationssysteme | D140: =SUMIF(Bauteile!$E$11:$J$43,$B140,Bauteile!$J$11:$J$43) -> 0 | E140: 0
B141: 485 | C141: Übertragungsnetze | D141: =SUMIF(Bauteile!$E$11:$J$43,$B141,Bauteile!$J$11:$J$43) -> 0 | E141: 0
B142: 489 | C142: Gebäudeautomation, Sonstiges | D142: =SUMIF(Bauteile!$E$11:$J$43,$B142,Bauteile!$J$11:$J$43) -> 0 | E142: 0
B143: 490 | C143: Sonstige Maßnahmen für technische Anlagen | D143: =SUM(D144:D153) -> 68000 | E143: =SUM(E144:E153) -> 80920
B144: 490 | C144: Sonstige Maßnahmen für technische Anlagen - Eingaben 2. Ebene | D144: =SUMIF(Bauteile!$E$11:$J$43,$B144,Bauteile!$J$11:$J$43) -> 68000 | E144: =ROUND(D144*1.19,2) -> 80920
B145: 491 | C145: Baustelleneinrichtung | D145: =SUMIF(Bauteile!$E$11:$J$43,$B145,Bauteile!$J$11:$J$43) -> 0 | E145: =ROUND(D145*1.19,2) -> 0
B146: 492 | C146: Gerüste | D146: =SUMIF(Bauteile!$E$11:$J$43,$B146,Bauteile!$J$11:$J$43) -> 0 | E146: =ROUND(D146*1.19,2) -> 0
B147: 493 | C147: Sicherungsmaßnahmen | D147: =SUMIF(Bauteile!$E$11:$J$43,$B147,Bauteile!$J$11:$J$43) -> 0 | E147: 0
B148: 494 | C148: Abbruchmaßnahmen | D148: =SUMIF(Bauteile!$E$11:$J$43,$B148,Bauteile!$J$11:$J$43) -> 0 | E148: 0
B149: 495 | C149: Instandsetzungen | D149: =SUMIF(Bauteile!$E$11:$J$43,$B149,Bauteile!$J$11:$J$43) -> 0 | E149: 0
B150: 496 | C150: Materialentsorgung | D150: =SUMIF(Bauteile!$E$11:$J$43,$B150,Bauteile!$J$11:$J$43) -> 0 | E150: 0
B151: 497 | C151: Zusätzliche Maßnahmen | D151: =SUMIF(Bauteile!$E$11:$J$43,$B151,Bauteile!$J$11:$J$43) -> 0 | E151: 0
B152: 498 | C152: Provisorische technische Anlagen | D152: =SUMIF(Bauteile!$E$11:$J$43,$B152,Bauteile!$J$11:$J$43) -> 0 | E152: 0
B153: 499 | C153: Sonstige Maßnahmen für technische Anlagen, Sonst. | D153: =SUMIF(Bauteile!$E$11:$J$43,$B153,Bauteile!$J$11:$J$43) -> 0 | E153: 0
B155: Kostengruppen (KG) nach DIN 276 | D155: in EURO netto | E155: in EURO brutto
B156: 500 | C156: Außenanlagen | D156: =D157+D158+D163+D173+D184+D195+D200+D205+D214 -> 0 | E156: =E157+E158+E163+E173+E184+E195+E200+E205+E214 -> 0
B157: 500 | C157: Außenanlagen - Eingaben 1. Ebene | D157: =SUMIF(Bauteile!$E$11:$J$43,$B157,Bauteile!$J$11:$J$43) -> 0 | E157: =ROUND(D157*1.19,2) -> 0
B158: 510 | C158: Geländeflächen | D158: =SUM(D159:D162) -> 0 | E158: =SUM(E159:E162) -> 0
B159: 510 | C159: Geländeflächen - Eingaben 2. Ebene | D159: =SUMIF(Bauteile!$E$11:$J$43,$B159,Bauteile!$J$11:$J$43) -> 0 | E159: =ROUND(D159*1.19,2) -> 0
B160: 511 | C160: Oberbodenarbeiten | D160: =SUMIF(Bauteile!$E$11:$J$43,#REF!,Bauteile!$J$11:$J$43) -> 0 | E160: =ROUND(D160*1.19,2) -> 0
B161: 512 | C161: Bodenarbeiten | D161: =SUMIF(Bauteile!$E$11:$J$43,#REF!,Bauteile!$J$11:$J$43) -> 0 | E161: 0
B162: 519 | C162: Geländeflächen, sonstiges | D162: =SUMIF(Bauteile!$E$11:$J$43,#REF!,Bauteile!$J$11:$J$43) -> 0 | E162: 0
B163: 520 | C163: Befestigte Flächen | D163: =SUM(D164:D172) -> 0 | E163: =SUM(E164:E172) -> 0
B164: 520 | C164: Befestigte Flächen - Eingaben 2. Ebene | D164: =SUMIF(Bauteile!$E$11:$J$43,$B164,Bauteile!$J$11:$J$43) -> 0 | E164: =ROUND(D164*1.19,2) -> 0
B165: 521 | C165: Wege | D165: =SUMIF(Bauteile!$E$11:$J$43,$B165,Bauteile!$J$11:$J$43) -> 0 | E165: =ROUND(D165*1.19,2) -> 0
B166: 522 | C166: Straßen | D166: =SUMIF(Bauteile!$E$11:$J$43,$B166,Bauteile!$J$11:$J$43) -> 0 | E166: 0
B167: 523 | C167: Plätze, Höfe | D167: =SUMIF(Bauteile!$E$11:$J$43,$B167,Bauteile!$J$11:$J$43) -> 0 | E167: 0
B168: 524 | C168: Stellplätze | D168: =SUMIF(Bauteile!$E$11:$J$43,$B168,Bauteile!$J$11:$J$43) -> 0 | E168: 0
B169: 525 | C169: Sportplatzflächen | D169: =SUMIF(Bauteile!$E$11:$J$43,$B169,Bauteile!$J$11:$J$43) -> 0 | E169: 0
B170: 526 | C170: Spielplatzflächen | D170: =SUMIF(Bauteile!$E$11:$J$43,$B170,Bauteile!$J$11:$J$43) -> 0 | E170: 0
B171: 527 | C171: Gleisanlagen | D171: =SUMIF(Bauteile!$E$11:$J$43,$B171,Bauteile!$J$11:$J$43) -> 0 | E171: 0
B172: 529 | C172: Befestigte Flächen, sonstiges | D172: =SUMIF(Bauteile!$E$11:$J$43,$B172,Bauteile!$J$11:$J$43) -> 0 | E172: 0
B173: 530 | C173: Baukonstruktionen in Außenanlagen | D173: =SUM(D174:D183) -> 0 | E173: =SUM(E174:E183) -> 0
B174: 530 | C174: Baukonstruktionen in Außenanlagen - Eingaben 2. Ebene | D174: =SUMIF(Bauteile!$E$11:$J$43,$B174,Bauteile!$J$11:$J$43) -> 0 | E174: =ROUND(D174*1.19,2) -> 0
B175: 531 | C175: Einfriedungen | D175: =SUMIF(Bauteile!$E$11:$J$43,$B175,Bauteile!$J$11:$J$43) -> 0 | E175: =ROUND(D175*1.19,2) -> 0
B176: 532 | C176: Schutzkonstruktionen | D176: =SUMIF(Bauteile!$E$11:$J$43,$B176,Bauteile!$J$11:$J$43) -> 0 | E176: 0
B177: 533 | C177: Mauern, Wände | D177: =SUMIF(Bauteile!$E$11:$J$43,$B177,Bauteile!$J$11:$J$43) -> 0 | E177: 0
B178: 534 | C178: Rampen, Treppen, Tribünen | D178: =SUMIF(Bauteile!$E$11:$J$43,$B178,Bauteile!$J$11:$J$43) -> 0 | E178: 0
B179: 535 | C179: Überdachungen | D179: =SUMIF(Bauteile!$E$11:$J$43,$B179,Bauteile!$J$11:$J$43) -> 0 | E179: 0
B180: 536 | C180: Brücken, Stege | D180: =SUMIF(Bauteile!$E$11:$J$43,$B180,Bauteile!$J$11:$J$43) -> 0 | E180: 0
B181: 537 | C181: Kanal- und Schachtbauanlagen | D181: =SUMIF(Bauteile!$E$11:$J$43,$B181,Bauteile!$J$11:$J$43) -> 0 | E181: 0
B182: 538 | C182: Wasserbauliche Anlagen | D182: =SUMIF(Bauteile!$E$11:$J$43,$B182,Bauteile!$J$11:$J$43) -> 0 | E182: 0
B183: 539 | C183: Baukonstruktionen in Außenanlagen, sonstiges | D183: =SUMIF(Bauteile!$E$11:$J$43,$B183,Bauteile!$J$11:$J$43) -> 0 | E183: 0
B184: 540 | C184: Technische Anlagen in Außenanlagen | D184: =SUM(D185:D194) -> 0 | E184: =SUM(E185:E194) -> 0
B185: 540 | C185: Technische Anlagen in Außenanlagen - Eingaben 2. Ebene | D185: =SUMIF(Bauteile!$E$11:$J$43,$B185,Bauteile!$J$11:$J$43) -> 0 | E185: =ROUND(D185*1.19,2) -> 0
B186: 541 | C186: Abwasseranlagen | D186: =SUMIF(Bauteile!$E$11:$J$43,$B186,Bauteile!$J$11:$J$43) -> 0 | E186: =ROUND(D186*1.19,2) -> 0
B187: 542 | C187: Wasseranlagen | D187: =SUMIF(Bauteile!$E$11:$J$43,$B187,Bauteile!$J$11:$J$43) -> 0 | E187: 0
B188: 543 | C188: Gasanlagen | D188: =SUMIF(Bauteile!$E$11:$J$43,$B188,Bauteile!$J$11:$J$43) -> 0 | E188: 0
B189: 544 | C189: Wärmeversorgungsanlagen | D189: =SUMIF(Bauteile!$E$11:$J$43,$B189,Bauteile!$J$11:$J$43) -> 0 | E189: 0
B190: 545 | C190: Lufttechnische Anlagen | D190: =SUMIF(Bauteile!$E$11:$J$43,$B190,Bauteile!$J$11:$J$43) -> 0 | E190: 0
B191: 546 | C191: Starkstromanlagen | D191: =SUMIF(Bauteile!$E$11:$J$43,$B191,Bauteile!$J$11:$J$43) -> 0 | E191: 0
B192: 547 | C192: Fernmelde- und informationstechnische Anlagen | D192: =SUMIF(Bauteile!$E$11:$J$43,$B192,Bauteile!$J$11:$J$43) -> 0 | E192: 0
B193: 548 | C193: Nutzungsspezifische Anlagen | D193: =SUMIF(Bauteile!$E$11:$J$43,$B193,Bauteile!$J$11:$J$43) -> 0 | E193: 0
B194: 549 | C194: Technische Anlagen in Außenanlagen, sonstiges | D194: =SUMIF(Bauteile!$E$11:$J$43,$B194,Bauteile!$J$11:$J$43) -> 0 | E194: 0
B195: 550 | C195: Einbauten in Außenanlagen | D195: =SUM(D196:D199) -> 0 | E195: =SUM(E196:E199) -> 0
B196: 550 | C196: Einbauten in Außenanlagen - Eingaben 2. Ebene | D196: =SUMIF(Bauteile!$E$11:$J$43,$B196,Bauteile!$J$11:$J$43) -> 0 | E196: =ROUND(D196*1.19,2) -> 0
B197: 551 | C197: Allgemeine Einbauten | D197: =SUMIF(Bauteile!$E$11:$J$43,$B197,Bauteile!$J$11:$J$43) -> 0 | E197: =ROUND(D197*1.19,2) -> 0
B198: 552 | C198: Besondere Einbauten | D198: =SUMIF(Bauteile!$E$11:$J$43,$B198,Bauteile!$J$11:$J$43) -> 0 | E198: 0
B199: 559 | C199: Einbauten in Außenanlagen, sonstiges | D199: =SUMIF(Bauteile!$E$11:$J$43,$B199,Bauteile!$J$11:$J$43) -> 0 | E199: 0
B200: 560 | C200: Wasserflächen | D200: =SUM(D201:D204) -> 0 | E200: =SUM(E201:E204) -> 0
B201: 560 | C201: Wasserflächen - Eingaben 2. Ebene | D201: =SUMIF(Bauteile!$E$11:$J$43,$B201,Bauteile!$J$11:$J$43) -> 0 | E201: =ROUND(D201*1.19,2) -> 0
B202: 561 | C202: Abdichtungen | D202: =SUMIF(Bauteile!$E$11:$J$43,$B202,Bauteile!$J$11:$J$43) -> 0 | E202: =ROUND(D202*1.19,2) -> 0
B203: 562 | C203: Bepflanzungen | D203: =SUMIF(Bauteile!$E$11:$J$43,$B203,Bauteile!$J$11:$J$43) -> 0 | E203: 0
B204: 569 | C204: Wasserflächen, sonstiges | D204: =SUMIF(Bauteile!$E$11:$J$43,$B204,Bauteile!$J$11:$J$43) -> 0 | E204: 0
... 20 more rows

Sheet Bauteile
A1: Berechnung LCC nach BNB BN 2.1.1 v2015 Eingabe Bauteile | E1: BBR-LCC Ver. 15-1 BBR A1
A2: Projekt: | C2: =IF(ISTEXT(Projekt),Projekt,"") -> Beispieleingabe (Szenario: 10 Mio Euro netto Herstellungskosten für KG 300 und 400)
A3: Stand: | C3: =IF(ISNUMBER(LCC_Stand),LCC_Stand,"") -> 2018-01-08
A5: Bauteil | E5: Grunddaten | J5: Herstellkosten | P5: Sonderbedingungen | S5: Nutzungsdauer | Z5: regelmäßige Kosten (Kontrolle) | AC5: regelmäßige Kosten | AJ5: Berechnung | AV5: Barwert | AW5: Barwert | AZ5: Barwert | BA5: Barwert | BB5: Barwert | BC5: Barwert | BD5: Barwert | BE5: Barwert | BF5: Barwert | BG5: Barwert | BH5: Barwert | BI5: Barwert | BJ5: Barwert | BK5: Barwert | BL5: Barwert | BM5: Barwert | BN5: Barwert | BO5: Barwert | BP5: Barwert | BQ5: Barwert | BR5: Barwert | BS5: Barwert | BT5: Barwert | BU5: Barwert | BV5: Barwert | BW5: Barwert | BX5: Barwert | BY5: Barwert | BZ5: Barwert | CA5: Barwert | CB5: Barwert | CC5: Barwert | CD5: Barwert | CE5: Barwert | CF5: Barwert | CG5: Barwert | CH5: Barwert | CI5: Barwert | CJ5: Barwert | CK5: Barwert | CL5: Barwert | CM5: Barwert | CN5: Barwert | CO5: Barwert | CP5: Barwert | CQ5: Barwert | CR5: Barwert | CS5: Barwert | CT5: Barwert | CU5: Barwert | CV5: Barwert | CW5: Barwert | CX5: Barwert | CY5: Barwert | CZ5: Barwert | DA5: Barwert | DB5: Barwert | DC5: Barwert | DD5: Barwert | DE5: Barwert | DF5: Barwert | DG5: Barwert | DH5: Barwert | DI5: Barwert | DJ5: Barwert | DK5: Barwert | DL5: Barwert | DM5: Barwert | DN5: Barwert | DO5: Barwert | DP5: Barwert | DQ5: Barwert | DR5: Barwert | DS5: Barwert | DT5: Barwert | DU5: Barwert | DV5: Barwert | DW5: Barwert | DX5: Barwert | DY5: Barwert | DZ5: Barwert | EA5: Barwert | EB5: Barwert | EC5: Barwert | ED5: Barwert | EE5: Barwert | EF5: Barwert | EG5: Barwert | EH5: Barwert | EI5: Barwert | EJ5: Barwert | EK5: Barwert | EL5: Barwert | EM5: Barwert | EN5: Barwert | EO5: Barwert | EP5: Barwert | EQ5: Barwert | ER5: Barwert | ES5: Barwert | ET5: Barwert | EU5: Barwert | EV5: Barwert | EW5: Barwert | EX5: Barwert | EY5: Barwert | EZ5: Barwert | FA5: Barwert | FB5: Barwert | FC5: Barwert | FD5: Barwert | FE5: Barwert | FF5: Barwert | FG5: Barwert | FH5: Barwert | FI5: Barwert | FJ5: Barwert | FK5: Barwert | FL5: Barwert | FM5: Barwert | FN5: Barwert | FO5: Barwert | FP5: Barwert | FQ5: Barwert | FR5: Barwert | FS5: Barwert | FT5: Barwert | FU5: Barwert | FV5: Barwert | FW5: Barwert | FX5: Barwert | FY5: Barwert | FZ5: Barwert | GA5: Barwert | GB5: Barwert | GC5: Barwert | GD5: Barwert | GE5: Barwert | GF5: Barwert | GG5: Barwert | GH5: Barwert | GI5: Barwert | GJ5: Barwert | GK5: Barwert | GL5: Barwert | GM5: Barwert | GN5: Barwert | GO5: Barwert | GP5: Barwert | GQ5: Barwert | GR5: Barwert | GS5: Barwert | GT5: Barwert | GU5: Barwert | GV5: Barwert | GW5: Barwert | GX5: Barwert | GY5: Barwert | GZ5: Barwert | HA5: Barwert | HB5: Barwert | HC5: Barwert | HD5: Barwert | HE5: Barwert | HF5: Barwert | HG5: Barwert | HH5: Barwert | HI5: Barwert | HJ5: Barwert | HK5: Barwert | HL5: Barwert | HM5: Barwert | HN5: Barwert | HO5: Barwert | HP5: Barwert | HQ5: Barwert | HR5: Barwert | HS5: Barwert | HT5: Barwert | HU5: Barwert | HV5: Barwert | HW5: Barwert | HX5: Barwert | HY5: Barwert | HZ5: Barwert | IA5: Barwert | IB5: Barwert | IC5: Barwert | ID5: Barwert | IE5: Barwert | IF5: Barwert | IG5: Barwert | IH5: Barwert | II5: Barwert | IJ5: Barwert | IK5: Barwert | IL5: Barwert | IM5: Barwert | IN5: Barwert | IO5: Barwert | IP5: Barwert | IQ5: Barwert | IR5: Barwert | IS5: Barwert | IT5: Barwert | IU5: Barwert | IV5: Barwert | IW5: Barwert | IX5: Barwert | IY5: Barwert | IZ5: Barwert | JA5: Barwert | JB5: Barwert | JC5: Barwert | JD5: Barwert | JE5: Barwert | JF5: Barwert | JG5: Barwert | JH5: Barwert | JI5: Barwert | JJ5: Barwert | JK5: Barwert | JL5: Barwert | JM5: Barwert | JN5: Barwert | JO5: Barwert | JP5: Barwert | JQ5: Barwert | JR5: Barwert | JS5: Barwert | JT5: Barwert | JU5: Barwert | JV5: Barwert | JW5: Barwert | JX5: Barwert | JY5: Barwert | JZ5: Barwert | KA5: Barwert | KB5: Barwert | KC5: Barwert | KD5: Barwert | KE5: Barwert | KF5: Barwert | KG5: Barwert | KH5: Barwert | KJ5: Barwert | KK5: Barwert | KL5: Barwert | KM5: Barwert | KN5: Barwert | KO5: Barwert | KP5: Barwert | KQ5: Barwert | KR5: Barwert | KS5: Barwert | KT5: Barwert | KU5: Barwert | KV5: Barwert | KW5: Barwert | KX5: Barwert | KY5: Barwert | KZ5: Barwert | LA5: Barwert | LB5: Barwert | LC5: Barwert | LD5: Barwert | LE5: Barwert | LF5: Barwert | LG5: Barwert | LH5: Barwert | LI5: Barwert | LJ5: Barwert | LK5: Barwert | LL5: Barwert | LM5: Barwert | LN5: Barwert | LO5: Barwert | LP5: Barwert | LQ5: Barwert | LR5: Barwert | LS5: Barwert | LT5: Barwert | LU5: Barwert | LV5: Barwert | LW5: Barwert | LX5: Barwert | LY5: Barwert | LZ5: Barwert | MA5: Barwert | MB5: Barwert | MC5: Barwert | MD5: Barwert | ME5: Barwert | MF5: Barwert | MG5: Barwert | MH5: Barwert | MI5: Barwert | MJ5: Barwert | MK5: Barwert | ML5: Barwert | MM5: Barwert | MN5: Barwert | MO5: Barwert | MP5: Barwert | MQ5: Barwert | MR5: Barwert | MS5: Barwert | MT5: Barwert | MU5: Barwert | MV5: Barwert | MW5: Barwert | MX5: Barwert | MY5: Barwert | MZ5: Barwert | NA5: Barwert | NB5: Barwert | NC5: Barwert | ND5: Barwert | NE5: Barwert | NF5: Barwert | NG5: Barwert | NH5: Barwert | NI5: Barwert | NJ5: Barwert | NK5: Barwert | NL5: Barwert | NM5: Barwert | NN5: Barwert | NO5: Barwert | NP5: Barwert | NQ5: Barwert | NR5: Barwert | NS5: Barwert | NT5: Barwert | NU5: Barwert | NV5: Barwert | NW5: Barwert | NX5: Barwert | NY5: Barwert | NZ5: Barwert | OA5: Barwert | OB5: Barwert | OC5: Barwert | OD5: Barwert | OE5: Barwert | OF5: Barwert | OG5: Barwert | OH5: Barwert | OI5: Barwert | OJ5: Barwert | OK5: Barwert | OL5: Barwert | OM5: Barwert | ON5: Barwert | OO5: Barwert | OP5: Barwert | OQ5: Barwert | OR5: Barwert | OS5: Barwert | OT5: Barwert | OU5: Barwert | OV5: Barwert | OW5: Barwert | OX5: Barwert | OY5: Barwert | OZ5: Barwert | PA5: Barwert | PB5: Barwert | PC5: Barwert | PD5: Barwert | PE5: Barwert | PF5: Barwert | PG5: Barwert | PH5: Barwert | PI5: Barwert | PJ5: Barwert | PK5: Barwert | PL5: Barwert | PM5: Barwert | PN5: Barwert | PO5: Barwert | PP5: Barwert | PQ5: Barwert | PR5: Barwert | PS5: Barwert | PT5: Barwert | PU5: Barwert | PV5: Barwert | PW5: Barwert | PX5: Barwert | PY5: Barwert | PZ5: Barwert | QA5: Barwert | QB5: Barwert | QC5: Barwert | QD5: Barwert | QE5: Barwert | QF5: Barwert | QG5: Barwert | QH5: Barwert | QI5: Barwert | QJ5: Barwert | QK5: Barwert | QL5: Barwert | QM5: Barwert | QN5: Barwert | QO5: Barwert | QP5: Barwert | QQ5: Barwert | QR5: Barwert | QS5: Barwert | QT5: Barwert | QU5: Barwert | QV5: Barwert | QW5: Barwert | QX5: Barwert | QY5: Barwert | QZ5: Barwert | RA5: Barwert | RB5: Barwert | RC5: Barwert | RD5: Barwert | RE5: Barwert | RF5: Barwert | RG5: Barwert | RH5: Barwert | RI5: Barwert | RJ5: Barwert | RK5: Barwert | RL5: Barwert | RM5: Barwert | RN5: Barwert | RO5: Barwert | RP5: Barwert | RQ5: Barwert | RR5: Barwert | RS5: Barwert | RT5: Barwert | RU5: Barwert | RV5: Barwert | RW5: Barwert | RX5: Barwert | RY5: Barwert | RZ5: Barwert | SA5: Barwert | SB5: Barwert | SC5: Barwert | SD5: Barwert | SE5: Barwert | SF5: Barwert | SG5: Barwert | SH5: Barwert | SI5: Barwert | SJ5: Barwert | SK5: Barwert | SL5: Barwert | SM5: Barwert | SN5: Barwert | SO5: Barwert | SP5: Barwert | SQ5: Barwert | SR5: Barwert | SS5: Barwert | ST5: Barwert | SU5: Barwert | SV5: Barwert | SW5: Barwert | SX5: Barwert | SY5: Barwert | SZ5: Barwert | TA5: Barwert | TB5: Barwert | TC5: Barwert | TD5: Barwert | TE5: Barwert | TF5: Barwert | TG5: Barwert | TH5: Barwert | TI5: Barwert | TJ5: Barwert | TK5: Barwert | TL5: Barwert | TM5: Barwert | TN5: Barwert | TO5: Barwert | TP5: Barwert | TQ5: Barwert | TR5: Barwert | TT5: Barwert | TU5: Barwert | TV5: Barwert | TW5: Barwert | TX5: Barwert | TY5: Barwert | TZ5: Barwert | UA5: Barwert | UB5: Barwert | UC5: Barwert | UD5: Barwert | UE5: Barwert | UF5: Barwert | UG5: Barwert | UH5: Barwert | UI5: Barwert | UJ5: Barwert | UK5: Barwert | UL5: Barwert | UM5: Barwert | UN5: Barwert | UO5: Barwert | UP5: Barwert | UQ5: Barwert | UR5: Barwert | US5: Barwert | UT5: Barwert | UU5: Barwert | UV5: Barwert | UW5: Barwert | UX5: Barwert | UY5: Barwert | UZ5: Barwert | VA5: Barwert | VB5: Barwert | VC5: Barwert | VD5: Barwert | VE5: Barwert | VF5: Barwert | VG5: Barwert | VH5: Barwert | VI5: Barwert | VJ5: Barwert | VK5: Barwert | VL5: Barwert | VM5: Barwert | VN5: Barwert | VO5: Barwert | VP5: Barwert | VQ5: Barwert | VR5: Barwert | VS5: Barwert | VT5: Barwert | VU5: Barwert | VV5: Barwert | VW5: Barwert | VX5: Barwert | VY5: Barwert | VZ5: Barwert | WA5: Barwert | WB5: Barwert | WC5: Barwert | WD5: Barwert | WE5: Barwert | WF5: Barwert | WG5: Barwert | WH5: Barwert | WI5: Barwert | WJ5: Barwert | WK5: Barwert | WL5: Barwert | WM5: Barwert | WN5: Barwert | WO5: Barwert | WP5: Barwert | WQ5: Barwert | WR5: Barwert | WS5: Barwert | WT5: Barwert | WU5: Barwert | WV5: Barwert | WW5: Barwert | WX5: Barwert | WY5: Barwert | WZ5: Barwert | XA5: Barwert | XB5: Barwert | XC5: Barwert | XD5: Barwert | XE5: Barwert | XF5: Barwert | XG5: Barwert | XH5: Barwert | XI5: Barwert | XJ5: Barwert | XK5: Barwert | XL5: Barwert | XM5: Barwert | XN5: Barwert | XO5: Barwert | XP5: Barwert | XQ5: Barwert | XR5: Barwert | XS5: Barwert | XT5: Barwert | XU5: Barwert | XV5: Barwert | XW5: Barwert | XX5: Barwert | XY5: Barwert | XZ5: Barwert | YA5: Barwert | YB5: Barwert | YC5: Barwert | YD5: Barwert | YE5: Barwert | YF5: Barwert | YG5: Barwert | YH5: Barwert | YI5: Barwert | YJ5: Barwert | YK5: Barwert | YL5: Barwert | YM5: Barwert | YN5: Barwert | YO5: Barwert | YP5: Barwert | YQ5: Barwert | YR5: Barwert | YS5: Barwert | YT5: Barwert | YU5: Barwert | YV5: Barwert | YW5: Barwert | YX5: Barwert | YY5: Barwert | YZ5: Barwert | ZA5: Barwert | ZB5: Barwert | ZC5: Barwert | ZD5: Barwert | ZE5: Barwert | ZF5: Barwert | ZG5: Barwert | ZH5: Barwert | ZI5: Barwert | ZJ5: Barwert | ZK5: Barwert | ZL5: Barwert | ZM5: Barwert | ZN5: Barwert | ZO5: Barwert | ZP5: Barwert | ZQ5: Barwert | ZR5: Barwert | ZS5: Barwert | ZT5: Barwert | ZU5: Barwert | ZV5: Barwert | ZW5: Barwert | ZX5: Barwert | ZY5: Barwert | ZZ5: Barwert | AAA5: Barwert | AAB5: Barwert | AAC5: Barwert | AAD5: Barwert | AAE5: Barwert | AAF5: Barwert | AAG5: Barwert | AAH5: Barwert | AAI5: Barwert | AAJ5: Barwert | AAK5: Barwert | AAL5: Barwert | AAM5: Barwert | AAN5: Barwert | AAO5: Barwert | AAP5: Barwert | AAQ5: Barwert | AAR5: Barwert | AAS5: Barwert | AAT5: Barwert | AAU5: Barwert | AAV5: Barwert | AAW5: Barwert | AAX5: Barwert | AAY5: Barwert | AAZ5: Barwert | ABA5: Barwert | ABB5: Barwert | ABC5: Barwert | ABD5: Barwert | ABE5: Barwert | ABF5: Barwert | ABG5: Barwert | ABH5: Barwert | ABI5: Barwert | ABJ5: Barwert | ABK5: Barwert | ABL5: Barwert | ABM5: Barwert | ABN5: Barwert | ABO5: Barwert | ABP5: Barwert | ABQ5: Barwert | ABR5: Barwert | ABS5: Barwert | ABT5: Barwert | ABU5: Barwert | ABV5: Barwert | ABW5: Barwert | ABX5: Barwert | ABY5: Barwert | ABZ5: Barwert | ACA5: Barwert | ACB5: Barwert | ACC5: Barwert | ACD5: Barwert | ACE5: Barwert | ACF5: Barwert | ACG5: Barwert | ACH5: Barwert | ACI5: Barwert | ACJ5: Barwert | ACK5: Barwert | ACL5: Barwert | ACM5: Barwert | ACN5: Barwert | ACO5: Barwert | ACP5: Barwert | ACQ5: Barwert | ACR5: Barwert | ACS5: Barwert | ACT5: Barwert | ACU5: Barwert | ACV5: Barwert | ACW5: Barwert | ACX5: Barwert | ACY5: Barwert | ACZ5: Barwert | ADA5: Barwert | ADB5: Barwert
A6: Nr. | B6: OZ | C6: Bezeichnung | D6: Einbauort | E6: Kostengruppe | G6: Relevanz | I6: Kommentar | J6: GP netto | K6: GP netto indiziert für LCC | M6: Menge | N6: Einheit | O6: EP | P6: EP anzusetzende Kosten | Q6: GP netto | R6: GP netto indiziert für LCC | V6: Auswahl Datensatz | X6: Handeingabe | AA6: Absolut | AC6: Summe | AD6: Auswahl Datensatz | AG6: Handeingabe | AJ6: Erstherstellung | AM6: Herstellkosten für Folgekosten | AP6: Inspektion und Wartung | AS6: regelmäßige Instandsetzung | AV6: Gesamt | AW6: Gesamt | AZ6: Ersatzinvestitionen | BA6: Ersatzinvestitionen | BB6: Ersatzinvestitionen | BC6: Ersatzinvestitionen | BD6: Ersatzinvestitionen | BE6: Ersatzinvestitionen | BF6: Ersatzinvestitionen | BG6: Ersatzinvestitionen | BH6: Ersatzinvestitionen | BI6: Ersatzinvestitionen | BJ6: Ersatzinvestitionen | BK6: Ersatzinvestitionen | BL6: Ersatzinvestitionen | BM6: Ersatzinvestitionen | BN6: Ersatzinvestitionen | BO6: Ersatzinvestitionen | BP6: Ersatzinvestitionen | BQ6: Ersatzinvestitionen | BR6: Ersatzinvestitionen | BS6: Ersatzinvestitionen | BT6: Ersatzinvestitionen | BU6: Ersatzinvestitionen | BV6: Ersatzinvestitionen | BW6: Ersatzinvestitionen | BX6: Ersatzinvestitionen | BY6: Ersatzinvestitionen | BZ6: Ersatzinvestitionen | CA6: Ersatzinvestitionen | CB6: Ersatzinvestitionen | CC6: Ersatzinvestitionen | CD6: Ersatzinvestitionen | CE6: Ersatzinvestitionen | CF6: Ersatzinvestitionen | CG6: Ersatzinvestitionen | CH6: Ersatzinvestitionen | CI6: Ersatzinvestitionen | CJ6: Ersatzinvestitionen | CK6: Ersatzinvestitionen | CL6: Ersatzinvestitionen | CM6: Ersatzinvestitionen | CN6: Ersatzinvestitionen | CO6: Ersatzinvestitionen | CP6: Ersatzinvestitionen | CQ6: Ersatzinvestitionen | CR6: Ersatzinvestitionen | CS6: Ersatzinvestitionen | CT6: Ersatzinvestitionen | CU6: Ersatzinvestitionen | CV6: Ersatzinvestitionen | CW6: Ersatzinvestitionen | CX6: Ersatzinvestitionen | CY6: Ersatzinvestitionen | CZ6: Ersatzinvestitionen | DA6: Ersatzinvestitionen | DB6: Ersatzinvestitionen | DC6: Ersatzinvestitionen | DD6: Ersatzinvestitionen | DE6: Ersatzinvestitionen | DF6: Ersatzinvestitionen | DG6: Ersatzinvestitionen | DH6: Ersatzinvestitionen | DI6: Ersatzinvestitionen | DJ6: Ersatzinvestitionen | DK6: Ersatzinvestitionen | DL6: Ersatzinvestitionen | DM6: Ersatzinvestitionen | DN6: Ersatzinvestitionen | DO6: Ersatzinvestitionen | DP6: Ersatzinvestitionen | DQ6: Ersatzinvestitionen | DR6: Ersatzinvestitionen | DS6: Ersatzinvestitionen | DT6: Ersatzinvestitionen | DU6: Ersatzinvestitionen | DV6: Ersatzinvestitionen | DW6: Ersatzinvestitionen | DX6: Ersatzinvestitionen | DY6: Ersatzinvestitionen | DZ6: Ersatzinvestitionen | EA6: Ersatzinvestitionen | EB6: Ersatzinvestitionen | EC6: Ersatzinvestitionen | ED6: Ersatzinvestitionen | EE6: Ersatzinvestitionen | EF6: Ersatzinvestitionen | EG6: Ersatzinvestitionen | EH6: Ersatzinvestitionen | EI6: Ersatzinvestitionen | EJ6: Ersatzinvestitionen | EK6: Ersatzinvestitionen | EL6: Ersatzinvestitionen | EM6: Ersatzinvestitionen | EN6: Ersatzinvestitionen | EO6: Ersatzinvestitionen | EP6: Ersatzinvestitionen | EQ6: Ersatzinvestitionen | ER6: Ersatzinvestitionen | ES6: Ersatzinvestitionen | ET6: Ersatzinvestitionen | EU6: Ersatzinvestitionen | EV6: Ersatzinvestitionen | EW6: Ersatzinvestitionen | EX6: Ersatzinvestitionen | EY6: Ersatzinvestitionen | EZ6: Ersatzinvestitionen | FA6: Ersatzinvestitionen | FB6: Ersatzinvestitionen | FC6: Ersatzinvestitionen | FD6: Ersatzinvestitionen | FE6: Ersatzinvestitionen | FF6: Ersatzinvestitionen | FG6: Ersatzinvestitionen | FH6: Ersatzinvestitionen | FI6: Ersatzinvestitionen | FJ6: Ersatzinvestitionen | FK6: Ersatzinvestitionen | FL6: Ersatzinvestitionen | FM6: Ersatzinvestitionen | FN6: Ersatzinvestitionen | FO6: Ersatzinvestitionen | FP6: Ersatzinvestitionen | FQ6: Ersatzinvestitionen | FR6: Ersatzinvestitionen | FS6: Ersatzinvestitionen | FT6: Ersatzinvestitionen | FU6: Ersatzinvestitionen | FV6: Ersatzinvestitionen | FW6: Ersatzinvestitionen | FX6: Ersatzinvestitionen | FY6: Ersatzinvestitionen | FZ6: Ersatzinvestitionen | GA6: Ersatzinvestitionen | GB6: Ersatzinvestitionen | GC6: Ersatzinvestitionen | GD6: Ersatzinvestitionen | GE6: Ersatzinvestitionen | GF6: Ersatzinvestitionen | GG6: Ersatzinvestitionen | GH6: Ersatzinvestitionen | GI6: Ersatzinvestitionen | GJ6: Ersatzinvestitionen | GK6: Ersatzinvestitionen | GL6: Ersatzinvestitionen | GM6: Ersatzinvestitionen | GN6: Ersatzinvestitionen | GO6: Ersatzinvestitionen | GP6: Ersatzinvestitionen | GQ6: Ersatzinvestitionen | GR6: Ersatzinvestitionen | GS6: Ersatzinvestitionen | GT6: Ersatzinvestitionen | GU6: Ersatzinvestitionen | GV6: Ersatzinvestitionen | GW6: Ersatzinvestitionen | GX6: Ersatzinvestitionen | GY6: Ersatzinvestitionen | GZ6: Ersatzinvestitionen | HA6: Ersatzinvestitionen | HB6: Ersatzinvestitionen | HC6: Ersatzinvestitionen | HD6: Ersatzinvestitionen | HE6: Ersatzinvestitionen | HF6: Ersatzinvestitionen | HG6: Ersatzinvestitionen | HH6: Ersatzinvestitionen | HI6: Ersatzinvestitionen | HJ6: Ersatzinvestitionen | HK6: Ersatzinvestitionen | HL6: Ersatzinvestitionen | HM6: Ersatzinvestitionen | HN6: Ersatzinvestitionen | HO6: Ersatzinvestitionen | HP6: Ersatzinvestitionen | HQ6: Ersatzinvestitionen | HR6: Ersatzinvestitionen | HS6: Ersatzinvestitionen | HT6: Ersatzinvestitionen | HU6: Ersatzinvestitionen | HV6: Ersatzinvestitionen | HW6: Ersatzinvestitionen | HX6: Ersatzinvestitionen | HY6: Ersatzinvestitionen | HZ6: Ersatzinvestitionen | IA6: Ersatzinvestitionen | IB6: Ersatzinvestitionen | IC6: Ersatzinvestitionen | ID6: Ersatzinvestitionen | IE6: Ersatzinvestitionen | IF6: Ersatzinvestitionen | IG6: Ersatzinvestitionen | IH6: Ersatzinvestitionen | II6: Ersatzinvestitionen | IJ6: Ersatzinvestitionen | IK6: Ersatzinvestitionen | IL6: Ersatzinvestitionen | IM6: Ersatzinvestitionen | IN6: Ersatzinvestitionen | IO6: Ersatzinvestitionen | IP6: Ersatzinvestitionen | IQ6: Ersatzinvestitionen | IR6: Ersatzinvestitionen | IS6: Ersatzinvestitionen | IT6: Ersatzinvestitionen | IU6: Ersatzinvestitionen | IV6: Ersatzinvestitionen | IW6: Ersatzinvestitionen | IX6: Ersatzinvestitionen | IY6: Ersatzinvestitionen | IZ6: Ersatzinvestitionen | JA6: Ersatzinvestitionen | JB6: Ersatzinvestitionen | JC6: Ersatzinvestitionen | JD6: Ersatzinvestitionen | JE6: Ersatzinvestitionen | JF6: Ersatzinvestitionen | JG6: Ersatzinvestitionen | JH6: Ersatzinvestitionen | JI6: Ersatzinvestitionen | JJ6: Ersatzinvestitionen | JK6: Ersatzinvestitionen | JL6: Ersatzinvestitionen | JM6: Ersatzinvestitionen | JN6: Ersatzinvestitionen | JO6: Ersatzinvestitionen | JP6: Ersatzinvestitionen | JQ6: Ersatzinvestitionen | JR6: Ersatzinvestitionen | JS6: Ersatzinvestitionen | JT6: Ersatzinvestitionen | JU6: Ersatzinvestitionen | JV6: Ersatzinvestitionen | JW6: Ersatzinvestitionen | JX6: Ersatzinvestitionen | JY6: Ersatzinvestitionen | JZ6: Ersatzinvestitionen | KA6: Ersatzinvestitionen | KB6: Ersatzinvestitionen | KC6: Ersatzinvestitionen | KD6: Ersatzinvestitionen | KE6: Ersatzinvestitionen | KF6: Ersatzinvestitionen | KG6: Ersatzinvestitionen | KH6: Ersatzinvestitionen | KJ6: Inspektion und Wartung | KK6: Inspektion und Wartung | KL6: Inspektion und Wartung | KM6: Inspektion und Wartung | KN6: Inspektion und Wartung | KO6: Inspektion und Wartung | KP6: Inspektion und Wartung | KQ6: Inspektion und Wartung | KR6: Inspektion und Wartung | KS6: Inspektion und Wartung | KT6: Inspektion und Wartung | KU6: Inspektion und Wartung | KV6: Inspektion und Wartung | KW6: Inspektion und Wartung | KX6: Inspektion und Wartung | KY6: Inspektion und Wartung | KZ6: Inspektion und Wartung | LA6: Inspektion und Wartung | LB6: Inspektion und Wartung | LC6: Inspektion und Wartung | LD6: Inspektion und Wartung | LE6: Inspektion und Wartung | LF6: Inspektion und Wartung | LG6: Inspektion und Wartung | LH6: Inspektion und Wartung | LI6: Inspektion und Wartung | LJ6: Inspektion und Wartung | LK6: Inspektion und Wartung | LL6: Inspektion und Wartung | LM6: Inspektion und Wartung | LN6: Inspektion und Wartung | LO6: Inspektion und Wartung | LP6: Inspektion und Wartung | LQ6: Inspektion und Wartung | LR6: Inspektion und Wartung | LS6: Inspektion und Wartung | LT6: Inspektion und Wartung | LU6: Inspektion und Wartung | LV6: Inspektion und Wartung | LW6: Inspektion und Wartung | LX6: Inspektion und Wartung | LY6: Inspektion und Wartung | LZ6: Inspektion und Wartung | MA6: Inspektion und Wartung | MB6: Inspektion und Wartung | MC6: Inspektion und Wartung | MD6: Inspektion und Wartung | ME6: Inspektion und Wartung | MF6: Inspektion und Wartung | MG6: Inspektion und Wartung | MH6: Inspektion und Wartung | MI6: Inspektion und Wartung | MJ6: Inspektion und Wartung | MK6: Inspektion und Wartung | ML6: Inspektion und Wartung | MM6: Inspektion und Wartung | MN6: Inspektion und Wartung | MO6: Inspektion und Wartung | MP6: Inspektion und Wartung | MQ6: Inspektion und Wartung | MR6: Inspektion und Wartung | MS6: Inspektion und Wartung | MT6: Inspektion und Wartung | MU6: Inspektion und Wartung | MV6: Inspektion und Wartung | MW6: Inspektion und Wartung | MX6: Inspektion und Wartung | MY6: Inspektion und Wartung | MZ6: Inspektion und Wartung | NA6: Inspektion und Wartung | NB6: Inspektion und Wartung | NC6: Inspektion und Wartung | ND6: Inspektion und Wartung | NE6: Inspektion und Wartung | NF6: Inspektion und Wartung | NG6: Inspektion und Wartung | NH6: Inspektion und Wartung | NI6: Inspektion und Wartung | NJ6: Inspektion und Wartung | NK6: Inspektion und Wartung | NL6: Inspektion und Wartung | NM6: Inspektion und Wartung | NN6: Inspektion und Wartung | NO6: Inspektion und Wartung | NP6: Inspektion und Wartung | NQ6: Inspektion und Wartung | NR6: Inspektion und Wartung | NS6: Inspektion und Wartung | NT6: Inspektion und Wartung | NU6: Inspektion und Wartung | NV6: Inspektion und Wartung | NW6: Inspektion und Wartung | NX6: Inspektion und Wartung | NY6: Inspektion und Wartung | NZ6: Inspektion und Wartung | OA6: Inspektion und Wartung | OB6: Inspektion und Wartung | OC6: Inspektion und Wartung | OD6: Inspektion und Wartung | OE6: Inspektion und Wartung | OF6: Inspektion und Wartung | OG6: Inspektion und Wartung | OH6: Inspektion und Wartung | OI6: Inspektion und Wartung | OJ6: Inspektion und Wartung | OK6: Inspektion und Wartung | OL6: Inspektion und Wartung | OM6: Inspektion und Wartung | ON6: Inspektion und Wartung | OO6: Inspektion und Wartung | OP6: Inspektion und Wartung | OQ6: Inspektion und Wartung | OR6: Inspektion und Wartung | OS6: Inspektion und Wartung | OT6: Inspektion und Wartung | OU6: Inspektion und Wartung | OV6: Inspektion und Wartung | OW6: Inspektion und Wartung | OX6: Inspektion und Wartung | OY6: Inspektion und Wartung | OZ6: Inspektion und Wartung | PA6: Inspektion und Wartung | PB6: Inspektion und Wartung | PC6: Inspektion und Wartung | PD6: Inspektion und Wartung | PE6: Inspektion und Wartung | PF6: Inspektion und Wartung | PG6: Inspektion und Wartung | PH6: Inspektion und Wartung | PI6: Inspektion und Wartung | PJ6: Inspektion und Wartung | PK6: Inspektion und Wartung | PL6: Inspektion und Wartung | PM6: Inspektion und Wartung | PN6: Inspektion und Wartung | PO6: Inspektion und Wartung | PP6: Inspektion und Wartung | PQ6: Inspektion und Wartung | PR6: Inspektion und Wartung | PS6: Inspektion und Wartung | PT6: Inspektion und Wartung | PU6: Inspektion und Wartung | PV6: Inspektion und Wartung | PW6: Inspektion und Wartung | PX6: Inspektion und Wartung | PY6: Inspektion und Wartung | PZ6: Inspektion und Wartung | QA6: Inspektion und Wartung | QB6: Inspektion und Wartung | QC6: Inspektion und Wartung | QD6: Inspektion und Wartung | QE6: Inspektion und Wartung | QF6: Inspektion und Wartung | QG6: Inspektion und Wartung | QH6: Inspektion und Wartung | QI6: Inspektion und Wartung | QJ6: Inspektion und Wartung | QK6: Inspektion und Wartung | QL6: Inspektion und Wartung | QM6: Inspektion und Wartung | QN6: Inspektion und Wartung | QO6: Inspektion und Wartung | QP6: Inspektion und Wartung | QQ6: Inspektion und Wartung | QR6: Inspektion und Wartung | QS6: Inspektion und Wartung | QT6: Inspektion und Wartung | QU6: Inspektion und Wartung | QV6: Inspektion und Wartung | QW6: Inspektion und Wartung | QX6: Inspektion und Wartung | QY6: Inspektion und Wartung | QZ6: Inspektion und Wartung | RA6: Inspektion und Wartung | RB6: Inspektion und Wartung | RC6: Inspektion und Wartung | RD6: Inspektion und Wartung | RE6: Inspektion und Wartung | RF6: Inspektion und Wartung | RG6: Inspektion und Wartung | RH6: Inspektion und Wartung | RI6: Inspektion und Wartung | RJ6: Inspektion und Wartung | RK6: Inspektion und Wartung | RL6: Inspektion und Wartung | RM6: Inspektion und Wartung | RN6: Inspektion und Wartung | RO6: Inspektion und Wartung | RP6: Inspektion und Wartung | RQ6: Inspektion und Wartung | RR6: Inspektion und Wartung | RS6: Inspektion und Wartung | RT6: Inspektion und Wartung | RU6: Inspektion und Wartung | RV6: Inspektion und Wartung | RW6: Inspektion und Wartung | RX6: Inspektion und Wartung | RY6: Inspektion und Wartung | RZ6: Inspektion und Wartung | SA6: Inspektion und Wartung | SB6: Inspektion und Wartung | SC6: Inspektion und Wartung | SD6: Inspektion und Wartung | SE6: Inspektion und Wartung | SF6: Inspektion und Wartung | SG6: Inspektion und Wartung | SH6: Inspektion und Wartung | SI6: Inspektion und Wartung | SJ6: Inspektion und Wartung | SK6: Inspektion und Wartung | SL6: Inspektion und Wartung | SM6: Inspektion und Wartung | SN6: Inspektion und Wartung | SO6: Inspektion und Wartung | SP6: Inspektion und Wartung | SQ6: Inspektion und Wartung | SR6: Inspektion und Wartung | SS6: Inspektion und Wartung | ST6: Inspektion und Wartung | SU6: Inspektion und Wartung | SV6: Inspektion und Wartung | SW6: Inspektion und Wartung | SX6: Inspektion und Wartung | SY6: Inspektion und Wartung | SZ6: Inspektion und Wartung | TA6: Inspektion und Wartung | TB6: Inspektion und Wartung | TC6: Inspektion und Wartung | TD6: Inspektion und Wartung | TE6: Inspektion und Wartung | TF6: Inspektion und Wartung | TG6: Inspektion und Wartung | TH6: Inspektion und Wartung | TI6: Inspektion und Wartung | TJ6: Inspektion und Wartung | TK6: Inspektion und Wartung | TL6: Inspektion und Wartung | TM6: Inspektion und Wartung | TN6: Inspektion und Wartung | TO6: Inspektion und Wartung | TP6: Inspektion und Wartung | TQ6: Inspektion und Wartung | TR6: Inspektion und Wartung | TT6: regelmäßige Instandsetzung | TU6: regelmäßige Instandsetzung | TV6: regelmäßige Instandsetzung | TW6: regelmäßige Instandsetzung | TX6: regelmäßige Instandsetzung | TY6: regelmäßige Instandsetzung | TZ6: regelmäßige Instandsetzung | UA6: regelmäßige Instandsetzung | UB6: regelmäßige Instandsetzung | UC6: regelmäßige Instandsetzung | UD6: regelmäßige Instandsetzung | UE6: regelmäßige Instandsetzung | UF6: regelmäßige Instandsetzung | UG6: regelmäßige Instandsetzung | UH6: regelmäßige Instandsetzung | UI6: regelmäßige Instandsetzung | UJ6: regelmäßige Instandsetzung | UK6: regelmäßige Instandsetzung | UL6: regelmäßige Instandsetzung | UM6: regelmäßige Instandsetzung | UN6: regelmäßige Instandsetzung | UO6: regelmäßige Instandsetzung | UP6: regelmäßige Instandsetzung | UQ6: regelmäßige Instandsetzung | UR6: regelmäßige Instandsetzung | US6: regelmäßige Instandsetzung | UT6: regelmäßige Instandsetzung | UU6: regelmäßige Instandsetzung | UV6: regelmäßige Instandsetzung | UW6: regelmäßige Instandsetzung | UX6: regelmäßige Instandsetzung | UY6: regelmäßige Instandsetzung | UZ6: regelmäßige Instandsetzung | VA6: regelmäßige Instandsetzung | VB6: regelmäßige Instandsetzung | VC6: regelmäßige Instandsetzung | VD6: regelmäßige Instandsetzung | VE6: regelmäßige Instandsetzung | VF6: regelmäßige Instandsetzung | VG6: regelmäßige Instandsetzung | VH6: regelmäßige Instandsetzung | VI6: regelmäßige Instandsetzung | VJ6: regelmäßige Instandsetzung | VK6: regelmäßige Instandsetzung | VL6: regelmäßige Instandsetzung | VM6: regelmäßige Instandsetzung | VN6: regelmäßige Instandsetzung | VO6: regelmäßige Instandsetzung | VP6: regelmäßige Instandsetzung | VQ6: regelmäßige Instandsetzung | VR6: regelmäßige Instandsetzung | VS6: regelmäßige Instandsetzung | VT6: regelmäßige Instandsetzung | VU6: regelmäßige Instandsetzung | VV6: regelmäßige Instandsetzung | VW6: regelmäßige Instandsetzung | VX6: regelmäßige Instandsetzung | VY6: regelmäßige Instandsetzung | VZ6: regelmäßige Instandsetzung | WA6: regelmäßige Instandsetzung | WB6: regelmäßige Instandsetzung | WC6: regelmäßige Instandsetzung | WD6: regelmäßige Instandsetzung | WE6: regelmäßige Instandsetzung | WF6: regelmäßige Instandsetzung | WG6: regelmäßige Instandsetzung | WH6: regelmäßige Instandsetzung | WI6: regelmäßige Instandsetzung | WJ6: regelmäßige Instandsetzung | WK6: regelmäßige Instandsetzung | WL6: regelmäßige Instandsetzung | WM6: regelmäßige Instandsetzung | WN6: regelmäßige Instandsetzung | WO6: regelmäßige Instandsetzung | WP6: regelmäßige Instandsetzung | WQ6: regelmäßige Instandsetzung | WR6: regelmäßige Instandsetzung | WS6: regelmäßige Instandsetzung | WT6: regelmäßige Instandsetzung | WU6: regelmäßige Instandsetzung | WV6: regelmäßige Instandsetzung | WW6: regelmäßige Instandsetzung | WX6: regelmäßige Instandsetzung | WY6: regelmäßige Instandsetzung | WZ6: regelmäßige Instandsetzung | XA6: regelmäßige Instandsetzung | XB6: regelmäßige Instandsetzung | XC6: regelmäßige Instandsetzung | XD6: regelmäßige Instandsetzung | XE6: regelmäßige Instandsetzung | XF6: regelmäßige Instandsetzung | XG6: regelmäßige Instandsetzung | XH6: regelmäßige Instandsetzung | XI6: regelmäßige Instandsetzung | XJ6: regelmäßige Instandsetzung | XK6: regelmäßige Instandsetzung | XL6: regelmäßige Instandsetzung | XM6: regelmäßige Instandsetzung | XN6: regelmäßige Instandsetzung | XO6: regelmäßige Instandsetzung | XP6: regelmäßige Instandsetzung | XQ6: regelmäßige Instandsetzung | XR6: regelmäßige Instandsetzung | XS6: regelmäßige Instandsetzung | XT6: regelmäßige Instandsetzung | XU6: regelmäßige Instandsetzung | XV6: regelmäßige Instandsetzung | XW6: regelmäßige Instandsetzung | XX6: regelmäßige Instandsetzung | XY6: regelmäßige Instandsetzung | XZ6: regelmäßige Instandsetzung | YA6: regelmäßige Instandsetzung | YB6: regelmäßige Instandsetzung | YC6: regelmäßige Instandsetzung | YD6: regelmäßige Instandsetzung | YE6: regelmäßige Instandsetzung | YF6: regelmäßige Instandsetzung | YG6: regelmäßige Instandsetzung | YH6: regelmäßige Instandsetzung | YI6: regelmäßige Instandsetzung | YJ6: regelmäßige Instandsetzung | YK6: regelmäßige Instandsetzung | YL6: regelmäßige Instandsetzung | YM6: regelmäßige Instandsetzung | YN6: regelmäßige Instandsetzung | YO6: regelmäßige Instandsetzung | YP6: regelmäßige Instandsetzung | YQ6: regelmäßige Instandsetzung | YR6: regelmäßige Instandsetzung | YS6: regelmäßige Instandsetzung | YT6: regelmäßige Instandsetzung | YU6: regelmäßige Instandsetzung | YV6: regelmäßige Instandsetzung | YW6: regelmäßige Instandsetzung | YX6: regelmäßige Instandsetzung | YY6: regelmäßige Instandsetzung | YZ6: regelmäßige Instandsetzung | ZA6: regelmäßige Instandsetzung | ZB6: regelmäßige Instandsetzung | ZC6: regelmäßige Instandsetzung | ZD6: regelmäßige Instandsetzung | ZE6: regelmäßige Instandsetzung | ZF6: regelmäßige Instandsetzung | ZG6: regelmäßige Instandsetzung | ZH6: regelmäßige Instandsetzung | ZI6: regelmäßige Instandsetzung | ZJ6: regelmäßige Instandsetzung | ZK6: regelmäßige Instandsetzung | ZL6: regelmäßige Instandsetzung | ZM6: regelmäßige Instandsetzung | ZN6: regelmäßige Instandsetzung | ZO6: regelmäßige Instandsetzung | ZP6: regelmäßige Instandsetzung | ZQ6: regelmäßige Instandsetzung | ZR6: regelmäßige Instandsetzung | ZS6: regelmäßige Instandsetzung | ZT6: regelmäßige Instandsetzung | ZU6: regelmäßige Instandsetzung | ZV6: regelmäßige Instandsetzung | ZW6: regelmäßige Instandsetzung | ZX6: regelmäßige Instandsetzung | ZY6: regelmäßige Instandsetzung | ZZ6: regelmäßige Instandsetzung | AAA6: regelmäßige Instandsetzung | AAB6: regelmäßige Instandsetzung | AAC6: regelmäßige Instandsetzung | AAD6: regelmäßige Instandsetzung | AAE6: regelmäßige Instandsetzung | AAF6: regelmäßige Instandsetzung | AAG6: regelmäßige Instandsetzung | AAH6: regelmäßige Instandsetzung | AAI6: regelmäßige Instandsetzung | AAJ6: regelmäßige Instandsetzung | AAK6: regelmäßige Instandsetzung | AAL6: regelmäßige Instandsetzung | AAM6: regelmäßige Instandsetzung | AAN6: regelmäßige Instandsetzung | AAO6: regelmäßige Instandsetzung | AAP6: regelmäßige Instandsetzung | AAQ6: regelmäßige Instandsetzung | AAR6: regelmäßige Instandsetzung | AAS6: regelmäßige Instandsetzung | AAT6: regelmäßige Instandsetzung | AAU6: regelmäßige Instandsetzung | AAV6: regelmäßige Instandsetzung | AAW6: regelmäßige Instandsetzung | AAX6: regelmäßige Instandsetzung | AAY6: regelmäßige Instandsetzung | AAZ6: regelmäßige Instandsetzung | ABA6: regelmäßige Instandsetzung | ABB6: regelmäßige Instandsetzung | ABC6: regelmäßige Instandsetzung | ABD6: regelmäßige Instandsetzung | ABE6: regelmäßige Instandsetzung | ABF6: regelmäßige Instandsetzung | ABG6: regelmäßige Instandsetzung | ABH6: regelmäßige Instandsetzung | ABI6: regelmäßige Instandsetzung | ABJ6: regelmäßige Instandsetzung | ABK6: regelmäßige Instandsetzung | ABL6: regelmäßige Instandsetzung | ABM6: regelmäßige Instandsetzung | ABN6: regelmäßige Instandsetzung | ABO6: regelmäßige Instandsetzung | ABP6: regelmäßige Instandsetzung | ABQ6: regelmäßige Instandsetzung | ABR6: regelmäßige Instandsetzung | ABS6: regelmäßige Instandsetzung | ABT6: regelmäßige Instandsetzung | ABU6: regelmäßige Instandsetzung | ABV6: regelmäßige Instandsetzung | ABW6: regelmäßige Instandsetzung | ABX6: regelmäßige Instandsetzung | ABY6: regelmäßige Instandsetzung | ABZ6: regelmäßige Instandsetzung | ACA6: regelmäßige Instandsetzung | ACB6: regelmäßige Instandsetzung | ACC6: regelmäßige Instandsetzung | ACD6: regelmäßige Instandsetzung | ACE6: regelmäßige Instandsetzung | ACF6: regelmäßige Instandsetzung | ACG6: regelmäßige Instandsetzung | ACH6: regelmäßige Instandsetzung | ACI6: regelmäßige Instandsetzung | ACJ6: regelmäßige Instandsetzung | ACK6: regelmäßige Instandsetzung | ACL6: regelmäßige Instandsetzung | ACM6: regelmäßige Instandsetzung | ACN6: regelmäßige Instandsetzung | ACO6: regelmäßige Instandsetzung | ACP6: regelmäßige Instandsetzung | ACQ6: regelmäßige Instandsetzung | ACR6: regelmäßige Instandsetzung | ACS6: regelmäßige Instandsetzung | ACT6: regelmäßige Instandsetzung | ACU6: regelmäßige Instandsetzung | ACV6: regelmäßige Instandsetzung | ACW6: regelmäßige Instandsetzung | ACX6: regelmäßige Instandsetzung | ACY6: regelmäßige Instandsetzung | ACZ6: regelmäßige Instandsetzung | ADA6: regelmäßige Instandsetzung | ADB6: regelmäßige Instandsetzung
E7: Code DIN 276 | F7: Bezeichnung | G7: LCC | H7: Bestand | K7: Gesamt netto [€] | L7: Erstherstellung netto [€] | O7: netto [€] | R7: Gesamt netto [€] | S7: Ersatzhäufigkeit im BZR | T7: Kontrolle KG | U7: relevante Nutzungsdauer | V7: Bezeichnung Datensatz | W7: ND [a] | X7: Ja/Nein | Y7: ND [a] | Z7: Kontrolle: KG Datensatz | AA7: Inspektion und Wartung [€] | AB7: Instandsetzung [€] | AC7: Inspektion, Wartung und Instandsetzung | AD7: Bezeichnung Datensatz | AE7: Inspektion und Wartung [%] | AF7: Instandsetzung [%] | AG7: Ja/Nein | AH7: Inspektion und Wartung [€] | AI7: Instandsetzung [€] | AJ7: KG 300 | AK7: KG 400 | AL7: KG 500 | AM7: KG 300 | AN7: KG 400 | AO7: KG 500 | AP7: KG 300 | AQ7: KG 400 | AR7: KG 500 | AS7: KG 300 | AT7: KG 400 | AU7: KG 500 | AV7: je BGFabc | AW7: absolut | AZ7: KG 300 DIN276 | BA7: KG 300 DIN276 Jahr | BB7: KG 300 DIN276 Jahr | BC7: KG 300 DIN276 Jahr | BD7: KG 300 DIN276 Jahr | BE7: KG 300 DIN276 Jahr | BF7: KG 300 DIN276 Jahr | BG7: KG 300 DIN276 Jahr | BH7: KG 300 DIN276 Jahr | BI7: KG 300 DIN276 Jahr | BJ7: KG 300 DIN276 Jahr | BK7: KG 300 DIN276 Jahr | BL7: KG 300 DIN276 Jahr | BM7: KG 300 DIN276 Jahr | BN7: KG 300 DIN276 Jahr | BO7: KG 300 DIN276 Jahr | BP7: KG 300 DIN276 Jahr | BQ7: KG 300 DIN276 Jahr | BR7: KG 300 DIN276 Jahr | BS7: KG 300 DIN276 Jahr | BT7: KG 300 DIN276 Jahr | BU7: KG 300 DIN276 Jahr | BV7: KG 300 DIN276 Jahr | BW7: KG 300 DIN276 Jahr | BX7: KG 300 DIN276 Jahr | BY7: KG 300 DIN276 Jahr | BZ7: KG 300 DIN276 Jahr | CA7: KG 300 DIN276 Jahr | CB7: KG 300 DIN276 Jahr | CC7: KG 300 DIN276 Jahr | CD7: KG 300 DIN276 Jahr | CE7: KG 300 DIN276 Jahr | CF7: KG 300 DIN276 Jahr | CG7: KG 300 DIN276 Jahr | CH7: KG 300 DIN276 Jahr | CI7: KG 300 DIN276 Jahr | CJ7: KG 300 DIN276 Jahr | CK7: KG 300 DIN276 Jahr | CL7: KG 300 DIN276 Jahr | CM7: KG 300 DIN276 Jahr | CN7: KG 300 DIN276 Jahr | CO7: KG 300 DIN276 Jahr | CP7: KG 300 DIN276 Jahr | CQ7: KG 300 DIN276 Jahr | CR7: KG 300 DIN276 Jahr | CS7: KG 300 DIN276 Jahr | CT7: KG 300 DIN276 Jahr | CU7: KG 300 DIN276 Jahr | CV7: KG 300 DIN276 Jahr | CW7: KG 300 DIN276 Jahr | CX7: KG 300 DIN276 Jahr | CY7: KG 300 DIN276 Jahr | CZ7: KG 300 DIN276 Jahr | DA7: KG 300 DIN276 Jahr | DB7: KG 300 DIN276 Jahr | DC7: KG 300 DIN276 Jahr | DD7: KG 300 DIN276 Jahr | DE7: KG 300 DIN276 Jahr | DF7: KG 300 DIN276 Jahr | DG7: KG 300 DIN276 Jahr | DH7: KG 300 DIN276 Jahr | DI7: KG 300 DIN276 Jahr | DJ7: KG 300 DIN276 Jahr | DK7: KG 300 DIN276 Jahr | DL7: KG 300 DIN276 Jahr | DM7: KG 300 DIN276 Jahr | DN7: KG 300 DIN276 Jahr | DO7: KG 300 DIN276 Jahr | DP7: KG 300 DIN276 Jahr | DQ7: KG 300 DIN276 Jahr | DR7: KG 300 DIN276 Jahr | DS7: KG 300 DIN276 Jahr | DT7: KG 300 DIN276 Jahr | DU7: KG 300 DIN276 Jahr | DV7: KG 300 DIN276 Jahr | DW7: KG 300 DIN276 Jahr | DX7: KG 300 DIN276 Jahr | DY7: KG 300 DIN276 Jahr | DZ7: KG 300 DIN276 Jahr | EA7: KG 300 DIN276 Jahr | EB7: KG 300 DIN276 Jahr | EC7: KG 400 DIN276 | ED7: KG 400 DIN276 | EE7: KG 400 DIN276 | EF7: KG 400 DIN276 | EG7: KG 400 DIN276 | EH7: KG 400 DIN276 | EI7: KG 400 DIN276 | EJ7: KG 400 DIN276 | EK7: KG 400 DIN276 | EL7: KG 400 DIN276 | EM7: KG 400 DIN276 | EN7: KG 400 DIN276 | EO7: KG 400 DIN276 | EP7: KG 400 DIN276 | EQ7: KG 400 DIN276 | ER7: KG 400 DIN276 | ES7: KG 400 DIN276 | ET7: KG 400 DIN276 | EU7: KG 400 DIN276 | EV7: KG 400 DIN276 | EW7: KG 400 DIN276 | EX7: KG 400 DIN276 | EY7: KG 400 DIN276 | EZ7: KG 400 DIN276 | FA7: KG 400 DIN276 | FB7: KG 400 DIN276 | FC7: KG 400 DIN276 | FD7: KG 400 DIN276 | FE7: KG 400 DIN276 | FF7: KG 400 DIN276 | FG7: KG 400 DIN276 | FH7: KG 400 DIN276 | FI7: KG 400 DIN276 | FJ7: KG 400 DIN276 | FK7: KG 400 DIN276 | FL7: KG 400 DIN276 | FM7: KG 400 DIN276 | FN7: KG 400 DIN276 | FO7: KG 400 DIN276 | FP7: KG 400 DIN276 | FQ7: KG 400 DIN276 | FR7: KG 400 DIN276 | FS7: KG 400 DIN276 | FT7: KG 400 DIN276 | FU7: KG 400 DIN276 | FV7: KG 400 DIN276 | FW7: KG 400 DIN276 | FX7: KG 400 DIN276 | FY7: KG 400 DIN276 | FZ7: KG 400 DIN276 | GA7: KG 400 DIN276 | GB7: KG 400 DIN276 | GC7: KG 400 DIN276 | GD7: KG 400 DIN276 | GE7: KG 400 DIN276 | GF7: KG 400 DIN276 | GG7: KG 400 DIN276 | GH7: KG 400 DIN276 | GI7: KG 400 DIN276 | GJ7: KG 400 DIN276 | GK7: KG 400 DIN276 | GL7: KG 400 DIN276 | GM7: KG 400 DIN276 | GN7: KG 400 DIN276 | GO7: KG 400 DIN276 | GP7: KG 400 DIN276 | GQ7: KG 400 DIN276 | GR7: KG 400 DIN276 | GS7: KG 400 DIN276 | GT7: KG 400 DIN276 | GU7: KG 400 DIN276 | GV7: KG 400 DIN276 | GW7: KG 400 DIN276 | GX7: KG 400 DIN276 | GY7: KG 400 DIN276 | GZ7: KG 400 DIN276 | HA7: KG 400 DIN276 | HB7: KG 400 DIN276 | HC7: KG 400 DIN276 | HD7: KG 400 DIN276 | HE7: KG 400 DIN276 | HF7: KG 500 DIN276 | HG7: KG 500 DIN276 | HH7: KG 500 DIN276 | HI7: KG 500 DIN276 | HJ7: KG 500 DIN276 | HK7: KG 500 DIN276 | HL7: KG 500 DIN276 | HM7: KG 500 DIN276 | HN7: KG 500 DIN276 | HO7: KG 500 DIN276 | HP7: KG 500 DIN276 | HQ7: KG 500 DIN276 | HR7: KG 500 DIN276 | HS7: KG 500 DIN276 | HT7: KG 500 DIN276 | HU7: KG 500 DIN276 | HV7: KG 500 DIN276 | HW7: KG 500 DIN276 | HX7: KG 500 DIN276 | HY7: KG 500 DIN276 | HZ7: KG 500 DIN276 | IA7: KG 500 DIN276 | IB7: KG 500 DIN276 | IC7: KG 500 DIN276 | ID7: KG 500 DIN276 | IE7: KG 500 DIN276 | IF7: KG 500 DIN276 | IG7: KG 500 DIN276 | IH7: KG 500 DIN276 | II7: KG 500 DIN276 | IJ7: KG 500 DIN276 | IK7: KG 500 DIN276 | IL7: KG 500 DIN276 | IM7: KG 500 DIN276 | IN7: KG 500 DIN276 | IO7: KG 500 DIN276 | IP7: KG 500 DIN276 | IQ7: KG 500 DIN276 | IR7: KG 500 DIN276 | IS7: KG 500 DIN276 | IT7: KG 500 DIN276 | IU7: KG 500 DIN276 | IV7: KG 500 DIN276 | IW7: KG 500 DIN276 | IX7: KG 500 DIN276 | IY7: KG 500 DIN276 | IZ7: KG 500 DIN276 | JA7: KG 500 DIN276 | JB7: KG 500 DIN276 | JC7: KG 500 DIN276 | JD7: KG 500 DIN276 | JE7: KG 500 DIN276 | JF7: KG 500 DIN276 | JG7: KG 500 DIN276 | JH7: KG 500 DIN276 | JI7: KG 500 DIN276 | JJ7: KG 500 DIN276 | JK7: KG 500 DIN276 | JL7: KG 500 DIN276 | JM7: KG 500 DIN276 | JN7: KG 500 DIN276 | JO7: KG 500 DIN276 | JP7: KG 500 DIN276 | JQ7: KG 500 DIN276 | JR7: KG 500 DIN276 | JS7: KG 500 DIN276 | JT7: KG 500 DIN276 | JU7: KG 500 DIN276 | JV7: KG 500 DIN276 | JW7: KG 500 DIN276 | JX7: KG 500 DIN276 | JY7: KG 500 DIN276 | JZ7: KG 500 DIN276 | KA7: KG 500 DIN276 | KB7: KG 500 DIN276 | KC7: KG 500 DIN276 | KD7: KG 500 DIN276 | KE7: KG 500 DIN276 | KF7: KG 500 DIN276 | KG7: KG 500 DIN276 | KH7: KG 500 DIN276 | KJ7: KG 300 DIN276 | KK7: KG 300 DIN276 | KL7: KG 300 DIN276 | KM7: KG 300 DIN276 | KN7: KG 300 DIN276 | KO7: KG 300 DIN276 | KP7: KG 300 DIN276 | KQ7: KG 300 DIN276 | KR7: KG 300 DIN276 | KS7: KG 300 DIN276 | KT7: KG 300 DIN276 | KU7: KG 300 DIN276 | KV7: KG 300 DIN276 | KW7: KG 300 DIN276 | KX7: KG 300 DIN276 | KY7: KG 300 DIN276 | KZ7: KG 300 DIN276 | LA7: KG 300 DIN276 | LB7: KG 300 DIN276 | LC7: KG 300 DIN276 | LD7: KG 300 DIN276 | LE7: KG 300 DIN276 | LF7: KG 300 DIN276 | LG7: KG 300 DIN276 | LH7: KG 300 DIN276 | LI7: KG 300 DIN276 | LJ7: KG 300 DIN276 | LK7: KG 300 DIN276 | LL7: KG 300 DIN276 | LM7: KG 300 DIN276 | LN7: KG 300 DIN276 | LO7: KG 300 DIN276 | LP7: KG 300 DIN276 | LQ7: KG 300 DIN276 | LR7: KG 300 DIN276 | LS7: KG 300 DIN276 | LT7: KG 300 DIN276 | LU7: KG 300 DIN276 | LV7: KG 300 DIN276 | LW7: KG 300 DIN276 | LX7: KG 300 DIN276 | LY7: KG 300 DIN276 | LZ7: KG 300 DIN276 | MA7: KG 300 DIN276 | MB7: KG 300 DIN276 | MC7: KG 300 DIN276 | MD7: KG 300 DIN276 | ME7: KG 300 DIN276 | MF7: KG 300 DIN276 | MG7: KG 300 DIN276 | MH7: KG 300 DIN276 | MI7: KG 300 DIN276 | MJ7: KG 300 DIN276 | MK7: KG 300 DIN276 | ML7: KG 300 DIN276 | MM7: KG 300 DIN276 | MN7: KG 300 DIN276 | MO7: KG 300 DIN276 | MP7: KG 300 DIN276 | MQ7: KG 300 DIN276 | MR7: KG 300 DIN276 | MS7: KG 300 DIN276 | MT7: KG 300 DIN276 | MU7: KG 300 DIN276 | MV7: KG 300 DIN276 | MW7: KG 300 DIN276 | MX7: KG 300 DIN276 | MY7: KG 300 DIN276 | MZ7: KG 300 DIN276 | NA7: KG 300 DIN276 | NB7: KG 300 DIN276 | NC7: KG 300 DIN276 | ND7: KG 300 DIN276 | NE7: KG 300 DIN276 | NF7: KG 300 DIN276 | NG7: KG 300 DIN276 | NH7: KG 300 DIN276 | NI7: KG 300 DIN276 | NJ7: KG 300 DIN276 | NK7: KG 300 DIN276 | NL7: KG 300 DIN276 | NM7: KG 400 DIN276 | NN7: KG 400 DIN276 | NO7: KG 400 DIN276 | NP7: KG 400 DIN276 | NQ7: KG 400 DIN276 | NR7: KG 400 DIN276 | NS7: KG 400 DIN276 | NT7: KG 400 DIN276 | NU7: KG 400 DIN276 | NV7: KG 400 DIN276 | NW7: KG 400 DIN276 | NX7: KG 400 DIN276 | NY7: KG 400 DIN276 | NZ7: KG 400 DIN276 | OA7: KG 400 DIN276 | OB7: KG 400 DIN276 | OC7: KG 400 DIN276 | OD7: KG 400 DIN276 | OE7: KG 400 DIN276 | OF7: KG 400 DIN276 | OG7: KG 400 DIN276 | OH7: KG 400 DIN276 | OI7: KG 400 DIN276 | OJ7: KG 400 DIN276 | OK7: KG 400 DIN276 | OL7: KG 400 DIN276 | OM7: KG 400 DIN276 | ON7: KG 400 DIN276 | OO7: KG 400 DIN276 | OP7: KG 400 DIN276 | OQ7: KG 400 DIN276 | OR7: KG 400 DIN276 | OS7: KG 400 DIN276 | OT7: KG 400 DIN276 | OU7: KG 400 DIN276 | OV7: KG 400 DIN276 | OW7: KG 400 DIN276 | OX7: KG 400 DIN276 | OY7: KG 400 DIN276 | OZ7: KG 400 DIN276 | PA7: KG 400 DIN276 | PB7: KG 400 DIN276 | PC7: KG 400 DIN276 | PD7: KG 400 DIN276 | PE7: KG 400 DIN276 | PF7: KG 400 DIN276 | PG7: KG 400 DIN276 | PH7: KG 400 DIN276 | PI7: KG 400 DIN276 | PJ7: KG 400 DIN276 | PK7: KG 400 DIN276 | PL7: KG 400 DIN276 | PM7: KG 400 DIN276 | PN7: KG 400 DIN276 | PO7: KG 400 DIN276 | PP7: KG 400 DIN276 | PQ7: KG 400 DIN276 | PR7: KG 400 DIN276 | PS7: KG 400 DIN276 | PT7: KG 400 DIN276 | PU7: KG 400 DIN276 | PV7: KG 400 DIN276 | PW7: KG 400 DIN276 | PX7: KG 400 DIN276 | PY7: KG 400 DIN276 | PZ7: KG 400 DIN276 | QA7: KG 400 DIN276 | QB7: KG 400 DIN276 | QC7: KG 400 DIN276 | QD7: KG 400 DIN276 | QE7: KG 400 DIN276 | QF7: KG 400 DIN276 | QG7: KG 400 DIN276 | QH7: KG 400 DIN276 | QI7: KG 400 DIN276 | QJ7: KG 400 DIN276 | QK7: KG 400 DIN276 | QL7: KG 400 DIN276 | QM7: KG 400 DIN276 | QN7: KG 400 DIN276 | QO7: KG 400 DIN276 | QP7: KG 500 DIN276 | QQ7: KG 500 DIN276 | QR7: KG 500 DIN276 | QS7: KG 500 DIN276 | QT7: KG 500 DIN276 | QU7: KG 500 DIN276 | QV7: KG 500 DIN276 | QW7: KG 500 DIN276 | QX7: KG 500 DIN276 | QY7: KG 500 DIN276 | QZ7: KG 500 DIN276 | RA7: KG 500 DIN276 | RB7: KG 500 DIN276 | RC7: KG 500 DIN276 | RD7: KG 500 DIN276 | RE7: KG 500 DIN276 | RF7: KG 500 DIN276 | RG7: KG 500 DIN276 | RH7: KG 500 DIN276 | RI7: KG 500 DIN276 | RJ7: KG 500 DIN276 | RK7: KG 500 DIN276 | RL7: KG 500 DIN276 | RM7: KG 500 DIN276 | RN7: KG 500 DIN276 | RO7: KG 500 DIN276 | RP7: KG 500 DIN276 | RQ7: KG 500 DIN276 | RR7: KG 500 DIN276 | RS7: KG 500 DIN276 | RT7: KG 500 DIN276 | RU7: KG 500 DIN276 | RV7: KG 500 DIN276 | RW7: KG 500 DIN276 | RX7: KG 500 DIN276 | RY7: KG 500 DIN276 | RZ7: KG 500 DIN276 | SA7: KG 500 DIN276 | SB7: KG 500 DIN276 | SC7: KG 500 DIN276 | SD7: KG 500 DIN276 | SE7: KG 500 DIN276 | SF7: KG 500 DIN276 | SG7: KG 500 DIN276 | SH7: KG 500 DIN276 | SI7: KG 500 DIN276 | SJ7: KG 500 DIN276 | SK7: KG 500 DIN276 | SL7: KG 500 DIN276 | SM7: KG 500 DIN276 | SN7: KG 500 DIN276 | SO7: KG 500 DIN276 | SP7: KG 500 DIN276 | SQ7: KG 500 DIN276 | SR7: KG 500 DIN276 | SS7: KG 500 DIN276 | ST7: KG 500 DIN276 | SU7: KG 500 DIN276 | SV7: KG 500 DIN276 | SW7: KG 500 DIN276 | SX7: KG 500 DIN276 | SY7: KG 500 DIN276 | SZ7: KG 500 DIN276 | TA7: KG 500 DIN276 | TB7: KG 500 DIN276 | TC7: KG 500 DIN276 | TD7: KG 500 DIN276 | TE7: KG 500 DIN276 | TF7: KG 500 DIN276 | TG7: KG 500 DIN276 | TH7: KG 500 DIN276 | TI7: KG 500 DIN276 | TJ7: KG 500 DIN276 | TK7: KG 500 DIN276 | TL7: KG 500 DIN276 | TM7: KG 500 DIN276 | TN7: KG 500 DIN276 | TO7: KG 500 DIN276 | TP7: KG 500 DIN276 | TQ7: KG 500 DIN276 | TR7: KG 500 DIN276 | TT7: KG 300 DIN276 | TU7: KG 300 DIN276 | TV7: KG 300 DIN276 | TW7: KG 300 DIN276 | TX7: KG 300 DIN276 | TY7: KG 300 DIN276 | TZ7: KG 300 DIN276 | UA7: KG 300 DIN276 | UB7: KG 300 DIN276 | UC7: KG 300 DIN276 | UD7: KG 300 DIN276 | UE7: KG 300 DIN276 | UF7: KG 300 DIN276 | UG7: KG 300 DIN276 | UH7: KG 300 DIN276 | UI7: KG 300 DIN276 | UJ7: KG 300 DIN276 | UK7: KG 300 DIN276 | UL7: KG 300 DIN276 | UM7: KG 300 DIN276 | UN7: KG 300 DIN276 | UO7: KG 300 DIN276 | UP7: KG 300 DIN276 | UQ7: KG 300 DIN276 | UR7: KG 300 DIN276 | US7: KG 300 DIN276 | UT7: KG 300 DIN276 | UU7: KG 300 DIN276 | UV7: KG 300 DIN276 | UW7: KG 300 DIN276 | UX7: KG 300 DIN276 | UY7: KG 300 DIN276 | UZ7: KG 300 DIN276 | VA7: KG 300 DIN276 | VB7: KG 300 DIN276 | VC7: KG 300 DIN276 | VD7: KG 300 DIN276 | VE7: KG 300 DIN276 | VF7: KG 300 DIN276 | VG7: KG 300 DIN276 | VH7: KG 300 DIN276 | VI7: KG 300 DIN276 | VJ7: KG 300 DIN276 | VK7: KG 300 DIN276 | VL7: KG 300 DIN276 | VM7: KG 300 DIN276 | VN7: KG 300 DIN276 | VO7: KG 300 DIN276 | VP7: KG 300 DIN276 | VQ7: KG 300 DIN276 | VR7: KG 300 DIN276 | VS7: KG 300 DIN276 | VT7: KG 300 DIN276 | VU7: KG 300 DIN276 | VV7: KG 300 DIN276 | VW7: KG 300 DIN276 | VX7: KG 300 DIN276 | VY7: KG 300 DIN276 | VZ7: KG 300 DIN276 | WA7: KG 300 DIN276 | WB7: KG 300 DIN276 | WC7: KG 300 DIN276 | WD7: KG 300 DIN276 | WE7: KG 300 DIN276 | WF7: KG 300 DIN276 | WG7: KG 300 DIN276 | WH7: KG 300 DIN276 | WI7: KG 300 DIN276 | WJ7: KG 300 DIN276 | WK7: KG 300 DIN276 | WL7: KG 300 DIN276 | WM7: KG 300 DIN276 | WN7: KG 300 DIN276 | WO7: KG 300 DIN276 | WP7: KG 300 DIN276 | WQ7: KG 300 DIN276 | WR7: KG 300 DIN276 | WS7: KG 300 DIN276 | WT7: KG 300 DIN276 | WU7: KG 300 DIN276 | WV7: KG 300 DIN276 | WW7: KG 400 DIN276 | WX7: KG 400 DIN276 | WY7: KG 400 DIN276 | WZ7: KG 400 DIN276 | XA7: KG 400 DIN276 | XB7: KG 400 DIN276 | XC7: KG 400 DIN276 | XD7: KG 400 DIN276 | XE7: KG 400 DIN276 | XF7: KG 400 DIN276 | XG7: KG 400 DIN276 | XH7: KG 400 DIN276 | XI7: KG 400 DIN276 | XJ7: KG 400 DIN276 | XK7: KG 400 DIN276 | XL7: KG 400 DIN276 | XM7: KG 400 DIN276 | XN7: KG 400 DIN276 | XO7: KG 400 DIN276 | XP7: KG 400 DIN276 | XQ7: KG 400 DIN276 | XR7: KG 400 DIN276 | XS7: KG 400 DIN276 | XT7: KG 400 DIN276 | XU7: KG 400 DIN276 | XV7: KG 400 DIN276 | XW7: KG 400 DIN276 | XX7: KG 400 DIN276 | XY7: KG 400 DIN276 | XZ7: KG 400 DIN276 | YA7: KG 400 DIN276 | YB7: KG 400 DIN276 | YC7: KG 400 DIN276 | YD7: KG 400 DIN276 | YE7: KG 400 DIN276 | YF7: KG 400 DIN276 | YG7: KG 400 DIN276 | YH7: KG 400 DIN276 | YI7: KG 400 DIN276 | YJ7: KG 400 DIN276 | YK7: KG 400 DIN276 | YL7: KG 400 DIN276 | YM7: KG 400 DIN276 | YN7: KG 400 DIN276 | YO7: KG 400 DIN276 | YP7: KG 400 DIN276 | YQ7: KG 400 DIN276 | YR7: KG 400 DIN276 | YS7: KG 400 DIN276 | YT7: KG 400 DIN276 | YU7: KG 400 DIN276 | YV7: KG 400 DIN276 | YW7: KG 400 DIN276 | YX7: KG 400 DIN276 | YY7: KG 400 DIN276 | YZ7: KG 400 DIN276 | ZA7: KG 400 DIN276 | ZB7: KG 400 DIN276 | ZC7: KG 400 DIN276 | ZD7: KG 400 DIN276 | ZE7: KG 400 DIN276 | ZF7: KG 400 DIN276 | ZG7: KG 400 DIN276 | ZH7: KG 400 DIN276 | ZI7: KG 400 DIN276 | ZJ7: KG 400 DIN276 | ZK7: KG 400 DIN276 | ZL7: KG 400 DIN276 | ZM7: KG 400 DIN276 | ZN7: KG 400 DIN276 | ZO7: KG 400 DIN276 | ZP7: KG 400 DIN276 | ZQ7: KG 400 DIN276 | ZR7: KG 400 DIN276 | ZS7: KG 400 DIN276 | ZT7: KG 400 DIN276 | ZU7: KG 400 DIN276 | ZV7: KG 400 DIN276 | ZW7: KG 400 DIN276 | ZX7: KG 400 DIN276 | ZY7: KG 400 DIN276 | ZZ7: KG 500 DIN276 | AAA7: KG 500 DIN276 | AAB7: KG 500 DIN276 | AAC7: KG 500 DIN276 | AAD7: KG 500 DIN276 | AAE7: KG 500 DIN276 | AAF7: KG 500 DIN276 | AAG7: KG 500 DIN276 | AAH7: KG 500 DIN276 | AAI7: KG 500 DIN276 | AAJ7: KG 500 DIN276 | AAK7: KG 500 DIN276 | AAL7: KG 500 DIN276 | AAM7: KG 500 DIN276 | AAN7: KG 500 DIN276 | AAO7: KG 500 DIN276 | AAP7: KG 500 DIN276 | AAQ7: KG 500 DIN276 | AAR7: KG 500 DIN276 | AAS7: KG 500 DIN276 | AAT7: KG 500 DIN276 | AAU7: KG 500 DIN276 | AAV7: KG 500 DIN276 | AAW7: KG 500 DIN276 | AAX7: KG 500 DIN276 | AAY7: KG 500 DIN276 | AAZ7: KG 500 DIN276 | ABA7: KG 500 DIN276 | ABB7: KG 500 DIN276 | ABC7: KG 500 DIN276 | ABD7: KG 500 DIN276 | ABE7: KG 500 DIN276 | ABF7: KG 500 DIN276 | ABG7: KG 500 DIN276 | ABH7: KG 500 DIN276 | ABI7: KG 500 DIN276 | ABJ7: KG 500 DIN276 | ABK7: KG 500 DIN276 | ABL7: KG 500 DIN276 | ABM7: KG 500 DIN276 | ABN7: KG 500 DIN276 | ABO7: KG 500 DIN276 | ABP7: KG 500 DIN276 | ABQ7: KG 500 DIN276 | ABR7: KG 500 DIN276 | ABS7: KG 500 DIN276 | ABT7: KG 500 DIN276 | ABU7: KG 500 DIN276 | ABV7: KG 500 DIN276 | ABW7: KG 500 DIN276 | ABX7: KG 500 DIN276 | ABY7: KG 500 DIN276 | ABZ7: KG 500 DIN276 | ACA7: KG 500 DIN276 | ACB7: KG 500 DIN276 | ACC7: KG 500 DIN276 | ACD7: KG 500 DIN276 | ACE7: KG 500 DIN276 | ACF7: KG 500 DIN276 | ACG7: KG 500 DIN276 | ACH7: KG 500 DIN276 | ACI7: KG 500 DIN276 | ACJ7: KG 500 DIN276 | ACK7: KG 500 DIN276 | ACL7: KG 500 DIN276 | ACM7: KG 500 DIN276 | ACN7: KG 500 DIN276 | ACO7: KG 500 DIN276 | ACP7: KG 500 DIN276 | ACQ7: KG 500 DIN276 | ACR7: KG 500 DIN276 | ACS7: KG 500 DIN276 | ACT7: KG 500 DIN276 | ACU7: KG 500 DIN276 | ACV7: KG 500 DIN276 | ACW7: KG 500 DIN276 | ACX7: KG 500 DIN276 | ACY7: KG 500 DIN276 | ACZ7: KG 500 DIN276 | ADA7: KG 500 DIN276 | ADB7: KG 500 DIN276
U8: in [a] | AV8: ∑ BZR | AW8: ∑ BZR | AZ8: ∑ BZR | BA8: 1 | BB8: 2 | BC8: 3 | BD8: 4 | BE8: 5 | BF8: 6 | BG8: 7 | BH8: 8 | BI8: 9 | BJ8: 10 | BK8: 11 | BL8: 12 | BM8: 13 | BN8: 14 | BO8: 15 | BP8: 16 | BQ8: 17 | BR8: 18 | BS8: 19 | BT8: 20 | BU8: 21 | BV8: 22 | BW8: 23 | BX8: 24 | BY8: 25 | BZ8: 26 | CA8: 27 | CB8: 28 | CC8: 29 | CD8: 30 | CE8: 31 | CF8: 32 | CG8: 33 | CH8: 34 | CI8: 35 | CJ8: 36 | CK8: 37 | CL8: 38 | CM8: 39 | CN8: 40 | CO8: 41 | CP8: 42 | CQ8: 43 | CR8: 44 | CS8: 45 | CT8: 46 | CU8: 47 | CV8: 48 | CW8: 49 | CX8: 50 | CY8: 51 | CZ8: 52 | DA8: 53 | DB8: 54 | DC8: 55 | DD8: 56 | DE8: 57 | DF8: 58 | DG8: 59 | DH8: 60 | DI8: 61 | DJ8: 62 | DK8: 63 | DL8: 64 | DM8: 65 | DN8: 66 | DO8: 67 | DP8: 68 | DQ8: 69 | DR8: 70 | DS8: 71 | DT8: 72 | DU8: 73 | DV8: 74 | DW8: 75 | DX8: 76 | DY8: 77 | DZ8: 78 | EA8: 79 | EB8: 80 | EC8: ∑ BZR | ED8: 1 | EE8: 2 | EF8: 3 | EG8: 4 | EH8: 5 | EI8: 6 | EJ8: 7 | EK8: 8 | EL8: 9 | EM8: 10 | EN8: 11 | EO8: 12 | EP8: 13 | EQ8: 14 | ER8: 15 | ES8: 16 | ET8: 17 | EU8: 18 | EV8: 19 | EW8: 20 | EX8: 21 | EY8: 22 | EZ8: 23 | FA8: 24 | FB8: 25 | FC8: 26 | FD8: 27 | FE8: 28 | FF8: 29 | FG8: 30 | FH8: 31 | FI8: 32 | FJ8: 33 | FK8: 34 | FL8: 35 | FM8: 36 | FN8: 37 | FO8: 38 | FP8: 39 | FQ8: 40 | FR8: 41 | FS8: 42 | FT8: 43 | FU8: 44 | FV8: 45 | FW8: 46 | FX8: 47 | FY8: 48 | FZ8: 49 | GA8: 50 | GB8: 51 | GC8: 52 | GD8: 53 | GE8: 54 | GF8: 55 | GG8: 56 | GH8: 57 | GI8: 58 | GJ8: 59 | GK8: 60 | GL8: 61 | GM8: 62 | GN8: 63 | GO8: 64 | GP8: 65 | GQ8: 66 | GR8: 67 | GS8: 68 | GT8: 69 | GU8: 70 | GV8: 71 | GW8: 72 | GX8: 73 | GY8: 74 | GZ8: 75 | HA8: 76 | HB8: 77 | HC8: 78 | HD8: 79 | HE8: 80 | HF8: ∑ BZR | HG8: 1 | HH8: 2 | HI8: 3 | HJ8: 4 | HK8: 5 | HL8: 6 | HM8: 7 | HN8: 8 | HO8: 9 | HP8: 10 | HQ8: 11 | HR8: 12 | HS8: 13 | HT8: 14 | HU8: 15 | HV8: 16 | HW8: 17 | HX8: 18 | HY8: 19 | HZ8: 20 | IA8: 21 | IB8: 22 | IC8: 23 | ID8: 24 | IE8: 25 | IF8: 26 | IG8: 27 | IH8: 28 | II8: 29 | IJ8: 30 | IK8: 31 | IL8: 32 | IM8: 33 | IN8: 34 | IO8: 35 | IP8: 36 | IQ8: 37 | IR8: 38 | IS8: 39 | IT8: 40 | IU8: 41 | IV8: 42 | IW8: 43 | IX8: 44 | IY8: 45 | IZ8: 46 | JA8: 47 | JB8: 48 | JC8: 49 | JD8: 50 | JE8: 51 | JF8: 52 | JG8: 53 | JH8: 54 | JI8: 55 | JJ8: 56 | JK8: 57 | JL8: 58 | JM8: 59 | JN8: 60 | JO8: 61 | JP8: 62 | JQ8: 63 | JR8: 64 | JS8: 65 | JT8: 66 | JU8: 67 | JV8: 68 | JW8: 69 | JX8: 70 | JY8: 71 | JZ8: 72 | KA8: 73 | KB8: 74 | KC8: 75 | KD8: 76 | KE8: 77 | KF8: 78 | KG8: 79 | KH8: 80 | KJ8: ∑ BZR | KK8: 1 | KL8: 2 | KM8: 3 | KN8: 4 | KO8: 5 | KP8: 6 | KQ8: 7 | KR8: 8 | KS8: 9 | KT8: 10 | KU8: 11 | KV8: 12 | KW8: 13 | KX8: 14 | KY8: 15 | KZ8: 16 | LA8: 17 | LB8: 18 | LC8: 19 | LD8: 20 | LE8: 21 | LF8: 22 | LG8: 23 | LH8: 24 | LI8: 25 | LJ8: 26 | LK8: 27 | LL8: 28 | LM8: 29 | LN8: 30 | LO8: 31 | LP8: 32 | LQ8: 33 | LR8: 34 | LS8: 35 | LT8: 36 | LU8: 37 | LV8: 38 | LW8: 39 | LX8: 40 | LY8: 41 | LZ8: 42 | MA8: 43 | MB8: 44 | MC8: 45 | MD8: 46 | ME8: 47 | MF8: 48 | MG8: 49 | MH8: 50 | MI8: 51 | MJ8: 52 | MK8: 53 | ML8: 54 | MM8: 55 | MN8: 56 | MO8: 57 | MP8: 58 | MQ8: 59 | MR8: 60 | MS8: 61 | MT8: 62 | MU8: 63 | MV8: 64 | MW8: 65 | MX8: 66 | MY8: 67 | MZ8: 68 | NA8: 69 | NB8: 70 | NC8: 71 | ND8: 72 | NE8: 73 | NF8: 74 | NG8: 75 | NH8: 76 | NI8: 77 | NJ8: 78 | NK8: 79 | NL8: 80 | NM8: ∑ BZR | NN8: 1 | NO8: 2 | NP8: 3 | NQ8: 4 | NR8: 5 | NS8: 6 | NT8: 7 | NU8: 8 | NV8: 9 | NW8: 10 | NX8: 11 | NY8: 12 | NZ8: 13 | OA8: 14 | OB8: 15 | OC8: 16 | OD8: 17 | OE8: 18 | OF8: 19 | OG8: 20 | OH8: 21 | OI8: 22 | OJ8: 23 | OK8: 24 | OL8: 25 | OM8: 26 | ON8: 27 | OO8: 28 | OP8: 29 | OQ8: 30 | OR8: 31 | OS8: 32 | OT8: 33 | OU8: 34 | OV8: 35 | OW8: 36 | OX8: 37 | OY8: 38 | OZ8: 39 | PA8: 40 | PB8: 41 | PC8: 42 | PD8: 43 | PE8: 44 | PF8: 45 | PG8: 46 | PH8: 47 | PI8: 48 | PJ8: 49 | PK8: 50 | PL8: 51 | PM8: 52 | PN8: 53 | PO8: 54 | PP8: 55 | PQ8: 56 | PR8: 57 | PS8: 58 | PT8: 59 | PU8: 60 | PV8: 61 | PW8: 62 | PX8: 63 | PY8: 64 | PZ8: 65 | QA8: 66 | QB8: 67 | QC8: 68 | QD8: 69 | QE8: 70 | QF8: 71 | QG8: 72 | QH8: 73 | QI8: 74 | QJ8: 75 | QK8: 76 | QL8: 77 | QM8: 78 | QN8: 79 | QO8: 80 | QP8: ∑ BZR | QQ8: 1 | QR8: 2 | QS8: 3 | QT8: 4 | QU8: 5 | QV8: 6 | QW8: 7 | QX8: 8 | QY8: 9 | QZ8: 10 | RA8: 11 | RB8: 12 | RC8: 13 | RD8: 14 | RE8: 15 | RF8: 16 | RG8: 17 | RH8: 18 | RI8: 19 | RJ8: 20 | RK8: 21 | RL8: 22 | RM8: 23 | RN8: 24 | RO8: 25 | RP8: 26 | RQ8: 27 | RR8: 28 | RS8: 29 | RT8: 30 | RU8: 31 | RV8: 32 | RW8: 33 | RX8: 34 | RY8: 35 | RZ8: 36 | SA8: 37 | SB8: 38 | SC8: 39 | SD8: 40 | SE8: 41 | SF8: 42 | SG8: 43 | SH8: 44 | SI8: 45 | SJ8: 46 | SK8: 47 | SL8: 48 | SM8: 49 | SN8: 50 | SO8: 51 | SP8: 52 | SQ8: 53 | SR8: 54 | SS8: 55 | ST8: 56 | SU8: 57 | SV8: 58 | SW8: 59 | SX8: 60 | SY8: 61 | SZ8: 62 | TA8: 63 | TB8: 64 | TC8: 65 | TD8: 66 | TE8: 67 | TF8: 68 | TG8: 69 | TH8: 70 | TI8: 71 | TJ8: 72 | TK8: 73 | TL8: 74 | TM8: 75 | TN8: 76 | TO8: 77 | TP8: 78 | TQ8: 79 | TR8: 80 | TT8: ∑ BZR | TU8: 1 | TV8: 2 | TW8: 3 | TX8: 4 | TY8: 5 | TZ8: 6 | UA8: 7 | UB8: 8 | UC8: 9 | UD8: 10 | UE8: 11 | UF8: 12 | UG8: 13 | UH8: 14 | UI8: 15 | UJ8: 16 | UK8: 17 | UL8: 18 | UM8: 19 | UN8: 20 | UO8: 21 | UP8: 22 | UQ8: 23 | UR8: 24 | US8: 25 | UT8: 26 | UU8: 27 | UV8: 28 | UW8: 29 | UX8: 30 | UY8: 31 | UZ8: 32 | VA8: 33 | VB8: 34 | VC8: 35 | VD8: 36 | VE8: 37 | VF8: 38 | VG8: 39 | VH8: 40 | VI8: 41 | VJ8: 42 | VK8: 43 | VL8: 44 | VM8: 45 | VN8: 46 | VO8: 47 | VP8: 48 | VQ8: 49 | VR8: 50 | VS8: 51 | VT8: 52 | VU8: 53 | VV8: 54 | VW8: 55 | VX8: 56 | VY8: 57 | VZ8: 58 | WA8: 59 | WB8: 60 | WC8: 61 | WD8: 62 | WE8: 63 | WF8: 64 | WG8: 65 | WH8: 66 | WI8: 67 | WJ8: 68 | WK8: 69 | WL8: 70 | WM8: 71 | WN8: 72 | WO8: 73 | WP8: 74 | WQ8: 75 | WR8: 76 | WS8: 77 | WT8: 78 | WU8: 79 | WV8: 80 | WW8: ∑ BZR | WX8: 1 | WY8: 2 | WZ8: 3 | XA8: 4 | XB8: 5 | XC8: 6 | XD8: 7 | XE8: 8 | XF8: 9 | XG8: 10 | XH8: 11 | XI8: 12 | XJ8: 13 | XK8: 14 | XL8: 15 | XM8: 16 | XN8: 17 | XO8: 18 | XP8: 19 | XQ8: 20 | XR8: 21 | XS8: 22 | XT8: 23 | XU8: 24 | XV8: 25 | XW8: 26 | XX8: 27 | XY8: 28 | XZ8: 29 | YA8: 30 | YB8: 31 | YC8: 32 | YD8: 33 | YE8: 34 | YF8: 35 | YG8: 36 | YH8: 37 | YI8: 38 | YJ8: 39 | YK8: 40 | YL8: 41 | YM8: 42 | YN8: 43 | YO8: 44 | YP8: 45 | YQ8: 46 | YR8: 47 | YS8: 48 | YT8: 49 | YU8: 50 | YV8: 51 | YW8: 52 | YX8: 53 | YY8: 54 | YZ8: 55 | ZA8: 56 | ZB8: 57 | ZC8: 58 | ZD8: 59 | ZE8: 60 | ZF8: 61 | ZG8: 62 | ZH8: 63 | ZI8: 64 | ZJ8: 65 | ZK8: 66 | ZL8: 67 | ZM8: 68 | ZN8: 69 | ZO8: 70 | ZP8: 71 | ZQ8: 72 | ZR8: 73 | ZS8: 74 | ZT8: 75 | ZU8: 76 | ZV8: 77 | ZW8: 78 | ZX8: 79 | ZY8: 80 | ZZ8: ∑ BZR | AAA8: 1 | AAB8: 2 | AAC8: 3 | AAD8: 4 | AAE8: 5 | AAF8: 6 | AAG8: 7 | AAH8: 8 | AAI8: 9 | AAJ8: 10 | AAK8: 11 | AAL8: 12 | AAM8: 13 | AAN8: 14 | AAO8: 15 | AAP8: 16 | AAQ8: 17 | AAR8: 18 | AAS8: 19 | AAT8: 20 | AAU8: 21 | AAV8: 22 | AAW8: 23 | AAX8: 24 | AAY8: 25 | AAZ8: 26 | ABA8: 27 | ABB8: 28 | ABC8: 29 | ABD8: 30 | ABE8: 31 | ABF8: 32 | ABG8: 33 | ABH8: 34 | ABI8: 35 | ABJ8: 36 | ABK8: 37 | ABL8: 38 | ABM8: 39 | ABN8: 40 | ABO8: 41 | ABP8: 42 | ABQ8: 43 | ABR8: 44 | ABS8: 45 | ABT8: 46 | ABU8: 47 | ABV8: 48 | ABW8: 49 | ABX8: 50 | ABY8: 51 | ABZ8: 52 | ACA8: 53 | ACB8: 54 | ACC8: 55 | ACD8: 56 | ACE8: 57 | ACF8: 58 | ACG8: 59 | ACH8: 60 | ACI8: 61 | ACJ8: 62 | ACK8: 63 | ACL8: 64 | ACM8: 65 | ACN8: 66 | ACO8: 67 | ACP8: 68 | ACQ8: 69 | ACR8: 70 | ACS8: 71 | ACT8: 72 | ACU8: 73 | ACV8: 74 | ACW8: 75 | ACX8: 76 | ACY8: 77 | ACZ8: 78 | ADA8: 79 | ADB8: 80
J9: =SUM(J10:J43) -> 10000000 | K9: =SUM(K10:K43) -> 9821428.571 | L9: =SUM(L10:L43) -> 9821428.571 | P9: =SUM(P10:P43) -> 0 | Q9: =SUM(Q10:Q43) -> 0 | R9: =SUM(R10:R43) -> 0 | AJ9: =SUM(AJ10:AJ43) -> 7032142.857 | AK9: =SUM(AK10:AK43) -> 2789285.714 | AL9: =SUM(AL10:AL43) -> 0 | AM9: =SUMIF($H11:$H42,"Nein",AP11:AP42) -> 7032.142857 | AN9: =SUMIF($H11:$H42,"Nein",AQ11:AQ42) -> 24473.72321 | AO9: =SUMIF($H11:$H42,"Nein",AR11:AR42) -> 0 | AP9: =SUM(AP11:AP42) -> 7032.142857 | AQ9: 24473.72321 | AR9: 0 | AS9: 24612.5 | AT9: 25432.98214 | AU9: 0 | AV9: =IF(AND(ISNUMBER(BGFabc),BGFabc>0),AW9/BGFabc,"") -> 1058.7961 | AW9: =ERG_BARERSATZ300+ERG_BARERSATZ400+ERG_BARERSATZ500+ERG_BARWART300+ERG_BARWART400+ERG_BARWART500+ERG_BARINST300+ERG_BARINST400+ERG_BARINST500 -> 8470368.799 | AZ9: =SUM(AZ10:AZ43) -> 200313.9596 | BA9: 0 | BB9: 0 | BC9: 0 | BD9: 0 | BE9: 0 | BF9: 0 | BG9: 0 | BH9: 0 | BI9: 0 | BJ9: 0 | BK9: 0 | BL9: 0 | BM9: 0 | BN9: 0 | BO9: 0 | BP9: 0 | BQ9: 0 | BR9: 0 | BS9: 0 | BT9: 0 | BU9: 0 | BV9: 0 | BW9: 0 | BX9: 0 | BY9: 0 | BZ9: 0 | CA9: 0 | CB9: 0 | CC9: 0 | CD9: 200313.9596 | CE9: 0 | CF9: 0 | CG9: 0 | CH9: 0 | CI9: 0 | CJ9: 0 | CK9: 0 | CL9: 0 | CM9: 0 | CN9: 0 | CO9: 0 | CP9: 0 | CQ9: 0 | CR9: 0 | CS9: 0 | CT9: 0 | CU9: 0 | CV9: 0 | CW9: 0 | CX9: 0 | CY9: 0 | CZ9: 0 | DA9: 0 | DB9: 0 | DC9: 0 | DD9: 0 | DE9: 0 | DF9: 0 | DG9: 0 | DH9: 0 | DI9: 0 | DJ9: 0 | DK9: 0 | DL9: =SUM(DL10:DL43) -> 0 | DM9: 0 | DN9: 0 | DO9: 0 | DP9: 0 | DQ9: 0 | DR9: 0 | DS9: 0 | DT9: 0 | DU9: 0 | DV9: 0 | DW9: 0 | DX9: 0 | DY9: 0 | DZ9: 0 | EA9: 0 | EB9: 0 | EC9: 3636515.261 | ED9: 0 | EE9: 0 | EF9: 0 | EG9: 0 | EH9: 0 | EI9: 0 | EJ9: 0 | EK9: 0 | EL9: 0 | EM9: 272345.2998 | EN9: 0 | EO9: 0 | EP9: 0 | EQ9: 0 | ER9: 0 | ES9: 0 | ET9: 0 | EU9: 0 | EV9: 0 | EW9: 286062.6646 | EX9: 0 | EY9: 0 | EZ9: 0 | FA9: 0 | FB9: 2462031.434 | FC9: 0 | FD9: 0 | FE9: 0 | FF9: 0 | FG9: 300470.9394 | FH9: 0 | FI9: 0 | FJ9: 0 | FK9: 0 | FL9: 0 | FM9: 0 | FN9: 0 | FO9: 0 | FP9: 0 | FQ9: 315604.9236 | FR9: 0 | FS9: 0 | FT9: 0 | FU9: 0 | FV9: 0 | FW9: 0 | FX9: =SUM(FX10:FX43) -> 0 | FY9: 0 | FZ9: 0 | GA9: 0 | GB9: 0 | GC9: 0 | GD9: 0 | GE9: 0 | GF9: 0 | GG9: 0 | GH9: 0 | GI9: 0 | GJ9: 0 | GK9: 0 | GL9: 0 | GM9: 0 | GN9: 0 | GO9: 0 | GP9: 0 | GQ9: 0 | GR9: 0 | GS9: 0 | GT9: 0 | GU9: 0 | GV9: 0 | GW9: 0 | GX9: 0 | GY9: 0 | GZ9: 0 | HA9: 0 | HB9: 0 | HC9: 0 | HD9: 0 | HE9: 0 | HF9: 0 | HG9: 0 | HH9: 0 | HI9: 0 | HJ9: 0 | HK9: 0 | HL9: 0 | HM9: 0 | HN9: 0 | HO9: 0 | HP9: 0 | HQ9: 0 | HR9: 0 | HS9: 0 | HT9: 0 | HU9: 0 | HV9: 0 | HW9: 0 | HX9: 0 | HY9: 0 | HZ9: 0 | IA9: 0 | IB9: 0 | IC9: 0 | ID9: 0 | IE9: 0 | IF9: 0 | IG9: 0 | IH9: 0 | II9: 0 | IJ9: =SUM(IJ10:IJ43) -> 0 | IK9: 0 | IL9: 0 | IM9: 0 | IN9: 0 | IO9: 0 | IP9: 0 | IQ9: 0 | IR9: 0 | IS9: 0 | IT9: 0 | IU9: 0 | IV9: 0 | IW9: 0 | IX9: 0 | IY9: 0 | IZ9: 0 | JA9: 0 | JB9: 0 | JC9: 0 | JD9: 0 | JE9: 0 | JF9: 0 | JG9: 0 | JH9: 0 | JI9: 0 | JJ9: 0 | JK9: 0 | JL9: 0 | JM9: 0 | JN9: 0 | JO9: 0 | JP9: 0 | JQ9: 0 | JR9: 0 | JS9: 0 | JT9: 0 | JU9: 0 | JV9: 0 | JW9: 0 | JX9: 0 | JY9: 0 | JZ9: 0 | KA9: 0 | KB9: 0 | KC9: 0 | KD9: 0 | KE9: 0 | KF9: 0 | KG9: 0 | KH9: 0 | KJ9: =SUM(KJ10:KJ43) -> 399548.419 | KK9: 7066.783955 | KL9: 7101.595699 | KM9: 7136.578929 | KN9: 7171.73449 | KO9: 7207.063231 | KP9: 7242.566006 | KQ9: 7278.243671 | KR9: 7314.097088 | KS9: 7350.127123 | KT9: 7386.334646 | KU9: 7422.720531 | KV9: 7459.285656 | KW9: 7496.030906 | KX9: 7532.957166 | KY9: 7570.06533 | KZ9: 7607.356292 | LA9: 7644.830954 | LB9: 7682.490219 | LC9: 7720.334999 | LD9: 7758.366206 | LE9: 7796.584758 | LF9: 7834.99158 | LG9: 7873.587597 | LH9: 7912.373743 | LI9: 7951.350954 | LJ9: 7990.52017 | LK9: 8029.882339 | LL9: 8069.438409 | LM9: 8109.189337 | LN9: 8149.136083 | LO9: 8189.27961 | LP9: 8229.620889 | LQ9: 8270.160894 | LR9: 8310.900603 | LS9: 8351.841 | LT9: 8392.983073 | LU9: 8434.327818 | LV9: 8475.876231 | LW9: 8517.629315 | LX9: 8559.588081 | LY9: 8601.753539 | LZ9: 8644.126709 | MA9: 8686.708614 | MB9: 8729.500282 | MC9: 8772.502747 | MD9: 8815.717046 | ME9: 8859.144224 | MF9: 8902.785328 | MG9: 8946.641413 | MH9: 8990.713539 | MI9: 9035.002768 | MJ9: 9079.510171 | MK9: 9124.236822 | ML9: 9169.183801 | MM9: 9214.352194 | MN9: 9259.743092 | MO9: 9305.35759 | MP9: 9351.19679 | MQ9: 9397.261799 | MR9: 9443.553729 | MS9: 9490.073698 | MT9: 9536.822829 | MU9: 9583.802252 | MV9: =SUM(MV10:MV43) -> 9631.013101 | MW9: 9678.456515 | MX9: 9726.133641 | MY9: 9774.045629 | MZ9: 9822.193637 | NA9: 9870.578827 | NB9: 9919.202368 | NC9: 9968.065434 | ND9: 10017.1692 | NE9: 10066.51487 | NF9: 10116.10361 | NG9: 10165.93663 | NH9: 10216.01514 | NI9: 10266.34034 | NJ9: 10316.91344 | NK9: 10367.73567 | NL9: 10418.80826 | NM9: 1390534.524 | NN9: 24594.28343 | NO9: 24715.43753 | NP9: 24837.18846 | NQ9: 24959.53914 | NR9: 25082.49253 | NS9: 25206.05161 | NT9: 25330.21935 | NU9: 25454.99876 | NV9: 25580.39284 | NW9: 25706.40463 | NX9: 25833.03716 | NY9: 25960.2935 | NZ9: 26088.17672 | OA9: 26216.68991 | OB9: 26345.83616 | OC9: 26475.61861 | OD9: 26606.04037 | OE9: 26737.10461 | OF9: 26868.81449 | OG9: 27001.17318 | OH9: 27134.18389 | OI9: 27267.84982 | OJ9: 27402.1742 | OK9: 27537.16028 | OL9: 27672.81131 | OM9: 27809.13058 | ON9: 27946.12137 | OO9: 28083.787 | OP9: 28222.13077 | OQ9: 28361.15605 | OR9: 28500.86618 | OS9: 28641.26453 | OT9: 28782.35451 | OU9: 28924.1395 | OV9: 29066.62295 | OW9: 29209.80828 | OX9: 29353.69897 | OY9: 29498.29847 | OZ9: 29643.61028 | PA9: 29789.63792 | PB9: 29936.3849 | PC9: 30083.85478 | PD9: 30232.05111 | PE9: 30380.97747 | PF9: 30530.63746 | PG9: 30681.03469 | PH9: =SUM(PH10:PH43) -> 30832.17279 | PI9: 30984.05541 | PJ9: 31136.68623 | PK9: 31290.06892 | PL9: 31444.20719 | PM9: 31599.10476 | PN9: 31754.76538 | PO9: 31911.19279 | PP9: 32068.39079 | PQ9: 32226.36315 | PR9: 32385.11371 | PS9: 32544.64629 | PT9: 32704.96475 | PU9: 32866.07295 | PV9: 33027.97478 | PW9: 33190.67417 | PX9: 33354.17502 | PY9: 33518.48131 | PZ9: 33683.59698 | QA9: 33849.52603 | QB9: 34016.27246 | QC9: 34183.8403 | QD9: 34352.23361 | QE9: 34521.45643 | QF9: 34691.51287 | QG9: 34862.40702 | QH9: 35034.14302 | QI9: 35206.725 | QJ9: 35380.15714 | QK9: 35554.44363 | QL9: 35729.58867 | QM9: 35905.5965 | QN9: 36082.47136 | QO9: 36260.21752 | QP9: 0 | QQ9: 0 | QR9: 0 | QS9: 0 | QT9: 0 | QU9: 0 | QV9: 0 | QW9: 0 | QX9: 0 | QY9: 0 | QZ9: 0 | RA9: 0 | RB9: 0 | RC9: 0 | RD9: 0 | RE9: 0 | RF9: 0 | RG9: 0 | RH9: 0 | RI9: 0 | RJ9: 0 | RK9: 0 | RL9: 0 | RM9: 0 | RN9: 0 | RO9: 0 | RP9: 0 | RQ9: 0 | RR9: 0 | RS9: 0 | RT9: =SUM(RT10:RT43) -> 0 | RU9: 0 | RV9: 0 | RW9: 0 | RX9: 0 | RY9: 0 | RZ9: 0 | SA9: 0 | SB9: 0 | SC9: 0 | SD9: 0 | SE9: 0 | SF9: 0 | SG9: 0 | SH9: 0 | SI9: 0 | SJ9: 0 | SK9: 0 | SL9: 0 | SM9: 0 | SN9: 0 | SO9: 0 | SP9: 0 | SQ9: 0 | SR9: 0 | SS9: 0 | ST9: 0 | SU9: 0 | SV9: 0 | SW9: 0 | SX9: 0 | SY9: 0 | SZ9: 0 | TA9: 0 | TB9: 0 | TC9: 0 | TD9: 0 | TE9: 0 | TF9: 0 | TG9: 0 | TH9: 0 | TI9: 0 | TJ9: 0 | TK9: 0 | TL9: 0 | TM9: 0 | TN9: 0 | TO9: 0 | TP9: 0 | TQ9: 0 | TR9: 0 | TT9: =SUM(TT10:TT43) -> 1398419.467 | TU9: 24733.74384 | TV9: 24855.58495 | TW9: 24978.02625 | TX9: 25101.07071 | TY9: 25224.72131 | TZ9: 25348.98102 | UA9: 25473.85285 | UB9: 25599.33981 | UC9: 25725.44493 | UD9: 25852.17126 | UE9: 25979.52186 | UF9: 26107.4998 | UG9: 26236.10817 | UH9: 26365.35008 | UI9: 26495.22865 | UJ9: 26625.74702 | UK9: 26756.90834 | UL9: 26888.71577 | UM9: 27021.1725 | UN9: 27154.28172 | UO9: 27288.04665 | UP9: 27422.47053 | UQ9: 27557.55659 | UR9: 27693.3081 | US9: 27829.72834 | UT9: 27966.8206 | UU9: 28104.58819 | UV9: 28243.03443 | UW9: 28382.16268 | UX9: 28521.97629 | UY9: 28662.47864 | UZ9: 28803.67311 | VA9: 28945.56313 | VB9: 29088.15211 | VC9: 29231.4435 | VD9: 29375.44076 | VE9: 29520.14736 | VF9: 29665.56681 | VG9: 29811.7026 | VH9: 29958.55828 | VI9: 30106.13739 | VJ9: 30254.44348 | VK9: 30403.48015 | VL9: 30553.25099 | VM9: 30703.75961 | VN9: 30855.00966 | VO9: 31007.00478 | VP9: 31159.74865 | VQ9: 31313.24495 | VR9: 31467.49739 | VS9: 31622.50969 | VT9: 31778.2856 | VU9: 31934.82888 | VV9: 32092.1433 | VW9: 32250.23268 | VX9: 32409.10082 | VY9: 32568.75156 | VZ9: 32729.18876 | WA9: 32890.41629 | WB9: 33052.43805 | WC9: 33215.25794 | WD9: 33378.8799 | WE9: 33543.30788 | WF9: =SUM(WF10:WF43) -> 33708.54585 | WG9: 33874.5978 | WH9: 34041.46774 | WI9: 34209.1597 | WJ9: 34377.67773 | WK9: 34547.0259 | WL9: 34717.20829 | WM9: 34888.22902 | WN9: 35060.09222 | WO9: 35232.80203 | WP9: 35406.36263 | WQ9: 35580.77821 | WR9: 35756.05298 | WS9: 35932.19117 | WT9: 36109.19704 | WU9: 36287.07486 | WV9: 36465.82892 | WW9: 1445037.169 | WX9: 25558.26777 | WY9: 25684.17057 | WZ9: 25810.69357 | XA9: 25937.83985 | XB9: 26065.61246 | XC9: 26194.01449 | XD9: 26323.04904 | XE9: 26452.71924 | XF9: 26583.0282 | XG9: 26713.97908 | XH9: 26845.57503 | XI9: 26977.81924 | XJ9: 27110.7149 | XK9: 27244.26522 | XL9: 27378.47343 | XM9: 27513.34275 | XN9: 27648.87646 | XO9: 27785.07782 | XP9: 27921.95013 | XQ9: 28059.49668 | XR9: 28197.7208 | XS9: 28336.62583 | XT9: 28476.21512 | XU9: 28616.49204 | XV9: 28757.45998 | XW9: 28899.12235 | XX9: 29041.48256 | XY9: 29184.54405 | XZ9: 29328.31028 | YA9: 29472.78471 | YB9: 29617.97084 | YC9: 29763.87218 | YD9: 29910.49224 | YE9: 30057.83456 | YF9: 30205.90271 | YG9: 30354.70026 | YH9: 30504.23081 | YI9: 30654.49795 | YJ9: 30805.50533 | YK9: 30957.25659 | YL9: 31109.75539 | YM9: 31263.00542 | YN9: 31417.01037 | YO9: 31571.77397 | YP9: 31727.29995 | YQ9: 31883.59207 | YR9: =SUM(YR10:YR43) -> 32040.6541 | YS9: 32198.48983 | YT9: 32357.10308 | YU9: 32516.49768 | YV9: 32676.67747 | YW9: 32837.64632 | YX9: 32999.40813 | YY9: 33161.96679 | YZ9: 33325.32623 | ZA9: 33489.4904 | ZB9: 33654.46326 | ZC9: 33820.24879 | ZD9: 33986.851 | ZE9: 34154.27391 | ZF9: 34322.52157 | ZG9: 34491.59803 | ZH9: 34661.50738 | ZI9: 34832.25372 | ZJ9: 35003.84118 | ZK9: 35176.27389 | ZL9: 35349.55603 | ZM9: 35523.69177 | ZN9: 35698.68533 | ZO9: 35874.54092 | ZP9: 36051.2628 | ZQ9: 36228.85523 | ZR9: 36407.32249 | ZS9: 36586.66891 | ZT9: 36766.89881 | ZU9: 36948.01653 | ZV9: 37130.02647 | ZW9: 37312.933 | ZX9: 37496.74055 | ZY9: 37681.45356 | ZZ9: 0 | AAA9: 0 | AAB9: 0 | AAC9: 0 | AAD9: 0 | AAE9: 0 | AAF9: 0 | AAG9: 0 | AAH9: 0 | AAI9: 0 | AAJ9: 0 | AAK9: 0 | AAL9: 0 | AAM9: 0 | AAN9: 0 | AAO9: 0 | AAP9: 0 | AAQ9: 0 | AAR9: 0 | AAS9: 0 | AAT9: 0 | AAU9: 0 | AAV9: 0 | AAW9: 0 | AAX9: 0 | AAY9: 0 | AAZ9: 0 | ABA9: 0 | ABB9: 0 | ABC9: 0 | ABD9: =SUM(ABD10:ABD43) -> 0 | ABE9: 0 | ABF9: 0 | ABG9: 0 | ABH9: 0 | ABI9: 0 | ABJ9: 0 | ABK9: 0 | ABL9: 0 | ABM9: 0 | ABN9: 0 | ABO9: 0 | ABP9: 0 | ABQ9: 0 | ABR9: 0 | ABS9: 0 | ABT9: 0 | ABU9: 0 | ABV9: 0 | ABW9: 0 | ABX9: 0 | ABY9: 0 | ABZ9: 0 | ACA9: 0 | ACB9: 0 | ACC9: 0 | ACD9: 0 | ACE9: 0 | ACF9: 0 | ACG9: 0 | ACH9: 0 | ACI9: 0 | ACJ9: 0 | ACK9: 0 | ACL9: 0 | ACM9: 0 | ACN9: 0 | ACO9: 0 | ACP9: 0 | ACQ9: 0 | ACR9: 0 | ACS9: 0 | ACT9: 0 | ACU9: 0 | ACV9: 0 | ACW9: 0 | ACX9: 0 | ACY9: 0 | ACZ9: 0 | ADA9: 0 | ADB9: 0
E10: 0
A12: 1 | E12: =IF(ISNUMBER(VLOOKUP(F12,DIN276_Verweis,2,0)),VLOOKUP(F12,DIN276_Verweis,2,0),"k.A.") -> 300 | F12: 300: Bauwerk - Baukonstruktionen | G12: Ja | H12: Nein | J12: =O12*M12 -> 0 | K12: =IF(G12="Ja",$J12*PINDbnb,0) -> 0 | L12: =IF(AND(G12="Ja",H12="Nein"),$J12*PINDbnb,0) -> 0 | P12: =IF(G12="Nein",$J12,0) -> 0 | Q12: =P12*M12 -> 0 | R12: =IF(G12="Nein",$Q12*PINDbnb,0) -> 0 | S12: =(BZBNB-MOD(BZBNB-1,U12)-1)/U12 -> 49 | T12: =IF(ISNUMBER(VLOOKUP(V12,ND_Verweis,2,0)),VLOOKUP(V12,ND_Verweis,2,0),"") ->  | U12: =IF(AND(IF(X12="Nein",W12,Y12)>0,ISNUMBER(IF(X12="Nein",W12,Y12))),IF(X12="Nein",W12,Y12),1) -> 1 | W12: =IF(ISNUMBER(VLOOKUP(V12,ND_Verweis,5,0)),VLOOKUP(V12,ND_Verweis,5,0),"") ->  | X12: Nein | Z12: =IF(ISNUMBER(VLOOKUP(AD12,NK_Verweis,4,0)),VLOOKUP(AD12,NK_Verweis,4,0),"") -> 300 | AA12: =SUM(AP12:AR12) -> 0 | AB12: =SUM(AS12:AU12) -> 0 | AC12: =SUM(AA12:AB12) -> 0 | AD12: 300-000: Baukonstruktion ohne Inspektion+Wartung [IW: 0,001, IN: 0,0035] | AE12: =IF(ISNUMBER(VLOOKUP(AD12,NK_Verweis,7,0)),VLOOKUP(AD12,NK_Verweis,7,0),0) -> 0.001 | AF12: =IF(ISNUMBER(VLOOKUP(AD12,NK_Verweis,8,0)),VLOOKUP(AD12,NK_Verweis,8,0),0) -> 0.0035 | AG12: Nein | AJ12: =IF(AND($E12>=300,$E12<400,$G12="Ja",$H12="Nein"),$K12,0) -> 0 | AK12: =IF(AND($E12>=400,$E12<500,$G12="Ja",$H12="Nein"),$K12,0) -> 0 | AL12: =IF(AND($E12>=500,$E12<600,$G12="Ja",$H12="Nein"),$K12,0) -> 0 | AM12: =IF(AND($E12>=300,$E12<400,$G12="Ja"),$K12,0) -> 0 | AN12: =IF(AND($E12>=400,$E12<500,$G12="Ja"),$K12,0) -> 0 | AO12: =IF(AND($E12>=500,$E12<600,$G12="Ja"),$K12,0) -> 0 | AP12: =IF(AND($E12>=300,$E12<400,$G12="Ja"),IF($AG12="Ja",$AH12,$AM12*$AE12),0) -> 0 | AQ12: =IF(AND($E12>=400,$E12<500,$G12="Ja"),IF($AG12="Ja",$AH12,$AN12*$AE12),0) -> 0 | AR12: =IF(AND($E12>=500,$E12<600,$G12="Ja"),IF($AG12="Ja",$AH12,$AO12*$AE12),0) -> 0 | AS12: =IF(AND($E12>=300,$E12<400,$G12="Ja"),IF($AG12="Ja",$AI12,$AM12*$AF12),0) -> 0 | AT12: =IF(AND($E12>=400,$E12<500,$G12="Ja"),IF($AG12="Ja",$AI12,$AN12*$AF12),0) -> 0 | AU12: =IF(AND($E12>=500,$E12<600,$G12="Ja"),IF($AG12="Ja",$AI12,$AO12*$AF12),0) -> 0 | AV12: =IF(AND(ISNUMBER(BGFabc),BGFabc>0),AW12/BGFabc,"") -> 0 | AW12: =AZ12+EC12+HF12+KJ12+NM12+QP12+TT12+WW12+ZZ12 -> 0 | AZ12: =SUM(OFFSET(BA12,,,,BZBNB-1)) -> 0 | BA12: =IF(AND(MOD(BA$8,$U12)=0,BA$8<BZBNB),$AM12*POWER(1+PSBNB,(BA$8))*POWER(1+KALBNB,-(BA$8)),"") -> 0 | BB12: 0 | BC12: 0 | BD12: 0 | BE12: 0 | BF12: 0 | BG12: 0 | BH12: 0 | BI12: 0 | BJ12: 0 | BK12: 0 | BL12: 0 | BM12: 0 | BN12: 0 | BO12: 0 | BP12: 0 | BQ12: 0 | BR12: 0 | BS12: 0 | BT12: 0 | BU12: 0 | BV12: 0 | BW12: 0 | BX12: 0 | BY12: 0 | BZ12: 0 | CA12: 0 | CB12: 0 | CC12: 0 | CD12: 0 | CE12: 0 | CF12: 0 | CG12: =IF(AND(MOD(CG$8,$U12)=0,CG$8<BZBNB),$AM12*POWER(1+PSBNB,(CG$8))*POWER(1+KALBNB,-(CG$8)),"") -> 0 | CH12: 0 | CI12: 0 | CJ12: 0 | CK12: 0 | CL12: 0 | CM12: 0 | CN12: 0 | CO12: 0 | CP12: 0 | CQ12: 0 | CR12: 0 | CS12: 0 | CT12: 0 | CU12: 0 | CV12: 0 | CW12: 0 | DM12: =IF(AND(MOD(DM$8,$U12)=0,DM$8<BZBNB),$AM12*POWER(1+PSBNB,(DM$8))*POWER(1+KALBNB,-(DM$8)),"") ->  | EC12: =SUM(OFFSET(ED12,,,,BZBNB-1)) -> 0 | ED12: =IF(AND(MOD(ED$8,$U12)=0,ED$8<BZBNB),$AN12*POWER(1+PSBNB,(ED$8))*POWER(1+KALBNB,-(ED$8)),"") -> 0 | EE12: 0 | EF12: 0 | EG12: 0 | EH12: 0 | EI12: 0 | EJ12: 0 | EK12: 0 | EL12: 0 | EM12: 0 | EN12: 0 | EO12: 0 | EP12: 0 | EQ12: 0 | ER12: 0 | ES12: 0 | ET12: 0 | EU12: 0 | EV12: 0 | EW12: 0 | EX12: 0 | EY12: 0 | EZ12: 0 | FA12: 0 | FB12: 0 | FC12: 0 | FD12: 0 | FE12: 0 | FF12: 0 | FG12: 0 | FH12: 0 | FI12: 0 | FJ12: =IF(AND(MOD(FJ$8,$U12)=0,FJ$8<BZBNB),$AN12*POWER(1+PSBNB,(FJ$8))*POWER(1+KALBNB,-(FJ$8)),"") -> 0 | FK12: 0 | FL12: 0 | FM12: 0 | FN12: 0 | FO12: 0 | FP12: 0 | FQ12: 0 | FR12: 0 | FS12: 0 | FT12: 0 | FU12: 0 | FV12: 0 | FW12: 0 | FX12: 0 | FY12: 0 | FZ12: 0 | GP12: =IF(AND(MOD(GP$8,$U12)=0,GP$8<BZBNB),$AN12*POWER(1+PSBNB,(GP$8))*POWER(1+KALBNB,-(GP$8)),"") ->  | HF12: =SUM(OFFSET(HG12,,,,BZBNB-1)) -> 0 | HG12: =IF(AND(MOD(HG$8,$U12)=0,HG$8<BZBNB),$AO12*POWER(1+PSBNB,HG$8)*POWER(1+KALBNB,-HG$8),"") -> 0 | HH12: 0 | HI12: 0 | HJ12: 0 | HK12: 0 | HL12: 0 | HM12: 0 | HN12: 0 | HO12: 0 | HP12: 0 | HQ12: 0 | HR12: 0 | HS12: 0 | HT12: 0 | HU12: 0 | HV12: 0 | HW12: 0 | HX12: 0 | HY12: 0 | HZ12: 0 | IA12: 0 | IB12: 0 | IC12: 0 | ID12: 0 | IE12: 0 | IF12: 0 | IG12: 0 | IH12: 0 | II12: 0 | IJ12: 0 | IK12: 0 | IL12: 0 | IM12: =IF(AND(MOD(IM$8,$U12)=0,IM$8<BZBNB),$AO12*POWER(1+PSBNB,IM$8)*POWER(1+KALBNB,-IM$8),"") -> 0 | IN12: 0 | IO12: 0 | IP12: 0 | IQ12: 0 | IR12: 0 | IS12: 0 | IT12: 0 | IU12: 0 | IV12: 0 | IW12: 0 | IX12: 0 | IY12: 0 | IZ12: 0 | JA12: 0 | JB12: 0 | JC12: 0 | JS12: =IF(AND(MOD(JS$8,$U12)=0,JS$8<BZBNB),$AO12*POWER(1+PSBNB,JS$8)*POWER(1+KALBNB,-JS$8),"") ->  | KJ12: =SUM(OFFSET(KK12,,,,BZBNB)) -> 0 | KK12: =IF(AND(ISNUMBER($AP12),$AP12<>0),$AP12*POWER(1+PSBNB,KK$8)*POWER(1+KALBNB,-KK$8),"") ->  | KL12: =IF(AND(ISNUMBER($AP12),$AP12<>0),$AP12*POWER(1+PSBNB,KL$8)*POWER(1+KALBNB,-KL$8),"") ->  | LQ12: =IF(AND(ISNUMBER($AP12),$AP12<>0),$AP12*POWER(1+PSBNB,LQ$8)*POWER(1+KALBNB,-LQ$8),"") ->  | MW12: =IF(AND(ISNUMBER($AP12),$AP12<>0),$AP12*POWER(1+PSBNB,MW$8)*POWER(1+KALBNB,-MW$8),"") ->  | NM12: =SUM(OFFSET(NN12,,,,BZBNB)) -> 0 | NN12: =IF(AND(ISNUMBER($AQ12),$AQ12<>0),$AQ12*POWER(1+PSBNB,NN$8)*POWER(1+KALBNB,-NN$8),"") ->  | OT12: =IF(AND(ISNUMBER($AQ12),$AQ12<>0),$AQ12*POWER(1+PSBNB,OT$8)*POWER(1+KALBNB,-OT$8),"") ->  | PZ12: =IF(AND(ISNUMBER($AQ12),$AQ12<>0),$AQ12*POWER(1+PSBNB,PZ$8)*POWER(1+KALBNB,-PZ$8),"") ->  | QP12: =SUM(OFFSET(QQ12,,,,BZBNB)) -> 0 | QQ12: =IF(AND(ISNUMBER($AR12),$AR12<>0),$AR12*POWER(1+PSBNB,QQ$8)*POWER(1+KALBNB,-QQ$8),"") ->  | RW12: =IF(AND(ISNUMBER($AR12),$AR12<>0),$AR12*POWER(1+PSBNB,RW$8)*POWER(1+KALBNB,-RW$8),"") ->  | TC12: =IF(AND(ISNUMBER($AR12),$AR12<>0),$AR12*POWER(1+PSBNB,TC$8)*POWER(1+KALBNB,-TC$8),"") ->  | TT12: =SUM(OFFSET(TU12,,,,BZBNB)) -> 0 | TU12: =IF(AND(ISNUMBER($AS12),$AS12<>0),$AS12*POWER(1+PSBNB,TU$8)*POWER(1+KALBNB,-TU$8),"") ->  | VA12: =IF(AND(ISNUMBER($AS12),$AS12<>0),$AS12*POWER(1+PSBNB,VA$8)*POWER(1+KALBNB,-VA$8),"") ->  | WG12: =IF(AND(ISNUMBER($AS12),$AS12<>0),$AS12*POWER(1+PSBNB,WG$8)*POWER(1+KALBNB,-WG$8),"") ->  | WW12: =SUM(OFFSET(WX12,,,,BZBNB)) -> 0 | WX12: =IF(AND(ISNUMBER($AT12),$AT12<>0),$AT12*POWER(1+PSBNB,WX$8)*POWER(1+KALBNB,-WX$8),"") ->  | YD12: =IF(AND(ISNUMBER($AT12),$AT12<>0),$AT12*POWER(1+PSBNB,YD$8)*POWER(1+KALBNB,-YD$8),"") ->  | ZJ12: =IF(AND(ISNUMBER($AT12),$AT12<>0),$AT12*POWER(1+PSBNB,ZJ$8)*POWER(1+KALBNB,-ZJ$8),"") ->  | ZZ12: =SUM(OFFSET(AAA12,,,,BZBNB)) -> 0 | AAA12: =IF(AND(ISNUMBER($AU12),$AU12<>0),$AU12*POWER(1+PSBNB,AAA$8)*POWER(1+KALBNB,-AAA$8),"") ->  | ABG12: =IF(AND(ISNUMBER($AU12),$AU12<>0),$AU12*POWER(1+PSBNB,ABG$8)*POWER(1+KALBNB,-ABG$8),"") ->  | ACM12: =IF(AND(ISNUMBER($AU12),$AU12<>0),$AU12*POWER(1+PSBNB,ACM$8)*POWER(1+KALBNB,-ACM$8),"") -> 
A13: 2 | E13: 310 | F13: 310: Baugrube | G13: Ja | H13: Nein | J13: 87000 | K13: 85446.42857 | L13: 85446.42857 | M13: 1 | N13: pschl. | O13: 87000 | P13: 0 | Q13: 0 | R13: 0 | S13: 0 | U13: 50 | X13: Ja | Y13: 50 | Z13: 300 | AA13: 85.44642857 | AB13: 299.0625 | AC13: 384.5089286 | AD13: 300-000: Baukonstruktion ohne Inspektion+Wartung [IW: 0,001, IN: 0,0035] | AE13: 0.001 | AF13: 0.0035 | AG13: Nein | AJ13: 85446.42857 | AK13: 0 | AL13: 0 | AM13: 85446.42857 | AN13: 0 | AO13: 0 | AP13: 85.44642857 | AQ13: 0 | AR13: 0 | AS13: 299.0625 | AT13: 0 | AU13: 0 | AV13: 2.730852061 | AW13: 21846.81649 | AZ13: 0 | EC13: 0 | ED13: =IF(AND(MOD(ED$8,$U13)=0,ED$8<BZBNB),$AN13*POWER(1+PSBNB,(ED$8))*POWER(1+KALBNB,-(ED$8)),"") ->  | FJ13: =IF(AND(MOD(FJ$8,$U13)=0,FJ$8<BZBNB),$AN13*POWER(1+PSBNB,(FJ$8))*POWER(1+KALBNB,-(FJ$8)),"") ->  | GP13: =IF(AND(MOD(GP$8,$U13)=0,GP$8<BZBNB),$AN13*POWER(1+PSBNB,(GP$8))*POWER(1+KALBNB,-(GP$8)),"") ->  | HF13: 0 | KJ13: =SUM(OFFSET(KK13,,,,BZBNB)) -> 4854.848108 | KK13: 85.86734694 | KL13: 86.2903388 | KM13: 86.71541436 | KN13: 87.14258389 | KO13: 87.5718577 | KP13: 88.00324616 | KQ13: 88.43675969 | KR13: 88.87240875 | KS13: 89.31020387 | KT13: 89.75015561 | KU13: 90.1922746 | KV13: 90.63657152 | KW13: 91.0830571 | KX13: 91.53174211 | KY13: 91.98263739 | KZ13: 92.43575383 | LA13: 92.89110237 | LB13: 93.34869401 | LC13: 93.80853979 | LD13: 94.27065082 | LE13: 94.73503827 | LF13: 95.20171333 | LG13: 95.67068729 | LH13: 96.14197146 | LI13: 96.61557723 | LJ13: 97.09151604 | LK13: 97.56979937 | LL13: 98.05043877 | LM13: 98.53344586 | LN13: 99.01883229 | LO13: 99.50660979 | LP13: 99.99679014 | LQ13: 100.4893852 | LR13: 100.9844068 | LS13: 101.4818669 | LT13: 101.9817776 | LU13: 102.4841509 | LV13: 102.9889989 | LW13: 103.4963339 | LX13: 104.006168 | LY13: 104.5185137 | LZ13: 105.0333832 | MA13: 105.550789 | MB13: 106.0707437 | MC13: 106.5932596 | MD13: 107.1183496 | ME13: 107.6460262 | MF13: 108.1763022 | MG13: 108.7091904 | MH13: 109.2447036 | MI13: 109.7828549 | MJ13: 110.3236571 | MK13: 110.8671234 | ML13: 111.4132669 | MM13: 111.9621007 | MN13: 112.5136381 | MO13: 113.0678925 | MP13: 113.6248772 | MQ13: 114.1846057 | MR13: 114.7470914 | MS13: 115.312348 | MT13: 115.8803891 | MU13: 116.4512285 | MV13: 117.0248799 | MW13: 117.6013571 | MX13: 118.1806741 | MY13: 118.7628449 | MZ13: 119.3478836 | NA13: 119.9358042 | NB13: 120.526621 | NC13: 121.1203482 | ND13: 121.7170001 | NE13: 122.3165912 | NF13: 122.919136 | NG13: 123.524649 | NH13: 124.1331448 | NI13: 124.7446381 | NJ13: 125.3591438 | NK13: 125.9766765 | NL13: 126.5972512 | NM13: 0 | QP13: 0 | TT13: 16991.96838 | TU13: 300.5357143 | TV13: 302.0161858 | TW13: 303.5039502 | TX13: 304.9990436 | TY13: 306.5015019 | TZ13: 308.0113616 | UA13: 309.5286589 | UB13: 311.0534306 | UC13: 312.5857135 | UD13: 314.1255446 | UE13: 315.6729611 | UF13: 317.2280003 | UG13: 318.7906998 | UH13: 320.3610974 | UI13: 321.9392309 | UJ13: 323.5251384 | UK13: 325.1188583 | UL13: 326.720429 | UM13: 328.3298893 | UN13: 329.9472779 | UO13: 331.5726339 | UP13: 333.2059967 | UQ13: 334.8474055 | UR13: 336.4969001 | US13: 338.1545203 | UT13: 339.8203061 | UU13: 341.4942978 | UV13: 343.1765357 | UW13: 344.8670605 | UX13: 346.565913 | UY13: 348.2731343 | UZ13: 349.9887655 | VA13: 351.7128481 | VB13: 353.4454237 | VC13: 355.1865341 | VD13: 356.9362215 | VE13: 358.694528 | VF13: 360.4614961 | VG13: 362.2371685 | VH13: 364.0215881 | VI13: 365.8147979 | VJ13: 367.6168412 | VK13: 369.4277616 | VL13: 371.2476028 | VM13: 373.0764087 | VN13: 374.9142235 | VO13: 376.7610916 | VP13: 378.6170576 | VQ13: 380.4821663 | VR13: 382.3564626 | VS13: 384.239992 | VT13: 386.1327999 | VU13: 388.0349319 | VV13: 389.946434 | VW13: 391.8673524 | VX13: 393.7977334 | VY13: 395.7376238 | VZ13: 397.6870702 | WA13: 399.6461198 | WB13: 401.6148199 | WC13: 403.593218 | WD13: 405.5813619 | WE13: 407.5792997 | WF13: 409.5870795 | WG13: 411.6047498 | WH13: 413.6323594 | WI13: 415.6699573 | WJ13: 417.7175925 | WK13: 419.7753147 | WL13: 421.8431733 | WM13: 423.9212185 | WN13: 426.0095004 | WO13: 428.1080694 | WP13: 430.2169761 | WQ13: 432.3362716 | WR13: 434.4660069 | WS13: 436.6062335 | WT13: 438.7570031 | WU13: 440.9183677 | WV13: 443.0903794 | WW13: 0 | ZZ13: 0
A14: 3 | E14: 320 | F14: 320: Gründung | G14: Ja | H14: Nein | J14: 293000 | K14: 287767.8571 | L14: 287767.8571 | M14: 1 | N14: pschl. | O14: 293000 | P14: 0 | Q14: 0 | R14: 0 | S14: 0 | T14: 322 | U14: 50 | V14: 322-112: Fundamentplatten [ND: 50] | W14: 50 | X14: Nein | Z14: 300 | AA14: 287.7678571 | AB14: 1007.1875 | AC14: 1294.955357 | AD14: 300-000: Baukonstruktion ohne Inspektion+Wartung [IW: 0,001, IN: 0,0035] | AE14: 0.001 | AF14: 0.0035 | AG14: Nein | AJ14: 287767.8571 | AK14: 0 | AL14: 0 | AM14: 287767.8571 | AN14: 0 | AO14: 0 | AP14: 287.7678571 | AQ14: 0 | AR14: 0 | AS14: 1007.1875 | AT14: 0 | AU14: 0 | AV14: 9.197007515 | AW14: 73576.06012 | AZ14: 0 | EC14: 0 | HF14: 0 | KJ14: =SUM(OFFSET(KK14,,,,BZBNB)) -> 16350.23558 | KK14: 289.1854328 | KL14: 290.6099916 | KM14: 292.0415679 | KN14: 293.4801963 | KO14: 294.9259116 | KP14: 296.3787486 | KQ14: 297.8387424 | KR14: 299.3059283 | KS14: 300.7803418 | KT14: 302.2620183 | KU14: 303.7509938 | KV14: 305.2473041 | KW14: 306.7509854 | KX14: 308.262074 | KY14: 309.7806064 | KZ14: 311.3066192 | LA14: 312.8401494 | LB14: 314.3812338 | LC14: 315.9299099 | LD14: 317.4862148 | LE14: 319.0501863 | LF14: 320.6218621 | LG14: 322.2012802 | LH14: 323.7884786 | LI14: 325.3834957 | LJ14: 326.9863701 | LK14: 328.5971404 | LL14: 330.2158455 | LM14: 331.8425246 | LN14: 333.4772168 | LO14: 335.1199617 | LP14: 336.770799 | LQ14: 338.4297684 | LR14: 340.0969101 | LS14: 341.7722644 | LT14: 343.4558716 | LU14: 345.1477724 | LV14: 346.8480078 | LW14: 348.5566186 | LX14: 350.2736463 | LY14: 351.9991323 | LZ14: 353.7331181 | MA14: 355.4756458 | MB14: 357.2267574 | MC14: 358.9864951 | MD14: 360.7549015 | ME14: 362.5320192 | MF14: 364.3178912 | MG14: 366.1125606 | MH14: 367.9160708 | MI14: 369.7284652 | MJ14: 371.5497877 | MK14: 373.3800822 | ML14: 375.219393 | MM14: 377.0677644 | MN14: 378.925241 | MO14: 380.7918678 | MP14: 382.6676899 | MQ14: 384.5527524 | MR14: 386.4471009 | MS14: 388.3507812 | MT14: 390.2638392 | MU14: 392.1863212 | MV14: 394.1182735 | MW14: 396.0597429 | MX14: 398.0107761 | MY14: 399.9714203 | MZ14: 401.9417229 | NA14: 403.9217313 | NB14: 405.9114936 | NC14: 407.9110576 | ND14: 409.9204716 | NE14: 411.9397843 | NF14: 413.9690443 | NG14: 416.0083007 | NH14: 418.0576027 | NI14: 420.1169997 | NJ14: 422.1865416 | NK14: 424.2662783 | NL14: 426.3562599 | NM14: 0 | QP14: 0 | TT14: 57225.82454 | TU14: 1012.149015 | TV14: 1017.134971 | TW14: 1022.145488 | TX14: 1027.180687 | TY14: 1032.24069 | TZ14: 1037.32562 | UA14: 1042.435598 | UB14: 1047.570749 | UC14: 1052.731196 | UD14: 1057.917064 | UE14: 1063.128478 | UF14: 1068.365564 | UG14: 1073.628449 | UH14: 1078.917259 | UI14: 1084.232122 | UJ14: 1089.573167 | UK14: 1094.940523 | UL14: 1100.334318 | UM14: 1105.754685 | UN14: 1111.201752 | UO14: 1116.675652 | UP14: 1122.176517 | UQ14: 1127.704481 | UR14: 1133.259675 | US14: 1138.842235 | UT14: 1144.452295 | UU14: 1150.089991 | UV14: 1155.755459 | UW14: 1161.448836 | UX14: 1167.170259 | UY14: 1172.919866 | UZ14: 1178.697796 | VA14: 1184.504189 | VB14: 1190.339185 | VC14: 1196.202925 | VD14: 1202.095551 | VE14: 1208.017203 | VF14: 1213.968027 | VG14: 1219.948165 | VH14: 1225.957762 | VI14: 1231.996963 | VJ14: 1238.065913 | VK14: 1244.16476 | VL14: 1250.293651 | VM14: 1256.452733 | VN14: 1262.642155 | VO14: 1268.862067 | VP14: 1275.112619 | VQ14: 1281.393962 | VR14: 1287.706248 | VS14: 1294.049628 | VT14: 1300.424257 | VU14: 1306.830288 | VV14: 1313.267875 | VW14: 1319.737175 | VX14: 1326.238344 | VY14: 1332.771537 | VZ14: 1339.336915 | WA14: 1345.934633 | WB14: 1352.564853 | WC14: 1359.227734 | WD14: 1365.923437 | WE14: 1372.652124 | WF14: 1379.413957 | WG14: 1386.2091 | WH14: 1393.037716 | WI14: 1399.899971 | WJ14: 1406.79603 | WK14: 1413.72606 | WL14: 1420.690227 | WM14: 1427.688701 | WN14: 1434.721651 | WO14: 1441.789245 | WP14: 1448.891655 | WQ14: 1456.029052 | WR14: 1463.201609 | WS14: 1470.409499 | WT14: 1477.652896 | WU14: 1484.931974 | WV14: 1492.24691 | WW14: 0 | ZZ14: 0
A15: 4 | E15: 330 | F15: 330: Außenwände | G15: Ja | H15: Nein | J15: 2175000 | K15: 2136160.714 | L15: 2136160.714 | M15: 1 | N15: pschl. | O15: 2175000 | P15: 0 | Q15: 0 | R15: 0 | S15: 0 | T15: 331 | U15: 50 | V15: 331-211: Betonwand [ND: 50] | W15: 50 | X15: Nein | Z15: 300 | AA15: 2136.160714 | AB15: 7476.5625 | AC15: 9612.723214 | AD15: 300-000: Baukonstruktion ohne Inspektion+Wartung [IW: 0,001, IN: 0,0035] | AE15: 0.001 | AF15: 0.0035 | AG15: Nein | AJ15: 2136160.714 | AK15: 0 | AL15: 0 | AM15: 2136160.714 | AN15: 0 | AO15: 0 | AP15: 2136.160714 | AQ15: 0 | AR15: 0 | AS15: 7476.5625 | AT15: 0 | AU15: 0 | AV15: 68.27130152 | AW15: 546170.4122 | AZ15: 0 | EC15: 0 | HF15: 0 | KJ15: =SUM(OFFSET(KK15,,,,BZBNB)) -> 121371.2027 | KK15: 2146.683673 | KL15: 2157.25847 | KM15: 2167.885359 | KN15: 2178.564597 | KO15: 2189.296442 | KP15: 2200.081154 | KQ15: 2210.918992 | KR15: 2221.810219 | KS15: 2232.755097 | KT15: 2243.75389 | KU15: 2254.806865 | KV15: 2265.914288 | KW15: 2277.076427 | KX15: 2288.293553 | KY15: 2299.565935 | KZ15: 2310.893846 | LA15: 2322.277559 | LB15: 2333.71735 | LC15: 2345.213495 | LD15: 2356.766271 | LE15: 2368.375957 | LF15: 2380.042833 | LG15: 2391.767182 | LH15: 2403.549287 | LI15: 2415.389431 | LJ15: 2427.287901 | LK15: 2439.244984 | LL15: 2451.260969 | LM15: 2463.336147 | LN15: 2475.470807 | LO15: 2487.665245 | LP15: 2499.919753 | LQ15: 2512.234629 | LR15: 2524.610169 | LS15: 2537.046672 | LT15: 2549.544439 | LU15: 2562.103771 | LV15: 2574.724972 | LW15: 2587.408347 | LX15: 2600.1542 | LY15: 2612.962842 | LZ15: 2625.83458 | MA15: 2638.769726 | MB15: 2651.768591 | MC15: 2664.831491 | MD15: 2677.95874 | ME15: 2691.150654 | MF15: 2704.407554 | MG15: 2717.729759 | MH15: 2731.11759 | MI15: 2744.571372 | MJ15: 2758.091428 | MK15: 2771.678085 | ML15: 2785.331671 | MM15: 2799.052517 | MN15: 2812.840953 | MO15: 2826.697313 | MP15: 2840.62193 | MQ15: 2854.615141 | MR15: 2868.677285 | MS15: 2882.8087 | MT15: 2897.009728 | MU15: 2911.280712 | MV15: 2925.621996 | MW15: 2940.033927 | MX15: 2954.516853 | MY15: 2969.071123 | MZ15: 2983.697089 | NA15: 2998.395105 | NB15: 3013.165524 | NC15: 3028.008704 | ND15: 3042.925003 | NE15: 3057.914781 | NF15: 3072.978401 | NG15: 3088.116225 | NH15: 3103.328621 | NI15: 3118.615954 | NJ15: 3133.978594 | NK15: 3149.416912 | NL15: 3164.931281 | NM15: 0 | QP15: 0 | TT15: 424799.2095 | TU15: 7513.392857 | TV15: 7550.404645 | TW15: 7587.598756 | TX15: 7624.97609 | TY15: 7662.537549 | TZ15: 7700.284039 | UA15: 7738.216473 | UB15: 7776.335766 | UC15: 7814.642838 | UD15: 7853.138616 | UE15: 7891.824028 | UF15: 7930.700008 | UG15: 7969.767496 | UH15: 8009.027434 | UI15: 8048.480771 | UJ15: 8088.12846 | UK15: 8127.971457 | UL15: 8168.010726 | UM15: 8208.247232 | UN15: 8248.681947 | UO15: 8289.315848 | UP15: 8330.149916 | UQ15: 8371.185138 | UR15: 8412.422503 | US15: 8453.863008 | UT15: 8495.507653 | UU15: 8537.357445 | UV15: 8579.413393 | UW15: 8621.676513 | UX15: 8664.147826 | UY15: 8706.828357 | UZ15: 8749.719137 | VA15: 8792.821202 | VB15: 8836.135592 | VC15: 8879.663353 | VD15: 8923.405537 | VE15: 8967.3632 | VF15: 9011.537403 | VG15: 9055.929213 | VH15: 9100.539702 | VI15: 9145.369946 | VJ15: 9190.42103 | VK15: 9235.69404 | VL15: 9281.19007 | VM15: 9326.910218 | VN15: 9372.855588 | VO15: 9419.027291 | VP15: 9465.42644 | VQ15: 9512.054156 | VR15: 9558.911566 | VS15: 9605.9998 | VT15: 9653.319996 | VU15: 9700.873297 | VV15: 9748.66085 | VW15: 9796.68381 | VX15: 9844.943336 | VY15: 9893.440594 | VZ15: 9942.176754 | WA15: 9991.152995 | WB15: 10040.3705 | WC15: 10089.83045 | WD15: 10139.53405 | WE15: 10189.48249 | WF15: 10239.67699 | WG15: 10290.11875 | WH15: 10340.80899 | WI15: 10391.74893 | WJ15: 10442.93981 | WK15: 10494.38287 | WL15: 10546.07933 | WM15: 10598.03046 | WN15: 10650.23751 | WO15: 10702.70173 | WP15: 10755.4244 | WQ15: 10808.40679 | WR15: 10861.65017 | WS15: 10915.15584 | WT15: 10968.92508 | WU15: 11022.95919 | WV15: 11077.25948 | WW15: 0 | ZZ15: 0
A16: 5 | E16: 340 | F16: 340: Innenwände | G16: Ja | H16: Nein | J16: 1954000 | K16: 1919107.143 | L16: 1919107.143 | M16: 1 | N16: pschl. | O16: 1954000 | P16: 0 | Q16: 0 | R16: 0 | S16: 0 | T16: 341 | U16: 50 | V16: 341-211: Betonwand [ND: 50] | W16: 50 | X16: Nein | Z16: 300 | AA16: 1919.107143 | AB16: 6716.875 | AC16: 8635.982143 | AD16: 300-000: Baukonstruktion ohne Inspektion+Wartung [IW: 0,001, IN: 0,0035] | AE16: 0.001 | AF16: 0.0035 | AG16: Nein | AJ16: 1919107.143 | AK16: 0 | AL16: 0 | AM16: 1919107.143 | AN16: 0 | AO16: 0 | AP16: 1919.107143 | AQ16: 0 | AR16: 0 | AS16: 6716.875 | AT16: 0 | AU16: 0 | AV16: 61.3343095 | AW16: 490674.476 | AZ16: 0 | EC16: 0 | HF16: 0 | KJ16: 109038.7725 | KK16: 1928.560873 | KL16: 1938.061172 | KM16: 1947.608272 | KN16: 1957.202401 | KO16: 1966.843792 | KP16: 1976.532678 | KQ16: 1986.269292 | KR16: 1996.05387 | KS16: 2005.886648 | KT16: 2015.767863 | KU16: 2025.697754 | KV16: 2035.67656 | KW16: 2045.704524 | KX16: 2055.781886 | KY16: 2065.90889 | KZ16: 2076.085781 | LA16: 2086.312805 | LB16: 2096.590208 | LC16: 2106.918238 | LD16: 2117.297146 | LE16: 2127.727181 | LF16: 2138.208596 | LG16: 2148.741643 | LH16: 2159.326577 | LI16: 2169.963654 | LJ16: 2180.65313 | LK16: 2191.395264 | LL16: 2202.190315 | LM16: 2213.038543 | LN16: 2223.94021 | LO16: 2234.895581 | LP16: 2245.904919 | LQ16: 2256.96849 | LR16: 2268.086561 | LS16: 2279.259401 | LT16: 2290.48728 | LU16: 2301.770469 | LV16: 2313.109239 | LW16: 2324.503866 | LX16: 2335.954624 | LY16: 2347.46179 | LZ16: 2359.025641 | MA16: 2370.646457 | MB16: 2382.324518 | MC16: 2394.060107 | MD16: 2405.853507 | ME16: 2417.705002 | MF16: 2429.614879 | MG16: 2441.583425 | MH16: 2453.610929 | MI16: 2465.697683 | MJ16: 2477.843977 | MK16: 2490.050105 | ML16: 2502.316361 | MM16: 2514.643043 | MN16: 2527.030447 | MO16: 2539.478873 | MP16: 2551.988621 | MQ16: 2564.559994 | MR16: 2577.193294 | MS16: 2589.888828 | MT16: 2602.646901 | MU16: 2615.467821 | MV16: 2628.351899 | MW16: 2641.299446 | MX16: 2654.310773 | MY16: 2667.386195 | MZ16: 2680.526029 | NA16: 2693.730591 | NB16: 2707.000199 | NC16: 2720.335176 | ND16: 2733.735842 | NE16: 2747.202521 | NF16: 2760.735538 | NG16: 2774.33522 | NH16: 2788.001896 | NI16: 2801.735896 | NJ16: 2815.537551 | NK16: 2829.407194 | NL16: 2843.34516 | NM16: 0 | QP16: 0 | TT16: 381635.7036 | TU16: 6749.963054 | TV16: 6783.214104 | TW16: 6816.628952 | TX16: 6850.208404 | TY16: 6883.953273 | TZ16: 6917.864373 | UA16: 6951.942523 | UB16: 6986.188545 | UC16: 7020.603267 | UD16: 7055.18752 | UE16: 7089.942138 | UF16: 7124.867961 | UG16: 7159.965833 | UH16: 7195.236601 | UI16: 7230.681116 | UJ16: 7266.300235 | UK16: 7302.094817 | UL16: 7338.065728 | UM16: 7374.213835 | UN16: 7410.540011 | UO16: 7447.045134 | UP16: 7483.730086 | UQ16: 7520.595751 | UR16: 7557.643021 | US16: 7594.87279 | UT16: 7632.285956 | UU16: 7669.883424 | UV16: 7707.666101 | UW16: 7745.634899 | UX16: 7783.790736 | UY16: 7822.134533 | UZ16: 7860.667215 | VA16: 7899.389714 | VB16: 7938.302964 | VC16: 7977.407905 | VD16: 8016.70548 | VE16: 8056.19664 | VF16: 8095.882338 | VG16: 8135.763532 | VH16: 8175.841185 | VI16: 8216.116265 | VJ16: 8256.589744 | VK16: 8297.2626 | VL16: 8338.135814 | VM16: 8379.210375 | VN16: 8420.487273 | VO16: 8461.967506 | VP16: 8503.652075 | VQ16: 8545.541987 | VR16: 8587.638253 | VS16: 8629.94189 | VT16: 8672.453919 | VU16: 8715.175366 | VV16: 8758.107265 | VW16: 8801.25065 | VX16: 8844.606565 | VY16: 8888.176055 | VZ16: 8931.960174 | WA16: 8975.959978 | WB16: 9020.176529 | WC16: 9064.610896 | WD16: 9109.264152 | WE16: 9154.137375 | WF16: 9199.231647 | WG16: 9244.548059 | WH16: 9290.087705 | WI16: 9335.851684 | WJ16: 9381.841101 | WK16: 9428.057067 | WL16: 9474.500698 | WM16: 9521.173115 | WN16: 9568.075446 | WO16: 9615.208822 | WP16: 9662.574383 | WQ16: 9710.173272 | WR16: 9758.006637 | WS16: 9806.075636 | WT16: 9854.381427 | WU16: 9902.925178 | WV16: 9951.70806 | WW16: 0 | ZZ16: 0
A17: 6 | E17: 350 | F17: 350: Decken | G17: Ja | H17: Nein | J17: 1831000 | K17: 1798303.571 | L17: 1798303.571 | M17: 1 | N17: pschl. | O17: 1831000 | P17: 0 | Q17: 0 | R17: 0 | S17: 0 | T17: 351 | U17: 50 | V17: 351-111: Betondecken: Vollbetondecke, STB-Hohlraumdecke, Porenbetondecke [ND: 50] | W17: 50 | X17: Nein | Z17: 300 | AA17: 1798.303571 | AB17: 6294.0625 | AC17: 8092.366071 | AD17: 300-000: Baukonstruktion ohne Inspektion+Wartung [IW: 0,001, IN: 0,0035] | AE17: 0.001 | AF17: 0.0035 | AG17: Nein | AJ17: 1798303.571 | AK17: 0 | AL17: 0 | AM17: 1798303.571 | AN17: 0 | AO17: 0 | AP17: 1798.303571 | AQ17: 0 | AR17: 0 | AS17: 6294.0625 | AT17: 0 | AU17: 0 | AV17: 57.47344969 | AW17: 459787.5976 | AZ17: 0 | EC17: 0 | HF17: 0 | KJ17: 102175.0217 | KK17: 1807.16221 | KL17: 1816.064487 | KM17: 1825.010617 | KN17: 1834.000817 | KO17: 1843.035304 | KP17: 1852.114296 | KQ17: 1861.238011 | KR17: 1870.406671 | KS17: 1879.620497 | KT17: 1888.879712 | KU17: 1898.184538 | KV17: 1907.535201 | KW17: 1916.931926 | KX17: 1926.37494 | KY17: 1935.864472 | KZ17: 1945.40075 | LA17: 1954.984005 | LB17: 1964.614468 | LC17: 1974.292372 | LD17: 1984.01795 | LE17: 1993.791438 | LF17: 2003.61307 | LG17: 2013.483085 | LH17: 2023.401721 | LI17: 2033.369217 | LJ17: 2043.385815 | LK17: 2053.451754 | LL17: 2063.56728 | LM17: 2073.732636 | LN17: 2083.948068 | LO17: 2094.213822 | LP17: 2104.530146 | LQ17: 2114.89729 | LR17: 2125.315503 | LS17: 2135.785038 | LT17: 2146.306146 | LU17: 2156.879083 | LV17: 2167.504103 | LW17: 2178.181463 | LX17: 2188.911421 | LY17: 2199.694236 | LZ17: 2210.530168 | MA17: 2221.419479 | MB17: 2232.362433 | MC17: 2243.359292 | MD17: 2254.410323 | ME17: 2265.515792 | MF17: 2276.675969 | MG17: 2287.891121 | MH17: 2299.161521 | MI17: 2310.48744 | MJ17: 2321.869151 | MK17: 2333.30693 | ML17: 2344.801053 | MM17: 2356.351797 | MN17: 2367.959441 | MO17: 2379.624266 | MP17: 2391.346553 | MQ17: 2403.126586 | MR17: 2414.964648 | MS17: 2426.861025 | MT17: 2438.816006 | MU17: 2450.829878 | MV17: 2462.902931 | MW17: 2475.035458 | MX17: 2487.227751 | MY17: 2499.480104 | MZ17: 2511.792814 | NA17: 2524.166178 | NB17: 2536.600494 | NC17: 2549.096063 | ND17: 2561.653186 | NE17: 2574.272168 | NF17: 2586.953311 | NG17: 2599.696924 | NH17: 2612.503312 | NI17: 2625.372787 | NJ17: 2638.305658 | NK17: 2651.302237 | NL17: 2664.362839 | NM17: 0 | QP17: 0 | TT17: 357612.5759 | TU17: 6325.067734 | TV17: 6356.225703 | TW17: 6387.53716 | TX17: 6419.00286 | TY17: 6450.623564 | TZ17: 6482.400035 | UA17: 6514.33304 | UB17: 6546.42335 | UC17: 6578.671741 | UD17: 6611.078991 | UE17: 6643.645883 | UF17: 6676.373202 | UG17: 6709.26174 | UH17: 6742.312291 | UI17: 6775.525652 | UJ17: 6808.902625 | UK17: 6842.444018 | UL17: 6876.150638 | UM17: 6910.023302 | UN17: 6944.062825 | UO17: 6978.270031 | UP17: 7012.645746 | UQ17: 7047.190799 | UR17: 7081.906024 | US17: 7116.792261 | UT17: 7151.850351 | UU17: 7187.081141 | UV17: 7222.485481 | UW17: 7258.064228 | UX17: 7293.818238 | UY17: 7329.748378 | UZ17: 7365.855512 | VA17: 7402.140515 | VB17: 7438.604261 | VC17: 7475.247632 | VD17: 7512.071512 | VE17: 7549.07679 | VF17: 7586.264361 | VG17: 7623.635121 | VH17: 7661.189974 | VI17: 7698.929826 | VJ17: 7736.855589 | VK17: 7774.968178 | VL17: 7813.268514 | VM17: 7851.757521 | VN17: 7890.43613 | VO17: 7929.305273 | VP17: 7968.36589 | VQ17: 8007.618924 | VR17: 8047.065323 | VS17: 8086.706039 | VT17: 8126.542029 | VU17: 8166.574256 | VV17: 8206.803686 | VW17: 8247.23129 | VX17: 8287.858045 | VY17: 8328.684932 | VZ17: 8369.712937 | WA17: 8410.94305 | WB17: 8452.376267 | WC17: 8494.013588 | WD17: 8535.85602 | WE17: 8577.904572 | WF17: 8620.160259 | WG17: 8662.624103 | WH17: 8705.297128 | WI17: 8748.180365 | WJ17: 8791.274849 | WK17: 8834.581622 | WL17: 8878.101729 | WM17: 8921.83622 | WN17: 8965.786152 | WO17: 9009.952586 | WP17: 9054.336589 | WQ17: 9098.939232 | WR17: 9143.761593 | WS17: 9188.804754 | WT17: 9234.069802 | WU17: 9279.55783 | WV17: 9325.269938 | WW17: 0 | ZZ17: 0
A18: 7 | E18: 360 | F18: 360: Dächer | G18: Ja | H18: Nein | J18: 305000 | K18: 299553.5714 | L18: 299553.5714 | M18: 1 | N18: pschl. | O18: 305000 | P18: 0 | Q18: 0 | R18: 0 | S18: 0 | T18: 361 | U18: 50 | V18: 361-211: Tragkonstruktion: Flachdach [ND: 50] | W18: 50 | X18: Nein | Z18: 300 | AA18: 299.5535714 | AB18: 1048.4375 | AC18: 1347.991071 | AD18: 300-000: Baukonstruktion ohne Inspektion+Wartung [IW: 0,001, IN: 0,0035] | AE18: 0.001 | AF18: 0.0035 | AG18: Nein | AJ18: 299553.5714 | AK18: 0 | AL18: 0 | AM18: 299553.5714 | AN18: 0 | AO18: 0 | AP18: 299.5535714 | AQ18: 0 | AR18: 0 | AS18: 1048.4375 | AT18: 0 | AU18: 0 | AV18: 9.573676765 | AW18: 76589.41412 | AZ18: 0 | CF18: =IF(AND(MOD(CF$8,$U18)=0,CF$8<BZBNB),$AM18*POWER(1+PSBNB,(CF$8))*POWER(1+KALBNB,-(CF$8)),"") ->  | DL18: =IF(AND(MOD(DL$8,$U18)=0,DL$8<BZBNB),$AM18*POWER(1+PSBNB,(DL$8))*POWER(1+KALBNB,-(DL$8)),"") ->  | EC18: 0 | HF18: 0 | IL18: =IF(AND(MOD(IL$8,$U18)=0,IL$8<BZBNB),$AO18*POWER(1+PSBNB,IL$8)*POWER(1+KALBNB,-IL$8),"") ->  | JR18: =IF(AND(MOD(JR$8,$U18)=0,JR$8<BZBNB),$AO18*POWER(1+PSBNB,JR$8)*POWER(1+KALBNB,-JR$8),"") ->  | KJ18: 17019.8698 | KK18: 301.0292048 | KL18: 302.5121073 | KM18: 304.0023147 | KN18: 305.499863 | KO18: 307.0047885 | KP18: 308.5171273 | KQ18: 310.0369161 | KR18: 311.5641916 | KS18: 313.0989906 | KT18: 314.6413501 | KU18: 316.1913075 | KV18: 317.7489002 | KW18: 319.3141657 | KX18: 320.8871419 | KY18: 322.4678667 | KZ18: 324.0563784 | LA18: 325.6527152 | LB18: 327.2569158 | LC18: 328.8690188 | LD18: 330.4890632 | LE18: 332.1170882 | LF18: 333.7531329 | LG18: 335.397237 | LH18: 337.0494402 | LI18: 338.7097823 | LJ18: 340.3783033 | LK18: 342.0550438 | LL18: 343.740044 | LM18: 345.4333447 | LN18: 347.1349868 | LO18: 348.8450113 | LP18: 350.5634597 | LQ18: 352.2903733 | LR18: 354.0257938 | LS18: 355.7697633 | LT18: 357.5223237 | LU18: 359.2835174 | LV18: 361.0533869 | LW18: 362.831975 | LX18: 364.6193247 | LY18: 366.415479 | LZ18: 368.2204813 | MA18: 370.0343753 | MB18: 371.8572048 | MC18: 373.6890137 | MD18: 375.5298462 | ME18: 377.379747 | MF18: 379.2387605 | MG18: 381.1069317 | MH18: 382.9843058 | MI18: 384.870928 | MJ18: 386.7668439 | MK18: 388.6720993 | ML18: 390.5867401 | MM18: 392.5108127 | MN18: 394.4443635 | MO18: 396.3874392 | MP18: 398.3400867 | MQ18: 400.3023532 | MR18: 402.2742859 | MS18: 404.2559327 | MT18: 406.2473412 | MU18: 408.2485596 | MV18: =IF(AND(ISNUMBER($AP18),$AP18<>0),$AP18*POWER(1+PSBNB,MV$8)*POWER(1+KALBNB,-MV$8),"") -> 410.2596363 | MW18: 412.2806197 | MX18: 414.3115587 | MY18: 416.3525023 | MZ18: 418.4034999 | NA18: 420.4646009 | NB18: 422.5358551 | NC18: 424.6173125 | ND18: 426.7090234 | NE18: 428.8110383 | NF18: 430.9234079 | NG18: 433.0461833 | NH18: 435.1794158 | NI18: 437.3231567 | NJ18: 439.477458 | NK18: 441.6423716 | NL18: 443.8179498 | NM18: 0 | OS18: =IF(AND(ISNUMBER($AQ18),$AQ18<>0),$AQ18*POWER(1+PSBNB,OS$8)*POWER(1+KALBNB,-OS$8),"") ->  | PY18: =IF(AND(ISNUMBER($AQ18),$AQ18<>0),$AQ18*POWER(1+PSBNB,PY$8)*POWER(1+KALBNB,-PY$8),"") ->  | QP18: 0 | RV18: =IF(AND(ISNUMBER($AR18),$AR18<>0),$AR18*POWER(1+PSBNB,RV$8)*POWER(1+KALBNB,-RV$8),"") ->  | TB18: =IF(AND(ISNUMBER($AR18),$AR18<>0),$AR18*POWER(1+PSBNB,TB$8)*POWER(1+KALBNB,-TB$8),"") ->  | TT18: 59569.54432 | TU18: 1053.602217 | TV18: 1058.792375 | TW18: 1064.008101 | TX18: 1069.249521 | TY18: 1074.51676 | TZ18: 1079.809946 | UA18: 1085.129207 | UB18: 1090.474671 | UC18: 1095.846467 | UD18: 1101.244725 | UE18: 1106.669576 | UF18: 1112.121151 | UG18: 1117.59958 | UH18: 1123.104997 | UI18: 1128.637533 | UJ18: 1134.197324 | UK18: 1139.784503 | UL18: 1145.399205 | UM18: 1151.041566 | UN18: 1156.711721 | UO18: 1162.409809 | UP18: 1168.135965 | UQ18: 1173.89033 | UR18: 1179.673041 | US18: 1185.484238 | UT18: 1191.324062 | UU18: 1197.192653 | UV18: 1203.090154 | UW18: 1209.016706 | UX18: 1214.972454 | UY18: 1220.95754 | UZ18: =IF(AND(ISNUMBER($AS18),$AS18<>0),$AS18*POWER(1+PSBNB,UZ$8)*POWER(1+KALBNB,-UZ$8),"") -> 1226.972109 | VA18: 1233.016306 | VB18: 1239.090278 | VC18: 1245.194171 | VD18: 1251.328133 | VE18: 1257.492311 | VF18: 1263.686854 | VG18: 1269.911913 | VH18: 1276.167636 | VI18: 1282.454176 | VJ18: 1288.771685 | VK18: 1295.120314 | VL18: 1301.500217 | VM18: 1307.911548 | VN18: 1314.354462 | VO18: 1320.829114 | VP18: 1327.335662 | VQ18: 1333.874261 | VR18: 1340.44507 | VS18: 1347.048248 | VT18: 1353.683954 | VU18: 1360.352347 | VV18: 1367.05359 | VW18: 1373.787845 | VX18: 1380.555272 | VY18: 1387.356037 | VZ18: 1394.190303 | WA18: 1401.058236 | WB18: 1407.960001 | WC18: 1414.895764 | WD18: 1421.865694 | WE18: 1428.869959 | WF18: =IF(AND(ISNUMBER($AS18),$AS18<>0),$AS18*POWER(1+PSBNB,WF$8)*POWER(1+KALBNB,-WF$8),"") -> 1435.908727 | WG18: 1442.982169 | WH18: 1450.090455 | WI18: 1457.233758 | WJ18: 1464.41225 | WK18: 1471.626103 | WL18: 1478.875493 | WM18: 1486.160594 | WN18: 1493.481582 | WO18: 1500.838634 | WP18: 1508.231928 | WQ18: 1515.661642 | WR18: 1523.127955 | WS18: 1530.631049 | WT18: 1538.171103 | WU18: 1545.748301 | WV18: 1553.362824 | WW18: 0 | YC18: =IF(AND(ISNUMBER($AT18),$AT18<>0),$AT18*POWER(1+PSBNB,YC$8)*POWER(1+KALBNB,-YC$8),"") ->  | ZI18: =IF(AND(ISNUMBER($AT18),$AT18<>0),$AT18*POWER(1+PSBNB,ZI$8)*POWER(1+KALBNB,-ZI$8),"") ->  | ZZ18: 0 | ABF18: =IF(AND(ISNUMBER($AU18),$AU18<>0),$AU18*POWER(1+PSBNB,ABF$8)*POWER(1+KALBNB,-ABF$8),"") ->  | ACL18: =IF(AND(ISNUMBER($AU18),$AU18<>0),$AU18*POWER(1+PSBNB,ACL$8)*POWER(1+KALBNB,-ACL$8),"") -> 
A19: 8 | E19: 370 | F19: 370: Baukonstruktive Einbauten | G19: Ja | H19: Nein | J19: 176000 | K19: 172857.1429 | L19: 172857.1429 | M19: 1 | N19: pschl. | O19: 176000 | P19: 0 | Q19: 0 | R19: 0 | S19: 1 | T19: 371 | U19: 30 | V19: 371-111: Möblierungssysteme: Büros, Laboratorien [ND: 30] | W19: 30 | X19: Nein | Z19: 300 | AA19: 172.8571429 | AB19: 605 | AC19: 777.8571429 | AD19: 300-000: Baukonstruktion ohne Inspektion+Wartung [IW: 0,001, IN: 0,0035] | AE19: 0.001 | AF19: 0.0035 | AG19: Nein | AJ19: 172857.1429 | AK19: 0 | AL19: 0 | AM19: 172857.1429 | AN19: 0 | AO19: 0 | AP19: 172.8571429 | AQ19: 0 | AR19: 0 | AS19: 605 | AT19: 0 | AU19: 0 | AV19: 30.56372728 | AW19: 244509.8182 | AZ19: 200313.9596 | BA19: =IF(AND(MOD(BA$8,$U19)=0,BA$8<BZBNB),$AM19*POWER(1+PSBNB,(BA$8))*POWER(1+KALBNB,-(BA$8)),"") ->  | CD19: 200313.9596 | EC19: 0 | FG19: 0 | FI19: =IF(AND(MOD(FI$8,$U19)=0,FI$8<BZBNB),$AN19*POWER(1+PSBNB,(FI$8))*POWER(1+KALBNB,-(FI$8)),"") ->  | GO19: =IF(AND(MOD(GO$8,$U19)=0,GO$8<BZBNB),$AN19*POWER(1+PSBNB,(GO$8))*POWER(1+KALBNB,-(GO$8)),"") ->  | HF19: 0 | HG19: =IF(AND(MOD(HG$8,$U19)=0,HG$8<BZBNB),$AO19*POWER(1+PSBNB,HG$8)*POWER(1+KALBNB,-HG$8),"") ->  | IJ19: 0 | KJ19: 9821.30192 | KK19: 173.7086559 | KL19: 174.5643635 | KM19: 175.4242865 | KN19: 176.2884456 | KO19: 177.1568615 | KP19: 178.0295554 | KQ19: 178.9065483 | KR19: 179.7878614 | KS19: =IF(AND(ISNUMBER($AP19),$AP19<>0),$AP19*POWER(1+PSBNB,KS$8)*POWER(1+KALBNB,-KS$8),"") -> 180.6735159 | KT19: 181.5635332 | KU19: 182.4579348 | KV19: 183.3567424 | KW19: 184.2599776 | KX19: 185.1676622 | KY19: 186.0798182 | KZ19: 186.9964675 | LA19: 187.9176324 | LB19: 188.843335 | LC19: 189.7735977 | LD19: 190.708443 | LE19: 191.6478935 | LF19: 192.5919718 | LG19: 193.5407007 | LH19: 194.4941032 | LI19: 195.4522022 | LJ19: 196.4150209 | LK19: 197.3825826 | LL19: 198.3549106 | LM19: 199.3320284 | LN19: 200.3139596 | LO19: 201.3007279 | LP19: 202.2923571 | LQ19: 203.2888711 | LR19: 204.2902941 | LS19: 205.2966503 | LT19: 206.3079638 | LU19: 207.3242592 | LV19: 208.345561 | LW19: 209.3718938 | LX19: 210.4032824 | LY19: 211.4397518 | LZ19: 212.4813269 | MA19: 213.528033 | MB19: 214.5798952 | MC19: 215.636939 | MD19: 216.69919 | ME19: 217.7666737 | MF19: 218.8394159 | MG19: 219.9174426 | MH19: 221.0007797 | MI19: 222.0894535 | MJ19: 223.1834902 | MK19: 224.2829163 | ML19: 225.3877582 | MM19: 226.4980428 | MN19: 227.6137967 | MO19: 228.7350469 | MP19: 229.8618205 | MQ19: 230.9941448 | MR19: 232.132047 | MS19: 233.2755546 | MT19: 234.4246952 | MU19: 235.5794967 | MV19: 236.7399868 | MW19: 237.9061937 | MX19: 239.0781454 | MY19: 240.2558702 | MZ19: 241.4393967 | NA19: 242.6287533 | NB19: 243.8239688 | NC19: 245.0250721 | ND19: 246.2320922 | NE19: 247.4450582 | NF19: 248.6639993 | NG19: 249.8889451 | NH19: 251.1199252 | NI19: 252.3569691 | NJ19: 253.6001069 | NK19: 254.8493685 | NL19: 256.1047841 | NM19: 0 | NN19: =IF(AND(ISNUMBER($AQ19),$AQ19<>0),$AQ19*POWER(1+PSBNB,NN$8)*POWER(1+KALBNB,-NN$8),"") ->  | QP19: 0 | QQ19: =IF(AND(ISNUMBER($AR19),$AR19<>0),$AR19*POWER(1+PSBNB,QQ$8)*POWER(1+KALBNB,-QQ$8),"") ->  | TT19: 34374.55672 | TU19: =IF(AND(ISNUMBER($AS19),$AS19<>0),$AS19*POWER(1+PSBNB,TU$8)*POWER(1+KALBNB,-TU$8),"") -> 607.9802956 | TV19: 610.9752724 | TW19: 613.9850028 | TX19: 617.0095595 | TY19: 620.0490154 | TZ19: 623.1034441 | UA19: 626.1729192 | UB19: 629.2575148 | UC19: 632.3573055 | UD19: 635.4723662 | UE19: 638.6027719 | UF19: 641.7485984 | UG19: 644.9099215 | UH19: 648.0868177 | UI19: 651.2793636 | UJ19: 654.4876363 | UK19: 657.7117133 | UL19: 660.9516725 | UM19: 664.2075921 | UN19: 667.4795507 | UO19: 670.7676273 | UP19: 674.0719013 | UQ19: 677.3924525 | UR19: 680.7293612 | US19: 684.0827078 | UT19: 687.4525733 | UU19: 690.8390392 | UV19: 694.2421872 | UW19: 697.6620994 | UX19: 701.0988585 | UY19: 704.5525475 | UZ19: 708.0232497 | VA19: 711.511049 | VB19: 715.0160295 | VC19: 718.5382759 | VD19: 722.0778734 | VE19: 725.6349072 | VF19: 729.2094634 | VG19: 732.8016283 | VH19: 736.4114885 | VI19: 740.0391313 | VJ19: 743.6846443 | VK19: 747.3481154 | VL19: 751.0296332 | VM19: 754.7292866 | VN19: 758.4471648 | VO19: 762.1833578 | VP19: 765.9379556 | VQ19: 769.711049 | VR19: 773.502729 | VS19: 777.3130873 | VT19: 781.1422158 | VU19: 784.990207 | VV19: 788.8571538 | VW19: 792.7431497 | VX19: 796.6482883 | VY19: 800.5726641 | VZ19: 804.5163719 | WA19: 808.4795067 | WB19: 812.4621644 | WC19: 816.464441 | WD19: 820.4864334 | WE19: 824.5282384 | WF19: 828.5899539 | WG19: 832.6716778 | WH19: 836.7735087 | WI19: 840.8955457 | WJ19: 845.0378883 | WK19: 849.2006365 | WL19: 853.3838909 | WM19: 857.5877524 | WN19: 861.8123226 | WO19: 866.0577035 | WP19: 870.3239976 | WQ19: 874.611308 | WR19: 878.9197381 | WS19: 883.249392 | WT19: 887.6003742 | WU19: 891.9727898 | WV19: 896.3667444 | WW19: 0 | WX19: =IF(AND(ISNUMBER($AT19),$AT19<>0),$AT19*POWER(1+PSBNB,WX$8)*POWER(1+KALBNB,-WX$8),"") ->  | ZZ19: 0 | AAA19: =IF(AND(ISNUMBER($AU19),$AU19<>0),$AU19*POWER(1+PSBNB,AAA$8)*POWER(1+KALBNB,-AAA$8),"") -> 
A20: 9 | E20: 390 | F20: 390: Sonstige Maßnahmen für Baukonstruktionen | G20: Ja | H20: Nein | J20: 339000 | K20: 332946.4286 | L20: 332946.4286 | M20: 1 | N20: pschl. | O20: 339000 | P20: 0 | Q20: 0 | R20: 0 | S20: 0 | U20: 50 | X20: Ja | Y20: 50 | Z20: 300 | AA20: 332.9464286 | AB20: 1165.3125 | AC20: 1498.258929 | AD20: 300-000: Baukonstruktion ohne Inspektion+Wartung [IW: 0,001, IN: 0,0035] | AE20: 0.001 | AF20: 0.0035 | AG20: Nein | AJ20: 332946.4286 | AK20: 0 | AL20: 0 | AM20: 332946.4286 | AN20: 0 | AO20: 0 | AP20: 332.9464286 | AQ20: 0 | AR20: 0 | AS20: 1165.3125 | AT20: 0 | AU20: 0 | AV20: 10.64090631 | AW20: 85127.25045 | AZ20: 0 | EC20: 0 | ED20: =IF(AND(MOD(ED$8,$U20)=0,ED$8<BZBNB),$AN20*POWER(1+PSBNB,(ED$8))*POWER(1+KALBNB,-(ED$8)),"") ->  | HF20: 0 | KJ20: 18917.16677 | KK20: 334.5865588 | KL20: =IF(AND(ISNUMBER($AP20),$AP20<>0),$AP20*POWER(1+PSBNB,KL$8)*POWER(1+KALBNB,-KL$8),"") -> 336.2347684 | KM20: 337.8910973 | KN20: 339.5555855 | KO20: 341.2282731 | KP20: 342.9092005 | KQ20: 344.5984084 | KR20: 346.2959375 | KS20: 348.0018289 | KT20: 349.7161236 | KU20: 351.4388631 | KV20: 353.170089 | KW20: 354.9098432 | KX20: 356.6581675 | KY20: 358.4151043 | KZ20: 360.1806959 | LA20: 361.9549851 | LB20: 363.7380146 | LC20: 365.5298275 | LD20: 367.330467 | LE20: 369.1399767 | LF20: 370.9584002 | LG20: 372.7857815 | LH20: 374.6221647 | LI20: 376.467594 | LJ20: 378.3221142 | LK20: 380.1857699 | LL20: 382.0586063 | LM20: 383.9406684 | LN20: 385.8320017 | LO20: 387.7326519 | LP20: 389.642665 | LQ20: 391.562087 | LR20: 393.4909643 | LS20: 395.4293434 | LT20: 397.3772712 | LU20: 399.3347947 | LV20: 401.3019612 | LW20: 403.2788181 | LX20: 405.2654133 | LY20: 407.2617947 | LZ20: 409.2680104 | MA20: 411.284109 | MB20: 413.3101391 | MC20: 415.3461496 | MD20: 417.3921897 | ME20: 419.4483089 | MF20: 421.5145567 | MG20: 423.5909831 | MH20: 425.6776382 | MI20: 427.7745724 | MJ20: 429.8818363 | MK20: 431.9994808 | ML20: 434.1275571 | MM20: 436.2661165 | MN20: 438.4152106 | MO20: 440.5748915 | MP20: 442.7452111 | MQ20: 444.926222 | MR20: 447.1179768 | MS20: 449.3205284 | MT20: 451.53393 | MU20: 453.7582351 | MV20: 455.9934974 | MW20: 458.2397707 | MX20: 460.4971095 | MY20: 462.7655682 | MZ20: 465.0452015 | NA20: 467.3360646 | NB20: 469.6382127 | NC20: 471.9517014 | ND20: 474.2765866 | NE20: 476.6129245 | NF20: 478.9607714 | NG20: 481.3201841 | NH20: 483.6912195 | NI20: 486.0739349 | NJ20: 488.4683877 | NK20: 490.874636 | NL20: 493.2927376 | NM20: 0 | QP20: 0 | TT20: 66210.08368 | TU20: 1171.052956 | TV20: 1176.821689 | TW20: 1182.618841 | TX20: 1188.444549 | TY20: 1194.298956 | TZ20: 1200.182202 | UA20: 1206.09443 | UB20: 1212.035781 | UC20: 1218.006401 | UD20: 1224.006433 | UE20: 1230.036021 | UF20: 1236.095312 | UG20: 1242.184451 | UH20: 1248.303586 | UI20: 1254.452865 | UJ20: 1260.632436 | UK20: 1266.842448 | UL20: 1273.083051 | UM20: 1279.354396 | UN20: 1285.656634 | UO20: 1291.989918 | UP20: 1298.354401 | UQ20: 1304.750235 | UR20: 1311.177576 | US20: 1317.636579 | UT20: 1324.1274 | UU20: 1330.650195 | UV20: 1337.205122 | UW20: 1343.792339 | UX20: 1350.412006 | UY20: 1357.064282 | UZ20: 1363.749328 | VA20: 1370.467305 | VB20: 1377.218375 | VC20: 1384.002702 | VD20: 1390.820449 | VE20: 1397.671782 | VF20: 1404.556864 | VG20: 1411.475864 | VH20: 1418.428947 | VI20: 1425.416281 | VJ20: 1432.438036 | VK20: 1439.494381 | VL20: 1446.585487 | VM20: 1453.711524 | VN20: 1460.872664 | VO20: 1468.069081 | VP20: 1475.300949 | VQ20: 1482.568441 | VR20: 1489.871734 | VS20: 1497.211003 | VT20: 1504.586427 | VU20: 1511.998183 | VV20: 1519.44645 | VW20: 1526.931408 | VX20: 1534.453237 | VY20: 1542.01212 | VZ20: 1549.608239 | WA20: 1557.241777 | WB20: 1564.912919 | WC20: 1572.621849 | WD20: 1580.368755 | WE20: 1588.153823 | WF20: 1595.977241 | WG20: 1603.839198 | WH20: 1611.739883 | WI20: 1619.679489 | WJ20: 1627.658205 | WK20: 1635.676226 | WL20: 1643.733744 | WM20: 1651.830955 | WN20: 1659.968053 | WO20: 1668.145236 | WP20: 1676.3627 | WQ20: 1684.620644 | WR20: 1692.919268 | WS20: 1701.258772 | WT20: 1709.639357 | WU20: 1718.061226 | WV20: 1726.524582 | WW20: 0 | ZZ20: 0
A21: 10 | E21: k.A. | G21: Ja | H21: Nein | J21: 0 | K21: 0 | L21: 0 | P21: 0 | Q21: 0 | R21: 0 | S21: 49 | U21: 1 | X21: Nein | AA21: 0 | AB21: 0 | AC21: 0 | AE21: 0 | AF21: 0 | AG21: Nein | AJ21: 0 | AK21: 0 | AL21: 0 | AM21: 0 | AN21: 0 | AO21: 0 | AP21: 0 | AQ21: 0 | AR21: 0 | AS21: 0 | AT21: 0 | AU21: 0 | AV21: 0 | AW21: 0 | AZ21: 0 | BA21: 0 | BB21: 0 | BC21: 0 | BD21: 0 | BE21: 0 | BF21: 0 | BG21: 0 | BH21: 0 | BI21: 0 | BJ21: 0 | BK21: 0 | BL21: 0 | BM21: 0 | BN21: 0 | BO21: 0 | BP21: 0 | BQ21: 0 | BR21: 0 | BS21: 0 | BT21: 0 | BU21: 0 | BV21: 0 | BW21: 0 | BX21: 0 | BY21: 0 | BZ21: 0 | CA21: 0 | CB21: 0 | CC21: 0 | CD21: 0 | CE21: 0 | CF21: 0 | CG21: 0 | CH21: 0 | CI21: 0 | CJ21: 0 | CK21: 0 | CL21: 0 | CM21: 0 | CN21: 0 | CO21: 0 | CP21: 0 | CQ21: 0 | CR21: 0 | CS21: 0 | CT21: 0 | CU21: 0 | CV21: 0 | CW21: 0 | EC21: 0 | ED21: 0 | EE21: 0 | EF21: 0 | EG21: 0 | EH21: 0 | EI21: 0 | EJ21: 0 | EK21: 0 | EL21: 0 | EM21: 0 | EN21: 0 | EO21: 0 | EP21: 0 | EQ21: 0 | ER21: 0 | ES21: 0 | ET21: 0 | EU21: 0 | EV21: 0 | EW21: 0 | EX21: 0 | EY21: 0 | EZ21: 0 | FA21: 0 | FB21: 0 | FC21: 0 | FD21: 0 | FE21: 0 | FF21: 0 | FG21: 0 | FH21: 0 | FI21: 0 | FJ21: 0 | FK21: 0 | FL21: 0 | FM21: 0 | FN21: 0 | FO21: 0 | FP21: 0 | FQ21: 0 | FR21: 0 | FS21: 0 | FT21: 0 | FU21: 0 | FV21: 0 | FW21: 0 | FX21: 0 | FY21: 0 | FZ21: 0 | HF21: 0 | HG21: 0 | HH21: 0 | HI21: 0 | HJ21: 0 | HK21: 0 | HL21: 0 | HM21: 0 | HN21: 0 | HO21: 0 | HP21: 0 | HQ21: 0 | HR21: 0 | HS21: 0 | HT21: 0 | HU21: 0 | HV21: 0 | HW21: 0 | HX21: 0 | HY21: 0 | HZ21: 0 | IA21: 0 | IB21: 0 | IC21: 0 | ID21: 0 | IE21: 0 | IF21: 0 | IG21: 0 | IH21: 0 | II21: 0 | IJ21: 0 | IK21: 0 | IL21: 0 | IM21: 0 | IN21: 0 | IO21: 0 | IP21: 0 | IQ21: 0 | IR21: 0 | IS21: 0 | IT21: 0 | IU21: 0 | IV21: 0 | IW21: 0 | IX21: 0 | IY21: 0 | IZ21: 0 | JA21: 0 | JB21: 0 | JC21: 0 | KJ21: 0 | NM21: 0 | QP21: 0 | TT21: 0 | WW21: 0 | ZZ21: 0
A22: 11 | E22: 400 | F22: 400: Bauwerk - Technische Anlagen | G22: Ja | H22: Nein | J22: 0 | K22: 0 | L22: 0 | P22: 0 | Q22: 0 | R22: 0 | S22: 49 | U22: 1 | X22: Nein | AA22: 0 | AB22: 0 | AC22: 0 | AE22: 0 | AF22: 0 | AG22: Nein | AJ22: 0 | AK22: 0 | AL22: 0 | AM22: 0 | AN22: 0 | AO22: 0 | AP22: 0 | AQ22: 0 | AR22: 0 | AS22: 0 | AT22: 0 | AU22: 0 | AV22: 0 | AW22: 0 | AZ22: 0 | BA22: 0 | BB22: 0 | BC22: 0 | BD22: 0 | BE22: 0 | BF22: 0 | BG22: 0 | BH22: 0 | BI22: 0 | BJ22: 0 | BK22: 0 | BL22: 0 | BM22: 0 | BN22: 0 | BO22: 0 | BP22: 0 | BQ22: 0 | BR22: 0 | BS22: 0 | BT22: 0 | BU22: 0 | BV22: 0 | BW22: 0 | BX22: 0 | BY22: 0 | BZ22: 0 | CA22: 0 | CB22: 0 | CC22: 0 | CD22: 0 | CE22: 0 | CF22: 0 | CG22: 0 | CH22: 0 | CI22: 0 | CJ22: 0 | CK22: 0 | CL22: 0 | CM22: 0 | CN22: 0 | CO22: 0 | CP22: 0 | CQ22: 0 | CR22: 0 | CS22: 0 | CT22: 0 | CU22: 0 | CV22: 0 | CW22: 0 | DL22: =IF(AND(MOD(DL$8,$U22)=0,DL$8<BZBNB),$AM22*POWER(1+PSBNB,(DL$8))*POWER(1+KALBNB,-(DL$8)),"") ->  | EC22: 0 | ED22: 0 | EE22: 0 | EF22: 0 | EG22: 0 | EH22: 0 | EI22: 0 | EJ22: 0 | EK22: 0 | EL22: 0 | EM22: 0 | EN22: 0 | EO22: 0 | EP22: 0 | EQ22: 0 | ER22: 0 | ES22: 0 | ET22: 0 | EU22: 0 | EV22: 0 | EW22: 0 | EX22: 0 | EY22: 0 | EZ22: 0 | FA22: 0 | FB22: 0 | FC22: 0 | FD22: 0 | FE22: 0 | FF22: 0 | FG22: 0 | FH22: 0 | FI22: 0 | FJ22: 0 | FK22: 0 | FL22: 0 | FM22: 0 | FN22: 0 | FO22: 0 | FP22: 0 | FQ22: 0 | FR22: 0 | FS22: 0 | FT22: 0 | FU22: 0 | FV22: 0 | FW22: 0 | FX22: 0 | FY22: 0 | FZ22: 0 | HF22: 0 | HG22: 0 | HH22: 0 | HI22: 0 | HJ22: 0 | HK22: 0 | HL22: 0 | HM22: 0 | HN22: 0 | HO22: 0 | HP22: 0 | HQ22: 0 | HR22: 0 | HS22: 0 | HT22: 0 | HU22: 0 | HV22: 0 | HW22: 0 | HX22: 0 | HY22: 0 | HZ22: 0 | IA22: 0 | IB22: 0 | IC22: 0 | ID22: 0 | IE22: 0 | IF22: 0 | IG22: 0 | IH22: 0 | II22: 0 | IJ22: 0 | IK22: 0 | IL22: 0 | IM22: 0 | IN22: 0 | IO22: 0 | IP22: 0 | IQ22: 0 | IR22: 0 | IS22: 0 | IT22: 0 | IU22: 0 | IV22: 0 | IW22: 0 | IX22: 0 | IY22: 0 | IZ22: 0 | JA22: 0 | JB22: 0 | JC22: 0 | JR22: =IF(AND(MOD(JR$8,$U22)=0,JR$8<BZBNB),$AO22*POWER(1+PSBNB,JR$8)*POWER(1+KALBNB,-JR$8),"") ->  | KJ22: 0 | NM22: 0 | PY22: =IF(AND(ISNUMBER($AQ22),$AQ22<>0),$AQ22*POWER(1+PSBNB,PY$8)*POWER(1+KALBNB,-PY$8),"") ->  | QP22: 0 | TB22: =IF(AND(ISNUMBER($AR22),$AR22<>0),$AR22*POWER(1+PSBNB,TB$8)*POWER(1+KALBNB,-TB$8),"") ->  | TT22: 0 | WF22: =IF(AND(ISNUMBER($AS22),$AS22<>0),$AS22*POWER(1+PSBNB,WF$8)*POWER(1+KALBNB,-WF$8),"") ->  | WW22: 0 | ZI22: =IF(AND(ISNUMBER($AT22),$AT22<>0),$AT22*POWER(1+PSBNB,ZI$8)*POWER(1+KALBNB,-ZI$8),"") ->  | ZZ22: 0 | ACL22: =IF(AND(ISNUMBER($AU22),$AU22<>0),$AU22*POWER(1+PSBNB,ACL$8)*POWER(1+KALBNB,-ACL$8),"") -> 
A23: 12 | E23: 410 | F23: 410: Abwasser-, Wasser-, Gasanlagen | G23: Ja | H23: Nein | J23: 359000 | K23: 352589.2857 | L23: 352589.2857 | M23: 1 | N23: pschl. | O23: 359000 | P23: 0 | Q23: 0 | R23: 0 | S23: 0 | T23: 410 | U23: 50 | V23: 410-001: Gas-, Wasser- und Abwasseranlagen gesamt (AMEV) [ND: 50] | W23: 50 | X23: Nein | Z23: 410 | AA23: 3561.151786 | AB23: 3455.375 | AC23: 7016.526786 | AD23: 410-001: Abwasser-, Wasser-, Gasanlagen gesamt (Anlage3/ AMEV) [IW: 0,0101, IN: 0,0098] | AE23: 0.0101 | AF23: 0.0098 | AG23: Nein | AJ23: 0 | AK23: 352589.2857 | AL23: 0 | AM23: 0 | AN23: 352589.2857 | AO23: 0 | AP23: 0 | AQ23: 3561.151786 | AR23: 0 | AS23: 0 | AT23: 3455.375 | AU23: 0 | AV23: 49.83264421 | AW23: 398661.1537 | AZ23: 0 | BA23: =IF(AND(MOD(BA$8,$U23)=0,BA$8<BZBNB),$AM23*POWER(1+PSBNB,(BA$8))*POWER(1+KALBNB,-(BA$8)),"") ->  | EC23: 0 | GO23: =IF(AND(MOD(GO$8,$U23)=0,GO$8<BZBNB),$AN23*POWER(1+PSBNB,(GO$8))*POWER(1+KALBNB,-(GO$8)),"") ->  | HF23: 0 | HG23: =IF(AND(MOD(HG$8,$U23)=0,HG$8<BZBNB),$AO23*POWER(1+PSBNB,HG$8)*POWER(1+KALBNB,-HG$8),"") ->  | KJ23: 0 | NM23: 202335.5604 | NN23: =IF(AND(ISNUMBER($AQ23),$AQ23<>0),$AQ23*POWER(1+PSBNB,NN$8)*POWER(1+KALBNB,-NN$8),"") -> 3578.694405 | NO23: 3596.323442 | NP23: 3614.039321 | NQ23: 3631.84247 | NR23: 3649.73332 | NS23: 3667.712302 | NT23: 3685.77985 | NU23: 3703.936401 | NV23: 3722.182393 | NW23: 3740.518267 | NX23: 3758.944465 | NY23: 3777.461433 | NZ23: 3796.069618 | OA23: 3814.769468 | OB23: 3833.561436 | OC23: 3852.445975 | OD23: 3871.423541 | OE23: 3890.494593 | OF23: 3909.659591 | OG23: 3928.918998 | OH23: 3948.273279 | OI23: 3967.722901 | OJ23: 3987.268334 | OK23: 4006.91005 | OL23: 4026.648523 | OM23: 4046.48423 | ON23: 4066.41765 | OO23: 4086.449264 | OP23: 4106.579556 | OQ23: 4126.809012 | OR23: 4147.13812 | OS23: 4167.567372 | OT23: 4188.09726 | OU23: 4208.728281 | OV23: 4229.460933 | OW23: 4250.295716 | OX23: 4271.233133 | OY23: 4292.273691 | OZ23: 4313.417896 | PA23: 4334.66626 | PB23: 4356.019296 | PC23: 4377.477519 | PD23: 4399.041448 | PE23: 4420.711602 | PF23: 4442.488507 | PG23: 4464.372687 | PH23: 4486.36467 | PI23: 4508.464989 | PJ23: 4530.674176 | PK23: 4552.992768 | PL23: 4575.421304 | PM23: 4597.960325 | PN23: 4620.610376 | PO23: 4643.372003 | PP23: 4666.245757 | PQ23: 4689.232189 | PR23: 4712.331855 | PS23: 4735.545313 | PT23: 4758.873122 | PU23: 4782.315847 | PV23: 4805.874053 | PW23: 4829.54831 | PX23: 4853.339188 | PY23: 4877.247263 | PZ23: 4901.273111 | QA23: 4925.417314 | QB23: 4949.680453 | QC23: 4974.063116 | QD23: 4998.56589 | QE23: 5023.189367 | QF23: 5047.934142 | QG23: 5072.800813 | QH23: 5097.789979 | QI23: 5122.902245 | QJ23: 5148.138217 | QK23: 5173.498504 | QL23: 5198.983718 | QM23: 5224.594475 | QN23: 5250.331394 | QO23: 5276.195095 | QP23: 0 | QQ23: =IF(AND(ISNUMBER($AR23),$AR23<>0),$AR23*POWER(1+PSBNB,QQ$8)*POWER(1+KALBNB,-QQ$8),"") ->  | TT23: 0 | TU23: =IF(AND(ISNUMBER($AS23),$AS23<>0),$AS23*POWER(1+PSBNB,TU$8)*POWER(1+KALBNB,-TU$8),"") ->  | WW23: 196325.5933 | WX23: =IF(AND(ISNUMBER($AT23),$AT23<>0),$AT23*POWER(1+PSBNB,WX$8)*POWER(1+KALBNB,-WX$8),"") -> 3472.396552 | WY23: 3489.501953 | WZ23: 3506.691618 | XA23: 3523.965961 | XB23: 3541.325399 | XC23: 3558.770352 | XD23: 3576.301241 | XE23: 3593.918488 | XF23: 3611.62252 | XG23: 3629.413764 | XH23: 3647.29265 | XI23: 3665.259608 | XJ23: 3683.315074 | XK23: 3701.459484 | XL23: 3719.693274 | XM23: 3738.016886 | XN23: 3756.430763 | XO23: 3774.935348 | XP23: 3793.531088 | XQ23: 3812.218434 | XR23: 3830.997835 | XS23: 3849.869745 | XT23: 3868.834621 | XU23: 3887.89292 | XV23: 3907.045101 | XW23: 3926.291629 | XX23: 3945.632967 | XY23: 3965.069583 | XZ23: 3984.601945 | YA23: 4004.230526 | YB23: 4023.9558 | YC23: 4043.778242 | YD23: 4063.698332 | YE23: 4083.71655 | YF23: 4103.833381 | YG23: 4124.049309 | YH23: 4144.364822 | YI23: 4164.780413 | YJ23: 4185.296572 | YK23: 4205.913797 | YL23: 4226.632584 | YM23: 4247.453434 | YN23: 4268.37685 | YO23: 4289.403337 | YP23: 4310.533403 | YQ23: 4331.767557 | YR23: 4353.106314 | YS23: 4374.550187 | YT23: 4396.099696 | YU23: 4417.755359 | YV23: 4439.517701 | YW23: 4461.387246 | YX23: 4483.364523 | YY23: 4505.450063 | YZ23: 4527.644398 | ZA23: 4549.948065 | ZB23: 4572.361602 | ZC23: 4594.885551 | ZD23: 4617.520455 | ZE23: 4640.266861 | ZF23: 4663.125319 | ZG23: 4686.09638 | ZH23: 4709.180598 | ZI23: 4732.378532 | ZJ23: 4755.690742 | ZK23: 4779.11779 | ZL23: 4802.660242 | ZM23: 4826.318667 | ZN23: 4850.093635 | ZO23: 4873.985722 | ZP23: 4897.995504 | ZQ23: 4922.123561 | ZR23: 4946.370475 | ZS23: 4970.736832 | ZT23: 4995.22322 | ZU23: 5019.830231 | ZV23: 5044.558459 | ZW23: 5069.408501 | ZX23: 5094.380956 | ZY23: 5119.476429 | ZZ23: 0 | AAA23: =IF(AND(ISNUMBER($AU23),$AU23<>0),$AU23*POWER(1+PSBNB,AAA$8)*POWER(1+KALBNB,-AAA$8),"") -> 
A24: 13 | E24: 420 | F24: 420: Wärmeversorgungsanlagen | G24: Ja | H24: Nein | J24: 488000 | K24: 479285.7143 | L24: 479285.7143 | M24: 1 | N24: pschl. | O24: 488000 | P24: 0 | Q24: 0 | R24: 0 | S24: 1 | T24: 420 | U24: 25 | V24: 420-001: Wärmeversorgungsanlagen gesamt (AMEV) [ND: 25] | W24: 25 | X24: Nein | Z24: 420 | AA24: 1965.071429 | AB24: 3163.285714 | AC24: 5128.357143 | AD24: 420-001: Wärmeversorgungsanlagen gesamt (Anlage 3/ AMEV) [IW: 0,0041, IN: 0,0066] | AE24: 0.0041 | AF24: 0.0066 | AG24: Nein | AJ24: 0 | AK24: 479285.7143 | AL24: 0 | AM24: 0 | AN24: 479285.7143 | AO24: 0 | AP24: 0 | AQ24: 1965.071429 | AR24: 0 | AS24: 0 | AT24: 3163.285714 | AU24: 0 | AV24: 104.1644778 | AW24: 833315.8227 | AZ24: 0 | BY24: 0 | EC24: 541935.6516 | ED24: =IF(AND(MOD(ED$8,$U24)=0,ED$8<BZBNB),$AN24*POWER(1+PSBNB,(ED$8))*POWER(1+KALBNB,-(ED$8)),"") ->  | FB24: 541935.6516 | HF24: 0 | IE24: 0 | KJ24: 0 | NM24: 111650.3459 | NN24: 1974.751583 | NO24: 1984.479424 | NP24: 1994.255184 | NQ24: 2004.079102 | NR24: 2013.951412 | NS24: 2023.872355 | NT24: 2033.84217 | NU24: 2043.861097 | NV24: 2053.929378 | NW24: 2064.047257 | NX24: 2074.214977 | NY24: 2084.432785 | NZ24: 2094.700927 | OA24: 2105.019651 | OB24: 2115.389206 | OC24: 2125.809842 | OD24: 2136.281812 | OE24: 2146.805367 | OF24: 2157.380763 | OG24: 2168.008255 | OH24: 2178.688098 | OI24: 2189.420552 | OJ24: 2200.205875 | OK24: 2211.044328 | OL24: 2221.936172 | OM24: 2232.88167 | ON24: 2243.881087 | OO24: 2254.934688 | OP24: 2266.042741 | OQ24: 2277.205513 | OR24: 2288.423274 | OS24: 2299.696295 | OT24: 2311.024849 | OU24: 2322.409207 | OV24: 2333.849647 | OW24: 2345.346443 | OX24: 2356.899874 | OY24: 2368.510218 | OZ24: 2380.177756 | PA24: 2391.90277 | PB24: 2403.685542 | PC24: 2415.526358 | PD24: 2427.425502 | PE24: 2439.383263 | PF24: 2451.39993 | PG24: 2463.475791 | PH24: 2475.61114 | PI24: 2487.806269 | PJ24: 2500.061472 | PK24: 2512.377046 | PL24: 2524.753287 | PM24: 2537.190496 | PN24: 2549.688971 | PO24: 2562.249015 | PP24: 2574.870932 | PQ24: 2587.555025 | PR24: 2600.301601 | PS24: 2613.110969 | PT24: 2625.983437 | PU24: 2638.919316 | PV24: 2651.918918 | PW24: 2664.982558 | PX24: 2678.110551 | PY24: 2691.303214 | PZ24: 2704.560865 | QA24: 2717.883825 | QB24: 2731.272415 | QC24: 2744.726959 | QD24: 2758.247782 | QE24: 2771.835209 | QF24: 2785.48957 | QG24: 2799.211193 | QH24: 2813.000411 | QI24: 2826.857556 | QJ24: 2840.782963 | QK24: 2854.776967 | QL24: 2868.839908 | QM24: 2882.972124 | QN24: 2897.173958 | QO24: 2911.44575 | QP24: 0 | TT24: 0 | WW24: 179729.8251 | WX24: 3178.868403 | WY24: 3194.527853 | WZ24: 3210.264443 | XA24: 3226.078554 | XB24: 3241.970566 | XC24: 3257.940865 | XD24: 3273.989834 | XE24: 3290.117863 | XF24: 3306.32534 | XG24: 3322.612657 | XH24: 3338.980207 | XI24: 3355.428386 | XJ24: 3371.95759 | XK24: 3388.568218 | XL24: 3405.260672 | XM24: 3422.035355 | XN24: 3438.892673 | XO24: 3455.833031 | XP24: 3472.856839 | XQ24: 3489.964508 | XR24: 3507.156451 | XS24: 3524.433084 | XT24: 3541.794823 | XU24: 3559.242088 | XV24: 3576.775301 | XW24: 3594.394883 | XX24: 3612.101262 | XY24: 3629.894864 | XZ24: 3647.77612 | YA24: 3665.74546 | YB24: 3683.80332 | YC24: 3701.950134 | YD24: 3720.186342 | YE24: 3738.512383 | YF24: 3756.9287 | YG24: 3775.435738 | YH24: 3794.033943 | YI24: 3812.723766 | YJ24: 3831.505656 | YK24: 3850.380068 | YL24: 3869.347458 | YM24: 3888.408283 | YN24: 3907.563003 | YO24: 3926.812082 | YP24: 3946.155984 | YQ24: 3965.595176 | YR24: 3985.130128 | YS24: 4004.761311 | YT24: 4024.489199 | YU24: 4044.314269 | YV24: 4064.236999 | YW24: 4084.257871 | YX24: 4104.377368 | YY24: 4124.595976 | YZ24: 4144.914183 | ZA24: 4165.332479 | ZB24: 4185.851358 | ZC24: 4206.471316 | ZD24: 4227.192849 | ZE24: 4248.016459 | ZF24: 4268.942649 | ZG24: 4289.971923 | ZH24: 4311.10479 | ZI24: 4332.341759 | ZJ24: 4353.683344 | ZK24: 4375.13006 | ZL24: 4396.682425 | ZM24: 4418.340959 | ZN24: 4440.106185 | ZO24: 4461.97863 | ZP24: 4483.95882 | ZQ24: 4506.047287 | ZR24: 4528.244564 | ZS24: 4550.551188 | ZT24: 4572.967696 | ZU24: 4595.49463 | ZV24: 4618.132535 | ZW24: 4640.881956 | ZX24: 4663.743444 | ZY24: 4686.71755 | ZZ24: 0
A25: 14 | E25: 430 | F25: 430: Lufttechnische Anlagen | G25: Ja | H25: Nein | J25: 285000 | K25: 279910.7143 | L25: 279910.7143 | M25: 1 | N25: pschl. | O25: 285000 | P25: 0 | Q25: 0 | R25: 0 | S25: 1 | T25: 430 | U25: 25 | V25: 430-001: Lufttechnische Anlagen gesamt (Anlage 3/ AMEV) [ND: 25] | W25: 25 | X25: Nein | Z25: 430 | AA25: 2687.142857 | AB25: 3079.017857 | AC25: 5766.160714 | AD25: 430-001: Lufttechnische Anlagen gesamt (Anlage 3/ AMEV) [IW: 0,0096, IN: 0,011] | AE25: 0.0096 | AF25: 0.011 | AG25: Nein | AJ25: 0 | AK25: 279910.7143 | AL25: 0 | AM25: 0 | AN25: 279910.7143 | AO25: 0 | AP25: 0 | AQ25: 2687.142857 | AR25: 0 | AS25: 0 | AT25: 3079.017857 | AU25: 0 | AV25: 80.51473097 | AW25: 644117.8478 | AZ25: 0 | BY25: 0 | EC25: 316499.3047 | FB25: 316499.3047 | HF25: 0 | IE25: 0 | KJ25: 0 | NM25: 152676.6026 | NN25: 2700.380014 | NO25: 2713.682379 | NP25: 2727.050272 | NQ25: 2740.484017 | NR25: 2753.983939 | NS25: 2767.550362 | NT25: 2781.183615 | NU25: 2794.884027 | NV25: 2808.651928 | NW25: 2822.487652 | NX25: 2836.391532 | NY25: 2850.363904 | NZ25: 2864.405106 | OA25: 2878.515476 | OB25: 2892.695355 | OC25: 2906.945086 | OD25: 2921.265012 | OE25: 2935.65548 | OF25: 2950.116838 | OG25: 2964.649433 | OH25: 2979.253617 | OI25: 2993.929743 | OJ25: 3008.678166 | OK25: 3023.49924 | OL25: 3038.393325 | OM25: 3053.36078 | ON25: 3068.401966 | OO25: 3083.517247 | OP25: 3098.706987 | OQ25: 3113.971553 | OR25: 3129.311315 | OS25: 3144.726642 | OT25: 3160.217906 | OU25: 3175.785482 | OV25: 3191.429745 | OW25: 3207.151074 | OX25: 3222.949848 | OY25: 3238.826448 | OZ25: 3254.781258 | PA25: 3270.814663 | PB25: 3286.927051 | PC25: 3303.11881 | PD25: 3319.390331 | PE25: 3335.742007 | PF25: 3352.174234 | PG25: 3368.687408 | PH25: 3385.281927 | PI25: 3401.958192 | PJ25: 3418.716607 | PK25: 3435.557576 | PL25: 3452.481505 | PM25: 3469.488803 | PN25: 3486.57988 | PO25: 3503.755151 | PP25: 3521.015028 | PQ25: 3538.35993 | PR25: 3555.790275 | PS25: 3573.306483 | PT25: 3590.908978 | PU25: 3608.598185 | PV25: 3626.37453 | PW25: 3644.238444 | PX25: 3662.190358 | PY25: 3680.230704 | PZ25: 3698.35992 | QA25: 3716.578441 | QB25: 3734.88671 | QC25: 3753.285166 | QD25: 3771.774256 | QE25: 3790.354425 | QF25: 3809.026121 | QG25: 3827.789797 | QH25: 3846.645904 | QI25: 3865.594899 | QJ25: 3884.637238 | QK25: 3903.773382 | QL25: 3923.003793 | QM25: 3942.328935 | QN25: 3961.749274 | QO25: 3981.265281 | QP25: 0 | TT25: 0 | WW25: 174941.9405 | WX25: 3094.185433 | WY25: 3109.427726 | WZ25: 3124.745104 | XA25: 3140.137937 | XB25: 3155.606596 | XC25: 3171.151456 | XD25: 3186.772892 | XE25: 3202.471281 | XF25: 3218.247001 | XG25: 3234.100435 | XH25: 3250.031964 | XI25: 3266.041974 | XJ25: 3282.130851 | XK25: 3298.298983 | XL25: 3314.546761 | XM25: 3330.874578 | XN25: 3347.282827 | XO25: 3363.771905 | XP25: 3380.34221 | XQ25: 3396.994142 | XR25: 3413.728103 | XS25: 3430.544498 | XT25: 3447.443732 | XU25: 3464.426213 | XV25: 3481.492352 | XW25: 3498.642561 | XX25: 3515.877253 | XY25: 3533.196845 | XZ25: 3550.601756 | YA25: 3568.092405 | YB25: 3585.669215 | YC25: 3603.33261 | YD25: 3621.083017 | YE25: 3638.920864 | YF25: 3656.846583 | YG25: 3674.860606 | YH25: 3692.963367 | YI25: 3711.155305 | YJ25: 3729.436858 | YK25: 3747.808468 | YL25: 3766.270579 | YM25: 3784.823636 | YN25: 3803.468087 | YO25: 3822.204383 | YP25: 3841.032976 | YQ25: 3859.954321 | YR25: 3878.968874 | YS25: 3898.077095 | YT25: 3917.279446 | YU25: 3936.576389 | YV25: 3955.968391 | YW25: 3975.45592 | YX25: 3995.039446 | YY25: 4014.719444 | YZ25: 4034.496387 | ZA25: 4054.370753 | ZB25: 4074.343023 | ZC25: 4094.413678 | ZD25: 4114.583204 | ZE25: 4134.852086 | ZF25: 4155.220816 | ZG25: 4175.689884 | ZH25: 4196.259785 | ZI25: 4216.931015 | ZJ25: 4237.704075 | ZK25: 4258.579464 | ZL25: 4279.557688 | ZM25: 4300.639253 | ZN25: 4321.824668 | ZO25: 4343.114445 | ZP25: 4364.509097 | ZQ25: 4386.009142 | ZR25: 4407.615098 | ZS25: 4429.327488 | ZT25: 4451.146835 | ZU25: 4473.073667 | ZV25: 4495.108513 | ZW25: 4517.251904 | ZX25: 4539.504377 | ZY25: 4561.866467 | ZZ25: 0
A26: 15 | E26: 440 | F26: 440: Starkstromanlagen | G26: Ja | H26: Nein | J26: 766000 | K26: 752321.4286 | L26: 752321.4286 | M26: 1 | N26: pschl. | O26: 766000 | P26: 0 | Q26: 0 | R26: 0 | S26: 1 | T26: 440 | U26: 25 | V26: 440-001: Starkstromanlagen gesamt (Anlage 3/ AMEV) [ND: 25] | W26: 25 | X26: Nein | Z26: 440 | AA26: 4513.928571 | AB26: 5266.25 | AC26: 9780.178571 | AD26: 440-001: Starkstromanlagen gesamt (Anlage 3/ AMEV) [IW: 0,006, IN: 0,007] | AE26: 0.006 | AF26: 0.007 | AG26: Nein | AJ26: 0 | AK26: 752321.4286 | AL26: 0 | AM26: 0 | AN26: 752321.4286 | AO26: 0 | AP26: 0 | AQ26: 4513.928571 | AR26: 0 | AS26: 0 | AT26: 5266.25 | AU26: 0 | AV26: 175.793261 | AW26: 1406346.088 | AZ26: 0 | BY26: 0 | DL26: =IF(AND(MOD(DL$8,$U26)=0,DL$8<BZBNB),$AM26*POWER(1+PSBNB,(DL$8))*POWER(1+KALBNB,-(DL$8)),"") ->  | EB26: =IF(AND(MOD(EB$8,$U26)=0,EB$8<BZBNB),$AM26*POWER(1+PSBNB,(EB$8))*POWER(1+KALBNB,-(EB$8)),"") ->  | EC26: 850661.2892 | FB26: 850661.2892 | HF26: 0 | IE26: 0 | JR26: =IF(AND(MOD(JR$8,$U26)=0,JR$8<BZBNB),$AO26*POWER(1+PSBNB,JR$8)*POWER(1+KALBNB,-JR$8),"") ->  | KH26: =IF(AND(MOD(KH$8,$U26)=0,KH$8<BZBNB),$AO26*POWER(1+PSBNB,KH$8)*POWER(1+KALBNB,-KH$8),"") ->  | KJ26: 0 | LX26: =IF(AND(ISNUMBER($AP26),$AP26<>0),$AP26*POWER(1+PSBNB,LX$8)*POWER(1+KALBNB,-LX$8),"") ->  | NL26: =IF(AND(ISNUMBER($AP26),$AP26<>0),$AP26*POWER(1+PSBNB,NL$8)*POWER(1+KALBNB,-NL$8),"") ->  | NM26: 256469.907 | NN26: 4536.164673 | NO26: 4558.510312 | NP26: 4580.966027 | NQ26: 4603.532362 | NR26: 4626.209862 | NS26: 4648.999073 | NT26: 4671.900546 | NU26: 4694.914835 | NV26: 4718.042494 | NW26: 4741.284083 | NX26: 4764.640162 | NY26: 4788.111296 | NZ26: 4811.698051 | OA26: 4835.400997 | OB26: 4859.220706 | OC26: 4883.157754 | OD26: 4907.212718 | OE26: 4931.38618 | OF26: 4955.678723 | OG26: 4980.090933 | OH26: 5004.623401 | OI26: 5029.276718 | OJ26: 5054.05148 | OK26: 5078.948285 | OL26: 5103.967735 | OM26: 5129.110433 | ON26: 5154.376987 | OO26: 5179.768007 | OP26: 5205.284105 | OQ26: 5230.925899 | OR26: 5256.694007 | OS26: 5282.589051 | OT26: 5308.611657 | OU26: 5334.762454 | OV26: 5361.042072 | OW26: 5387.451146 | OX26: 5413.990314 | OY26: 5440.660217 | OZ26: 5467.461499 | PA26: 5494.394807 | PB26: 5521.460791 | PC26: 5548.660106 | PD26: 5575.993407 | PE26: 5603.461354 | PF26: 5631.064612 | PG26: 5658.803847 | PH26: 5686.679728 | PI26: 5714.692928 | PJ26: 5742.844125 | PK26: 5771.133998 | PL26: 5799.563229 | PM26: 5828.132506 | PN26: 5856.842519 | PO26: 5885.69396 | PP26: 5914.687526 | PQ26: 5943.823918 | PR26: 5973.103838 | PS26: 6002.527995 | PT26: 6032.097099 | PU26: 6061.811863 | PV26: 6091.673005 | PW26: 6121.681246 | PX26: 6151.837311 | PY26: =IF(AND(ISNUMBER($AQ26),$AQ26<>0),$AQ26*POWER(1+PSBNB,PY$8)*POWER(1+KALBNB,-PY$8),"") -> 6182.141929 | PZ26: 6212.59583 | QA26: 6243.19975 | QB26: 6273.954429 | QC26: 6304.860608 | QD26: 6335.919035 | QE26: 6367.130459 | QF26: 6398.495633 | QG26: 6430.015316 | QH26: 6461.690269 | QI26: 6493.521255 | QJ26: 6525.509045 | QK26: 6557.654409 | QL26: 6589.958126 | QM26: 6622.420974 | QN26: 6655.043737 | QO26: =IF(AND(ISNUMBER($AQ26),$AQ26<>0),$AQ26*POWER(1+PSBNB,QO$8)*POWER(1+KALBNB,-QO$8),"") -> 6687.827204 | QP26: 0 | TB26: =IF(AND(ISNUMBER($AR26),$AR26<>0),$AR26*POWER(1+PSBNB,TB$8)*POWER(1+KALBNB,-TB$8),"") ->  | TR26: =IF(AND(ISNUMBER($AR26),$AR26<>0),$AR26*POWER(1+PSBNB,TR$8)*POWER(1+KALBNB,-TR$8),"") ->  | TT26: 0 | WF26: =IF(AND(ISNUMBER($AS26),$AS26<>0),$AS26*POWER(1+PSBNB,WF$8)*POWER(1+KALBNB,-WF$8),"") ->  | WV26: =IF(AND(ISNUMBER($AS26),$AS26<>0),$AS26*POWER(1+PSBNB,WV$8)*POWER(1+KALBNB,-WV$8),"") ->  | WW26: 299214.8915 | WX26: 5292.192118 | WY26: 5318.26203 | WZ26: 5344.460365 | XA26: 5370.787756 | XB26: 5397.244839 | XC26: 5423.832252 | XD26: 5450.550637 | XE26: 5477.40064 | XF26: 5504.38291 | XG26: 5531.498096 | XH26: 5558.746855 | XI26: 5586.129845 | XJ26: 5613.647726 | XK26: 5641.301163 | XL26: 5669.090824 | XM26: 5697.01738 | XN26: 5725.081505 | XO26: 5753.283877 | XP26: 5781.625176 | XQ26: 5810.106089 | XR26: 5838.727301 | XS26: 5867.489504 | XT26: 5896.393394 | XU26: 5925.439666 | XV26: 5954.629024 | XW26: 5983.962172 | XX26: 6013.439818 | XY26: 6043.062675 | XZ26: 6072.831456 | YA26: 6102.746882 | YB26: 6132.809675 | YC26: 6163.02056 | YD26: 6193.380267 | YE26: 6223.889529 | YF26: 6254.549084 | YG26: 6285.35967 | YH26: 6316.322033 | YI26: 6347.43692 | YJ26: 6378.705082 | YK26: 6410.127275 | YL26: 6441.704257 | YM26: 6473.43679 | YN26: 6505.325641 | YO26: 6537.37158 | YP26: 6569.575381 | YQ26: 6601.937821 | YR26: 6634.459682 | YS26: 6667.14175 | YT26: 6699.984813 | YU26: 6732.989664 | YV26: 6766.157101 | YW26: 6799.487924 | YX26: 6832.982938 | YY26: 6866.642953 | YZ26: 6900.46878 | ZA26: 6934.461237 | ZB26: 6968.621145 | ZC26: 7002.949328 | ZD26: 7037.446615 | ZE26: 7072.11384 | ZF26: 7106.951839 | ZG26: 7141.961454 | ZH26: 7177.14353 | ZI26: =IF(AND(ISNUMBER($AT26),$AT26<>0),$AT26*POWER(1+PSBNB,ZI$8)*POWER(1+KALBNB,-ZI$8),"") -> 7212.498917 | ZJ26: 7248.028468 | ZK26: 7283.733042 | ZL26: 7319.6135 | ZM26: 7355.67071 | ZN26: 7391.905541 | ZO26: 7428.318869 | ZP26: 7464.911572 | ZQ26: 7501.684536 | ZR26: 7538.638647 | ZS26: 7575.774798 | ZT26: 7613.093885 | ZU26: 7650.596811 | ZV26: 7688.28448 | ZW26: 7726.157803 | ZX26: 7764.217693 | ZY26: =IF(AND(ISNUMBER($AT26),$AT26<>0),$AT26*POWER(1+PSBNB,ZY$8)*POWER(1+KALBNB,-ZY$8),"") -> 7802.465071 | ZZ26: 0 | ACL26: =IF(AND(ISNUMBER($AU26),$AU26<>0),$AU26*POWER(1+PSBNB,ACL$8)*POWER(1+KALBNB,-ACL$8),"") ->  | ADB26: =IF(AND(ISNUMBER($AU26),$AU26<>0),$AU26*POWER(1+PSBNB,ADB$8)*POWER(1+KALBNB,-ADB$8),"") -> 
A27: 16 | E27: 450 | F27: 450: Fernmelde- und informationstechnische Anlagen | G27: Ja | H27: Nein | J27: 271000 | K27: 266160.7143 | L27: 266160.7143 | M27: 1 | N27: pschl. | O27: 271000 | P27: 0 | Q27: 0 | R27: 0 | S27: 1 | T27: 450 | U27: 25 | V27: 450-001: Fernmeldetechnische Anlagen gesamt (Anlage 3/ AMEV) [ND: 25] | W27: 25 | X27: Nein | Z27: 450 | AA27: 2768.071429 | AB27: 2768.071429 | AC27: 5536.142857 | AD27: 450-001: Fernmeldetechnische Anlagen gesamt (Anlage 3/ AMEV) [IW: 0,0104, IN: 0,0104] | AE27: 0.0104 | AF27: 0.0104 | AG27: Nein | AJ27: 0 | AK27: 266160.7143 | AL27: 0 | AM27: 0 | AN27: 266160.7143 | AO27: 0 | AP27: 0 | AQ27: 2768.071429 | AR27: 0 | AS27: 0 | AT27: 2768.071429 | AU27: 0 | AV27: 76.9376857 | AW27: 615501.4856 | AZ27: 0 | BA27: =IF(AND(MOD(BA$8,$U27)=0,BA$8<BZBNB),$AM27*POWER(1+PSBNB,(BA$8))*POWER(1+KALBNB,-(BA$8)),"") ->  | BY27: 0 | DM27: =IF(AND(MOD(DM$8,$U27)=0,DM$8<BZBNB),$AM27*POWER(1+PSBNB,(DM$8))*POWER(1+KALBNB,-(DM$8)),"") ->  | EC27: 300951.9705 | FB27: 300951.9705 | GO27: =IF(AND(MOD(GO$8,$U27)=0,GO$8<BZBNB),$AN27*POWER(1+PSBNB,(GO$8))*POWER(1+KALBNB,-(GO$8)),"") ->  | HE27: =IF(AND(MOD(HE$8,$U27)=0,HE$8<BZBNB),$AN27*POWER(1+PSBNB,(HE$8))*POWER(1+KALBNB,-(HE$8)),"") ->  | HF27: 0 | HG27: =IF(AND(MOD(HG$8,$U27)=0,HG$8<BZBNB),$AO27*POWER(1+PSBNB,HG$8)*POWER(1+KALBNB,-HG$8),"") ->  | IE27: 0 | JS27: =IF(AND(MOD(JS$8,$U27)=0,JS$8<BZBNB),$AO27*POWER(1+PSBNB,JS$8)*POWER(1+KALBNB,-JS$8),"") ->  | KJ27: 0 | LQ27: =IF(AND(ISNUMBER($AP27),$AP27<>0),$AP27*POWER(1+PSBNB,LQ$8)*POWER(1+KALBNB,-LQ$8),"") ->  | NM27: 157274.7576 | NN27: =IF(AND(ISNUMBER($AQ27),$AQ27<>0),$AQ27*POWER(1+PSBNB,NN$8)*POWER(1+KALBNB,-NN$8),"") -> 2781.707248 | NO27: 2795.41024 | NP27: 2809.180734 | NQ27: 2823.019062 | NR27: 2836.92556 | NS27: 2850.900563 | NT27: 2864.944408 | NU27: 2879.057435 | NV27: 2893.239984 | NW27: 2907.492397 | NX27: 2921.81502 | NY27: 2936.208197 | NZ27: 2950.672277 | OA27: 2965.207609 | OB27: 2979.814543 | OC27: 2994.493432 | OD27: 3009.244631 | OE27: 3024.068496 | OF27: 3038.965386 | OG27: 3053.935658 | OH27: 3068.979676 | OI27: 3084.097803 | OJ27: 3099.290403 | OK27: 3114.557843 | OL27: 3129.900493 | OM27: 3145.318722 | ON27: 3160.812903 | OO27: 3176.38341 | OP27: 3192.030619 | OQ27: 3207.754907 | OR27: 3223.556656 | OS27: 3239.436245 | OT27: 3255.394059 | OU27: 3271.430483 | OV27: 3287.545904 | OW27: 3303.740711 | OX27: 3320.015296 | OY27: 3336.370051 | OZ27: 3352.805372 | PA27: 3369.321655 | PB27: 3385.919298 | PC27: 3402.598704 | PD27: 3419.360274 | PE27: 3436.204413 | PF27: 3453.131528 | PG27: 3470.142028 | PH27: 3487.236324 | PI27: 3504.414828 | PJ27: 3521.677955 | PK27: 3539.026123 | PL27: 3556.459749 | PM27: 3573.979255 | PN27: 3591.585064 | PO27: 3609.277601 | PP27: 3627.057294 | PQ27: 3644.924571 | PR27: 3662.879865 | PS27: 3680.923608 | PT27: 3699.056236 | PU27: 3717.278188 | PV27: 3735.589904 | PW27: 3753.991824 | PX27: 3772.484395 | PY27: 3791.068062 | PZ27: =IF(AND(ISNUMBER($AQ27),$AQ27<>0),$AQ27*POWER(1+PSBNB,PZ$8)*POWER(1+KALBNB,-PZ$8),"") -> 3809.743274 | QA27: 3828.510482 | QB27: 3847.37014 | QC27: 3866.322702 | QD27: 3885.368627 | QE27: 3904.508374 | QF27: 3923.742405 | QG27: 3943.071185 | QH27: 3962.495181 | QI27: 3982.014862 | QJ27: 4001.630699 | QK27: 4021.343165 | QL27: 4041.152737 | QM27: 4061.059894 | QN27: 4081.065115 | QO27: 4101.168884 | QP27: 0 | QQ27: =IF(AND(ISNUMBER($AR27),$AR27<>0),$AR27*POWER(1+PSBNB,QQ$8)*POWER(1+KALBNB,-QQ$8),"") ->  | TC27: =IF(AND(ISNUMBER($AR27),$AR27<>0),$AR27*POWER(1+PSBNB,TC$8)*POWER(1+KALBNB,-TC$8),"") ->  | TT27: 0 | TU27: =IF(AND(ISNUMBER($AS27),$AS27<>0),$AS27*POWER(1+PSBNB,TU$8)*POWER(1+KALBNB,-TU$8),"") ->  | WG27: =IF(AND(ISNUMBER($AS27),$AS27<>0),$AS27*POWER(1+PSBNB,WG$8)*POWER(1+KALBNB,-WG$8),"") ->  | WW27: 157274.7576 | WX27: =IF(AND(ISNUMBER($AT27),$AT27<>0),$AT27*POWER(1+PSBNB,WX$8)*POWER(1+KALBNB,-WX$8),"") -> 2781.707248 | WY27: 2795.41024 | WZ27: 2809.180734 | XA27: 2823.019062 | XB27: 2836.92556 | XC27: 2850.900563 | XD27: 2864.944408 | XE27: 2879.057435 | XF27: 2893.239984 | XG27: 2907.492397 | XH27: 2921.81502 | XI27: 2936.208197 | XJ27: 2950.672277 | XK27: 2965.207609 | XL27: 2979.814543 | XM27: 2994.493432 | XN27: 3009.244631 | XO27: 3024.068496 | XP27: 3038.965386 | XQ27: 3053.935658 | XR27: 3068.979676 | XS27: 3084.097803 | XT27: 3099.290403 | XU27: 3114.557843 | XV27: 3129.900493 | XW27: 3145.318722 | XX27: 3160.812903 | XY27: 3176.38341 | XZ27: 3192.030619 | YA27: 3207.754907 | YB27: 3223.556656 | YC27: 3239.436245 | YD27: 3255.394059 | YE27: 3271.430483 | YF27: 3287.545904 | YG27: 3303.740711 | YH27: 3320.015296 | YI27: 3336.370051 | YJ27: 3352.805372 | YK27: 3369.321655 | YL27: 3385.919298 | YM27: 3402.598704 | YN27: 3419.360274 | YO27: 3436.204413 | YP27: 3453.131528 | YQ27: 3470.142028 | YR27: 3487.236324 | YS27: 3504.414828 | YT27: 3521.677955 | YU27: 3539.026123 | YV27: 3556.459749 | YW27: 3573.979255 | YX27: 3591.585064 | YY27: 3609.277601 | YZ27: 3627.057294 | ZA27: 3644.924571 | ZB27: 3662.879865 | ZC27: 3680.923608 | ZD27: 3699.056236 | ZE27: 3717.278188 | ZF27: 3735.589904 | ZG27: 3753.991824 | ZH27: 3772.484395 | ZI27: 3791.068062 | ZJ27: =IF(AND(ISNUMBER($AT27),$AT27<>0),$AT27*POWER(1+PSBNB,ZJ$8)*POWER(1+KALBNB,-ZJ$8),"") -> 3809.743274 | ZK27: 3828.510482 | ZL27: 3847.37014 | ZM27: 3866.322702 | ZN27: 3885.368627 | ZO27: 3904.508374 | ZP27: 3923.742405 | ZQ27: 3943.071185 | ZR27: 3962.495181 | ZS27: 3982.014862 | ZT27: 4001.630699 | ZU27: 4021.343165 | ZV27: 4041.152737 | ZW27: 4061.059894 | ZX27: 4081.065115 | ZY27: 4101.168884 | ZZ27: 0 | AAA27: =IF(AND(ISNUMBER($AU27),$AU27<>0),$AU27*POWER(1+PSBNB,AAA$8)*POWER(1+KALBNB,-AAA$8),"") ->  | ACM27: =IF(AND(ISNUMBER($AU27),$AU27<>0),$AU27*POWER(1+PSBNB,ACM$8)*POWER(1+KALBNB,-ACM$8),"") -> 
A28: 17 | E28: 460 | F28: 460: Förderanlagen | G28: Ja | H28: Nein | J28: 197000 | K28: 193482.1429 | L28: 193482.1429 | M28: 1 | N28: pschl. | O28: 197000 | P28: 0 | Q28: 0 | R28: 0 | S28: 1 | T28: 460 | U28: 25 | V28: 460-001: Aufzüge gesamt (Anlage 3/ AMEV) [ND: 25] | W28: 25 | X28: Nein | Z28: 460 | AA28: 3405.285714 | AB28: 3443.982143 | AC28: 6849.267857 | AD28: 460-001: Aufzüge gesamt (Anlage 3/ AMEV) [IW: 0,0176, IN: 0,0178] | AE28: 0.0176 | AF28: 0.0178 | AG28: Nein | AJ28: 0 | AK28: 193482.1429 | AL28: 0 | AM28: 0 | AN28: 193482.1429 | AO28: 0 | AP28: 0 | AQ28: 3405.285714 | AR28: 0 | AS28: 0 | AT28: 3443.982143 | AU28: 0 | AV28: 75.99139145 | AW28: 607931.1316 | AZ28: 0 | BY28: 0 | EC28: 218773.2036 | ED28: =IF(AND(MOD(ED$8,$U28)=0,ED$8<BZBNB),$AN28*POWER(1+PSBNB,(ED$8))*POWER(1+KALBNB,-(ED$8)),"") ->  | FB28: 218773.2036 | GP28: =IF(AND(MOD(GP$8,$U28)=0,GP$8<BZBNB),$AN28*POWER(1+PSBNB,(GP$8))*POWER(1+KALBNB,-(GP$8)),"") ->  | HF28: 0 | IE28: 0 | KJ28: 0 | KS28: =IF(AND(ISNUMBER($AP28),$AP28<>0),$AP28*POWER(1+PSBNB,KS$8)*POWER(1+KALBNB,-KS$8),"") ->  | NM28: 193479.6478 | NN28: 3422.060521 | NO28: 3438.917962 | NP28: 3455.858444 | NQ28: 3472.882378 | NR28: 3489.990173 | NS28: 3507.182242 | NT28: 3524.459002 | NU28: 3541.820869 | NV28: 3559.268263 | NW28: 3576.801604 | NX28: 3594.421316 | NY28: 3612.127825 | NZ28: 3629.921558 | OA28: 3647.802945 | OB28: 3665.772418 | OC28: 3683.83041 | OD28: 3701.977358 | OE28: 3720.2137 | OF28: 3738.539875 | OG28: 3756.956328 | OH28: 3775.463502 | OI28: 3794.061844 | OJ28: 3812.751804 | OK28: 3831.533833 | OL28: 3850.408384 | OM28: 3869.375913 | ON28: 3888.436878 | OO28: 3907.591739 | OP28: 3926.84096 | OQ28: 3946.185004 | OR28: 3965.624339 | OS28: 3985.159434 | OT28: 4004.790761 | OU28: 4024.518795 | OV28: 4044.34401 | OW28: 4064.266887 | OX28: 4084.287906 | OY28: 4104.407551 | OZ28: 4124.626308 | PA28: 4144.944664 | PB28: 4165.36311 | PC28: 4185.882141 | PD28: 4206.50225 | PE28: 4227.223936 | PF28: 4248.047699 | PG28: 4268.974042 | PH28: 4290.003471 | PI28: 4311.136493 | PJ28: 4332.373619 | PK28: 4353.71536 | PL28: 4375.162234 | PM28: 4396.714758 | PN28: 4418.373451 | PO28: 4440.138837 | PP28: 4462.011442 | PQ28: 4483.991794 | PR28: 4506.080424 | PS28: 4528.277864 | PT28: 4550.584652 | PU28: 4573.001325 | PV28: 4595.528425 | PW28: 4618.166496 | PX28: 4640.916085 | PY28: 4663.777741 | PZ28: 4686.752015 | QA28: 4709.839463 | QB28: 4733.040643 | QC28: 4756.356114 | QD28: 4779.78644 | QE28: 4803.332186 | QF28: 4826.993921 | QG28: 4850.772216 | QH28: 4874.667646 | QI28: 4898.680787 | QJ28: 4922.812219 | QK28: 4947.062526 | QL28: 4971.432292 | QM28: 4995.922106 | QN28: 5020.53256 | QO28: 5045.264247 | QP28: 0 | TT28: 0 | WW28: 195678.2802 | WX28: 3460.947572 | WY28: 3477.996575 | WZ28: 3495.129563 | XA28: 3512.34695 | XB28: 3529.649152 | XC28: 3547.036586 | XD28: 3564.509673 | XE28: 3582.068834 | XF28: 3599.714493 | XG28: 3617.447077 | XH28: 3635.267013 | XI28: 3653.174732 | XJ28: 3671.170667 | XK28: 3689.255251 | XL28: 3707.428923 | XM28: 3725.692119 | XN28: 3744.045282 | XO28: 3762.488855 | XP28: 3781.023283 | XQ28: 3799.649014 | XR28: 3818.366496 | XS28: 3837.176184 | XT28: 3856.078529 | XU28: 3875.07399 | XV28: 3894.163024 | XW28: 3913.346093 | XX28: 3932.62366 | XY28: 3951.996191 | XZ28: 3971.464152 | YA28: 3991.028015 | YB28: 4010.688252 | YC28: 4030.445337 | YD28: 4050.299747 | YE28: 4070.251963 | YF28: 4090.302465 | YG28: 4110.451738 | YH28: 4130.700269 | YI28: 4151.048546 | YJ28: 4171.497061 | YK28: 4192.046308 | YL28: 4212.696782 | YM28: 4233.448983 | YN28: 4254.303412 | YO28: 4275.260571 | YP28: 4296.320968 | YQ28: 4317.485111 | YR28: 4338.75351 | YS28: 4360.12668 | YT28: 4381.605137 | YU28: 4403.189399 | YV28: 4424.879987 | YW28: 4446.677425 | YX28: 4468.58224 | YY28: 4490.594961 | YZ28: 4512.716118 | ZA28: 4534.946247 | ZB28: 4557.285883 | ZC28: 4579.735567 | ZD28: 4602.295841 | ZE28: 4624.967249 | ZF28: 4647.750339 | ZG28: 4670.645661 | ZH28: 4693.653768 | ZI28: 4716.775215 | ZJ28: 4740.010561 | ZK28: 4763.360366 | ZL28: 4786.825196 | ZM28: 4810.405616 | ZN28: 4834.102195 | ZO28: 4857.915506 | ZP28: 4881.846124 | ZQ28: 4905.894628 | ZR28: 4930.061596 | ZS28: 4954.347614 | ZT28: 4978.753267 | ZU28: 5003.279145 | ZV28: 5027.925841 | ZW28: 5052.693948 | ZX28: 5077.584066 | ZY28: 5102.596796 | ZZ28: 0
A29: 18 | E29: 470 | F29: 470: Nutzungsspezifische Anlagen | G29: Ja | H29: Nein | J29: 142000 | K29: 139464.2857 | L29: 139464.2857 | M29: 1 | N29: pschl. | O29: 142000 | P29: 0 | Q29: 0 | R29: 0 | S29: 1 | T29: 470 | U29: 25 | V29: 470-001: Abfallentsorgungsanlagen (Anlage 3/ AMEV) [ND: 25] | W29: 25 | X29: Nein | Z29: 470 | AA29: 2231.428571 | AB29: 1952.5 | AC29: 4183.928571 | AD29: 470-111: Abfallentsorgungsanlagen (Anlage 3/ AMEV) [IW: 0,016, IN: 0,014] | AE29: 0.016 | AF29: 0.014 | AG29: Nein | AJ29: 0 | AK29: 139464.2857 | AL29: 0 | AM29: 0 | AN29: 139464.2857 | AO29: 0 | AP29: 0 | AQ29: 2231.428571 | AR29: 0 | AS29: 0 | AT29: 1952.5 | AU29: 0 | AV29: 49.4268174 | AW29: 395414.5392 | AZ29: 0 | BY29: 0 | EC29: 157694.3904 | FB29: 157694.3904 | HF29: 0 | IE29: 0 | KJ29: 0 | KL29: =IF(AND(ISNUMBER($AP29),$AP29<>0),$AP29*POWER(1+PSBNB,KL$8)*POWER(1+KALBNB,-KL$8),"") ->  | NM29: 126784.0793 | NN29: 2242.42083 | NO29: 2253.467238 | NP29: 2264.568062 | NQ29: 2275.72357 | NR29: 2286.934031 | NS29: 2298.199716 | NT29: 2309.520897 | NU29: 2320.897847 | NV29: 2332.330841 | NW29: 2343.820156 | NX29: 2355.366068 | NY29: 2366.968856 | NZ29: 2378.628801 | OA29: 2390.346185 | OB29: 2402.121289 | OC29: 2413.954399 | OD29: 2425.8458 | OE29: 2437.795779 | OF29: 2449.804625 | OG29: 2461.872628 | OH29: 2474.00008 | OI29: 2486.187272 | OJ29: 2498.4345 | OK29: 2510.742059 | OL29: 2523.110247 | OM29: 2535.539361 | ON29: 2548.029703 | OO29: 2560.581573 | OP29: 2573.195276 | OQ29: 2585.871115 | OR29: 2598.609396 | OS29: 2611.410427 | OT29: 2624.274518 | OU29: 2637.201979 | OV29: 2650.193122 | OW29: 2663.24826 | OX29: 2676.36771 | OY29: 2689.551787 | OZ29: 2702.800811 | PA29: 2716.1151 | PB29: 2729.494978 | PC29: 2742.940766 | PD29: 2756.452789 | PE29: 2770.031374 | PF29: 2783.676849 | PG29: 2797.389543 | PH29: 2811.169787 | PI29: 2825.017914 | PJ29: 2838.934259 | PK29: 2852.919156 | PL29: 2866.972945 | PM29: 2881.095965 | PN29: 2895.288556 | PO29: 2909.551061 | PP29: 2923.883825 | PQ29: 2938.287193 | PR29: 2952.761515 | PS29: 2967.307138 | PT29: 2981.924414 | PU29: 2996.613697 | PV29: 3011.375341 | PW29: 3026.209702 | PX29: 3041.117139 | PY29: 3056.098012 | PZ29: 3071.152682 | QA29: 3086.281513 | QB29: 3101.48487 | QC29: 3116.763121 | QD29: 3132.116633 | QE29: 3147.545779 | QF29: 3163.050931 | QG29: 3178.632463 | QH29: 3194.290751 | QI29: 3210.026173 | QJ29: 3225.83911 | QK29: 3241.729943 | QL29: 3257.699056 | QM29: 3273.746835 | QN29: 3289.873666 | QO29: 3306.079941 | QP29: 0 | TT29: 0 | WW29: 110936.0694 | WX29: 1962.118227 | WY29: 1971.783834 | WZ29: 1981.497054 | XA29: 1991.258124 | XB29: 2001.067277 | XC29: 2010.924751 | XD29: 2020.830785 | XE29: 2030.785616 | XF29: 2040.789486 | XG29: 2050.842636 | XH29: 2060.945309 | XI29: 2071.097749 | XJ29: 2081.300201 | XK29: 2091.552912 | XL29: 2101.856128 | XM29: 2112.210099 | XN29: 2122.615075 | XO29: 2133.071307 | XP29: 2143.579047 | XQ29: 2154.13855 | XR29: 2164.75007 | XS29: 2175.413863 | XT29: 2186.130188 | XU29: 2196.899302 | XV29: 2207.721466 | XW29: 2218.596941 | XX29: 2229.52599 | XY29: 2240.508877 | XZ29: 2251.545866 | YA29: 2262.637225 | YB29: 2273.783221 | YC29: 2284.984124 | YD29: 2296.240203 | YE29: 2307.551732 | YF29: 2318.918981 | YG29: 2330.342228 | YH29: 2341.821746 | YI29: 2353.357814 | YJ29: 2364.950709 | YK29: 2376.600713 | YL29: 2388.308106 | YM29: 2400.07317 | YN29: 2411.896191 | YO29: 2423.777453 | YP29: 2435.717243 | YQ29: 2447.71585 | YR29: 2459.773564 | YS29: 2471.890675 | YT29: 2484.067476 | YU29: 2496.304262 | YV29: 2508.601327 | YW29: 2520.958969 | YX29: 2533.377486 | YY29: 2545.857178 | YZ29: 2558.398347 | ZA29: 2571.001294 | ZB29: 2583.666325 | ZC29: 2596.393746 | ZD29: 2609.183863 | ZE29: 2622.036985 | ZF29: 2634.953423 | ZG29: 2647.933489 | ZH29: 2660.977497 | ZI29: 2674.08576 | ZJ29: 2687.258597 | ZK29: 2700.496324 | ZL29: 2713.799261 | ZM29: 2727.16773 | ZN29: 2740.602054 | ZO29: 2754.102557 | ZP29: 2767.669565 | ZQ29: 2781.303405 | ZR29: 2795.004407 | ZS29: 2808.772902 | ZT29: 2822.609221 | ZU29: 2836.5137 | ZV29: 2850.486674 | ZW29: 2864.52848 | ZX29: 2878.639458 | ZY29: 2892.819948 | ZZ29: 0
A30: 19 | E30: 480 | F30: 480: Gebäudeautomation | G30: Ja | H30: Nein | J30: 264000 | K30: 259285.7143 | L30: 259285.7143 | M30: 1 | N30: pschl. | O30: 264000 | P30: 0 | Q30: 0 | R30: 0 | S30: 4 | T30: 480 | U30: 10 | V30: 480-001: Gebäudeautomation (FAQ) [ND: 10] | W30: 10 | X30: Nein | Z30: 480 | AA30: 3007.714286 | AB30: 1970.571429 | AC30: 4978.285714 | AD30: 480-111: Gebäudeautomation (FAQ) [IW: 0,0116, IN: 0,0076] | AE30: 0.0116 | AF30: 0.0076 | AG30: Nein | AJ30: 0 | AK30: 259285.7143 | AL30: 0 | AM30: 0 | AN30: 259285.7143 | AO30: 0 | AP30: 0 | AQ30: 3007.714286 | AR30: 0 | AS30: 0 | AT30: 1970.571429 | AU30: 0 | AV30: 182.1671653 | AW30: 1457337.323 | AZ30: 0 | BJ30: 0 | BT30: 0 | CD30: 0 | CN30: 0 | DL30: =IF(AND(MOD(DL$8,$U30)=0,DL$8<BZBNB),$AM30*POWER(1+PSBNB,(DL$8))*POWER(1+KALBNB,-(DL$8)),"") ->  | EC30: 1174483.827 | EM30: 272345.2998 | EW30: 286062.6646 | FG30: 300470.9394 | FQ30: 315604.9236 | HF30: 0 | HP30: 0 | HZ30: 0 | IJ30: 0 | IT30: 0 | JR30: =IF(AND(MOD(JR$8,$U30)=0,JR$8<BZBNB),$AO30*POWER(1+PSBNB,JR$8)*POWER(1+KALBNB,-JR$8),"") ->  | KJ30: 0 | NM30: 170890.6534 | NN30: 3022.530612 | NO30: 3037.419926 | NP30: 3052.382585 | NQ30: 3067.418953 | NR30: 3082.529391 | NS30: 3097.714265 | NT30: 3112.973941 | NU30: 3128.308788 | NV30: 3143.719176 | NW30: 3159.205477 | NX30: 3174.768066 | NY30: 3190.407318 | NZ30: 3206.12361 | OA30: 3221.917322 | OB30: 3237.788836 | OC30: 3253.738535 | OD30: 3269.766803 | OE30: 3285.874029 | OF30: 3302.060601 | OG30: 3318.326909 | OH30: 3334.673347 | OI30: 3351.100309 | OJ30: 3367.608193 | OK30: 3384.197395 | OL30: 3400.868319 | OM30: 3417.621364 | ON30: 3434.456938 | OO30: 3451.375445 | OP30: 3468.377294 | OQ30: 3485.462897 | OR30: 3502.632665 | OS30: 3519.887013 | OT30: 3537.226358 | OU30: 3554.651118 | OV30: 3572.161715 | OW30: 3589.75857 | OX30: 3607.44211 | OY30: 3625.212761 | OZ30: 3643.070952 | PA30: 3661.017114 | PB30: 3679.051681 | PC30: 3697.175089 | PD30: 3715.387774 | PE30: 3733.690177 | PF30: 3752.082739 | PG30: 3770.565905 | PH30: 3789.140122 | PI30: 3807.805836 | PJ30: 3826.563501 | PK30: 3845.413567 | PL30: 3864.356491 | PM30: 3883.39273 | PN30: 3902.522743 | PO30: 3921.746993 | PP30: 3941.065944 | PQ30: 3960.480062 | PR30: 3979.989816 | PS30: 3999.595677 | PT30: 4019.298119 | PU30: 4039.097617 | PV30: 4058.99465 | PW30: 4078.989697 | PX30: 4099.083243 | PY30: =IF(AND(ISNUMBER($AQ30),$AQ30<>0),$AQ30*POWER(1+PSBNB,PY$8)*POWER(1+KALBNB,-PY$8),"") -> 4119.275771 | PZ30: 4139.56777 | QA30: 4159.959729 | QB30: 4180.452142 | QC30: 4201.045502 | QD30: 4221.740307 | QE30: 4242.537058 | QF30: 4263.436255 | QG30: 4284.438404 | QH30: 4305.544012 | QI30: 4326.753588 | QJ30: 4348.067645 | QK30: 4369.486698 | QL30: 4391.011263 | QM30: 4412.64186 | QN30: 4434.379012 | QO30: 4456.223244 | QP30: 0 | TB30: =IF(AND(ISNUMBER($AR30),$AR30<>0),$AR30*POWER(1+PSBNB,TB$8)*POWER(1+KALBNB,-TB$8),"") ->  | TT30: 0 | WF30: =IF(AND(ISNUMBER($AS30),$AS30<>0),$AS30*POWER(1+PSBNB,WF$8)*POWER(1+KALBNB,-WF$8),"") ->  | WW30: 111962.8419 | WX30: 1980.278677 | WY30: 1990.033744 | WZ30: 1999.836866 | XA30: 2009.688279 | XB30: 2019.588222 | XC30: 2029.536932 | XD30: 2039.534651 | XE30: 2049.58162 | XF30: 2059.678081 | XG30: 2069.824278 | XH30: 2080.020457 | XI30: 2090.266863 | XJ30: 2100.563744 | XK30: 2110.911349 | XL30: 2121.309927 | XM30: 2131.75973 | XN30: 2142.261009 | XO30: 2152.814019 | XP30: 2163.419014 | XQ30: 2174.076251 | XR30: 2184.785986 | XS30: 2195.548478 | XT30: 2206.363988 | XU30: 2217.232776 | XV30: 2228.155105 | XW30: 2239.131239 | XX30: 2250.161442 | XY30: 2261.245981 | XZ30: 2272.385124 | YA30: 2283.579139 | YB30: 2294.828298 | YC30: 2306.13287 | YD30: 2317.493131 | YE30: 2328.909353 | YF30: 2340.381813 | YG30: 2351.910788 | YH30: 2363.496555 | YI30: 2375.139395 | YJ30: 2386.839589 | YK30: 2398.59742 | YL30: 2410.413171 | YM30: 2422.287127 | YN30: 2434.219576 | YO30: 2446.210805 | YP30: 2458.261105 | YQ30: 2470.370766 | YR30: 2482.54008 | YS30: 2494.769341 | YT30: 2507.058845 | YU30: 2519.408889 | YV30: 2531.81977 | YW30: 2544.291789 | YX30: 2556.825246 | YY30: 2569.420444 | YZ30: 2582.077688 | ZA30: 2594.797282 | ZB30: 2607.579535 | ZC30: 2620.424754 | ZD30: 2633.33325 | ZE30: 2646.305335 | ZF30: 2659.341322 | ZG30: 2672.441526 | ZH30: 2685.606262 | ZI30: =IF(AND(ISNUMBER($AT30),$AT30<>0),$AT30*POWER(1+PSBNB,ZI$8)*POWER(1+KALBNB,-ZI$8),"") -> 2698.83585 | ZJ30: 2712.130608 | ZK30: 2725.490857 | ZL30: 2738.91692 | ZM30: 2752.409122 | ZN30: 2765.967788 | ZO30: 2779.593245 | ZP30: 2793.285822 | ZQ30: 2807.045851 | ZR30: 2820.873663 | ZS30: 2834.769592 | ZT30: 2848.733975 | ZU30: 2862.767147 | ZV30: 2876.869448 | ZW30: 2891.041219 | ZX30: 2905.282801 | ZY30: 2919.594539 | ZZ30: 0 | ACL30: =IF(AND(ISNUMBER($AU30),$AU30<>0),$AU30*POWER(1+PSBNB,ACL$8)*POWER(1+KALBNB,-ACL$8),"") -> 
A31: 20 | E31: 490 | F31: 490: Sonstige Maßnahmen für technische Anlagen | G31: Ja | H31: Nein | J31: 68000 | K31: 66785.71429 | L31: 66785.71429 | M31: 1 | N31: pschl. | O31: 68000 | P31: 0 | Q31: 0 | R31: 0 | S31: 1 | T31: 490 | U31: 25 | V31: 490-001: Sonstige Maßnahmen für Technische Anlagen (FAQ) [ND: 25] | W31: 25 | X31: Nein | Z31: 490 | AA31: 333.9285714 | AB31: 333.9285714 | AC31: 667.8571429 | AD31: 490-111: Sonstige Maßnahmen für Technische Anlagen (FAQ) [IW: 0,005, IN: 0,005] | AE31: 0.005 | AF31: 0.005 | AG31: Nein | AJ31: 0 | AK31: 66785.71429 | AL31: 0 | AM31: 0 | AN31: 66785.71429 | AO31: 0 | AP31: 0 | AQ31: 333.9285714 | AR31: 0 | AS31: 0 | AT31: 333.9285714 | AU31: 0 | AV31: 14.18269535 | AW31: 113461.5628 | AZ31: 0 | BA31: =IF(AND(MOD(BA$8,$U31)=0,BA$8<BZBNB),$AM31*POWER(1+PSBNB,(BA$8))*POWER(1+KALBNB,-(BA$8)),"") ->  | BY31: 0 | EC31: 75515.62358 | FB31: 75515.62358 | GO31: =IF(AND(MOD(GO$8,$U31)=0,GO$8<BZBNB),$AN31*POWER(1+PSBNB,(GO$8))*POWER(1+KALBNB,-(GO$8)),"") ->  | HF31: 0 | HG31: =IF(AND(MOD(HG$8,$U31)=0,HG$8<BZBNB),$AO31*POWER(1+PSBNB,HG$8)*POWER(1+KALBNB,-HG$8),"") ->  | IE31: 0 | KJ31: 0 | NM31: 18972.96962 | NN31: =IF(AND(ISNUMBER($AQ31),$AQ31<>0),$AQ31*POWER(1+PSBNB,NN$8)*POWER(1+KALBNB,-NN$8),"") -> 335.5735398 | NO31: 337.2266114 | NP31: 338.8878262 | NQ31: 340.5572244 | NR31: 342.2348462 | NS31: 343.9207321 | NT31: 345.6149229 | NU31: 347.3174595 | NV31: 349.0283829 | NW31: 350.7477346 | NX31: 352.4755559 | NY31: 354.2118887 | NZ31: 355.9567749 | OA31: 357.7102565 | OB31: 359.472376 | OC31: 361.2431759 | OD31: 363.0226989 | OE31: 364.8109881 | OF31: 366.6080865 | OG31: 368.4140377 | OH31: 370.2288852 | OI31: 372.0526728 | OJ31: 373.8854446 | OK31: 375.7272448 | OL31: 377.5781179 | OM31: 379.4381086 | ON31: 381.3072619 | OO31: 383.1856228 | OP31: 385.0732367 | OQ31: 386.9701492 | OR31: 388.8764061 | OS31: 390.7920534 | OT31: 392.7171374 | OU31: 394.6517046 | OV31: 396.5958017 | OW31: 398.5494756 | OX31: 400.5127735 | OY31: 402.4857428 | OZ31: 404.4684312 | PA31: 406.4608865 | PB31: 408.4631569 | PC31: 410.4752907 | PD31: 412.4973364 | PE31: 414.529343 | PF31: 416.5713595 | PG31: 418.6234351 | PH31: 420.6856196 | PI31: 422.7579625 | PJ31: 424.840514 | PK31: 426.9333245 | PL31: 429.0364443 | PM31: 431.1499243 | PN31: 433.2738156 | PO31: 435.4081693 | PP31: 437.5530372 | PQ31: 439.7084708 | PR31: 441.8745224 | PS31: 444.0512442 | PT31: 446.2386888 | PU31: 448.4369089 | PV31: 450.6459577 | PW31: 452.8658885 | PX31: 455.096755 | PY31: 457.3386109 | PZ31: 459.5915105 | QA31: 461.8555081 | QB31: 464.1306584 | QC31: 466.4170163 | QD31: 468.714637 | QE31: 471.0235761 | QF31: 473.3438893 | QG31: 475.6756326 | QH31: 478.0188623 | QI31: 480.3736351 | QJ31: 482.7400077 | QK31: 485.1180372 | QL31: 487.5077813 | QM31: 489.9092974 | QN31: 492.3226437 | QO31: 494.7478784 | QP31: 0 | QQ31: =IF(AND(ISNUMBER($AR31),$AR31<>0),$AR31*POWER(1+PSBNB,QQ$8)*POWER(1+KALBNB,-QQ$8),"") ->  | TT31: 0 | TU31: =IF(AND(ISNUMBER($AS31),$AS31<>0),$AS31*POWER(1+PSBNB,TU$8)*POWER(1+KALBNB,-TU$8),"") ->  | WW31: 18972.96962 | WX31: =IF(AND(ISNUMBER($AT31),$AT31<>0),$AT31*POWER(1+PSBNB,WX$8)*POWER(1+KALBNB,-WX$8),"") -> 335.5735398 | WY31: 337.2266114 | WZ31: 338.8878262 | XA31: 340.5572244 | XB31: 342.2348462 | XC31: 343.9207321 | XD31: 345.6149229 | XE31: 347.3174595 | XF31: 349.0283829 | XG31: 350.7477346 | XH31: 352.4755559 | XI31: 354.2118887 | XJ31: 355.9567749 | XK31: 357.7102565 | XL31: 359.472376 | XM31: 361.2431759 | XN31: 363.0226989 | XO31: 364.8109881 | XP31: 366.6080865 | XQ31: 368.4140377 | XR31: 370.2288852 | XS31: 372.0526728 | XT31: 373.8854446 | XU31: 375.7272448 | XV31: 377.5781179 | XW31: 379.4381086 | XX31: 381.3072619 | XY31: 383.1856228 | XZ31: 385.0732367 | YA31: 386.9701492 | YB31: 388.8764061 | YC31: 390.7920534 | YD31: 392.7171374 | YE31: 394.6517046 | YF31: 396.5958017 | YG31: 398.5494756 | YH31: 400.5127735 | YI31: 402.4857428 | YJ31: 404.4684312 | YK31: 406.4608865 | YL31: 408.4631569 | YM31: 410.4752907 | YN31: 412.4973364 | YO31: 414.529343 | YP31: 416.5713595 | YQ31: 418.6234351 | YR31: 420.6856196 | YS31: 422.7579625 | YT31: 424.840514 | YU31: 426.9333245 | YV31: 429.0364443 | YW31: 431.1499243 | YX31: 433.2738156 | YY31: 435.4081693 | YZ31: 437.5530372 | ZA31: 439.7084708 | ZB31: 441.8745224 | ZC31: 444.0512442 | ZD31: 446.2386888 | ZE31: 448.4369089 | ZF31: 450.6459577 | ZG31: 452.8658885 | ZH31: 455.096755 | ZI31: 457.3386109 | ZJ31: 459.5915105 | ZK31: 461.8555081 | ZL31: 464.1306584 | ZM31: 466.4170163 | ZN31: 468.714637 | ZO31: 471.0235761 | ZP31: 473.3438893 | ZQ31: 475.6756326 | ZR31: 478.0188623 | ZS31: 480.3736351 | ZT31: 482.7400077 | ZU31: 485.1180372 | ZV31: 487.5077813 | ZW31: 489.9092974 | ZX31: 492.3226437 | ZY31: 494.7478784 | ZZ31: 0 | AAA31: =IF(AND(ISNUMBER($AU31),$AU31<>0),$AU31*POWER(1+PSBNB,AAA$8)*POWER(1+KALBNB,-AAA$8),"") -> 
A32: 21 | E32: k.A. | G32: Ja | H32: Nein | J32: 0 | K32: 0 | L32: 0 | P32: 0 | Q32: 0 | R32: 0 | S32: 49 | U32: 1 | X32: Nein | AA32: 0 | AB32: 0 | AC32: 0 | AE32: 0 | AF32: 0 | AG32: Nein | AJ32: 0 | AK32: 0 | AL32: 0 | AM32: 0 | AN32: 0 | AO32: 0 | AP32: 0 | AQ32: 0 | AR32: 0 | AS32: 0 | AT32: 0 | AU32: 0 | AV32: 0 | AW32: 0 | AZ32: 0 | BA32: 0 | BB32: 0 | BC32: 0 | BD32: 0 | BE32: 0 | BF32: 0 | BG32: 0 | BH32: 0 | BI32: 0 | BJ32: 0 | BK32: 0 | BL32: 0 | BM32: 0 | BN32: 0 | BO32: 0 | BP32: 0 | BQ32: 0 | BR32: 0 | BS32: 0 | BT32: 0 | BU32: 0 | BV32: 0 | BW32: 0 | BX32: 0 | BY32: 0 | BZ32: 0 | CA32: 0 | CB32: 0 | CC32: 0 | CD32: 0 | CE32: 0 | CF32: 0 | CG32: 0 | CH32: 0 | CI32: 0 | CJ32: 0 | CK32: 0 | CL32: 0 | CM32: 0 | CN32: 0 | CO32: 0 | CP32: 0 | CQ32: 0 | CR32: 0 | CS32: 0 | CT32: 0 | CU32: 0 | CV32: 0 | CW32: 0 | EC32: 0 | ED32: =IF(AND(MOD(ED$8,$U32)=0,ED$8<BZBNB),$AN32*POWER(1+PSBNB,(ED$8))*POWER(1+KALBNB,-(ED$8)),"") -> 0 | EE32: 0 | EF32: 0 | EG32: 0 | EH32: 0 | EI32: 0 | EJ32: 0 | EK32: 0 | EL32: 0 | EM32: 0 | EN32: 0 | EO32: 0 | EP32: 0 | EQ32: 0 | ER32: 0 | ES32: 0 | ET32: 0 | EU32: 0 | EV32: 0 | EW32: 0 | EX32: 0 | EY32: 0 | EZ32: 0 | FA32: 0 | FB32: 0 | FC32: 0 | FD32: 0 | FE32: 0 | FF32: 0 | FG32: 0 | FH32: 0 | FI32: 0 | FJ32: 0 | FK32: 0 | FL32: 0 | FM32: 0 | FN32: 0 | FO32: 0 | FP32: 0 | FQ32: 0 | FR32: 0 | FS32: 0 | FT32: 0 | FU32: 0 | FV32: 0 | FW32: 0 | FX32: 0 | FY32: 0 | FZ32: 0 | HF32: 0 | HG32: 0 | HH32: 0 | HI32: 0 | HJ32: 0 | HK32: 0 | HL32: 0 | HM32: 0 | HN32: 0 | HO32: 0 | HP32: 0 | HQ32: 0 | HR32: 0 | HS32: 0 | HT32: 0 | HU32: 0 | HV32: 0 | HW32: 0 | HX32: 0 | HY32: 0 | HZ32: 0 | IA32: 0 | IB32: 0 | IC32: 0 | ID32: 0 | IE32: 0 | IF32: 0 | IG32: 0 | IH32: 0 | II32: 0 | IJ32: 0 | IK32: 0 | IL32: 0 | IM32: 0 | IN32: 0 | IO32: 0 | IP32: 0 | IQ32: 0 | IR32: 0 | IS32: 0 | IT32: 0 | IU32: 0 | IV32: 0 | IW32: 0 | IX32: 0 | IY32: 0 | IZ32: 0 | JA32: 0 | JB32: 0 | JC32: 0 | KJ32: 0 | MF32: =IF(AND(ISNUMBER($AP32),$AP32<>0),$AP32*POWER(1+PSBNB,MF$8)*POWER(1+KALBNB,-MF$8),"") ->  | NM32: 0 | QP32: 0 | TT32: 0 | WW32: 0 | ZZ32: 0
A33: 22 | E33: 500 | F33: 500: Außenanlagen | G33: Ja | H33: Nein | J33: 0 | K33: 0 | L33: 0 | P33: 0 | Q33: 0 | R33: 0 | S33: 49 | U33: 1 | X33: Nein | AA33: 0 | AB33: 0 | AC33: 0 | AE33: 0 | AF33: 0 | AG33: Nein | AJ33: 0 | AK33: 0 | AL33: 0 | AM33: 0 | AN33: 0 | AO33: 0 | AP33: 0 | AQ33: 0 | AR33: 0 | AS33: 0 | AT33: 0 | AU33: 0 | AV33: 0 | AW33: 0 | AZ33: 0 | BA33: 0 | BB33: 0 | BC33: 0 | BD33: 0 | BE33: 0 | BF33: 0 | BG33: 0 | BH33: 0 | BI33: 0 | BJ33: 0 | BK33: 0 | BL33: 0 | BM33: 0 | BN33: 0 | BO33: 0 | BP33: 0 | BQ33: 0 | BR33: 0 | BS33: 0 | BT33: 0 | BU33: 0 | BV33: 0 | BW33: 0 | BX33: 0 | BY33: 0 | BZ33: 0 | CA33: 0 | CB33: 0 | CC33: 0 | CD33: 0 | CE33: 0 | CF33: 0 | CG33: 0 | CH33: 0 | CI33: 0 | CJ33: 0 | CK33: 0 | CL33: 0 | CM33: 0 | CN33: 0 | CO33: 0 | CP33: 0 | CQ33: 0 | CR33: 0 | CS33: 0 | CT33: 0 | CU33: 0 | CV33: 0 | CW33: 0 | EC33: 0 | ED33: 0 | EE33: 0 | EF33: 0 | EG33: 0 | EH33: 0 | EI33: 0 | EJ33: 0 | EK33: 0 | EL33: 0 | EM33: 0 | EN33: 0 | EO33: 0 | EP33: 0 | EQ33: 0 | ER33: 0 | ES33: 0 | ET33: 0 | EU33: 0 | EV33: 0 | EW33: 0 | EX33: 0 | EY33: 0 | EZ33: 0 | FA33: 0 | FB33: 0 | FC33: 0 | FD33: 0 | FE33: 0 | FF33: 0 | FG33: 0 | FH33: 0 | FI33: 0 | FJ33: 0 | FK33: 0 | FL33: 0 | FM33: 0 | FN33: 0 | FO33: 0 | FP33: 0 | FQ33: 0 | FR33: 0 | FS33: 0 | FT33: 0 | FU33: 0 | FV33: 0 | FW33: 0 | FX33: 0 | FY33: 0 | FZ33: 0 | HF33: 0 | HG33: 0 | HH33: 0 | HI33: 0 | HJ33: 0 | HK33: 0 | HL33: 0 | HM33: 0 | HN33: 0 | HO33: 0 | HP33: 0 | HQ33: 0 | HR33: 0 | HS33: 0 | HT33: 0 | HU33: 0 | HV33: 0 | HW33: 0 | HX33: 0 | HY33: 0 | HZ33: 0 | IA33: 0 | IB33: 0 | IC33: 0 | ID33: 0 | IE33: 0 | IF33: 0 | IG33: 0 | IH33: 0 | II33: 0 | IJ33: 0 | IK33: 0 | IL33: 0 | IM33: 0 | IN33: 0 | IO33: 0 | IP33: 0 | IQ33: 0 | IR33: 0 | IS33: 0 | IT33: 0 | IU33: 0 | IV33: 0 | IW33: 0 | IX33: 0 | IY33: 0 | IZ33: 0 | JA33: 0 | JB33: 0 | JC33: 0 | KJ33: 0 | LQ33: =IF(AND(ISNUMBER($AP33),$AP33<>0),$AP33*POWER(1+PSBNB,LQ$8)*POWER(1+KALBNB,-LQ$8),"") ->  | NM33: 0 | QP33: 0 | TT33: 0 | WW33: 0 | ZZ33: 0
A34: 23 | E34: 510 | F34: 510: Geländeflächen | G34: Ja | H34: Nein | J34: 0 | K34: 0 | L34: 0 | P34: 0 | Q34: 0 | R34: 0 | S34: 49 | U34: 1 | X34: Nein | AA34: 0 | AB34: 0 | AC34: 0 | AE34: 0 | AF34: 0 | AG34: Nein | AJ34: 0 | AK34: 0 | AL34: 0 | AM34: 0 | AN34: 0 | AO34: 0 | AP34: 0 | AQ34: 0 | AR34: 0 | AS34: 0 | AT34: 0 | AU34: 0 | AV34: 0 | AW34: 0 | AZ34: 0 | BA34: 0 | BB34: 0 | BC34: 0 | BD34: 0 | BE34: 0 | BF34: 0 | BG34: 0 | BH34: 0 | BI34: 0 | BJ34: 0 | BK34: 0 | BL34: 0 | BM34: 0 | BN34: 0 | BO34: 0 | BP34: 0 | BQ34: 0 | BR34: 0 | BS34: 0 | BT34: 0 | BU34: 0 | BV34: 0 | BW34: 0 | BX34: 0 | BY34: 0 | BZ34: 0 | CA34: 0 | CB34: 0 | CC34: 0 | CD34: 0 | CE34: 0 | CF34: 0 | CG34: 0 | CH34: 0 | CI34: 0 | CJ34: 0 | CK34: 0 | CL34: 0 | CM34: 0 | CN34: 0 | CO34: 0 | CP34: 0 | CQ34: 0 | CR34: 0 | CS34: 0 | CT34: 0 | CU34: 0 | CV34: 0 | CW34: 0 | DL34: =IF(AND(MOD(DL$8,$U34)=0,DL$8<BZBNB),$AM34*POWER(1+PSBNB,(DL$8))*POWER(1+KALBNB,-(DL$8)),"") ->  | EC34: 0 | ED34: 0 | EE34: 0 | EF34: 0 | EG34: 0 | EH34: 0 | EI34: 0 | EJ34: 0 | EK34: 0 | EL34: 0 | EM34: 0 | EN34: 0 | EO34: 0 | EP34: 0 | EQ34: 0 | ER34: 0 | ES34: 0 | ET34: 0 | EU34: 0 | EV34: 0 | EW34: 0 | EX34: 0 | EY34: 0 | EZ34: 0 | FA34: 0 | FB34: 0 | FC34: 0 | FD34: 0 | FE34: 0 | FF34: 0 | FG34: 0 | FH34: 0 | FI34: 0 | FJ34: 0 | FK34: 0 | FL34: 0 | FM34: 0 | FN34: 0 | FO34: 0 | FP34: 0 | FQ34: 0 | FR34: 0 | FS34: 0 | FT34: 0 | FU34: 0 | FV34: 0 | FW34: 0 | FX34: 0 | FY34: 0 | FZ34: 0 | HF34: 0 | HG34: 0 | HH34: 0 | HI34: 0 | HJ34: 0 | HK34: 0 | HL34: 0 | HM34: 0 | HN34: 0 | HO34: 0 | HP34: 0 | HQ34: 0 | HR34: 0 | HS34: 0 | HT34: 0 | HU34: 0 | HV34: 0 | HW34: 0 | HX34: 0 | HY34: 0 | HZ34: 0 | IA34: 0 | IB34: 0 | IC34: 0 | ID34: 0 | IE34: 0 | IF34: 0 | IG34: 0 | IH34: 0 | II34: 0 | IJ34: 0 | IK34: 0 | IL34: 0 | IM34: 0 | IN34: 0 | IO34: 0 | IP34: 0 | IQ34: 0 | IR34: 0 | IS34: 0 | IT34: 0 | IU34: 0 | IV34: 0 | IW34: 0 | IX34: 0 | IY34: 0 | IZ34: 0 | JA34: 0 | JB34: 0 | JC34: 0 | JR34: =IF(AND(MOD(JR$8,$U34)=0,JR$8<BZBNB),$AO34*POWER(1+PSBNB,JR$8)*POWER(1+KALBNB,-JR$8),"") ->  | KJ34: 0 | NM34: 0 | PY34: =IF(AND(ISNUMBER($AQ34),$AQ34<>0),$AQ34*POWER(1+PSBNB,PY$8)*POWER(1+KALBNB,-PY$8),"") ->  | QP34: 0 | TB34: =IF(AND(ISNUMBER($AR34),$AR34<>0),$AR34*POWER(1+PSBNB,TB$8)*POWER(1+KALBNB,-TB$8),"") ->  | TT34: 0 | WF34: =IF(AND(ISNUMBER($AS34),$AS34<>0),$AS34*POWER(1+PSBNB,WF$8)*POWER(1+KALBNB,-WF$8),"") ->  | WW34: 0 | ZI34: =IF(AND(ISNUMBER($AT34),$AT34<>0),$AT34*POWER(1+PSBNB,ZI$8)*POWER(1+KALBNB,-ZI$8),"") ->  | ZZ34: 0 | ACL34: =IF(AND(ISNUMBER($AU34),$AU34<>0),$AU34*POWER(1+PSBNB,ACL$8)*POWER(1+KALBNB,-ACL$8),"") -> 
A35: 24 | E35: 520 | F35: 520: Befestigte Flächen | G35: Ja | H35: Nein | J35: 0 | K35: 0 | L35: 0 | P35: 0 | Q35: 0 | R35: 0 | S35: 49 | U35: 1 | X35: Nein | AA35: 0 | AB35: 0 | AC35: 0 | AE35: 0 | AF35: 0 | AG35: Nein | AJ35: 0 | AK35: 0 | AL35: 0 | AM35: 0 | AN35: 0 | AO35: 0 | AP35: 0 | AQ35: 0 | AR35: 0 | AS35: 0 | AT35: 0 | AU35: 0 | AV35: 0 | AW35: 0 | AZ35: 0 | BA35: =IF(AND(MOD(BA$8,$U35)=0,BA$8<BZBNB),$AM35*POWER(1+PSBNB,(BA$8))*POWER(1+KALBNB,-(BA$8)),"") -> 0 | BB35: 0 | BC35: 0 | BD35: 0 | BE35: 0 | BF35: 0 | BG35: 0 | BH35: 0 | BI35: 0 | BJ35: 0 | BK35: 0 | BL35: 0 | BM35: 0 | BN35: 0 | BO35: 0 | BP35: 0 | BQ35: 0 | BR35: 0 | BS35: 0 | BT35: 0 | BU35: 0 | BV35: 0 | BW35: 0 | BX35: 0 | BY35: 0 | BZ35: 0 | CA35: 0 | CB35: 0 | CC35: 0 | CD35: 0 | CE35: 0 | CF35: 0 | CG35: 0 | CH35: 0 | CI35: 0 | CJ35: 0 | CK35: 0 | CL35: 0 | CM35: 0 | CN35: 0 | CO35: 0 | CP35: 0 | CQ35: 0 | CR35: 0 | CS35: 0 | CT35: 0 | CU35: 0 | CV35: 0 | CW35: 0 | EC35: 0 | ED35: 0 | EE35: 0 | EF35: 0 | EG35: 0 | EH35: 0 | EI35: 0 | EJ35: 0 | EK35: 0 | EL35: 0 | EM35: 0 | EN35: 0 | EO35: 0 | EP35: 0 | EQ35: 0 | ER35: 0 | ES35: 0 | ET35: 0 | EU35: 0 | EV35: 0 | EW35: 0 | EX35: 0 | EY35: 0 | EZ35: 0 | FA35: 0 | FB35: 0 | FC35: 0 | FD35: 0 | FE35: 0 | FF35: 0 | FG35: 0 | FH35: 0 | FI35: 0 | FJ35: 0 | FK35: 0 | FL35: 0 | FM35: 0 | FN35: 0 | FO35: 0 | FP35: 0 | FQ35: 0 | FR35: 0 | FS35: 0 | FT35: 0 | FU35: 0 | FV35: 0 | FW35: 0 | FX35: 0 | FY35: 0 | FZ35: 0 | GO35: =IF(AND(MOD(GO$8,$U35)=0,GO$8<BZBNB),$AN35*POWER(1+PSBNB,(GO$8))*POWER(1+KALBNB,-(GO$8)),"") ->  | HF35: 0 | HG35: =IF(AND(MOD(HG$8,$U35)=0,HG$8<BZBNB),$AO35*POWER(1+PSBNB,HG$8)*POWER(1+KALBNB,-HG$8),"") -> 0 | HH35: 0 | HI35: 0 | HJ35: 0 | HK35: 0 | HL35: 0 | HM35: 0 | HN35: 0 | HO35: 0 | HP35: 0 | HQ35: 0 | HR35: 0 | HS35: 0 | HT35: 0 | HU35: 0 | HV35: 0 | HW35: 0 | HX35: 0 | HY35: 0 | HZ35: 0 | IA35: 0 | IB35: 0 | IC35: 0 | ID35: 0 | IE35: 0 | IF35: 0 | IG35: 0 | IH35: 0 | II35: 0 | IJ35: 0 | IK35: 0 | IL35: 0 | IM35: 0 | IN35: 0 | IO35: 0 | IP35: 0 | IQ35: 0 | IR35: 0 | IS35: 0 | IT35: 0 | IU35: 0 | IV35: 0 | IW35: 0 | IX35: 0 | IY35: 0 | IZ35: 0 | JA35: 0 | JB35: 0 | JC35: 0 | KJ35: 0 | NM35: 0 | NN35: =IF(AND(ISNUMBER($AQ35),$AQ35<>0),$AQ35*POWER(1+PSBNB,NN$8)*POWER(1+KALBNB,-NN$8),"") ->  | QP35: 0 | QQ35: =IF(AND(ISNUMBER($AR35),$AR35<>0),$AR35*POWER(1+PSBNB,QQ$8)*POWER(1+KALBNB,-QQ$8),"") ->  | TT35: 0 | TU35: =IF(AND(ISNUMBER($AS35),$AS35<>0),$AS35*POWER(1+PSBNB,TU$8)*POWER(1+KALBNB,-TU$8),"") ->  | WW35: 0 | WX35: =IF(AND(ISNUMBER($AT35),$AT35<>0),$AT35*POWER(1+PSBNB,WX$8)*POWER(1+KALBNB,-WX$8),"") ->  | ZZ35: 0 | AAA35: =IF(AND(ISNUMBER($AU35),$AU35<>0),$AU35*POWER(1+PSBNB,AAA$8)*POWER(1+KALBNB,-AAA$8),"") -> 
A36: 25 | E36: 530 | F36: 530: Baukonstruktionen in Außenanlagen | G36: Ja | H36: Nein | J36: 0 | K36: 0 | L36: 0 | P36: 0 | Q36: 0 | R36: 0 | S36: 49 | U36: 1 | X36: Nein | AA36: 0 | AB36: 0 | AC36: 0 | AE36: 0 | AF36: 0 | AG36: Nein | AJ36: 0 | AK36: 0 | AL36: 0 | AM36: 0 | AN36: 0 | AO36: 0 | AP36: 0 | AQ36: 0 | AR36: 0 | AS36: 0 | AT36: 0 | AU36: 0 | AV36: 0 | AW36: 0 | AZ36: 0 | BA36: 0 | BB36: 0 | BC36: 0 | BD36: 0 | BE36: 0 | BF36: 0 | BG36: 0 | BH36: 0 | BI36: 0 | BJ36: 0 | BK36: 0 | BL36: 0 | BM36: 0 | BN36: 0 | BO36: 0 | BP36: 0 | BQ36: 0 | BR36: 0 | BS36: 0 | BT36: 0 | BU36: 0 | BV36: 0 | BW36: 0 | BX36: 0 | BY36: 0 | BZ36: 0 | CA36: 0 | CB36: 0 | CC36: 0 | CD36: 0 | CE36: 0 | CF36: 0 | CG36: 0 | CH36: 0 | CI36: 0 | CJ36: 0 | CK36: 0 | CL36: 0 | CM36: 0 | CN36: 0 | CO36: 0 | CP36: 0 | CQ36: 0 | CR36: 0 | CS36: 0 | CT36: 0 | CU36: 0 | CV36: 0 | CW36: 0 | EC36: 0 | ED36: =IF(AND(MOD(ED$8,$U36)=0,ED$8<BZBNB),$AN36*POWER(1+PSBNB,(ED$8))*POWER(1+KALBNB,-(ED$8)),"") -> 0 | EE36: 0 | EF36: 0 | EG36: 0 | EH36: 0 | EI36: 0 | EJ36: 0 | EK36: 0 | EL36: 0 | EM36: 0 | EN36: 0 | EO36: 0 | EP36: 0 | EQ36: 0 | ER36: 0 | ES36: 0 | ET36: 0 | EU36: 0 | EV36: 0 | EW36: 0 | EX36: 0 | EY36: 0 | EZ36: 0 | FA36: 0 | FB36: 0 | FC36: 0 | FD36: 0 | FE36: 0 | FF36: 0 | FG36: 0 | FH36: 0 | FI36: 0 | FJ36: 0 | FK36: 0 | FL36: 0 | FM36: 0 | FN36: 0 | FO36: 0 | FP36: 0 | FQ36: 0 | FR36: 0 | FS36: 0 | FT36: 0 | FU36: 0 | FV36: 0 | FW36: 0 | FX36: 0 | FY36: 0 | FZ36: 0 | HF36: 0 | HG36: 0 | HH36: 0 | HI36: 0 | HJ36: 0 | HK36: 0 | HL36: 0 | HM36: 0 | HN36: 0 | HO36: 0 | HP36: 0 | HQ36: 0 | HR36: 0 | HS36: 0 | HT36: 0 | HU36: 0 | HV36: 0 | HW36: 0 | HX36: 0 | HY36: 0 | HZ36: 0 | IA36: 0 | IB36: 0 | IC36: 0 | ID36: 0 | IE36: 0 | IF36: 0 | IG36: 0 | IH36: 0 | II36: 0 | IJ36: 0 | IK36: 0 | IL36: 0 | IM36: 0 | IN36: 0 | IO36: 0 | IP36: 0 | IQ36: 0 | IR36: 0 | IS36: 0 | IT36: 0 | IU36: 0 | IV36: 0 | IW36: 0 | IX36: 0 | IY36: 0 | IZ36: 0 | JA36: 0 | JB36: 0 | JC36: 0 | KJ36: 0 | NM36: 0 | QP36: 0 | TT36: 0 | WW36: 0 | ZZ36: 0
A37: 26 | E37: 540 | F37: 540: Technische Anlagen in Außenanlagen | G37: Ja | H37: Nein | J37: 0 | K37: 0 | L37: 0 | P37: 0 | Q37: 0 | R37: 0 | S37: 49 | U37: 1 | X37: Nein | AA37: 0 | AB37: 0 | AC37: 0 | AE37: 0 | AF37: 0 | AG37: Nein | AJ37: 0 | AK37: 0 | AL37: 0 | AM37: 0 | AN37: 0 | AO37: 0 | AP37: 0 | AQ37: 0 | AR37: 0 | AS37: 0 | AT37: 0 | AU37: 0 | AV37: 0 | AW37: 0 | AZ37: 0 | BA37: 0 | BB37: 0 | BC37: 0 | BD37: 0 | BE37: 0 | BF37: 0 | BG37: 0 | BH37: 0 | BI37: 0 | BJ37: 0 | BK37: 0 | BL37: 0 | BM37: 0 | BN37: 0 | BO37: 0 | BP37: 0 | BQ37: 0 | BR37: 0 | BS37: 0 | BT37: 0 | BU37: 0 | BV37: 0 | BW37: 0 | BX37: 0 | BY37: 0 | BZ37: 0 | CA37: 0 | CB37: 0 | CC37: 0 | CD37: 0 | CE37: 0 | CF37: 0 | CG37: 0 | CH37: 0 | CI37: 0 | CJ37: 0 | CK37: 0 | CL37: 0 | CM37: 0 | CN37: 0 | CO37: 0 | CP37: 0 | CQ37: 0 | CR37: 0 | CS37: 0 | CT37: 0 | CU37: 0 | CV37: 0 | CW37: 0 | EC37: 0 | ED37: 0 | EE37: 0 | EF37: 0 | EG37: 0 | EH37: 0 | EI37: 0 | EJ37: 0 | EK37: 0 | EL37: 0 | EM37: 0 | EN37: 0 | EO37: 0 | EP37: 0 | EQ37: 0 | ER37: 0 | ES37: 0 | ET37: 0 | EU37: 0 | EV37: 0 | EW37: 0 | EX37: 0 | EY37: 0 | EZ37: 0 | FA37: 0 | FB37: 0 | FC37: 0 | FD37: 0 | FE37: 0 | FF37: 0 | FG37: 0 | FH37: 0 | FI37: 0 | FJ37: 0 | FK37: 0 | FL37: 0 | FM37: 0 | FN37: 0 | FO37: 0 | FP37: 0 | FQ37: 0 | FR37: 0 | FS37: 0 | FT37: 0 | FU37: 0 | FV37: 0 | FW37: 0 | FX37: 0 | FY37: 0 | FZ37: 0 | HF37: 0 | HG37: 0 | HH37: 0 | HI37: 0 | HJ37: 0 | HK37: 0 | HL37: 0 | HM37: 0 | HN37: 0 | HO37: 0 | HP37: 0 | HQ37: 0 | HR37: 0 | HS37: 0 | HT37: 0 | HU37: 0 | HV37: 0 | HW37: 0 | HX37: 0 | HY37: 0 | HZ37: 0 | IA37: 0 | IB37: 0 | IC37: 0 | ID37: 0 | IE37: 0 | IF37: 0 | IG37: 0 | IH37: 0 | II37: 0 | IJ37: 0 | IK37: 0 | IL37: 0 | IM37: 0 | IN37: 0 | IO37: 0 | IP37: 0 | IQ37: 0 | IR37: 0 | IS37: 0 | IT37: 0 | IU37: 0 | IV37: 0 | IW37: 0 | IX37: 0 | IY37: 0 | IZ37: 0 | JA37: 0 | JB37: 0 | JC37: 0 | KJ37: 0 | KS37: =IF(AND(ISNUMBER($AP37),$AP37<>0),$AP37*POWER(1+PSBNB,KS$8)*POWER(1+KALBNB,-KS$8),"") ->  | NM37: 0 | QP37: 0 | TT37: 0 | WW37: 0 | ZZ37: 0
A38: 27 | E38: 550 | F38: 550: Einbauten in Außenanlagen | G38: Ja | H38: Nein | J38: 0 | K38: 0 | L38: 0 | P38: 0 | Q38: 0 | R38: 0 | S38: 49 | U38: 1 | X38: Nein | AA38: 0 | AB38: 0 | AC38: 0 | AE38: 0 | AF38: 0 | AG38: Nein | AJ38: 0 | AK38: 0 | AL38: 0 | AM38: 0 | AN38: 0 | AO38: 0 | AP38: 0 | AQ38: 0 | AR38: 0 | AS38: 0 | AT38: 0 | AU38: 0 | AV38: 0 | AW38: 0 | AZ38: 0 | BA38: 0 | BB38: 0 | BC38: 0 | BD38: 0 | BE38: 0 | BF38: 0 | BG38: 0 | BH38: 0 | BI38: 0 | BJ38: 0 | BK38: 0 | BL38: 0 | BM38: 0 | BN38: 0 | BO38: 0 | BP38: 0 | BQ38: 0 | BR38: 0 | BS38: 0 | BT38: 0 | BU38: 0 | BV38: 0 | BW38: 0 | BX38: 0 | BY38: 0 | BZ38: 0 | CA38: 0 | CB38: 0 | CC38: 0 | CD38: 0 | CE38: 0 | CF38: 0 | CG38: 0 | CH38: 0 | CI38: 0 | CJ38: 0 | CK38: 0 | CL38: 0 | CM38: 0 | CN38: 0 | CO38: 0 | CP38: 0 | CQ38: 0 | CR38: 0 | CS38: 0 | CT38: 0 | CU38: 0 | CV38: 0 | CW38: 0 | DL38: =IF(AND(MOD(DL$8,$U38)=0,DL$8<BZBNB),$AM38*POWER(1+PSBNB,(DL$8))*POWER(1+KALBNB,-(DL$8)),"") ->  | EC38: 0 | ED38: 0 | EE38: 0 | EF38: 0 | EG38: 0 | EH38: 0 | EI38: 0 | EJ38: 0 | EK38: 0 | EL38: 0 | EM38: 0 | EN38: 0 | EO38: 0 | EP38: 0 | EQ38: 0 | ER38: 0 | ES38: 0 | ET38: 0 | EU38: 0 | EV38: 0 | EW38: 0 | EX38: 0 | EY38: 0 | EZ38: 0 | FA38: 0 | FB38: 0 | FC38: 0 | FD38: 0 | FE38: 0 | FF38: 0 | FG38: 0 | FH38: 0 | FI38: 0 | FJ38: 0 | FK38: 0 | FL38: 0 | FM38: 0 | FN38: 0 | FO38: 0 | FP38: 0 | FQ38: 0 | FR38: 0 | FS38: 0 | FT38: 0 | FU38: 0 | FV38: 0 | FW38: 0 | FX38: 0 | FY38: 0 | FZ38: 0 | HF38: 0 | HG38: 0 | HH38: 0 | HI38: 0 | HJ38: 0 | HK38: 0 | HL38: 0 | HM38: 0 | HN38: 0 | HO38: 0 | HP38: 0 | HQ38: 0 | HR38: 0 | HS38: 0 | HT38: 0 | HU38: 0 | HV38: 0 | HW38: 0 | HX38: 0 | HY38: 0 | HZ38: 0 | IA38: 0 | IB38: 0 | IC38: 0 | ID38: 0 | IE38: 0 | IF38: 0 | IG38: 0 | IH38: 0 | II38: 0 | IJ38: 0 | IK38: 0 | IL38: 0 | IM38: 0 | IN38: 0 | IO38: 0 | IP38: 0 | IQ38: 0 | IR38: 0 | IS38: 0 | IT38: 0 | IU38: 0 | IV38: 0 | IW38: 0 | IX38: 0 | IY38: 0 | IZ38: 0 | JA38: 0 | JB38: 0 | JC38: 0 | JR38: =IF(AND(MOD(JR$8,$U38)=0,JR$8<BZBNB),$AO38*POWER(1+PSBNB,JR$8)*POWER(1+KALBNB,-JR$8),"") ->  | KJ38: 0 | KL38: =IF(AND(ISNUMBER($AP38),$AP38<>0),$AP38*POWER(1+PSBNB,KL$8)*POWER(1+KALBNB,-KL$8),"") ->  | NM38: 0 | PY38: =IF(AND(ISNUMBER($AQ38),$AQ38<>0),$AQ38*POWER(1+PSBNB,PY$8)*POWER(1+KALBNB,-PY$8),"") ->  | QP38: 0 | TB38: =IF(AND(ISNUMBER($AR38),$AR38<>0),$AR38*POWER(1+PSBNB,TB$8)*POWER(1+KALBNB,-TB$8),"") ->  | TT38: 0 | WF38: =IF(AND(ISNUMBER($AS38),$AS38<>0),$AS38*POWER(1+PSBNB,WF$8)*POWER(1+KALBNB,-WF$8),"") ->  | WW38: 0 | ZI38: =IF(AND(ISNUMBER($AT38),$AT38<>0),$AT38*POWER(1+PSBNB,ZI$8)*POWER(1+KALBNB,-ZI$8),"") ->  | ZZ38: 0 | ACL38: =IF(AND(ISNUMBER($AU38),$AU38<>0),$AU38*POWER(1+PSBNB,ACL$8)*POWER(1+KALBNB,-ACL$8),"") -> 
A39: 28 | E39: 560 | F39: 560: Wasserflächen | G39: Ja | H39: Nein | J39: 0 | K39: 0 | L39: 0 | P39: 0 | Q39: 0 | R39: 0 | S39: 49 | U39: 1 | X39: Nein | AA39: 0 | AB39: 0 | AC39: 0 | AE39: 0 | AF39: 0 | AG39: Nein | AJ39: 0 | AK39: 0 | AL39: 0 | AM39: 0 | AN39: 0 | AO39: 0 | AP39: 0 | AQ39: 0 | AR39: 0 | AS39: 0 | AT39: 0 | AU39: 0 | AV39: 0 | AW39: 0 | AZ39: 0 | BA39: =IF(AND(MOD(BA$8,$U39)=0,BA$8<BZBNB),$AM39*POWER(1+PSBNB,(BA$8))*POWER(1+KALBNB,-(BA$8)),"") -> 0 | BB39: 0 | BC39: 0 | BD39: 0 | BE39: 0 | BF39: 0 | BG39: 0 | BH39: 0 | BI39: 0 | BJ39: 0 | BK39: 0 | BL39: 0 | BM39: 0 | BN39: 0 | BO39: 0 | BP39: 0 | BQ39: 0 | BR39: 0 | BS39: 0 | BT39: 0 | BU39: 0 | BV39: 0 | BW39: 0 | BX39: 0 | BY39: 0 | BZ39: 0 | CA39: 0 | CB39: 0 | CC39: 0 | CD39: 0 | CE39: 0 | CF39: 0 | CG39: 0 | CH39: 0 | CI39: 0 | CJ39: 0 | CK39: 0 | CL39: 0 | CM39: 0 | CN39: 0 | CO39: 0 | CP39: 0 | CQ39: 0 | CR39: 0 | CS39: 0 | CT39: 0 | CU39: 0 | CV39: 0 | CW39: 0 | EC39: 0 | ED39: 0 | EE39: 0 | EF39: 0 | EG39: 0 | EH39: 0 | EI39: 0 | EJ39: 0 | EK39: 0 | EL39: 0 | EM39: 0 | EN39: 0 | EO39: 0 | EP39: 0 | EQ39: 0 | ER39: 0 | ES39: 0 | ET39: 0 | EU39: 0 | EV39: 0 | EW39: 0 | EX39: 0 | EY39: 0 | EZ39: 0 | FA39: 0 | FB39: 0 | FC39: 0 | FD39: 0 | FE39: 0 | FF39: 0 | FG39: 0 | FH39: 0 | FI39: 0 | FJ39: 0 | FK39: 0 | FL39: 0 | FM39: 0 | FN39: 0 | FO39: 0 | FP39: 0 | FQ39: 0 | FR39: 0 | FS39: 0 | FT39: 0 | FU39: 0 | FV39: 0 | FW39: 0 | FX39: 0 | FY39: 0 | FZ39: 0 | GO39: =IF(AND(MOD(GO$8,$U39)=0,GO$8<BZBNB),$AN39*POWER(1+PSBNB,(GO$8))*POWER(1+KALBNB,-(GO$8)),"") ->  | HF39: 0 | HG39: =IF(AND(MOD(HG$8,$U39)=0,HG$8<BZBNB),$AO39*POWER(1+PSBNB,HG$8)*POWER(1+KALBNB,-HG$8),"") -> 0 | HH39: 0 | HI39: 0 | HJ39: 0 | HK39: 0 | HL39: 0 | HM39: 0 | HN39: 0 | HO39: 0 | HP39: 0 | HQ39: 0 | HR39: 0 | HS39: 0 | HT39: 0 | HU39: 0 | HV39: 0 | HW39: 0 | HX39: 0 | HY39: 0 | HZ39: 0 | IA39: 0 | IB39: 0 | IC39: 0 | ID39: 0 | IE39: 0 | IF39: 0 | IG39: 0 | IH39: 0 | II39: 0 | IJ39: 0 | IK39: 0 | IL39: 0 | IM39: 0 | IN39: 0 | IO39: 0 | IP39: 0 | IQ39: 0 | IR39: 0 | IS39: 0 | IT39: 0 | IU39: 0 | IV39: 0 | IW39: 0 | IX39: 0 | IY39: 0 | IZ39: 0 | JA39: 0 | JB39: 0 | JC39: 0 | KJ39: 0 | NM39: 0 | NN39: =IF(AND(ISNUMBER($AQ39),$AQ39<>0),$AQ39*POWER(1+PSBNB,NN$8)*POWER(1+KALBNB,-NN$8),"") ->  | QP39: 0 | QQ39: =IF(AND(ISNUMBER($AR39),$AR39<>0),$AR39*POWER(1+PSBNB,QQ$8)*POWER(1+KALBNB,-QQ$8),"") ->  | TT39: 0 | TU39: =IF(AND(ISNUMBER($AS39),$AS39<>0),$AS39*POWER(1+PSBNB,TU$8)*POWER(1+KALBNB,-TU$8),"") ->  | WW39: 0 | WX39: =IF(AND(ISNUMBER($AT39),$AT39<>0),$AT39*POWER(1+PSBNB,WX$8)*POWER(1+KALBNB,-WX$8),"") ->  | ZZ39: 0 | AAA39: =IF(AND(ISNUMBER($AU39),$AU39<>0),$AU39*POWER(1+PSBNB,AAA$8)*POWER(1+KALBNB,-AAA$8),"") -> 
A40: 29 | E40: 570 | F40: 570: Pflanz- und Saatflächen | G40: Ja | H40: Nein | J40: 0 | K40: 0 | L40: 0 | P40: 0 | Q40: 0 | R40: 0 | S40: 49 | U40: 1 | X40: Nein | AA40: 0 | AB40: 0 | AC40: 0 | AE40: 0 | AF40: 0 | AG40: Nein | AJ40: 0 | AK40: 0 | AL40: 0 | AM40: 0 | AN40: 0 | AO40: 0 | AP40: 0 | AQ40: 0 | AR40: 0 | AS40: 0 | AT40: 0 | AU40: 0 | AV40: 0 | AW40: 0 | AZ40: 0 | BA40: 0 | BB40: 0 | BC40: 0 | BD40: 0 | BE40: 0 | BF40: 0 | BG40: 0 | BH40: 0 | BI40: 0 | BJ40: 0 | BK40: 0 | BL40: 0 | BM40: 0 | BN40: 0 | BO40: 0 | BP40: 0 | BQ40: 0 | BR40: 0 | BS40: 0 | BT40: 0 | BU40: 0 | BV40: 0 | BW40: 0 | BX40: 0 | BY40: 0 | BZ40: 0 | CA40: 0 | CB40: 0 | CC40: 0 | CD40: 0 | CE40: 0 | CF40: 0 | CG40: 0 | CH40: 0 | CI40: 0 | CJ40: 0 | CK40: 0 | CL40: 0 | CM40: 0 | CN40: 0 | CO40: 0 | CP40: 0 | CQ40: 0 | CR40: 0 | CS40: 0 | CT40: 0 | CU40: 0 | CV40: 0 | CW40: 0 | EC40: 0 | ED40: =IF(AND(MOD(ED$8,$U40)=0,ED$8<BZBNB),$AN40*POWER(1+PSBNB,(ED$8))*POWER(1+KALBNB,-(ED$8)),"") -> 0 | EE40: 0 | EF40: 0 | EG40: 0 | EH40: 0 | EI40: 0 | EJ40: 0 | EK40: 0 | EL40: 0 | EM40: 0 | EN40: 0 | EO40: 0 | EP40: 0 | EQ40: 0 | ER40: 0 | ES40: 0 | ET40: 0 | EU40: 0 | EV40: 0 | EW40: 0 | EX40: 0 | EY40: 0 | EZ40: 0 | FA40: 0 | FB40: 0 | FC40: 0 | FD40: 0 | FE40: 0 | FF40: 0 | FG40: 0 | FH40: 0 | FI40: 0 | FJ40: 0 | FK40: 0 | FL40: 0 | FM40: 0 | FN40: 0 | FO40: 0 | FP40: 0 | FQ40: 0 | FR40: 0 | FS40: 0 | FT40: 0 | FU40: 0 | FV40: 0 | FW40: 0 | FX40: 0 | FY40: 0 | FZ40: 0 | HF40: 0 | HG40: 0 | HH40: 0 | HI40: 0 | HJ40: 0 | HK40: 0 | HL40: 0 | HM40: 0 | HN40: 0 | HO40: 0 | HP40: 0 | HQ40: 0 | HR40: 0 | HS40: 0 | HT40: 0 | HU40: 0 | HV40: 0 | HW40: 0 | HX40: 0 | HY40: 0 | HZ40: 0 | IA40: 0 | IB40: 0 | IC40: 0 | ID40: 0 | IE40: 0 | IF40: 0 | IG40: 0 | IH40: 0 | II40: 0 | IJ40: 0 | IK40: 0 | IL40: 0 | IM40: 0 | IN40: 0 | IO40: 0 | IP40: 0 | IQ40: 0 | IR40: 0 | IS40: 0 | IT40: 0 | IU40: 0 | IV40: 0 | IW40: 0 | IX40: 0 | IY40: 0 | IZ40: 0 | JA40: 0 | JB40: 0 | JC40: 0 | KJ40: 0 | MV40: =IF(AND(ISNUMBER($AP40),$AP40<>0),$AP40*POWER(1+PSBNB,MV$8)*POWER(1+KALBNB,-MV$8),"") ->  | NM40: 0 | QP40: 0 | TT40: 0 | WW40: 0 | ZZ40: 0
A41: 30 | E41: 590 | F41: 590: Sonstige Außenanlagen | G41: Ja | H41: Nein | J41: 0 | K41: 0 | L41: 0 | P41: 0 | Q41: 0 | R41: 0 | S41: 49 | U41: 1 | X41: Nein | AA41: 0 | AB41: 0 | AC41: 0 | AE41: 0 | AF41: 0 | AG41: Nein | AJ41: 0 | AK41: 0 | AL41: 0 | AM41: 0 | AN41: 0 | AO41: 0 | AP41: 0 | AQ41: 0 | AR41: 0 | AS41: 0 | AT41: 0 | AU41: 0 | AV41: 0 | AW41: 0 | AZ41: 0 | BA41: 0 | BB41: 0 | BC41: 0 | BD41: 0 | BE41: 0 | BF41: 0 | BG41: 0 | BH41: 0 | BI41: 0 | BJ41: 0 | BK41: 0 | BL41: 0 | BM41: 0 | BN41: 0 | BO41: 0 | BP41: 0 | BQ41: 0 | BR41: 0 | BS41: 0 | BT41: 0 | BU41: 0 | BV41: 0 | BW41: 0 | BX41: 0 | BY41: 0 | BZ41: 0 | CA41: 0 | CB41: 0 | CC41: 0 | CD41: 0 | CE41: 0 | CF41: 0 | CG41: 0 | CH41: 0 | CI41: 0 | CJ41: 0 | CK41: 0 | CL41: 0 | CM41: 0 | CN41: 0 | CO41: 0 | CP41: 0 | CQ41: 0 | CR41: 0 | CS41: 0 | CT41: 0 | CU41: 0 | CV41: 0 | CW41: 0 | EC41: 0 | ED41: 0 | EE41: 0 | EF41: 0 | EG41: 0 | EH41: 0 | EI41: 0 | EJ41: 0 | EK41: 0 | EL41: 0 | EM41: 0 | EN41: 0 | EO41: 0 | EP41: 0 | EQ41: 0 | ER41: 0 | ES41: 0 | ET41: 0 | EU41: 0 | EV41: 0 | EW41: 0 | EX41: 0 | EY41: 0 | EZ41: 0 | FA41: 0 | FB41: 0 | FC41: 0 | FD41: 0 | FE41: 0 | FF41: 0 | FG41: 0 | FH41: 0 | FI41: 0 | FJ41: 0 | FK41: 0 | FL41: 0 | FM41: 0 | FN41: 0 | FO41: 0 | FP41: 0 | FQ41: 0 | FR41: 0 | FS41: 0 | FT41: 0 | FU41: 0 | FV41: 0 | FW41: 0 | FX41: 0 | FY41: 0 | FZ41: 0 | HF41: 0 | HG41: 0 | HH41: 0 | HI41: 0 | HJ41: 0 | HK41: 0 | HL41: 0 | HM41: 0 | HN41: 0 | HO41: 0 | HP41: 0 | HQ41: 0 | HR41: 0 | HS41: 0 | HT41: 0 | HU41: 0 | HV41: 0 | HW41: 0 | HX41: 0 | HY41: 0 | HZ41: 0 | IA41: 0 | IB41: 0 | IC41: 0 | ID41: 0 | IE41: 0 | IF41: 0 | IG41: 0 | IH41: 0 | II41: 0 | IJ41: 0 | IK41: 0 | IL41: 0 | IM41: 0 | IN41: 0 | IO41: 0 | IP41: 0 | IQ41: 0 | IR41: 0 | IS41: 0 | IT41: 0 | IU41: 0 | IV41: 0 | IW41: 0 | IX41: 0 | IY41: 0 | IZ41: 0 | JA41: 0 | JB41: 0 | JC41: 0 | KJ41: 0 | LQ41: =IF(AND(ISNUMBER($AP41),$AP41<>0),$AP41*POWER(1+PSBNB,LQ$8)*POWER(1+KALBNB,-LQ$8),"") ->  | NM41: 0 | QP41: 0 | TT41: 0 | WW41: 0 | ZZ41: 0
T42: =IF(ISNUMBER(VLOOKUP(V42,ND_Verweis,2,0)),VLOOKUP(V42,ND_Verweis,2,0),"") ->  | Z42: =IF(ISNUMBER(VLOOKUP(AD42,NK_Verweis,4,0)),VLOOKUP(AD42,NK_Verweis,4,0),"") ->  | KJ42: =SUM(OFFSET(KK42,,,,BZBNB)) -> 0
A43: =(MAX(A$9:A$42))+1 -> 31 | E43: =IF(ISNUMBER(VLOOKUP(F43,DIN276_Verweis,2,0)),VLOOKUP(F43,DIN276_Verweis,2,0),"k.A.") -> k.A. | G43: Ja | H43: Nein | J43: =O43*M43 -> 0 | K43: =IF(G43="Ja",$J43*PINDbnb,0) -> 0 | L43: =IF(AND(G43="Ja",H43="Nein"),$J43*PINDbnb,0) -> 0 | P43: =IF(G43="Nein",$J43,0) -> 0 | Q43: =P43*M43 -> 0 | R43: =IF(G43="Nein",$Q43*PINDbnb,0) -> 0 | S43: =(BZBNB-MOD(BZBNB-1,U43)-1)/U43 -> 49 | U43: =IF(AND(IF(X43="Nein",W43,Y43)>0,ISNUMBER(IF(X43="Nein",W43,Y43))),IF(X43="Nein",W43,Y43),1) -> 1 | W43: =IF(ISNUMBER(VLOOKUP(V43,ND_Verweis,5,0)),VLOOKUP(V43,ND_Verweis,5,0),"") ->  | X43: Nein | Z43: =IF(ISNUMBER(VLOOKUP(AD43,NK_Verweis,4,0)),VLOOKUP(AD43,NK_Verweis,4,0),"") ->  | AA43: =SUM(AP43:AR43) -> 0 | AB43: =SUM(AS43:AU43) -> 0 | AC43: =SUM(AA43:AB43) -> 0 | AE43: =IF(ISNUMBER(VLOOKUP(AD43,NK_Verweis,7,0)),VLOOKUP(AD43,NK_Verweis,7,0),0) -> 0 | AF43: =IF(ISNUMBER(VLOOKUP(AD43,NK_Verweis,8,0)),VLOOKUP(AD43,NK_Verweis,8,0),0) -> 0 | AG43: Nein | AJ43: =IF(AND($E43>=300,$E43<400,$G43="Ja",$H43="Nein"),$K43,0) -> 0 | AK43: =IF(AND($E43>=400,$E43<500,$G43="Ja",$H43="Nein"),$K43,0) -> 0 | AL43: =IF(AND($E43>=500,$E43<600,$G43="Ja",$H43="Nein"),$K43,0) -> 0 | AM43: 0 | AN43: 0 | AO43: 0 | AP43: =IF(AND($E43>=300,$E43<400,$G43="Ja"),IF($AG43="Ja",$AH43,$AM43*$AE43),0) -> 0 | AQ43: =IF(AND($E43>=400,$E43<500,$G43="Ja"),IF($AG43="Ja",$AH43,$AN43*$AE43),0) -> 0 | AR43: =IF(AND($E43>=500,$E43<600,$G43="Ja"),IF($AG43="Ja",$AH43,$AO43*$AE43),0) -> 0 | AS43: =IF(AND($E43>=300,$E43<400,$G43="Ja"),IF($AG43="Ja",$AI43,$AM43*$AF43),0) -> 0 | AT43: =IF(AND($E43>=400,$E43<500,$G43="Ja"),IF($AG43="Ja",$AI43,$AN43*$AF43),0) -> 0 | AU43: =IF(AND($E43>=500,$E43<600,$G43="Ja"),IF($AG43="Ja",$AI43,$AO43*$AF43),0) -> 0 | AV43: =IF(AND(ISNUMBER(BGFabc),BGFabc>0),AW43/BGFabc,"") -> 0 | AW43: =AZ43+EC43+HF43+KJ43+NM43+QP43+TT43+WW43+ZZ43 -> 0 | AZ43: =SUM(OFFSET(BA43,,,,BZBNB-1)) -> 0 | BA43: 0 | BB43: 0 | BC43: 0 | BD43: 0 | BE43: 0 | BF43: 0 | BG43: 0 | BH43: 0 | BI43: 0 | BJ43: 0 | BK43: 0 | BL43: 0 | BM43: 0 | BN43: 0 | BO43: 0 | BP43: 0 | BQ43: 0 | BR43: 0 | BS43: 0 | BT43: 0 | BU43: 0 | BV43: 0 | BW43: 0 | BX43: 0 | BY43: 0 | BZ43: 0 | CA43: 0 | CB43: 0 | CC43: 0 | CD43: 0 | CE43: 0 | CF43: 0 | CG43: 0 | CH43: 0 | CI43: 0 | CJ43: 0 | CK43: 0 | CL43: 0 | CM43: 0 | CN43: 0 | CO43: 0 | CP43: 0 | CQ43: 0 | CR43: 0 | CS43: 0 | CT43: 0 | CU43: 0 | CV43: 0 | CW43: 0 | EC43: =SUM(OFFSET(ED43,,,,BZBNB-1)) -> 0 | ED43: 0 | EE43: 0 | EF43: 0 | EG43: 0 | EH43: 0 | EI43: 0 | EJ43: 0 | EK43: 0 | EL43: 0 | EM43: 0 | EN43: 0 | EO43: 0 | EP43: 0 | EQ43: 0 | ER43: 0 | ES43: 0 | ET43: 0 | EU43: 0 | EV43: 0 | EW43: 0 | EX43: 0 | EY43: 0 | EZ43: 0 | FA43: 0 | FB43: 0 | FC43: 0 | FD43: 0 | FE43: 0 | FF43: 0 | FG43: 0 | FH43: 0 | FI43: 0 | FJ43: 0 | FK43: 0 | FL43: 0 | FM43: 0 | FN43: 0 | FO43: 0 | FP43: 0 | FQ43: 0 | FR43: 0 | FS43: 0 | FT43: 0 | FU43: 0 | FV43: 0 | FW43: 0 | FX43: 0 | FY43: 0 | FZ43: 0 | HF43: =SUM(OFFSET(HG43,,,,BZBNB-1)) -> 0 | HG43: 0 | HH43: 0 | HI43: 0 | HJ43: 0 | HK43: 0 | HL43: 0 | HM43: 0 | HN43: 0 | HO43: 0 | HP43: 0 | HQ43: 0 | HR43: 0 | HS43: 0 | HT43: 0 | HU43: 0 | HV43: 0 | HW43: 0 | HX43: 0 | HY43: 0 | HZ43: 0 | IA43: 0 | IB43: 0 | IC43: 0 | ID43: 0 | IE43: 0 | IF43: 0 | IG43: 0 | IH43: 0 | II43: 0 | IJ43: 0 | IK43: 0 | IL43: 0 | IM43: 0 | IN43: 0 | IO43: 0 | IP43: 0 | IQ43: 0 | IR43: 0 | IS43: 0 | IT43: 0 | IU43: 0 | IV43: 0 | IW43: 0 | IX43: 0 | IY43: 0 | IZ43: 0 | JA43: 0 | JB43: 0 | JC43: 0 | KJ43: 0 | KK43: =IF(AND(ISNUMBER($AP43),$AP43<>0),$AP43*POWER(1+PSBNB,KK$8)*POWER(1+KALBNB,-KK$8),"") ->  | NM43: =SUM(OFFSET(NN43,,,,BZBNB)) -> 0 | QP43: =SUM(OFFSET(QQ43,,,,BZBNB)) -> 0 | TT43: =SUM(OFFSET(TU43,,,,BZBNB)) -> 0 | WW43: =SUM(OFFSET(WX43,,,,BZBNB)) -> 0 | ZZ43: =SUM(OFFSET(AAA43,,,,BZBNB)) -> 0

Sheet Bauteilreinigung
A1: Berechnung LCC nach BNB BN 2.1.1 v2015 Eingabe Bauteilreinigung | C1: BBR-LCC Ver. 15-1 BBR A1
A2: Projekt: | B2: =IF(ISTEXT(Projekt),Projekt,"") -> Beispieleingabe (Szenario: 10 Mio Euro netto Herstellungskosten für KG 300 und 400)
A3: Stand: | B3: =IF(ISNUMBER(LCC_Stand),LCC_Stand,"") -> 2018-01-08
A5: Nr. | B5: Bezeichnung | C5: Einbauort | D5: Reinigungs-fläche | E5: Seiten | F5: Bauteil | G5: Oberfläche | H5: Typ | I5: Einbauort | J5: Material | K5: Zugänglichkeit | L5: Belastung | M5: €/h | N5: m²/h | O5: Anzahl je Jahr | P5: €/m² | Q5: €/m²*a | R5: €/a | S5: Barwert | T5: Barwert | U5: Barwert | V5: Barwert | W5: Barwert | X5: Barwert | Y5: Barwert | Z5: Barwert | AA5: Barwert | AB5: Barwert | AC5: Barwert | AD5: Barwert | AE5: Barwert | AF5: Barwert | AG5: Barwert | AH5: Barwert | AI5: Barwert | AJ5: Barwert | AK5: Barwert | AL5: Barwert | AM5: Barwert | AN5: Barwert | AO5: Barwert | AP5: Barwert | AQ5: Barwert | AR5: Barwert | AS5: Barwert | AT5: Barwert | AU5: Barwert | AV5: Barwert | AW5: Barwert | AX5: Barwert | AY5: Barwert | AZ5: Barwert | BA5: Barwert | BB5: Barwert | BC5: Barwert | BD5: Barwert | BE5: Barwert | BF5: Barwert | BG5: Barwert | BH5: Barwert | BI5: Barwert | BJ5: Barwert | BK5: Barwert | BL5: Barwert | BM5: Barwert | BN5: Barwert | BO5: Barwert | BP5: Barwert | BQ5: Barwert | BR5: Barwert | BS5: Barwert | BT5: Barwert | BU5: Barwert | BV5: Barwert | BW5: Barwert | BX5: Barwert | BY5: Barwert | BZ5: Barwert | CA5: Barwert | CB5: Barwert | CC5: Barwert | CD5: Barwert | CE5: Barwert | CF5: Barwert | CG5: Barwert | CH5: Barwert | CI5: Barwert | CJ5: Barwert | CK5: Barwert | CL5: Barwert | CM5: Barwert | CN5: Barwert | CO5: Barwert | CP5: Barwert | CQ5: Barwert | CR5: Barwert | CS5: Barwert | CT5: Barwert | CU5: Barwert
S6: ∑ BZR | T6: 1 | U6: 2 | V6: 3 | W6: 4 | X6: 5 | Y6: 6 | Z6: 7 | AA6: 8 | AB6: 9 | AC6: 10 | AD6: 11 | AE6: 12 | AF6: 13 | AG6: 14 | AH6: 15 | AI6: 16 | AJ6: 17 | AK6: 18 | AL6: 19 | AM6: 20 | AN6: 21 | AO6: 22 | AP6: 23 | AQ6: 24 | AR6: 25 | AS6: 26 | AT6: 27 | AU6: 28 | AV6: 29 | AW6: 30 | AX6: 31 | AY6: 32 | AZ6: 33 | BA6: 34 | BB6: 35 | BC6: 36 | BD6: 37 | BE6: 38 | BF6: 39 | BG6: 40 | BH6: 41 | BI6: 42 | BJ6: 43 | BK6: 44 | BL6: 45 | BM6: 46 | BN6: 47 | BO6: 48 | BP6: 49 | BQ6: 50 | BR6: 51 | BS6: 52 | BT6: 53 | BU6: 54 | BV6: 55 | BW6: 56 | BX6: 57 | BY6: 58 | BZ6: 59 | CA6: 60 | CB6: 61 | CC6: 62 | CD6: 63 | CE6: 64 | CF6: 65 | CG6: 66 | CH6: 67 | CI6: 68 | CJ6: 69 | CK6: 70 | CL6: 71 | CM6: 72 | CN6: 73 | CO6: 74 | CP6: 75 | CQ6: 76 | CR6: 77 | CS6: 78 | CT6: 79 | CU6: 80
R7: =SUM(R8:R31) -> 22783.33333 | S7: 1294490.883 | T7: 22895.5665 | U7: 23008.35254 | V7: 23121.69418 | W7: 23235.59415 | X7: 23350.05521 | Y7: 23465.08011 | Z7: 23580.67164 | AA7: 23696.83258 | AB7: 23813.56575 | AC7: 23930.87395 | AD7: 24048.76003 | AE7: 24167.22683 | AF7: 24286.27721 | AG7: 24405.91404 | AH7: 24526.14022 | AI7: 24646.95865 | AJ7: 24768.37223 | AK7: 24890.38392 | AL7: 25012.99665 | AM7: 25136.21338 | AN7: 25260.03709 | AO7: 25384.47077 | AP7: 25509.51743 | AQ7: 25635.18007 | AR7: 25761.46175 | AS7: 25888.3655 | AT7: 26015.8944 | AU7: 26144.05151 | AV7: 26272.83994 | AW7: 26402.2628 | AX7: =SUM(AX8:AX31) -> 26532.32321 | AY7: 26663.02431 | AZ7: 26794.36925 | BA7: 26926.36122 | BB7: 27059.00339 | BC7: 27192.29898 | BD7: 27326.25119 | BE7: 27460.86326 | BF7: 27596.13845 | BG7: 27732.08002 | BH7: 27868.69125 | BI7: 28005.97545 | BJ7: 28143.93592 | BK7: 28282.57599 | BL7: 28421.89903 | BM7: 28561.90838 | BN7: 28702.60744 | BO7: 28843.9996 | BP7: 28986.08826 | BQ7: 29128.87688 | BR7: 0 | BS7: 0 | BT7: 0 | BU7: 0 | BV7: 0 | BW7: 0 | BX7: 0 | BY7: 0 | BZ7: 0 | CA7: 0 | CB7: 0 | CC7: 0 | CD7: =SUM(CD8:CD31) -> 0 | CE7: 0 | CF7: 0 | CG7: 0 | CH7: 0 | CI7: 0 | CJ7: 0 | CK7: 0 | CL7: 0 | CM7: 0 | CN7: 0 | CO7: 0 | CP7: 0 | CQ7: 0 | CR7: 0 | CS7: 0 | CT7: 0 | CU7: 0
A9: 1 | D9: 2000 | E9: 2 | F9: 00001; Fenster, Tür, Festverglasung; außen; gut zugänglich | G9: =IF(ISTEXT(VLOOKUP($F9,KatalogReinigung,3,0)),VLOOKUP($F9,KatalogReinigung,3,0),"") -> Fenster, Tür, Festverglasung | H9: =IF(ISTEXT(VLOOKUP($F9,KatalogReinigung,4,0)),VLOOKUP($F9,KatalogReinigung,4,0),"") ->  | I9: =IF(ISTEXT(VLOOKUP($F9,KatalogReinigung,5,0)),VLOOKUP($F9,KatalogReinigung,5,0),"") -> außen | J9: =IF(ISTEXT(VLOOKUP($F9,KatalogReinigung,6,0)),VLOOKUP($F9,KatalogReinigung,6,0),"") -> Glas | K9: =IF(ISTEXT(VLOOKUP($F9,KatalogReinigung,7,0)),VLOOKUP($F9,KatalogReinigung,7,0),"") -> gut zugänglich | L9: =IF(ISTEXT(VLOOKUP($F9,KatalogReinigung,8,0)),VLOOKUP($F9,KatalogReinigung,8,0),"") ->  | M9: =IF(ISNUMBER(VLOOKUP($F9,KatalogReinigung,8,0)),VLOOKUP($F9,KatalogReinigung,8,0),"") -> 22.5 | N9: =IF(ISNUMBER(VLOOKUP($F9,KatalogReinigung,9,0)),VLOOKUP($F9,KatalogReinigung,9,0),"") -> 25 | O9: =IF(ISNUMBER(VLOOKUP($F9,KatalogReinigung,10,0)),VLOOKUP($F9,KatalogReinigung,10,0),"") -> 2 | P9: =IF(ISNUMBER(M9/N9),M9/N9,"") -> 0.9 | Q9: =(IF(ISNUMBER(P9*O9),P9*O9,"")) -> 1.8 | R9: =IF(ISNUMBER(Q9*E9*D9),Q9*E9*D9,"") -> 7200 | S9: =SUM(OFFSET(T9,,,,BZBNB)) -> 409085.6337 | T9: =IF(AND(ISNUMBER($R9),ISNUMBER($R9*POWER(1+PSBNB,T$6)*POWER(1+KALBNB,-T$6)),T$6<BZBNB+1),$R9*POWER(1+PSBNB,T$6)*POWER(1+KALBNB,-T$6),"") -> 7235.46798 | U9: =IF(AND(ISNUMBER($R9),ISNUMBER($R9*POWER(1+PSBNB,U$6)*POWER(1+KALBNB,-U$6)),U$6<BZBNB+1),$R9*POWER(1+PSBNB,U$6)*POWER(1+KALBNB,-U$6),"") -> 7271.11068 | V9: 7306.928959 | W9: 7342.923683 | X9: 7379.095721 | Y9: 7415.445946 | Z9: 7451.975236 | AA9: 7488.684474 | AB9: 7525.574545 | AC9: 7562.646341 | AD9: 7599.900756 | AE9: 7637.338691 | AF9: 7674.961049 | AG9: 7712.768739 | AH9: 7750.762674 | AI9: 7788.943771 | AJ9: 7827.312952 | AK9: 7865.871144 | AL9: 7904.619278 | AM9: 7943.558289 | AN9: 7982.689118 | AO9: 8022.012709 | AP9: 8061.530013 | AQ9: 8101.241984 | AR9: 8141.14958 | AS9: 8181.253765 | AT9: 8221.555508 | AU9: 8262.055781 | AV9: 8302.755563 | AW9: 8343.655837 | AX9: 8384.75759 | AY9: 8426.061815 | AZ9: =IF(AND(ISNUMBER($R9),ISNUMBER($R9*POWER(1+PSBNB,AZ$6)*POWER(1+KALBNB,-AZ$6)),AZ$6<BZBNB+1),$R9*POWER(1+PSBNB,AZ$6)*POWER(1+KALBNB,-AZ$6),"") -> 8467.569508 | BA9: 8509.281673 | BB9: 8551.199317 | BC9: 8593.323452 | BD9: 8635.655094 | BE9: 8678.195267 | BF9: 8720.944997 | BG9: 8763.905318 | BH9: 8807.077265 | BI9: 8850.461882 | BJ9: 8894.060216 | BK9: 8937.873321 | BL9: 8981.902254 | BM9: 9026.148078 | BN9: 9070.611861 | BO9: 9115.294678 | BP9: 9160.197608 | BQ9: 9205.321734 | CF9: =IF(AND(ISNUMBER($R9),ISNUMBER($R9*POWER(1+PSBNB,CF$6)*POWER(1+KALBNB,-CF$6)),CF$6<BZBNB+1),$R9*POWER(1+PSBNB,CF$6)*POWER(1+KALBNB,-CF$6),"") -> 
A10: 2 | F10: 00002; Fenster, Tür, Festverglasung; ; außen; mittel zugänglich | G10: =IF(ISTEXT(VLOOKUP($F10,KatalogReinigung,3,0)),VLOOKUP($F10,KatalogReinigung,3,0),"") -> Fenster, Tür, Festverglasung | H10: =IF(ISTEXT(VLOOKUP($F10,KatalogReinigung,4,0)),VLOOKUP($F10,KatalogReinigung,4,0),"") ->  | I10: =IF(ISTEXT(VLOOKUP($F10,KatalogReinigung,5,0)),VLOOKUP($F10,KatalogReinigung,5,0),"") -> außen | J10: =IF(ISTEXT(VLOOKUP($F10,KatalogReinigung,6,0)),VLOOKUP($F10,KatalogReinigung,6,0),"") -> Glas | K10: =IF(ISTEXT(VLOOKUP($F10,KatalogReinigung,7,0)),VLOOKUP($F10,KatalogReinigung,7,0),"") -> mittel zugänglich | L10: =IF(ISTEXT(VLOOKUP($F10,KatalogReinigung,8,0)),VLOOKUP($F10,KatalogReinigung,8,0),"") ->  | M10: =IF(ISNUMBER(VLOOKUP($F10,KatalogReinigung,8,0)),VLOOKUP($F10,KatalogReinigung,8,0),"") -> 22.5 | N10: =IF(ISNUMBER(VLOOKUP($F10,KatalogReinigung,9,0)),VLOOKUP($F10,KatalogReinigung,9,0),"") -> 20 | O10: =IF(ISNUMBER(VLOOKUP($F10,KatalogReinigung,10,0)),VLOOKUP($F10,KatalogReinigung,10,0),"") -> 2 | P10: 1.125 | Q10: =(IF(ISNUMBER(P10*O10),P10*O10,"")) -> 2.25 | R10: 0 | S10: =SUM(OFFSET(T10,,,,BZBNB)) -> 0 | T10: =IF(AND(ISNUMBER($R10),ISNUMBER($R10*POWER(1+PSBNB,T$6)*POWER(1+KALBNB,-T$6)),T$6<BZBNB+1),$R10*POWER(1+PSBNB,T$6)*POWER(1+KALBNB,-T$6),"") -> 0 | U10: 0 | V10: 0 | W10: 0 | X10: 0 | Y10: 0 | Z10: 0 | AA10: 0 | AB10: 0 | AC10: 0 | AD10: 0 | AE10: 0 | AF10: 0 | AG10: 0 | AH10: 0 | AI10: 0 | AJ10: 0 | AK10: 0 | AL10: 0 | AM10: 0 | AN10: 0 | AO10: 0 | AP10: 0 | AQ10: 0 | AR10: 0 | AS10: 0 | AT10: 0 | AU10: 0 | AV10: 0 | AW10: 0 | AX10: 0 | AY10: 0 | AZ10: =IF(AND(ISNUMBER($R10),ISNUMBER($R10*POWER(1+PSBNB,AZ$6)*POWER(1+KALBNB,-AZ$6)),AZ$6<BZBNB+1),$R10*POWER(1+PSBNB,AZ$6)*POWER(1+KALBNB,-AZ$6),"") -> 0 | BA10: 0 | BB10: 0 | BC10: 0 | BD10: 0 | BE10: 0 | BF10: 0 | BG10: 0 | BH10: 0 | BI10: 0 | BJ10: 0 | BK10: 0 | BL10: 0 | BM10: 0 | BN10: 0 | BO10: 0 | BP10: 0 | BQ10: 0 | CF10: =IF(AND(ISNUMBER($R10),ISNUMBER($R10*POWER(1+PSBNB,CF$6)*POWER(1+KALBNB,-CF$6)),CF$6<BZBNB+1),$R10*POWER(1+PSBNB,CF$6)*POWER(1+KALBNB,-CF$6),"") -> 
A11: 3 | F11: 00003; Fenster, Tür, Festverglasung; ; außen; schwer zugänglich | G11: Fenster, Tür, Festverglasung | I11: außen | J11: Glas | K11: schwer zugänglich | M11: 22.5 | N11: 13 | O11: 2 | P11: 1.730769231 | Q11: 3.461538462 | R11: 0 | S11: 0 | T11: 0 | U11: 0 | V11: 0 | W11: 0 | X11: 0 | Y11: 0 | Z11: 0 | AA11: 0 | AB11: 0 | AC11: 0 | AD11: 0 | AE11: 0 | AF11: 0 | AG11: 0 | AH11: 0 | AI11: 0 | AJ11: 0 | AK11: 0 | AL11: 0 | AM11: 0 | AN11: 0 | AO11: 0 | AP11: 0 | AQ11: 0 | AR11: 0 | AS11: 0 | AT11: 0 | AU11: 0 | AV11: 0 | AW11: 0 | AX11: 0 | AY11: 0 | AZ11: 0 | BA11: 0 | BB11: 0 | BC11: 0 | BD11: 0 | BE11: 0 | BF11: 0 | BG11: 0 | BH11: 0 | BI11: 0 | BJ11: 0 | BK11: 0 | BL11: 0 | BM11: 0 | BN11: 0 | BO11: 0 | BP11: 0 | BQ11: 0
A12: 4 | F12: 00004; Glasfläche; Geländer; außen; gut zugänglich | G12: Glasfläche | H12: Geländer | I12: außen | J12: Glas | K12: gut zugänglich | M12: 22.5 | N12: 25 | O12: 2 | P12: 0.9 | Q12: 1.8 | R12: 0 | S12: 0 | T12: 0 | U12: 0 | V12: 0 | W12: 0 | X12: 0 | Y12: 0 | Z12: 0 | AA12: 0 | AB12: 0 | AC12: 0 | AD12: 0 | AE12: 0 | AF12: 0 | AG12: 0 | AH12: 0 | AI12: 0 | AJ12: 0 | AK12: 0 | AL12: 0 | AM12: 0 | AN12: 0 | AO12: 0 | AP12: 0 | AQ12: 0 | AR12: 0 | AS12: 0 | AT12: 0 | AU12: 0 | AV12: 0 | AW12: 0 | AX12: 0 | AY12: 0 | AZ12: 0 | BA12: 0 | BB12: 0 | BC12: 0 | BD12: 0 | BE12: 0 | BF12: 0 | BG12: 0 | BH12: 0 | BI12: 0 | BJ12: 0 | BK12: 0 | BL12: 0 | BM12: 0 | BN12: 0 | BO12: 0 | BP12: 0 | BQ12: 0
A13: 5 | F13: 00005; Glasfläche; Geländer; außen; mittel zugänglich | G13: Glasfläche | H13: Geländer | I13: außen | J13: Glas | K13: mittel zugänglich | M13: 22.5 | N13: 20 | O13: 2 | P13: 1.125 | Q13: 2.25 | R13: 0 | S13: 0 | T13: 0 | U13: 0 | V13: 0 | W13: 0 | X13: 0 | Y13: 0 | Z13: 0 | AA13: 0 | AB13: 0 | AC13: 0 | AD13: 0 | AE13: 0 | AF13: 0 | AG13: 0 | AH13: 0 | AI13: 0 | AJ13: 0 | AK13: 0 | AL13: 0 | AM13: 0 | AN13: 0 | AO13: 0 | AP13: 0 | AQ13: 0 | AR13: 0 | AS13: 0 | AT13: 0 | AU13: 0 | AV13: 0 | AW13: 0 | AX13: 0 | AY13: 0 | AZ13: 0 | BA13: 0 | BB13: 0 | BC13: 0 | BD13: 0 | BE13: 0 | BF13: 0 | BG13: 0 | BH13: 0 | BI13: 0 | BJ13: 0 | BK13: 0 | BL13: 0 | BM13: 0 | BN13: 0 | BO13: 0 | BP13: 0 | BQ13: 0
A14: 6 | F14: 00006; Glasfläche; Geländer; außen; schwer zugänglich | G14: Glasfläche | H14: Geländer | I14: außen | J14: Glas | K14: schwer zugänglich | M14: 22.5 | N14: 13 | O14: 2 | P14: 1.730769231 | Q14: 3.461538462 | R14: 0 | S14: 0 | T14: 0 | U14: 0 | V14: 0 | W14: 0 | X14: 0 | Y14: 0 | Z14: 0 | AA14: 0 | AB14: 0 | AC14: 0 | AD14: 0 | AE14: 0 | AF14: 0 | AG14: 0 | AH14: 0 | AI14: 0 | AJ14: 0 | AK14: 0 | AL14: 0 | AM14: 0 | AN14: 0 | AO14: 0 | AP14: 0 | AQ14: 0 | AR14: 0 | AS14: 0 | AT14: 0 | AU14: 0 | AV14: 0 | AW14: 0 | AX14: 0 | AY14: 0 | AZ14: 0 | BA14: 0 | BB14: 0 | BC14: 0 | BD14: 0 | BE14: 0 | BF14: 0 | BG14: 0 | BH14: 0 | BI14: 0 | BJ14: 0 | BK14: 0 | BL14: 0 | BM14: 0 | BN14: 0 | BO14: 0 | BP14: 0 | BQ14: 0
A15: 7 | F15: 00007; Glasfläche; sonstige Verglasung; außen; gut zugänglich | G15: Glasfläche | H15: sonstige Verglasung | I15: außen | J15: Glas | K15: gut zugänglich | M15: 22.5 | N15: 25 | O15: 2 | P15: 0.9 | Q15: 1.8 | R15: 0 | S15: 0 | T15: 0 | U15: 0 | V15: 0 | W15: 0 | X15: 0 | Y15: 0 | Z15: 0 | AA15: 0 | AB15: 0 | AC15: 0 | AD15: 0 | AE15: 0 | AF15: 0 | AG15: 0 | AH15: 0 | AI15: 0 | AJ15: 0 | AK15: 0 | AL15: 0 | AM15: 0 | AN15: 0 | AO15: 0 | AP15: 0 | AQ15: 0 | AR15: 0 | AS15: 0 | AT15: 0 | AU15: 0 | AV15: 0 | AW15: 0 | AX15: 0 | AY15: 0 | AZ15: 0 | BA15: 0 | BB15: 0 | BC15: 0 | BD15: 0 | BE15: 0 | BF15: 0 | BG15: 0 | BH15: 0 | BI15: 0 | BJ15: 0 | BK15: 0 | BL15: 0 | BM15: 0 | BN15: 0 | BO15: 0 | BP15: 0 | BQ15: 0
A16: 8 | F16: 00008; Glasfläche; sonstige Verglasung; außen; mittel zugänglich | G16: Glasfläche | H16: sonstige Verglasung | I16: außen | J16: Glas | K16: mittel zugänglich | M16: 22.5 | N16: 20 | O16: 2 | P16: 1.125 | Q16: 2.25 | R16: 0 | S16: 0 | T16: 0 | U16: 0 | V16: 0 | W16: 0 | X16: 0 | Y16: 0 | Z16: 0 | AA16: 0 | AB16: 0 | AC16: 0 | AD16: 0 | AE16: 0 | AF16: 0 | AG16: 0 | AH16: 0 | AI16: 0 | AJ16: 0 | AK16: 0 | AL16: 0 | AM16: 0 | AN16: 0 | AO16: 0 | AP16: 0 | AQ16: 0 | AR16: 0 | AS16: 0 | AT16: 0 | AU16: 0 | AV16: 0 | AW16: 0 | AX16: 0 | AY16: =IF(AND(ISNUMBER($R16),ISNUMBER($R16*POWER(1+PSBNB,AY$6)*POWER(1+KALBNB,-AY$6)),AY$6<BZBNB+1),$R16*POWER(1+PSBNB,AY$6)*POWER(1+KALBNB,-AY$6),"") -> 0 | AZ16: 0 | BA16: 0 | BB16: 0 | BC16: 0 | BD16: 0 | BE16: 0 | BF16: 0 | BG16: 0 | BH16: 0 | BI16: 0 | BJ16: 0 | BK16: 0 | BL16: 0 | BM16: 0 | BN16: 0 | BO16: 0 | BP16: 0 | BQ16: 0 | CE16: =IF(AND(ISNUMBER($R16),ISNUMBER($R16*POWER(1+PSBNB,CE$6)*POWER(1+KALBNB,-CE$6)),CE$6<BZBNB+1),$R16*POWER(1+PSBNB,CE$6)*POWER(1+KALBNB,-CE$6),"") -> 
A17: 9 | F17: 00009; Glasfläche; sonstige Verglasung; außen; schwer zugänglich | G17: Glasfläche | H17: sonstige Verglasung | I17: außen | J17: Glas | K17: schwer zugänglich | M17: 22.5 | N17: 13 | O17: 2 | P17: 1.730769231 | Q17: 3.461538462 | R17: 0 | S17: 0 | T17: =IF(AND(ISNUMBER($R17),ISNUMBER($R17*POWER(1+PSBNB,T$6)*POWER(1+KALBNB,-T$6)),T$6<BZBNB+1),$R17*POWER(1+PSBNB,T$6)*POWER(1+KALBNB,-T$6),"") -> 0 | U17: 0 | V17: 0 | W17: 0 | X17: 0 | Y17: 0 | Z17: 0 | AA17: 0 | AB17: 0 | AC17: 0 | AD17: 0 | AE17: 0 | AF17: 0 | AG17: 0 | AH17: 0 | AI17: 0 | AJ17: 0 | AK17: 0 | AL17: 0 | AM17: 0 | AN17: 0 | AO17: 0 | AP17: 0 | AQ17: 0 | AR17: 0 | AS17: 0 | AT17: 0 | AU17: 0 | AV17: 0 | AW17: 0 | AX17: 0 | AY17: 0 | AZ17: 0 | BA17: 0 | BB17: 0 | BC17: 0 | BD17: 0 | BE17: 0 | BF17: 0 | BG17: 0 | BH17: 0 | BI17: 0 | BJ17: 0 | BK17: 0 | BL17: 0 | BM17: 0 | BN17: 0 | BO17: 0 | BP17: 0 | BQ17: 0
A18: 10 | F18: 00010; AW-Bekleidung; Naturstein weich; außen; | G18: AW-Bekleidung | H18: Naturstein weich | I18: außen | J18: Naturstein weich | M18: 17 | N18: 1.5 | O18: 0.25 | P18: 11.33333333 | Q18: 2.833333333 | R18: 0 | S18: 0 | T18: 0 | U18: 0 | V18: 0 | W18: 0 | X18: 0 | Y18: 0 | Z18: 0 | AA18: 0 | AB18: 0 | AC18: 0 | AD18: 0 | AE18: 0 | AF18: 0 | AG18: 0 | AH18: 0 | AI18: 0 | AJ18: 0 | AK18: 0 | AL18: 0 | AM18: 0 | AN18: 0 | AO18: 0 | AP18: 0 | AQ18: 0 | AR18: 0 | AS18: 0 | AT18: 0 | AU18: 0 | AV18: 0 | AW18: 0 | AX18: 0 | AY18: 0 | AZ18: 0 | BA18: 0 | BB18: 0 | BC18: 0 | BD18: 0 | BE18: 0 | BF18: 0 | BG18: 0 | BH18: 0 | BI18: 0 | BJ18: 0 | BK18: 0 | BL18: 0 | BM18: 0 | BN18: 0 | BO18: 0 | BP18: 0 | BQ18: 0
A19: 11 | F19: 00011; AW-Bekleidung; Naturstein hart; außen; | G19: AW-Bekleidung | H19: Naturstein hart | I19: außen | J19: Naturstein hart | M19: 17 | N19: 6 | O19: 0.25 | P19: 2.833333333 | Q19: 0.7083333333 | R19: 0 | S19: 0 | T19: 0 | U19: 0 | V19: 0 | W19: 0 | X19: 0 | Y19: 0 | Z19: 0 | AA19: 0 | AB19: 0 | AC19: 0 | AD19: 0 | AE19: 0 | AF19: 0 | AG19: 0 | AH19: 0 | AI19: 0 | AJ19: 0 | AK19: 0 | AL19: 0 | AM19: 0 | AN19: 0 | AO19: 0 | AP19: 0 | AQ19: 0 | AR19: 0 | AS19: 0 | AT19: 0 | AU19: 0 | AV19: 0 | AW19: 0 | AX19: 0 | AY19: 0 | AZ19: 0 | BA19: 0 | BB19: 0 | BC19: 0 | BD19: 0 | BE19: 0 | BF19: 0 | BG19: 0 | BH19: 0 | BI19: 0 | BJ19: 0 | BK19: 0 | BL19: 0 | BM19: 0 | BN19: 0 | BO19: 0 | BP19: 0 | BQ19: 0
A20: 12 | F20: 00012; AW-Bekleidung; Aluminium; außen; | G20: AW-Bekleidung | H20: Aluminium | I20: außen | J20: Aluminium | M20: 17 | N20: 3 | O20: 0.25 | P20: 5.666666667 | Q20: 1.416666667 | R20: 0 | S20: 0 | T20: 0 | U20: 0 | V20: 0 | W20: 0 | X20: 0 | Y20: 0 | Z20: 0 | AA20: 0 | AB20: 0 | AC20: 0 | AD20: 0 | AE20: 0 | AF20: 0 | AG20: 0 | AH20: 0 | AI20: 0 | AJ20: 0 | AK20: 0 | AL20: 0 | AM20: 0 | AN20: 0 | AO20: 0 | AP20: 0 | AQ20: 0 | AR20: 0 | AS20: 0 | AT20: 0 | AU20: 0 | AV20: 0 | AW20: 0 | AX20: 0 | AY20: 0 | AZ20: 0 | BA20: 0 | BB20: 0 | BC20: 0 | BD20: 0 | BE20: 0 | BF20: 0 | BG20: 0 | BH20: 0 | BI20: 0 | BJ20: 0 | BK20: 0 | BL20: 0 | BM20: 0 | BN20: 0 | BO20: 0 | BP20: 0 | BQ20: 0 | CE20: =IF(AND(ISNUMBER($R20),ISNUMBER($R20*POWER(1+PSBNB,CE$6)*POWER(1+KALBNB,-CE$6)),CE$6<BZBNB+1),$R20*POWER(1+PSBNB,CE$6)*POWER(1+KALBNB,-CE$6),"") -> 
A21: 13 | F21: 00013; AW-Bekleidung; Edelstahl; außen; | G21: AW-Bekleidung | H21: Edelstahl | I21: außen | J21: Edelstahl | M21: 17 | N21: 3 | O21: 0.25 | P21: 5.666666667 | Q21: 1.416666667 | R21: 0 | S21: 0 | T21: =IF(AND(ISNUMBER($R21),ISNUMBER($R21*POWER(1+PSBNB,T$6)*POWER(1+KALBNB,-T$6)),T$6<BZBNB+1),$R21*POWER(1+PSBNB,T$6)*POWER(1+KALBNB,-T$6),"") -> 0 | U21: 0 | V21: 0 | W21: 0 | X21: 0 | Y21: 0 | Z21: 0 | AA21: 0 | AB21: 0 | AC21: 0 | AD21: 0 | AE21: 0 | AF21: 0 | AG21: 0 | AH21: 0 | AI21: 0 | AJ21: 0 | AK21: 0 | AL21: 0 | AM21: 0 | AN21: 0 | AO21: 0 | AP21: 0 | AQ21: 0 | AR21: 0 | AS21: 0 | AT21: 0 | AU21: 0 | AV21: 0 | AW21: 0 | AX21: 0 | AY21: 0 | AZ21: 0 | BA21: 0 | BB21: 0 | BC21: 0 | BD21: 0 | BE21: 0 | BF21: 0 | BG21: 0 | BH21: 0 | BI21: 0 | BJ21: 0 | BK21: 0 | BL21: 0 | BM21: 0 | BN21: 0 | BO21: 0 | BP21: 0 | BQ21: 0
A22: 14 | F22: 00014; AW-Bekleidung; Kupferblech; außen; | G22: AW-Bekleidung | H22: Kupferblech | I22: außen | J22: Kupferblech | M22: 17 | N22: 3 | O22: 0.25 | P22: 5.666666667 | Q22: 1.416666667 | R22: 0 | S22: 0 | T22: 0 | U22: 0 | V22: 0 | W22: 0 | X22: 0 | Y22: 0 | Z22: 0 | AA22: 0 | AB22: 0 | AC22: 0 | AD22: 0 | AE22: 0 | AF22: 0 | AG22: 0 | AH22: 0 | AI22: 0 | AJ22: 0 | AK22: 0 | AL22: 0 | AM22: 0 | AN22: 0 | AO22: 0 | AP22: 0 | AQ22: 0 | AR22: 0 | AS22: 0 | AT22: 0 | AU22: 0 | AV22: 0 | AW22: 0 | AX22: 0 | AY22: 0 | AZ22: 0 | BA22: 0 | BB22: 0 | BC22: 0 | BD22: 0 | BE22: 0 | BF22: 0 | BG22: 0 | BH22: 0 | BI22: 0 | BJ22: 0 | BK22: 0 | BL22: 0 | BM22: 0 | BN22: 0 | BO22: 0 | BP22: 0 | BQ22: 0
A23: 15 | F23: 00015; AW-Bekleidung; Stahl korrosionsgeschützt; außen; | G23: AW-Bekleidung | H23: Stahl korrosionsgeschützt | I23: außen | J23: Stahl korrosionsgeschützt | M23: 17 | N23: 3 | O23: 0.25 | P23: 5.666666667 | Q23: 1.416666667 | R23: 0 | S23: 0 | T23: 0 | U23: 0 | V23: 0 | W23: 0 | X23: 0 | Y23: 0 | Z23: 0 | AA23: 0 | AB23: 0 | AC23: 0 | AD23: 0 | AE23: 0 | AF23: 0 | AG23: 0 | AH23: 0 | AI23: 0 | AJ23: 0 | AK23: 0 | AL23: 0 | AM23: 0 | AN23: 0 | AO23: 0 | AP23: 0 | AQ23: 0 | AR23: 0 | AS23: 0 | AT23: 0 | AU23: 0 | AV23: 0 | AW23: 0 | AX23: 0 | AY23: 0 | AZ23: 0 | BA23: 0 | BB23: 0 | BC23: 0 | BD23: 0 | BE23: 0 | BF23: 0 | BG23: 0 | BH23: 0 | BI23: 0 | BJ23: 0 | BK23: 0 | BL23: 0 | BM23: 0 | BN23: 0 | BO23: 0 | BP23: 0 | BQ23: 0
A24: 16 | F24: 00016; AW-Bekleidung; Glas; außen; | G24: AW-Bekleidung | H24: Glas | I24: außen | J24: Glas | M24: 17 | N24: 20 | O24: 0.25 | P24: 0.85 | Q24: 0.2125 | R24: 0 | S24: 0 | T24: 0 | U24: 0 | V24: 0 | W24: 0 | X24: 0 | Y24: 0 | Z24: 0 | AA24: 0 | AB24: 0 | AC24: 0 | AD24: 0 | AE24: 0 | AF24: 0 | AG24: 0 | AH24: 0 | AI24: 0 | AJ24: 0 | AK24: 0 | AL24: 0 | AM24: 0 | AN24: 0 | AO24: 0 | AP24: 0 | AQ24: 0 | AR24: 0 | AS24: 0 | AT24: 0 | AU24: 0 | AV24: 0 | AW24: 0 | AX24: 0 | AY24: 0 | AZ24: 0 | BA24: 0 | BB24: 0 | BC24: 0 | BD24: 0 | BE24: 0 | BF24: 0 | BG24: 0 | BH24: 0 | BI24: 0 | BJ24: 0 | BK24: 0 | BL24: 0 | BM24: 0 | BN24: 0 | BO24: 0 | BP24: 0 | BQ24: 0 | CE24: =IF(AND(ISNUMBER($R24),ISNUMBER($R24*POWER(1+PSBNB,CE$6)*POWER(1+KALBNB,-CE$6)),CE$6<BZBNB+1),$R24*POWER(1+PSBNB,CE$6)*POWER(1+KALBNB,-CE$6),"") ->  | CU24: =IF(AND(ISNUMBER($R24),ISNUMBER($R24*POWER(1+PSBNB,CU$6)*POWER(1+KALBNB,-CU$6)),CU$6<BZBNB+1),$R24*POWER(1+PSBNB,CU$6)*POWER(1+KALBNB,-CU$6),"") -> 
A25: 17 | F25: 00017; AW-Bekleidung; Keramik; außen; | G25: AW-Bekleidung | H25: Keramik | I25: außen | J25: Keramik | M25: 17 | N25: 6 | O25: 0.25 | P25: 2.833333333 | Q25: 0.7083333333 | R25: 0 | S25: 0 | T25: =IF(AND(ISNUMBER($R25),ISNUMBER($R25*POWER(1+PSBNB,T$6)*POWER(1+KALBNB,-T$6)),T$6<BZBNB+1),$R25*POWER(1+PSBNB,T$6)*POWER(1+KALBNB,-T$6),"") -> 0 | U25: 0 | V25: 0 | W25: 0 | X25: 0 | Y25: 0 | Z25: 0 | AA25: 0 | AB25: 0 | AC25: 0 | AD25: 0 | AE25: 0 | AF25: 0 | AG25: 0 | AH25: 0 | AI25: 0 | AJ25: 0 | AK25: 0 | AL25: 0 | AM25: 0 | AN25: 0 | AO25: 0 | AP25: 0 | AQ25: 0 | AR25: 0 | AS25: 0 | AT25: 0 | AU25: 0 | AV25: 0 | AW25: 0 | AX25: 0 | AY25: 0 | AZ25: 0 | BA25: 0 | BB25: 0 | BC25: 0 | BD25: 0 | BE25: 0 | BF25: 0 | BG25: 0 | BH25: 0 | BI25: 0 | BJ25: 0 | BK25: 0 | BL25: 0 | BM25: 0 | BN25: 0 | BO25: 0 | BP25: 0 | BQ25: 0 | CF25: =IF(AND(ISNUMBER($R25),ISNUMBER($R25*POWER(1+PSBNB,CF$6)*POWER(1+KALBNB,-CF$6)),CF$6<BZBNB+1),$R25*POWER(1+PSBNB,CF$6)*POWER(1+KALBNB,-CF$6),"") -> 
A26: 18 | F26: 00018; AW-Bekleidung; Kunst/ Werkstein; außen; | G26: AW-Bekleidung | H26: Kunst/ Werkstein | I26: außen | J26: Kunst/ Werkstein | M26: 17 | N26: 6 | O26: 0.25 | P26: 2.833333333 | Q26: 0.7083333333 | R26: 0 | S26: 0 | T26: 0 | U26: 0 | V26: 0 | W26: 0 | X26: 0 | Y26: 0 | Z26: 0 | AA26: 0 | AB26: 0 | AC26: 0 | AD26: 0 | AE26: 0 | AF26: 0 | AG26: 0 | AH26: 0 | AI26: 0 | AJ26: 0 | AK26: 0 | AL26: 0 | AM26: 0 | AN26: 0 | AO26: 0 | AP26: 0 | AQ26: 0 | AR26: 0 | AS26: 0 | AT26: 0 | AU26: 0 | AV26: 0 | AW26: 0 | AX26: 0 | AY26: 0 | AZ26: 0 | BA26: 0 | BB26: 0 | BC26: 0 | BD26: 0 | BE26: 0 | BF26: 0 | BG26: 0 | BH26: 0 | BI26: 0 | BJ26: 0 | BK26: 0 | BL26: 0 | BM26: 0 | BN26: 0 | BO26: 0 | BP26: 0 | BQ26: 0
A27: 19 | F27: 00019; Türen allgemein + Innenfenster; außer Glastür außen; | G27: Türen allgemein + Innenfenster | H27: außer Glastür außen | M27: 17 | N27: 250 | O27: 4 | P27: 0.068 | Q27: 0.272 | R27: 0 | S27: 0 | T27: 0 | U27: 0 | V27: 0 | W27: 0 | X27: 0 | Y27: 0 | Z27: 0 | AA27: 0 | AB27: 0 | AC27: 0 | AD27: 0 | AE27: 0 | AF27: 0 | AG27: 0 | AH27: 0 | AI27: 0 | AJ27: 0 | AK27: 0 | AL27: 0 | AM27: 0 | AN27: 0 | AO27: 0 | AP27: 0 | AQ27: 0 | AR27: 0 | AS27: 0 | AT27: 0 | AU27: 0 | AV27: 0 | AW27: 0 | AX27: 0 | AY27: 0 | AZ27: 0 | BA27: 0 | BB27: 0 | BC27: 0 | BD27: 0 | BE27: 0 | BF27: 0 | BG27: 0 | BH27: 0 | BI27: 0 | BJ27: 0 | BK27: 0 | BL27: 0 | BM27: 0 | BN27: 0 | BO27: 0 | BP27: 0 | BQ27: 0
A28: 20 | D28: 500 | E28: 1 | F28: 00020; Sanitäreinrichtung; Ansatz über m² Bodenfläche; innen; | G28: Sanitäreinrichtung | H28: Ansatz über m² Bodenfläche | I28: innen | M28: 17 | N28: 150 | O28: 250 | P28: 0.1133333333 | Q28: 28.33333333 | R28: 14166.66667 | S28: 804913.8626 | T28: 14236.4532 | U28: 14306.58351 | V28: 14377.05929 | W28: 14447.88225 | X28: 14519.05408 | Y28: 14590.57651 | Z28: 14662.45128 | AA28: 14734.6801 | AB28: 14807.26473 | AC28: 14880.20692 | AD28: 14953.50843 | AE28: 15027.17104 | AF28: 15101.19651 | AG28: 15175.58664 | AH28: 15250.34322 | AI28: 15325.46807 | AJ28: 15400.96298 | AK28: 15476.8298 | AL28: 15553.07034 | AM28: 15629.68645 | AN28: 15706.67998 | AO28: 15784.05278 | AP28: 15861.80674 | AQ28: 15939.94372 | AR28: 16018.46561 | AS28: 16097.37431 | AT28: 16176.67172 | AU28: 16256.35975 | AV28: 16336.44034 | AW28: 16416.91542 | AX28: 16497.78692 | AY28: 16579.05681 | AZ28: 16660.72704 | BA28: 16742.79959 | BB28: 16825.27643 | BC28: 16908.15957 | BD28: 16991.451 | BE28: 17075.15272 | BF28: 17159.26678 | BG28: 17243.79519 | BH28: 17328.73999 | BI28: 17414.10324 | BJ28: 17499.887 | BK28: 17586.09334 | BL28: 17672.72434 | BM28: 17759.7821 | BN28: 17847.26871 | BO28: 17935.18629 | BP28: 18023.53696 | BQ28: 18112.32286 | CE28: =IF(AND(ISNUMBER($R28),ISNUMBER($R28*POWER(1+PSBNB,CE$6)*POWER(1+KALBNB,-CE$6)),CE$6<BZBNB+1),$R28*POWER(1+PSBNB,CE$6)*POWER(1+KALBNB,-CE$6),"") -> 
A29: 21 | D29: 1000 | E29: 1 | F29: 00021; Sonnenschutzfläche; Jalousie; außen; normal | G29: Sonnenschutzfläche | H29: Jalousie | I29: außen | J29: Aluminium | K29: normal | M29: 17 | N29: 3 | O29: 0.25 | P29: 5.666666667 | Q29: 1.416666667 | R29: 1416.666667 | S29: 80491.38626 | T29: =IF(AND(ISNUMBER($R29),ISNUMBER($R29*POWER(1+PSBNB,T$6)*POWER(1+KALBNB,-T$6)),T$6<BZBNB+1),$R29*POWER(1+PSBNB,T$6)*POWER(1+KALBNB,-T$6),"") -> 1423.64532 | U29: 1430.658351 | V29: 1437.705929 | W29: 1444.788225 | X29: 1451.905408 | Y29: 1459.057651 | Z29: 1466.245128 | AA29: 1473.46801 | AB29: 1480.726473 | AC29: 1488.020692 | AD29: 1495.350843 | AE29: 1502.717104 | AF29: 1510.119651 | AG29: 1517.558664 | AH29: 1525.034322 | AI29: 1532.546807 | AJ29: 1540.096298 | AK29: 1547.68298 | AL29: 1555.307034 | AM29: 1562.968645 | AN29: 1570.667998 | AO29: 1578.405278 | AP29: 1586.180674 | AQ29: 1593.994372 | AR29: 1601.846561 | AS29: 1609.737431 | AT29: 1617.667172 | AU29: 1625.635975 | AV29: 1633.644034 | AW29: 1641.691542 | AX29: 1649.778692 | AY29: 1657.905681 | AZ29: 1666.072704 | BA29: 1674.279959 | BB29: 1682.527643 | BC29: 1690.815957 | BD29: 1699.1451 | BE29: 1707.515272 | BF29: 1715.926678 | BG29: 1724.379519 | BH29: 1732.873999 | BI29: 1741.410324 | BJ29: 1749.9887 | BK29: 1758.609334 | BL29: 1767.272434 | BM29: 1775.97821 | BN29: 1784.726871 | BO29: 1793.518629 | BP29: 1802.353696 | BQ29: 1811.232286
A31: =(MAX(A$8:A$30))+1 -> 22 | G31: =IF(ISTEXT(VLOOKUP($F31,KatalogReinigung,3,0)),VLOOKUP($F31,KatalogReinigung,3,0),"") ->  | H31: =IF(ISTEXT(VLOOKUP($F31,KatalogReinigung,4,0)),VLOOKUP($F31,KatalogReinigung,4,0),"") ->  | I31: =IF(ISTEXT(VLOOKUP($F31,KatalogReinigung,5,0)),VLOOKUP($F31,KatalogReinigung,5,0),"") ->  | J31: =IF(ISTEXT(VLOOKUP($F31,KatalogReinigung,6,0)),VLOOKUP($F31,KatalogReinigung,6,0),"") ->  | K31: =IF(ISTEXT(VLOOKUP($F31,KatalogReinigung,7,0)),VLOOKUP($F31,KatalogReinigung,7,0),"") ->  | L31: =IF(ISTEXT(VLOOKUP($F31,KatalogReinigung,8,0)),VLOOKUP($F31,KatalogReinigung,8,0),"") ->  | M31: =IF(ISNUMBER(VLOOKUP($F31,KatalogReinigung,8,0)),VLOOKUP($F31,KatalogReinigung,8,0),"") ->  | N31: =IF(ISNUMBER(VLOOKUP($F31,KatalogReinigung,9,0)),VLOOKUP($F31,KatalogReinigung,9,0),"") ->  | O31: =IF(ISNUMBER(VLOOKUP($F31,KatalogReinigung,10,0)),VLOOKUP($F31,KatalogReinigung,10,0),"") ->  | P31: =IF(ISNUMBER(M31/N31),M31/N31,"") ->  | Q31: =(IF(ISNUMBER(P31*O31),P31*O31,"")) ->  | R31: =IF(ISNUMBER(Q31*E31*D31),Q31*E31*D31,"") ->  | S31: =SUM(OFFSET(T31,,,,BZBNB)) -> 0

Sheet Bodenreinigung
A1: Berechnung LCC nach BNB BN 2.1.1 v2015 Eingabe Bodenreinigung | C1: BBR-LCC Ver. 15-1 BBR A1
A2: Projekt: | B2: =IF(ISTEXT(Projekt),Projekt,"") -> Beispieleingabe (Szenario: 10 Mio Euro netto Herstellungskosten für KG 300 und 400)
A3: Stand: | B3: =IF(ISNUMBER(LCC_Stand),LCC_Stand,"") -> 2018-01-08
A5: Nr. | B5: Raumbezeichnung | C5: Raumnr. | D5: Fläche | E5: Oberflächentyp | F5: Typ | G5: Material | H5: Belastung | I5: €/h | J5: m²/h | K5: Anzahl je Jahr | L5: €/m² | M5: €/m²*a | N5: €/a | O5: Barwert | P5: Barwert | Q5: Barwert | R5: Barwert | S5: Barwert | T5: Barwert | U5: Barwert | V5: Barwert | W5: Barwert | X5: Barwert | Y5: Barwert | Z5: Barwert | AA5: Barwert | AB5: Barwert | AC5: Barwert | AD5: Barwert | AE5: Barwert | AF5: Barwert | AG5: Barwert | AH5: Barwert | AI5: Barwert | AJ5: Barwert | AK5: Barwert | AL5: Barwert | AM5: Barwert | AN5: Barwert | AO5: Barwert | AP5: Barwert | AQ5: Barwert | AR5: Barwert | AS5: Barwert | AT5: Barwert | AU5: Barwert | AV5: Barwert | AW5: Barwert | AX5: Barwert | AY5: Barwert | AZ5: Barwert | BA5: Barwert | BB5: Barwert | BC5: Barwert | BD5: Barwert | BE5: Barwert | BF5: Barwert | BG5: Barwert | BH5: Barwert | BI5: Barwert | BJ5: Barwert | BK5: Barwert | BL5: Barwert | BM5: Barwert | BN5: Barwert | BO5: Barwert | BP5: Barwert | BQ5: Barwert | BR5: Barwert | BS5: Barwert | BT5: Barwert | BU5: Barwert | BV5: Barwert | BW5: Barwert | BX5: Barwert | BY5: Barwert | BZ5: Barwert | CA5: Barwert | CB5: Barwert | CC5: Barwert | CD5: Barwert | CE5: Barwert | CF5: Barwert | CG5: Barwert | CH5: Barwert | CI5: Barwert | CJ5: Barwert | CK5: Barwert | CL5: Barwert | CM5: Barwert | CN5: Barwert | CO5: Barwert | CP5: Barwert | CQ5: Barwert
O6: ∑ BZR | P6: 1 | Q6: 2 | R6: 3 | S6: 4 | T6: 5 | U6: 6 | V6: 7 | W6: 8 | X6: 9 | Y6: 10 | Z6: 11 | AA6: 12 | AB6: 13 | AC6: 14 | AD6: 15 | AE6: 16 | AF6: 17 | AG6: 18 | AH6: 19 | AI6: 20 | AJ6: 21 | AK6: 22 | AL6: 23 | AM6: 24 | AN6: 25 | AO6: 26 | AP6: 27 | AQ6: 28 | AR6: 29 | AS6: 30 | AT6: 31 | AU6: 32 | AV6: 33 | AW6: 34 | AX6: 35 | AY6: 36 | AZ6: 37 | BA6: 38 | BB6: 39 | BC6: 40 | BD6: 41 | BE6: 42 | BF6: 43 | BG6: 44 | BH6: 45 | BI6: 46 | BJ6: 47 | BK6: 48 | BL6: 49 | BM6: 50 | BN6: 51 | BO6: 52 | BP6: 53 | BQ6: 54 | BR6: 55 | BS6: 56 | BT6: 57 | BU6: 58 | BV6: 59 | BW6: 60 | BX6: 61 | BY6: 62 | BZ6: 63 | CA6: 64 | CB6: 65 | CC6: 66 | CD6: 67 | CE6: 68 | CF6: 69 | CG6: 70 | CH6: 71 | CI6: 72 | CJ6: 73 | CK6: 74 | CL6: 75 | CM6: 76 | CN6: 77 | CO6: 78 | CP6: 79 | CQ6: 80
N7: =SUM(N8:N25) -> 34000 | O7: 1931793.27 | P7: 34167.48768 | Q7: 34335.80043 | R7: 34504.94231 | S7: 34674.91739 | T7: 34845.72979 | U7: 35017.38363 | V7: 35189.88306 | W7: 35363.23224 | X7: 35537.43535 | Y7: 35712.49661 | Z7: 35888.42024 | AA7: 36065.21049 | AB7: 36242.87162 | AC7: 36421.40794 | AD7: 36600.82374 | AE7: 36781.12336 | AF7: 36962.31116 | AG7: 37144.39151 | AH7: 37327.36881 | AI7: 37511.24747 | AJ7: 37696.03195 | AK7: 37881.72668 | AL7: 38068.33617 | AM7: 38255.86492 | AN7: 38444.31746 | AO7: 38633.69834 | AP7: 38824.01212 | AQ7: 39015.26341 | AR7: 39207.45683 | AS7: 39400.59701 | AT7: =SUM(AT8:AT25) -> 39594.68862 | AU7: 39789.73635 | AV7: 39985.7449 | AW7: 40182.71901 | AX7: 40380.66344 | AY7: 40579.58297 | AZ7: 40779.48239 | BA7: 40980.36654 | BB7: 41182.24027 | BC7: 41385.10844 | BD7: 41588.97597 | BE7: 41793.84778 | BF7: 41999.7288 | BG7: 42206.62402 | BH7: 42414.53842 | BI7: 42623.47703 | BJ7: 42833.4449 | BK7: 43044.44709 | BL7: 43256.4887 | BM7: 43469.57485 | BN7: 0 | BO7: 0 | BP7: 0 | BQ7: 0 | BR7: 0 | BS7: 0 | BT7: 0 | BU7: 0 | BV7: 0 | BW7: 0 | BX7: 0 | BY7: 0 | BZ7: =SUM(BZ8:BZ25) -> 0 | CA7: 0 | CB7: 0 | CC7: 0 | CD7: 0 | CE7: 0 | CF7: 0 | CG7: 0 | CH7: 0 | CI7: 0 | CJ7: 0 | CK7: 0 | CL7: 0 | CM7: 0 | CN7: 0 | CO7: 0 | CP7: 0 | CQ7: 0
A9: 1 | E9: 00001; keramische Fliesen; normal | F9: =IF(ISTEXT(VLOOKUP($E9,KatalogBodenreinigung,3,0)),VLOOKUP($E9,KatalogBodenreinigung,3,0),"") -> wischbar | G9: =IF(ISTEXT(VLOOKUP($E9,KatalogBodenreinigung,4,0)),VLOOKUP($E9,KatalogBodenreinigung,4,0),"") -> keramische Fliesen | H9: =IF(ISTEXT(VLOOKUP($E9,KatalogBodenreinigung,5,0)),VLOOKUP($E9,KatalogBodenreinigung,5,0),"") -> normal | I9: =IF(ISNUMBER(VLOOKUP($E9,KatalogBodenreinigung,6,0)),VLOOKUP($E9,KatalogBodenreinigung,6,0),"") -> 17 | J9: =IF(ISNUMBER(VLOOKUP($E9,KatalogBodenreinigung,7,0)),VLOOKUP($E9,KatalogBodenreinigung,7,0),"") -> 250 | K9: =IF(ISNUMBER(VLOOKUP($E9,KatalogBodenreinigung,8,0)),VLOOKUP($E9,KatalogBodenreinigung,8,0),"") -> 100 | L9: =IF(ISNUMBER(I9/J9),I9/J9,"") -> 0.068 | M9: =(IF(ISNUMBER(L9*K9),L9*K9,"")) -> 6.8 | N9: =IF(ISNUMBER(M9*D9),M9*D9,"") -> 0 | O9: =SUM(OFFSET(P9,,,,BZBNB)) -> 0 | P9: =IF(AND(ISNUMBER($N9),ISNUMBER($N9*POWER(1+PSBNB,P$6)*POWER(1+KALBNB,-P$6)),P$6<BZBNB+1),$N9*POWER(1+PSBNB,P$6)*POWER(1+KALBNB,-P$6),"") -> 0 | Q9: 0 | R9: 0 | S9: 0 | T9: 0 | U9: 0 | V9: 0 | W9: 0 | X9: 0 | Y9: 0 | Z9: =IF(AND(ISNUMBER($N9),ISNUMBER($N9*POWER(1+PSBNB,Z$6)*POWER(1+KALBNB,-Z$6)),Z$6<BZBNB+1),$N9*POWER(1+PSBNB,Z$6)*POWER(1+KALBNB,-Z$6),"") -> 0 | AA9: 0 | AB9: 0 | AC9: 0 | AD9: 0 | AE9: 0 | AF9: 0 | AG9: 0 | AH9: 0 | AI9: 0 | AJ9: =IF(AND(ISNUMBER($N9),ISNUMBER($N9*POWER(1+PSBNB,AJ$6)*POWER(1+KALBNB,-AJ$6)),AJ$6<BZBNB+1),$N9*POWER(1+PSBNB,AJ$6)*POWER(1+KALBNB,-AJ$6),"") -> 0 | AK9: 0 | AL9: 0 | AM9: 0 | AN9: 0 | AO9: 0 | AP9: 0 | AQ9: 0 | AR9: 0 | AS9: 0 | AT9: =IF(AND(ISNUMBER($N9),ISNUMBER($N9*POWER(1+PSBNB,AT$6)*POWER(1+KALBNB,-AT$6)),AT$6<BZBNB+1),$N9*POWER(1+PSBNB,AT$6)*POWER(1+KALBNB,-AT$6),"") -> 0 | AU9: 0 | AV9: 0 | AW9: 0 | AX9: 0 | AY9: 0 | AZ9: 0 | BA9: 0 | BB9: 0 | BC9: 0 | BD9: =IF(AND(ISNUMBER($N9),ISNUMBER($N9*POWER(1+PSBNB,BD$6)*POWER(1+KALBNB,-BD$6)),BD$6<BZBNB+1),$N9*POWER(1+PSBNB,BD$6)*POWER(1+KALBNB,-BD$6),"") -> 0 | BE9: 0 | BF9: 0 | BG9: 0 | BH9: 0 | BI9: 0 | BJ9: 0 | BK9: 0 | BL9: 0 | BM9: 0 | BN9: =IF(AND(ISNUMBER($N9),ISNUMBER($N9*POWER(1+PSBNB,BN$6)*POWER(1+KALBNB,-BN$6)),BN$6<BZBNB+1),$N9*POWER(1+PSBNB,BN$6)*POWER(1+KALBNB,-BN$6),"") ->  | BX9: =IF(AND(ISNUMBER($N9),ISNUMBER($N9*POWER(1+PSBNB,BX$6)*POWER(1+KALBNB,-BX$6)),BX$6<BZBNB+1),$N9*POWER(1+PSBNB,BX$6)*POWER(1+KALBNB,-BX$6),"") ->  | CH9: =IF(AND(ISNUMBER($N9),ISNUMBER($N9*POWER(1+PSBNB,CH$6)*POWER(1+KALBNB,-CH$6)),CH$6<BZBNB+1),$N9*POWER(1+PSBNB,CH$6)*POWER(1+KALBNB,-CH$6),"") -> 
A10: 2 | E10: 00002; Natur-/ Werkstein (weich); normal | F10: wischbar | G10: Natur-/ Werkstein (weich) | H10: normal | I10: 17 | J10: 250 | K10: 100 | L10: 0.068 | M10: 6.8 | N10: 0 | O10: 0 | P10: 0 | Q10: 0 | R10: 0 | S10: 0 | T10: 0 | U10: 0 | V10: 0 | W10: 0 | X10: 0 | Y10: 0 | Z10: 0 | AA10: 0 | AB10: 0 | AC10: 0 | AD10: 0 | AE10: 0 | AF10: 0 | AG10: 0 | AH10: 0 | AI10: 0 | AJ10: 0 | AK10: 0 | AL10: 0 | AM10: 0 | AN10: 0 | AO10: 0 | AP10: 0 | AQ10: 0 | AR10: 0 | AS10: 0 | AT10: 0 | AU10: 0 | AV10: 0 | AW10: 0 | AX10: 0 | AY10: 0 | AZ10: 0 | BA10: 0 | BB10: 0 | BC10: 0 | BD10: 0 | BE10: 0 | BF10: 0 | BG10: 0 | BH10: 0 | BI10: 0 | BJ10: 0 | BK10: 0 | BL10: 0 | BM10: 0
A11: 3 | D11: 4000 | E11: 00003; Textilbelag; normal | F11: nicht wischbar | G11: Textilbelag | H11: normal | I11: 17 | J11: 300 | K11: 100 | L11: 0.05666666667 | M11: 5.666666667 | N11: 22666.66667 | O11: 1287862.18 | P11: 22778.32512 | Q11: 22890.53362 | R11: 23003.29487 | S11: 23116.61159 | T11: 23230.48653 | U11: 23344.92242 | V11: 23459.92204 | W11: 23575.48816 | X11: 23691.62357 | Y11: 23808.33107 | Z11: 23925.61349 | AA11: 24043.47366 | AB11: 24161.91441 | AC11: 24280.93862 | AD11: 24400.54916 | AE11: 24520.74891 | AF11: 24641.54077 | AG11: 24762.92768 | AH11: 24884.91254 | AI11: 25007.49832 | AJ11: 25130.68796 | AK11: 25254.48446 | AL11: 25378.89078 | AM11: 25503.90995 | AN11: 25629.54497 | AO11: 25755.79889 | AP11: 25882.67475 | AQ11: 26010.17561 | AR11: 26138.30455 | AS11: 26267.06467 | AT11: 26396.45908 | AU11: 26526.4909 | AV11: 26657.16327 | AW11: 26788.47934 | AX11: 26920.44229 | AY11: 27053.05531 | AZ11: 27186.32159 | BA11: 27320.24436 | BB11: 27454.82684 | BC11: 27590.0723 | BD11: 27725.98398 | BE11: 27862.56518 | BF11: 27999.8192 | BG11: 28137.74934 | BH11: 28276.35895 | BI11: 28415.65136 | BJ11: 28555.62993 | BK11: 28696.29806 | BL11: 28837.65914 | BM11: 28979.71657
A12: 4 | E12: 00004; Kunststoff; normal | F12: wischbar | G12: Kunststoff | H12: normal | I12: 17 | J12: 400 | K12: 100 | L12: 0.0425 | M12: 4.25 | N12: 0 | O12: 0 | P12: 0 | Q12: 0 | R12: 0 | S12: 0 | T12: 0 | U12: 0 | V12: 0 | W12: 0 | X12: 0 | Y12: 0 | Z12: 0 | AA12: 0 | AB12: 0 | AC12: 0 | AD12: 0 | AE12: 0 | AF12: 0 | AG12: 0 | AH12: 0 | AI12: 0 | AJ12: 0 | AK12: 0 | AL12: 0 | AM12: 0 | AN12: 0 | AO12: 0 | AP12: 0 | AQ12: 0 | AR12: 0 | AS12: 0 | AT12: 0 | AU12: 0 | AV12: 0 | AW12: 0 | AX12: 0 | AY12: 0 | AZ12: 0 | BA12: 0 | BB12: 0 | BC12: 0 | BD12: 0 | BE12: 0 | BF12: 0 | BG12: 0 | BH12: 0 | BI12: 0 | BJ12: 0 | BK12: 0 | BL12: 0 | BM12: 0
A13: 5 | E13: 00005; Laminat; normal | F13: wischbar | G13: Laminat | H13: normal | I13: 17 | J13: 400 | K13: 100 | L13: 0.0425 | M13: 4.25 | N13: 0 | O13: 0 | P13: 0 | Q13: 0 | R13: 0 | S13: 0 | T13: 0 | U13: 0 | V13: 0 | W13: 0 | X13: 0 | Y13: 0 | Z13: 0 | AA13: 0 | AB13: 0 | AC13: 0 | AD13: 0 | AE13: 0 | AF13: 0 | AG13: 0 | AH13: 0 | AI13: 0 | AJ13: 0 | AK13: 0 | AL13: 0 | AM13: 0 | AN13: 0 | AO13: 0 | AP13: 0 | AQ13: 0 | AR13: 0 | AS13: 0 | AT13: 0 | AU13: 0 | AV13: 0 | AW13: 0 | AX13: 0 | AY13: 0 | AZ13: 0 | BA13: 0 | BB13: 0 | BC13: 0 | BD13: 0 | BE13: 0 | BF13: 0 | BG13: 0 | BH13: 0 | BI13: 0 | BJ13: 0 | BK13: 0 | BL13: 0 | BM13: 0
A14: 6 | D14: 2000 | E14: 00006; Linoleum; normal | F14: wischbar | G14: Linoleum | H14: normal | I14: 17 | J14: 400 | K14: 100 | L14: 0.0425 | M14: 4.25 | N14: 8500 | O14: 482948.3176 | P14: 8541.871921 | Q14: 8583.950108 | R14: 8626.235576 | S14: 8668.729348 | T14: 8711.432448 | U14: 8754.345908 | V14: 8797.470765 | W14: 8840.808059 | X14: 8884.358838 | Y14: 8928.124153 | Z14: 8972.10506 | AA14: 9016.302622 | AB14: 9060.717905 | AC14: 9105.351984 | AD14: 9150.205934 | AE14: 9195.280841 | AF14: 9240.57779 | AG14: 9286.097878 | AH14: 9331.842203 | AI14: 9377.811869 | AJ14: 9424.007986 | AK14: 9470.431671 | AL14: 9517.084044 | AM14: 9563.966231 | AN14: 9611.079365 | AO14: 9658.424584 | AP14: 9706.00303 | AQ14: 9753.815853 | AR14: 9801.864207 | AS14: 9850.149252 | AT14: 9898.672155 | AU14: 9947.434087 | AV14: 9996.436225 | AW14: 10045.67975 | AX14: 10095.16586 | AY14: 10144.89574 | AZ14: 10194.8706 | BA14: 10245.09163 | BB14: 10295.56007 | BC14: 10346.27711 | BD14: 10397.24399 | BE14: 10448.46194 | BF14: 10499.9322 | BG14: 10551.656 | BH14: 10603.6346 | BI14: 10655.86926 | BJ14: 10708.36122 | BK14: 10761.11177 | BL14: 10814.12218 | BM14: 10867.39371
A15: 7 | E15: 00007; Parkett; normal | F15: wischbar | G15: Parkett | H15: normal | I15: 17 | J15: 400 | K15: 100 | L15: 0.0425 | M15: 4.25 | N15: 0 | O15: 0 | P15: 0 | Q15: 0 | R15: 0 | S15: 0 | T15: 0 | U15: 0 | V15: 0 | W15: 0 | X15: 0 | Y15: 0 | Z15: 0 | AA15: 0 | AB15: 0 | AC15: 0 | AD15: 0 | AE15: 0 | AF15: 0 | AG15: 0 | AH15: 0 | AI15: 0 | AJ15: 0 | AK15: 0 | AL15: 0 | AM15: 0 | AN15: 0 | AO15: 0 | AP15: 0 | AQ15: 0 | AR15: 0 | AS15: 0 | AT15: 0 | AU15: 0 | AV15: 0 | AW15: 0 | AX15: 0 | AY15: 0 | AZ15: 0 | BA15: 0 | BB15: 0 | BC15: 0 | BD15: 0 | BE15: 0 | BF15: 0 | BG15: 0 | BH15: 0 | BI15: 0 | BJ15: 0 | BK15: 0 | BL15: 0 | BM15: 0
O16: 0
A17: 8 | E17: 00008; keramische Fliesen; stark | F17: wischbar | G17: keramische Fliesen | H17: stark | I17: 17 | J17: 200 | K17: 100 | L17: 0.085 | M17: 8.5 | N17: 0 | O17: 0 | P17: 0 | Q17: 0 | R17: 0 | S17: 0 | T17: 0 | U17: 0 | V17: 0 | W17: 0 | X17: 0 | Y17: 0 | Z17: 0 | AA17: 0 | AB17: 0 | AC17: 0 | AD17: 0 | AE17: 0 | AF17: 0 | AG17: 0 | AH17: 0 | AI17: 0 | AJ17: 0 | AK17: 0 | AL17: 0 | AM17: 0 | AN17: 0 | AO17: 0 | AP17: 0 | AQ17: 0 | AR17: 0 | AS17: 0 | AT17: 0 | AU17: 0 | AV17: 0 | AW17: 0 | AX17: 0 | AY17: 0 | AZ17: 0 | BA17: 0 | BB17: 0 | BC17: 0 | BD17: 0 | BE17: 0 | BF17: 0 | BG17: 0 | BH17: 0 | BI17: 0 | BJ17: 0 | BK17: 0 | BL17: 0 | BM17: 0
A18: 9 | D18: 500 | E18: 00009; Natur-/ Werkstein (hart); stark | F18: wischbar | G18: Natur-/ Werkstein (hart) | H18: stark | I18: 17 | J18: 300 | K18: 100 | L18: 0.05666666667 | M18: 5.666666667 | N18: 2833.333333 | O18: 160982.7725 | P18: 2847.29064 | Q18: 2861.316703 | R18: 2875.411859 | S18: 2889.576449 | T18: 2903.810816 | U18: 2918.115303 | V18: 2932.490255 | W18: 2946.93602 | X18: 2961.452946 | Y18: 2976.041384 | Z18: 2990.701687 | AA18: 3005.434207 | AB18: 3020.239302 | AC18: 3035.117328 | AD18: 3050.068645 | AE18: 3065.093614 | AF18: 3080.192597 | AG18: 3095.365959 | AH18: 3110.614068 | AI18: 3125.93729 | AJ18: 3141.335995 | AK18: 3156.810557 | AL18: 3172.361348 | AM18: 3187.988744 | AN18: 3203.693122 | AO18: 3219.474861 | AP18: 3235.334343 | AQ18: 3251.271951 | AR18: 3267.288069 | AS18: 3283.383084 | AT18: 3299.557385 | AU18: 3315.811362 | AV18: 3332.145408 | AW18: 3348.559918 | AX18: 3365.055287 | AY18: 3381.631914 | AZ18: 3398.290199 | BA18: 3415.030545 | BB18: 3431.853355 | BC18: 3448.759037 | BD18: 3465.747998 | BE18: 3482.820648 | BF18: 3499.9774 | BG18: 3517.218668 | BH18: 3534.544868 | BI18: 3551.956419 | BJ18: 3569.453742 | BK18: 3587.037258 | BL18: 3604.707392 | BM18: 3622.464571
A19: 10 | E19: 00010; Textilbelag; stark | F19: nicht wischbar | G19: Textilbelag | H19: stark | I19: 17 | J19: 250 | K19: 100 | L19: 0.068 | M19: 6.8 | N19: 0 | O19: 0 | P19: 0 | Q19: 0 | R19: 0 | S19: 0 | T19: 0 | U19: 0 | V19: 0 | W19: 0 | X19: 0 | Y19: 0 | Z19: 0 | AA19: 0 | AB19: 0 | AC19: 0 | AD19: 0 | AE19: 0 | AF19: 0 | AG19: 0 | AH19: 0 | AI19: 0 | AJ19: 0 | AK19: 0 | AL19: 0 | AM19: 0 | AN19: 0 | AO19: 0 | AP19: 0 | AQ19: 0 | AR19: 0 | AS19: 0 | AT19: 0 | AU19: 0 | AV19: 0 | AW19: 0 | AX19: 0 | AY19: 0 | AZ19: 0 | BA19: 0 | BB19: 0 | BC19: 0 | BD19: 0 | BE19: 0 | BF19: 0 | BG19: 0 | BH19: 0 | BI19: 0 | BJ19: 0 | BK19: 0 | BL19: 0 | BM19: 0
A20: 11 | E20: 00011; Kunststoff; stark | F20: wischbar | G20: Kunststoff | H20: stark | I20: 17 | J20: 300 | K20: 100 | L20: 0.05666666667 | M20: 5.666666667 | N20: 0 | O20: 0 | P20: 0 | Q20: 0 | R20: 0 | S20: 0 | T20: 0 | U20: 0 | V20: 0 | W20: 0 | X20: 0 | Y20: 0 | Z20: 0 | AA20: 0 | AB20: 0 | AC20: 0 | AD20: 0 | AE20: 0 | AF20: 0 | AG20: 0 | AH20: 0 | AI20: 0 | AJ20: 0 | AK20: 0 | AL20: 0 | AM20: 0 | AN20: 0 | AO20: 0 | AP20: 0 | AQ20: 0 | AR20: 0 | AS20: 0 | AT20: 0 | AU20: 0 | AV20: 0 | AW20: 0 | AX20: 0 | AY20: 0 | AZ20: 0 | BA20: 0 | BB20: 0 | BC20: 0 | BD20: 0 | BE20: 0 | BF20: 0 | BG20: 0 | BH20: 0 | BI20: 0 | BJ20: 0 | BK20: 0 | BL20: 0 | BM20: 0
A21: 12 | E21: 00012; Laminat; stark | F21: wischbar | G21: Laminat | H21: stark | I21: 17 | J21: 300 | K21: 100 | L21: 0.05666666667 | M21: 5.666666667 | N21: 0 | O21: 0 | P21: 0 | Q21: 0 | R21: 0 | S21: 0 | T21: 0 | U21: 0 | V21: 0 | W21: 0 | X21: 0 | Y21: 0 | Z21: 0 | AA21: 0 | AB21: 0 | AC21: 0 | AD21: 0 | AE21: 0 | AF21: 0 | AG21: 0 | AH21: 0 | AI21: 0 | AJ21: 0 | AK21: 0 | AL21: 0 | AM21: 0 | AN21: 0 | AO21: 0 | AP21: 0 | AQ21: 0 | AR21: 0 | AS21: 0 | AT21: 0 | AU21: 0 | AV21: 0 | AW21: 0 | AX21: 0 | AY21: 0 | AZ21: 0 | BA21: 0 | BB21: 0 | BC21: 0 | BD21: 0 | BE21: 0 | BF21: 0 | BG21: 0 | BH21: 0 | BI21: 0 | BJ21: 0 | BK21: 0 | BL21: 0 | BM21: 0
A22: 13 | E22: 00013; Linoleum; stark | F22: wischbar | G22: Linoleum | H22: stark | I22: 17 | J22: 300 | K22: 100 | L22: 0.05666666667 | M22: 5.666666667 | N22: 0 | O22: 0 | P22: 0 | Q22: 0 | R22: 0 | S22: 0 | T22: 0 | U22: 0 | V22: 0 | W22: 0 | X22: 0 | Y22: 0 | Z22: 0 | AA22: 0 | AB22: 0 | AC22: 0 | AD22: 0 | AE22: 0 | AF22: 0 | AG22: 0 | AH22: 0 | AI22: 0 | AJ22: 0 | AK22: 0 | AL22: 0 | AM22: 0 | AN22: 0 | AO22: 0 | AP22: 0 | AQ22: 0 | AR22: 0 | AS22: 0 | AT22: 0 | AU22: 0 | AV22: 0 | AW22: 0 | AX22: 0 | AY22: 0 | AZ22: 0 | BA22: 0 | BB22: 0 | BC22: 0 | BD22: 0 | BE22: 0 | BF22: 0 | BG22: 0 | BH22: 0 | BI22: 0 | BJ22: 0 | BK22: 0 | BL22: 0 | BM22: 0
A23: 14 | E23: 00014; Parkett; stark | F23: wischbar | G23: Parkett | H23: stark | I23: 17 | J23: 200 | K23: 100 | L23: 0.085 | M23: 8.5 | N23: 0 | O23: 0 | P23: 0 | Q23: 0 | R23: 0 | S23: 0 | T23: 0 | U23: 0 | V23: 0 | W23: 0 | X23: 0 | Y23: 0 | Z23: 0 | AA23: 0 | AB23: 0 | AC23: 0 | AD23: 0 | AE23: 0 | AF23: 0 | AG23: 0 | AH23: 0 | AI23: 0 | AJ23: 0 | AK23: 0 | AL23: 0 | AM23: 0 | AN23: 0 | AO23: 0 | AP23: 0 | AQ23: 0 | AR23: 0 | AS23: 0 | AT23: 0 | AU23: 0 | AV23: 0 | AW23: 0 | AX23: 0 | AY23: 0 | AZ23: 0 | BA23: 0 | BB23: 0 | BC23: 0 | BD23: 0 | BE23: 0 | BF23: 0 | BG23: 0 | BH23: 0 | BI23: 0 | BJ23: 0 | BK23: 0 | BL23: 0 | BM23: 0
A25: =(MAX(A$8:A$24))+1 -> 15 | F25: =IF(ISTEXT(VLOOKUP($E25,KatalogBodenreinigung,3,0)),VLOOKUP($E25,KatalogBodenreinigung,3,0),"") ->  | G25: =IF(ISTEXT(VLOOKUP($E25,KatalogBodenreinigung,4,0)),VLOOKUP($E25,KatalogBodenreinigung,4,0),"") ->  | H25: =IF(ISTEXT(VLOOKUP($E25,KatalogBodenreinigung,5,0)),VLOOKUP($E25,KatalogBodenreinigung,5,0),"") ->  | I25: =IF(ISNUMBER(VLOOKUP($E25,KatalogBodenreinigung,6,0)),VLOOKUP($E25,KatalogBodenreinigung,6,0),"") ->  | J25: =IF(ISNUMBER(VLOOKUP($E25,KatalogBodenreinigung,7,0)),VLOOKUP($E25,KatalogBodenreinigung,7,0),"") ->  | K25: =IF(ISNUMBER(VLOOKUP($E25,KatalogBodenreinigung,8,0)),VLOOKUP($E25,KatalogBodenreinigung,8,0),"") ->  | L25: =IF(ISNUMBER(I25/J25),I25/J25,"") ->  | M25: =(IF(ISNUMBER(L25*K25),L25*K25,"")) ->  | N25: =IF(ISNUMBER(M25*D25),M25*D25,"") ->  | O25: =SUM(OFFSET(P25,,,,BZBNB)) -> 0 | P25: =IF(AND(ISNUMBER($N25),ISNUMBER($N25*POWER(1+PSBNB,P$6)*POWER(1+KALBNB,-P$6)),P$6<BZBNB+1),$N25*POWER(1+PSBNB,P$6)*POWER(1+KALBNB,-P$6),"") ->  | AV25: =IF(AND(ISNUMBER($N25),ISNUMBER($N25*POWER(1+PSBNB,AV$6)*POWER(1+KALBNB,-AV$6)),AV$6<BZBNB+1),$N25*POWER(1+PSBNB,AV$6)*POWER(1+KALBNB,-AV$6),"") ->  | CB25: =IF(AND(ISNUMBER($N25),ISNUMBER($N25*POWER(1+PSBNB,CB$6)*POWER(1+KALBNB,-CB$6)),CB$6<BZBNB+1),$N25*POWER(1+PSBNB,CB$6)*POWER(1+KALBNB,-CB$6),"") -> 

Sheet Energieversorgung
A1: Berechnung LCC nach BNB BN 2.1.1 v2015 Eingabe Energieversorgung | C1: BBR-LCC Ver. 15-1 BBR A1
A2: Projekt: | B2: =IF(ISTEXT(Projekt),Projekt,"") -> Beispieleingabe (Szenario: 10 Mio Euro netto Herstellungskosten für KG 300 und 400)
A3: Stand: | B3: =IF(ISNUMBER(LCC_Stand),LCC_Stand,"") -> 2018-01-08
A5: Nr. | B5: Bezeichnung | C5: Energieträger | D5: Heizwert Endenergiebedarf absolut | E5: Energiekosten netto BNB | F5: jährliche Energiekosten BNB | G5: Barwert | H5: Barwert | I5: Barwert | J5: Barwert | K5: Barwert | L5: Barwert | M5: Barwert | N5: Barwert | O5: Barwert | P5: Barwert | Q5: Barwert | R5: Barwert | S5: Barwert | T5: Barwert | U5: Barwert | V5: Barwert | W5: Barwert | X5: Barwert | Y5: Barwert | Z5: Barwert | AA5: Barwert | AB5: Barwert | AC5: Barwert | AD5: Barwert | AE5: Barwert | AF5: Barwert | AG5: Barwert | AH5: Barwert | AI5: Barwert | AJ5: Barwert | AK5: Barwert | AL5: Barwert | AM5: Barwert | AN5: Barwert | AO5: Barwert | AP5: Barwert | AQ5: Barwert | AR5: Barwert | AS5: Barwert | AT5: Barwert | AU5: Barwert | AV5: Barwert | AW5: Barwert | AX5: Barwert | AY5: Barwert | AZ5: Barwert | BA5: Barwert | BB5: Barwert | BC5: Barwert | BD5: Barwert | BE5: Barwert | BF5: Barwert | BG5: Barwert | BH5: Barwert | BI5: Barwert | BJ5: Barwert | BK5: Barwert | BL5: Barwert | BM5: Barwert | BN5: Barwert | BO5: Barwert | BP5: Barwert | BQ5: Barwert | BR5: Barwert | BS5: Barwert | BT5: Barwert | BU5: Barwert | BV5: Barwert | BW5: Barwert | BX5: Barwert | BY5: Barwert | BZ5: Barwert | CA5: Barwert | CB5: Barwert | CC5: Barwert | CD5: Barwert | CE5: Barwert | CF5: Barwert | CG5: Barwert | CH5: Barwert | CI5: Barwert
D6: kWh | E6: € / kWh | F6: € | G6: ∑ BZR | H6: 1 | I6: 2 | J6: 3 | K6: 4 | L6: 5 | M6: 6 | N6: 7 | O6: 8 | P6: 9 | Q6: 10 | R6: 11 | S6: 12 | T6: 13 | U6: 14 | V6: 15 | W6: 16 | X6: 17 | Y6: 18 | Z6: 19 | AA6: 20 | AB6: 21 | AC6: 22 | AD6: 23 | AE6: 24 | AF6: 25 | AG6: 26 | AH6: 27 | AI6: 28 | AJ6: 29 | AK6: 30 | AL6: 31 | AM6: 32 | AN6: 33 | AO6: 34 | AP6: 35 | AQ6: 36 | AR6: 37 | AS6: 38 | AT6: 39 | AU6: 40 | AV6: 41 | AW6: 42 | AX6: 43 | AY6: 44 | AZ6: 45 | BA6: 46 | BB6: 47 | BC6: 48 | BD6: 49 | BE6: 50 | BF6: 51 | BG6: 52 | BH6: 53 | BI6: 54 | BJ6: 55 | BK6: 56 | BL6: 57 | BM6: 58 | BN6: 59 | BO6: 60 | BP6: 61 | BQ6: 62 | BR6: 63 | BS6: 64 | BT6: 65 | BU6: 66 | BV6: 67 | BW6: 68 | BX6: 69 | BY6: 70 | BZ6: 71 | CA6: 72 | CB6: 73 | CC6: 74 | CD6: 75 | CE6: 76 | CF6: 77 | CG6: 78 | CH6: 79 | CI6: 80
D7: =SUM(D8:D16) -> 750000 | F7: =SUM(F8:F16) -> 73000 | G7: 9739080.131 | H7: 75517.24138 | I7: 78121.28419 | J7: 80815.12157 | K7: 83601.8499 | L7: 86484.67231 | M7: 89466.90239 | N7: 92551.96799 | O7: 95743.41516 | P7: 99044.91224 | Q7: 102460.254 | R7: 105993.3662 | S7: 109648.3099 | T7: 113429.2861 | U7: 117340.6408 | V7: 121386.8698 | W7: 125572.6239 | X7: 129902.7144 | Y7: 134382.1184 | Z7: 139015.9845 | AA7: 143809.6391 | AB7: 148768.5922 | AC7: 153898.5437 | AD7: 159205.39 | AE7: 164695.231 | AF7: 170374.3769 | AG7: 176249.3555 | AH7: 182326.9194 | AI7: 188614.0546 | AJ7: 195117.9875 | AK7: 201846.194 | AL7: =SUM(AL8:AL16) -> 208806.4076 | AM7: 216006.6285 | AN7: 223455.1329 | AO7: 231160.4824 | AP7: 239131.5335 | AQ7: 247377.4484 | AR7: 255907.7053 | AS7: 264732.1089 | AT7: 273860.8023 | AU7: 283304.2782 | AV7: 293073.3913 | AW7: 303179.3703 | AX7: 313633.8313 | AY7: 324448.791 | AZ7: 335636.6804 | BA7: 347210.359 | BB7: 359183.13 | BC7: 371568.7552 | BD7: 384381.4709 | BE7: 397636.0044 | BF7: 0 | BG7: 0 | BH7: 0 | BI7: 0 | BJ7: 0 | BK7: 0 | BL7: 0 | BM7: 0 | BN7: 0 | BO7: 0 | BP7: 0 | BQ7: 0 | BR7: =SUM(BR8:BR16) -> 0 | BS7: 0 | BT7: 0 | BU7: 0 | BV7: 0 | BW7: 0 | BX7: 0 | BY7: 0 | BZ7: 0 | CA7: 0 | CB7: 0 | CC7: 0 | CD7: 0 | CE7: 0 | CF7: 0 | CG7: 0 | CH7: 0 | CI7: 0
A9: 1 | B9: Endenergiebedarf Heizwärme laut EnEV | C9: Gas - Erdgas | D9: 550000 | E9: =IF(ISNUMBER(VLOOKUP(C9,Energieträger_Verweis,3,0)),VLOOKUP(C9,Energieträger_Verweis,3,0),"") -> 0.06 | F9: =IF(ISNUMBER(E9*D9),E9*D9,"") -> 33000 | G9: =SUM(OFFSET(H9,,,,BZBNB)) -> 4402597.867 | H9: =IF(AND(ISNUMBER($F9),ISNUMBER($F9*POWER(1+PSEBNB,H$6)*POWER(1+KALBNB,-H$6)),H$6<BZBNB+1),$F9*POWER(1+PSEBNB,H$6)*POWER(1+KALBNB,-H$6),"") -> 34137.93103 | I9: 35315.10107 | J9: 36532.86318 | K9: 37792.61708 | L9: 39095.81077 | M9: 40443.94218 | N9: 41838.56087 | O9: 43281.26987 | P9: 44773.72745 | Q9: 46317.64909 | R9: 47914.8094 | S9: 49567.04421 | T9: 51276.25263 | U9: 53044.39927 | V9: 54873.51649 | W9: 56765.70671 | X9: 58723.14487 | Y9: 60748.0809 | Z9: 62842.84231 | AA9: 65009.83687 | AB9: 67251.55539 | AC9: 69570.57454 | AD9: 71969.55987 | AE9: 74451.26883 | AF9: 77018.55396 | AG9: 79674.36617 | AH9: 82421.7581 | AI9: 85263.88769 | AJ9: 88204.02175 | AK9: 91245.53974 | AL9: 94391.93766 | AM9: 97646.83207 | AN9: =IF(AND(ISNUMBER($F9),ISNUMBER($F9*POWER(1+PSEBNB,AN$6)*POWER(1+KALBNB,-AN$6)),AN$6<BZBNB+1),$F9*POWER(1+PSEBNB,AN$6)*POWER(1+KALBNB,-AN$6),"") -> 101013.9642 | AO9: 104497.2044 | AP9: 108100.5562 | AQ9: 111828.1616 | AR9: 115684.3051 | AS9: 119673.4191 | AT9: 123800.0887 | AU9: 128069.0573 | AV9: 132485.2317 | AW9: 137053.6879 | AX9: 141779.6772 | AY9: 146668.6316 | AZ9: 151726.1706 | BA9: 156958.1075 | BB9: 162370.456 | BC9: 167969.4373 | BD9: 173761.4868 | BE9: 179753.2622 | BT9: =IF(AND(ISNUMBER($F9),ISNUMBER($F9*POWER(1+PSEBNB,BT$6)*POWER(1+KALBNB,-BT$6)),BT$6<BZBNB+1),$F9*POWER(1+PSEBNB,BT$6)*POWER(1+KALBNB,-BT$6),"") -> 
A10: 2 | B10: Endenergiebedarf Warmwasserbereitung laut EnEV | C10: Elektroenergie - Strom-Mix - Arbeit | D10: 40000 | E10: =IF(ISNUMBER(VLOOKUP(C10,Energieträger_Verweis,3,0)),VLOOKUP(C10,Energieträger_Verweis,3,0),"") -> 0.2 | F10: 8000 | G10: =SUM(OFFSET(H10,,,,BZBNB)) -> 1067296.453 | H10: =IF(AND(ISNUMBER($F10),ISNUMBER($F10*POWER(1+PSEBNB,H$6)*POWER(1+KALBNB,-H$6)),H$6<BZBNB+1),$F10*POWER(1+PSEBNB,H$6)*POWER(1+KALBNB,-H$6),"") -> 8275.862069 | I10: 8561.236623 | J10: 8856.451679 | K10: 9161.846565 | L10: 9477.772308 | M10: 9804.592043 | N10: 10142.68142 | O10: 10492.42906 | P10: 10854.23696 | Q10: 11228.52099 | R10: 11615.71137 | S10: 12016.25314 | T10: 12430.6067 | U10: 12859.24831 | V10: 13302.67066 | W10: 13761.38344 | X10: 14235.91391 | Y10: 14726.80749 | Z10: 15234.62844 | AA10: 15759.96045 | AB10: 16303.40737 | AC10: 16865.59383 | AD10: 17447.16603 | AE10: 18048.79244 | AF10: 18671.1646 | AG10: 19314.99786 | AH10: 19981.03227 | AI10: 20670.03338 | AJ10: 21382.79315 | AK10: 22120.13085 | AL10: 22882.89398 | AM10: 23671.95929 | AN10: =IF(AND(ISNUMBER($F10),ISNUMBER($F10*POWER(1+PSEBNB,AN$6)*POWER(1+KALBNB,-AN$6)),AN$6<BZBNB+1),$F10*POWER(1+PSEBNB,AN$6)*POWER(1+KALBNB,-AN$6),"") -> 24488.23375 | AO10: 25332.6556 | AP10: 26206.19545 | AQ10: 27109.85736 | AR10: 28044.68003 | AS10: 29011.73796 | AT10: 30012.14272 | AU10: 31047.04419 | AV10: 32117.63192 | AW10: 33225.13647 | AX10: 34370.83083 | AY10: 35556.03189 | AZ10: 36782.10196 | BA10: 38050.4503 | BB10: 39362.5348 | BC10: 40719.86358 | BD10: 42123.99681 | BE10: 43576.54842 | BF10: =IF(AND(ISNUMBER($F10),ISNUMBER($F10*POWER(1+PSBNB,BF$6)*POWER(1+KALBNB,-BF$6)),BF$6<BZBNB+1),$F10*POWER(1+PSBNB,BF$6)*POWER(1+KALBNB,-BF$6),"") ->  | BT10: =IF(AND(ISNUMBER($F10),ISNUMBER($F10*POWER(1+PSBNB,BT$6)*POWER(1+KALBNB,-BT$6)),BT$6<BZBNB+1),$F10*POWER(1+PSBNB,BT$6)*POWER(1+KALBNB,-BT$6),"") -> 
A11: 3 | B11: Endenergiebedarf Luftförderung laut EnEV | C11: Elektroenergie - Strom-Mix - Arbeit | D11: 30000 | E11: 0.2 | F11: 6000 | G11: =SUM(OFFSET(H11,,,,BZBNB)) -> 800472.3395 | H11: 6206.896552 | I11: 6420.927467 | J11: 6642.338759 | K11: 6871.384923 | L11: 7108.329231 | M11: 7353.444032 | N11: 7607.011068 | O11: 7869.321794 | P11: 8140.677718 | Q11: 8421.390743 | R11: 8711.783527 | S11: 9012.189856 | T11: 9322.955023 | U11: 9644.436231 | V11: 9977.002997 | W11: 10321.03758 | X11: 10676.93543 | Y11: 11045.10562 | Z11: 11425.97133 | AA11: 11819.97034 | AB11: 12227.55553 | AC11: 12649.19537 | AD11: 13085.37452 | AE11: 13536.59433 | AF11: 14003.37345 | AG11: 14486.24839 | AH11: 14985.7742 | AI11: 15502.52504 | AJ11: 16037.09486 | AK11: 16590.09814 | AL11: 17162.17048 | AM11: 17753.96947 | AN11: 18366.17531 | AO11: 18999.4917 | AP11: 19654.64659 | AQ11: 20332.39302 | AR11: 21033.51002 | AS11: 21758.80347 | AT11: 22509.10704 | AU11: 23285.28314 | AV11: 24088.22394 | AW11: 24918.85235 | AX11: 25778.12312 | AY11: 26667.02392 | AZ11: 27586.57647 | BA11: 28537.83773 | BB11: 29521.9011 | BC11: 30539.89769 | BD11: 31592.99761 | BE11: 32682.41132
A12: 4 | B12: Endenergiebedarf Klimakälte laut EnEV | C12: Elektroenergie - Strom-Mix - Arbeit | D12: 20000 | E12: 0.2 | F12: 4000 | G12: =SUM(OFFSET(H12,,,,BZBNB)) -> 533648.2264 | H12: 4137.931034 | I12: 4280.618312 | J12: 4428.22584 | K12: 4580.923282 | L12: 4738.886154 | M12: 4902.296021 | N12: 5071.340712 | O12: 5246.214529 | P12: 5427.118479 | Q12: 5614.260495 | R12: 5807.855685 | S12: 6008.12657 | T12: 6215.303349 | U12: 6429.624154 | V12: 6651.335332 | W12: 6880.691722 | X12: 7117.956954 | Y12: 7363.403746 | Z12: 7617.31422 | AA12: 7879.980227 | AB12: 8151.703683 | AC12: 8432.796914 | AD12: 8723.583014 | AE12: 9024.396222 | AF12: 9335.582298 | AG12: 9657.498929 | AH12: 9990.516134 | AI12: 10335.01669 | AJ12: 10691.39658 | AK12: 11060.06542 | AL12: 11441.44699 | AM12: 11835.97964 | AN12: 12244.11687 | AO12: 12666.3278 | AP12: 13103.09772 | AQ12: 13554.92868 | AR12: 14022.34001 | AS12: 14505.86898 | AT12: 15006.07136 | AU12: 15523.5221 | AV12: 16058.81596 | AW12: 16612.56824 | AX12: 17185.41542 | AY12: 17778.01595 | AZ12: 18391.05098 | BA12: 19025.22515 | BB12: 19681.2674 | BC12: 20359.93179 | BD12: 21061.9984 | BE12: 21788.27421
A13: 5 | B13: Endenergiebedarf Beleuchtung laut EnEV | C13: Elektroenergie - Strom-Mix - Arbeit | D13: 60000 | E13: 0.2 | F13: 12000 | G13: =SUM(OFFSET(H13,,,,BZBNB)) -> 1600944.679 | H13: 12413.7931 | I13: 12841.85493 | J13: 13284.67752 | K13: 13742.76985 | L13: 14216.65846 | M13: 14706.88806 | N13: 15214.02214 | O13: 15738.64359 | P13: 16281.35544 | Q13: 16842.78149 | R13: 17423.56705 | S13: 18024.37971 | T13: 18645.91005 | U13: 19288.87246 | V13: 19954.00599 | W13: 20642.07517 | X13: 21353.87086 | Y13: 22090.21124 | Z13: 22851.94266 | AA13: 23639.94068 | AB13: 24455.11105 | AC13: 25298.39074 | AD13: 26170.74904 | AE13: 27073.18867 | AF13: 28006.74689 | AG13: 28972.49679 | AH13: 29971.5484 | AI13: 31005.05007 | AJ13: 32074.18973 | AK13: 33180.19627 | AL13: 34324.34097 | AM13: 35507.93893 | AN13: 36732.35062 | AO13: 37998.9834 | AP13: 39309.29317 | AQ13: 40664.78604 | AR13: 42067.02004 | AS13: 43517.60694 | AT13: 45018.21408 | AU13: 46570.56629 | AV13: 48176.44788 | AW13: 49837.70471 | AX13: 51556.24625 | AY13: 53334.04784 | AZ13: 55173.15294 | BA13: 57075.67546 | BB13: 59043.8022 | BC13: 61079.79537 | BD13: 63185.99521 | BE13: 65364.82264
A14: 6 | B14: Endenergiebedarf Hilfsenergie laut EnEV | C14: Elektroenergie - Strom-Mix - Arbeit | D14: 50000 | E14: 0.2 | F14: 10000 | G14: =SUM(OFFSET(H14,,,,BZBNB)) -> 1334120.566 | H14: 10344.82759 | I14: 10701.54578 | J14: 11070.5646 | K14: 11452.30821 | L14: 11847.21539 | M14: 12255.74005 | N14: 12678.35178 | O14: 13115.53632 | P14: 13567.7962 | Q14: 14035.65124 | R14: 14519.63921 | S14: 15020.31643 | T14: 15538.25837 | U14: 16074.06038 | V14: 16628.33833 | W14: 17201.72931 | X14: 17794.89239 | Y14: 18408.50936 | Z14: 19043.28555 | AA14: 19699.95057 | AB14: 20379.25921 | AC14: 21081.99228 | AD14: 21808.95754 | AE14: 22560.99055 | AF14: 23338.95575 | AG14: 24143.74732 | AH14: 24976.29033 | AI14: 25837.54173 | AJ14: 26728.49144 | AK14: 27650.16356 | AL14: 28603.61747 | AM14: 29589.94911 | AN14: 30610.29218 | AO14: 31665.8195 | AP14: 32757.74431 | AQ14: 33887.3217 | AR14: 35055.85004 | AS14: 36264.67245 | AT14: 37515.1784 | AU14: 38808.80524 | AV14: 40147.0399 | AW14: 41531.42059 | AX14: 42963.53854 | AY14: 44445.03987 | AZ14: 45977.62745 | BA14: 47563.06288 | BB14: 49203.1685 | BC14: 50899.82948 | BD14: 52654.99601 | BE14: 54470.68553
A16: =(MAX(A$8:A$15))+1 -> 7 | F16: =IF(ISNUMBER(E16*D16),E16*D16,"") ->  | G16: =SUM(OFFSET(H16,,,,BZBNB)) -> 0

Sheet Wasser_Abwasser
A1: Berechnung LCC nach BNB BN 2.1.1 v2015 Eingabe Wasser- und Abwasserkosten | D1: BBR-LCC Ver. 15-1 BBR A1
A2: Projekt: | B2: =IF(ISTEXT(Projekt),Projekt,"") -> Beispieleingabe (Szenario: 10 Mio Euro netto Herstellungskosten für KG 300 und 400)
A3: Stand: | B3: =IF(ISNUMBER(LCC_Stand),LCC_Stand,"") -> 2018-01-08
A5: Bezeichnung | B5: Menge | C5: ME | D5: Preis BNB | E5: jährliche Kosten für Wasserver- und Entsorgung | F5: Barwert | G5: Barwert | H5: Barwert | I5: Barwert | J5: Barwert | K5: Barwert | L5: Barwert | M5: Barwert | N5: Barwert | O5: Barwert | P5: Barwert | Q5: Barwert | R5: Barwert | S5: Barwert | T5: Barwert | U5: Barwert | V5: Barwert | W5: Barwert | X5: Barwert | Y5: Barwert | Z5: Barwert | AA5: Barwert | AB5: Barwert | AC5: Barwert | AD5: Barwert | AE5: Barwert | AF5: Barwert | AG5: Barwert | AH5: Barwert | AI5: Barwert | AJ5: Barwert | AK5: Barwert | AL5: Barwert | AM5: Barwert | AN5: Barwert | AO5: Barwert | AP5: Barwert | AQ5: Barwert | AR5: Barwert | AS5: Barwert | AT5: Barwert | AU5: Barwert | AV5: Barwert | AW5: Barwert | AX5: Barwert | AY5: Barwert | AZ5: Barwert | BA5: Barwert | BB5: Barwert | BC5: Barwert | BD5: Barwert | BE5: Barwert | BF5: Barwert | BG5: Barwert | BH5: Barwert | BI5: Barwert | BJ5: Barwert | BK5: Barwert | BL5: Barwert | BM5: Barwert | BN5: Barwert | BO5: Barwert | BP5: Barwert | BQ5: Barwert | BR5: Barwert | BS5: Barwert | BT5: Barwert | BU5: Barwert | BV5: Barwert | BW5: Barwert | BX5: Barwert | BY5: Barwert | BZ5: Barwert | CA5: Barwert | CB5: Barwert | CC5: Barwert | CD5: Barwert | CE5: Barwert | CF5: Barwert | CG5: Barwert | CH5: Barwert
B6: pro ME | D6: € / ME | E6: € | F6: ∑ BZR | G6: 1 | H6: 2 | I6: 3 | J6: 4 | K6: 5 | L6: 6 | M6: 7 | N6: 8 | O6: 9 | P6: 10 | Q6: 11 | R6: 12 | S6: 13 | T6: 14 | U6: 15 | V6: 16 | W6: 17 | X6: 18 | Y6: 19 | Z6: 20 | AA6: 21 | AB6: 22 | AC6: 23 | AD6: 24 | AE6: 25 | AF6: 26 | AG6: 27 | AH6: 28 | AI6: 29 | AJ6: 30 | AK6: 31 | AL6: 32 | AM6: 33 | AN6: 34 | AO6: 35 | AP6: 36 | AQ6: 37 | AR6: 38 | AS6: 39 | AT6: 40 | AU6: 41 | AV6: 42 | AW6: 43 | AX6: 44 | AY6: 45 | AZ6: 46 | BA6: 47 | BB6: 48 | BC6: 49 | BD6: 50 | BE6: 51 | BF6: 52 | BG6: 53 | BH6: 54 | BI6: 55 | BJ6: 56 | BK6: 57 | BL6: 58 | BM6: 59 | BN6: 60 | BO6: 61 | BP6: 62 | BQ6: 63 | BR6: 64 | BS6: 65 | BT6: 66 | BU6: 67 | BV6: 68 | BW6: 69 | BX6: 70 | BY6: 71 | BZ6: 72 | CA6: 73 | CB6: 74 | CC6: 75 | CD6: 76 | CE6: 77 | CF6: 78 | CG6: 79 | CH6: 80
E7: =SUM(E9:E11) -> 9400 | F7: =SUM(F8:F11) -> 534084.0218 | G7: 9446.305419 | H7: 9492.838943 | I7: 9539.601696 | J7: 9586.594808 | K7: 9633.819413 | L7: 9681.276652 | M7: 9728.96767 | N7: 9776.893619 | O7: 9825.055656 | P7: 9873.454945 | Q7: 9922.092654 | R7: 9970.969958 | S7: 10020.08804 | T7: 10069.44808 | U7: 10119.05127 | V7: 10168.89881 | W7: 10218.99191 | X7: 10269.33177 | Y7: 10319.91961 | Z7: 10370.75665 | AA7: 10421.84413 | AB7: 10473.18326 | AC7: 10524.7753 | AD7: 10576.62148 | AE7: 10628.72306 | AF7: 10681.0813 | AG7: 10733.69747 | AH7: 10786.57283 | AI7: 10839.70865 | AJ7: 10893.10623 | AK7: 10946.76685 | AL7: =SUM(AL8:AL11) -> 11000.69181 | AM7: 11054.88241 | AN7: 11109.33996 | AO7: 11164.06577 | AP7: 11219.06117 | AQ7: 11274.32748 | AR7: 11329.86604 | AS7: 11385.67819 | AT7: 11441.76528 | AU7: 11498.12865 | AV7: 11554.76968 | AW7: 11611.68973 | AX7: 11668.89017 | AY7: 11726.37239 | AZ7: 11784.13777 | BA7: 11842.18771 | BB7: 11900.52361 | BC7: 11959.14688 | BD7: 12018.05893 | BE7: 0 | BF7: 0 | BG7: 0 | BH7: 0 | BI7: 0 | BJ7: 0 | BK7: 0 | BL7: 0 | BM7: 0 | BN7: 0 | BO7: 0 | BP7: 0 | BQ7: 0 | BR7: =SUM(BR8:BR11) -> 0 | BS7: 0 | BT7: 0 | BU7: 0 | BV7: 0 | BW7: 0 | BX7: 0 | BY7: 0 | BZ7: 0 | CA7: 0 | CB7: 0 | CC7: 0 | CD7: 0 | CE7: 0 | CF7: 0 | CG7: 0 | CH7: 0
A9: Gesamtfrischwasserbedarf aus Berechnungshilfe Trinkwasser (Tool 1.2.3) | B9: 2000 | C9: m³ | D9: =Kosten_Frischwasserbedarf -> 2.01 | E9: =D9*B9 -> 4020 | F9: =SUM(OFFSET(G9,,,,BZBNB)) -> 228406.1455 | G9: =IF(AND(ISNUMBER($E9),ISNUMBER($E9*POWER(1+PSBNB,G$6)*POWER(1+KALBNB,-G$6)),G$6<BZBNB+1),$E9*POWER(1+PSBNB,G$6)*POWER(1+KALBNB,-G$6),"") -> 4039.802956 | H9: 4059.703463 | I9: 4079.702002 | J9: 4099.799056 | K9: 4119.995111 | L9: 4140.290653 | M9: 4160.686174 | N9: 4181.182165 | O9: 4201.779121 | P9: 4222.47754 | Q9: =IF(AND(ISNUMBER($E9),ISNUMBER($E9*POWER(1+PSBNB,Q$6)*POWER(1+KALBNB,-Q$6)),Q$6<BZBNB+1),$E9*POWER(1+PSBNB,Q$6)*POWER(1+KALBNB,-Q$6),"") -> 4243.277922 | R9: 4264.180769 | S9: 4285.186586 | T9: 4306.295879 | U9: 4327.50916 | V9: 4348.826939 | W9: 4370.249732 | X9: 4391.778055 | Y9: 4413.41243 | Z9: 4435.153378 | AA9: =IF(AND(ISNUMBER($E9),ISNUMBER($E9*POWER(1+PSBNB,AA$6)*POWER(1+KALBNB,-AA$6)),AA$6<BZBNB+1),$E9*POWER(1+PSBNB,AA$6)*POWER(1+KALBNB,-AA$6),"") -> 4457.001424 | AB9: 4478.957096 | AC9: 4501.020924 | AD9: 4523.193441 | AE9: 4545.475182 | AF9: 4567.866686 | AG9: 4590.368492 | AH9: 4612.981145 | AI9: 4635.70519 | AJ9: 4658.541176 | AK9: =IF(AND(ISNUMBER($E9),ISNUMBER($E9*POWER(1+PSBNB,AK$6)*POWER(1+KALBNB,-AK$6)),AK$6<BZBNB+1),$E9*POWER(1+PSBNB,AK$6)*POWER(1+KALBNB,-AK$6),"") -> 4681.489654 | AL9: 4704.55118 | AM9: 4727.726309 | AN9: 4751.015601 | AO9: 4774.419619 | AP9: 4797.938927 | AQ9: 4821.574094 | AR9: 4845.325691 | AS9: 4869.19429 | AT9: 4893.180469 | AU9: =IF(AND(ISNUMBER($E9),ISNUMBER($E9*POWER(1+PSBNB,AU$6)*POWER(1+KALBNB,-AU$6)),AU$6<BZBNB+1),$E9*POWER(1+PSBNB,AU$6)*POWER(1+KALBNB,-AU$6),"") -> 4917.284806 | AV9: 4941.507884 | AW9: 4965.850288 | AX9: 4990.312604 | AY9: 5014.895425 | AZ9: 5039.599343 | BA9: 5064.424956 | BB9: 5089.372862 | BC9: 5114.443664 | BD9: 5139.637968 | BE9: =IF(AND(ISNUMBER($E9),ISNUMBER($E9*POWER(1+PSBNB,BE$6)*POWER(1+KALBNB,-BE$6)),BE$6<BZBNB+1),$E9*POWER(1+PSBNB,BE$6)*POWER(1+KALBNB,-BE$6),"") ->  | BO9: =IF(AND(ISNUMBER($E9),ISNUMBER($E9*POWER(1+PSBNB,BO$6)*POWER(1+KALBNB,-BO$6)),BO$6<BZBNB+1),$E9*POWER(1+PSBNB,BO$6)*POWER(1+KALBNB,-BO$6),"") ->  | BY9: =IF(AND(ISNUMBER($E9),ISNUMBER($E9*POWER(1+PSBNB,BY$6)*POWER(1+KALBNB,-BY$6)),BY$6<BZBNB+1),$E9*POWER(1+PSBNB,BY$6)*POWER(1+KALBNB,-BY$6),"") -> 
A10: Abwasseraufkommen aus Niederschlagswasser aus Berechnungshilfe Trinkwasser (Tool 1.2.3) | B10: 1000 | C10: m³ | D10: =Kosten_Niederschlagswasser -> 1.1 | E10: =D10*B10 -> 1100 | F10: =SUM(OFFSET(G10,,,,BZBNB)) -> 62499.19404 | G10: 1105.418719 | H10: 1110.864132 | I10: 1116.336369 | J10: 1121.835563 | K10: 1127.361846 | L10: 1132.915353 | M10: 1138.496217 | N10: 1144.104572 | O10: 1149.740556 | P10: 1155.404302 | Q10: 1161.095949 | R10: 1166.815633 | S10: 1172.563494 | T10: 1178.339668 | U10: 1184.144297 | V10: 1189.977521 | W10: 1195.839479 | X10: 1201.730314 | Y10: 1207.650167 | Z10: 1213.599183 | AA10: 1219.577504 | AB10: 1225.585275 | AC10: 1231.622641 | AD10: 1237.689748 | AE10: 1243.786741 | AF10: 1249.91377 | AG10: 1256.07098 | AH10: 1262.258522 | AI10: 1268.476544 | AJ10: 1274.725197 | AK10: 1281.004632 | AL10: 1287.314999 | AM10: 1293.656453 | AN10: 1300.029145 | AO10: 1306.433229 | AP10: 1312.868861 | AQ10: 1319.336195 | AR10: 1325.835388 | AS10: 1332.366597 | AT10: 1338.929979 | AU10: 1345.525693 | AV10: 1352.153899 | AW10: 1358.814755 | AX10: 1365.508424 | AY10: 1372.235067 | AZ10: 1378.994845 | BA10: 1385.787923 | BB10: 1392.614465 | BC10: 1399.474635 | BD10: 1406.368598
A11: Abwasseraufkommen aus Brauchwasser aus Berechnungshilfe Trinkwasser (Tool 1.2.3) | B11: 2000 | C11: m³ | D11: =Kosten_Brauchwasser -> 2.14 | E11: =D11*B11 -> 4280 | F11: =SUM(OFFSET(G11,,,,BZBNB)) -> 243178.6823 | G11: 4301.083744 | H11: 4322.271348 | I11: 4343.563326 | J11: 4364.960189 | K11: 4386.462456 | L11: 4408.070646 | M11: 4429.785279 | N11: 4451.606882 | O11: 4473.53598 | P11: 4495.573103 | Q11: 4517.718783 | R11: 4539.973555 | S11: 4562.337957 | T11: 4584.812528 | U11: 4607.397812 | V11: 4630.094353 | W11: 4652.902699 | X11: 4675.823402 | Y11: 4698.857015 | Z11: 4722.004094 | AA11: 4745.265198 | AB11: 4768.640888 | AC11: 4792.13173 | AD11: 4815.73829 | AE11: 4839.461139 | AF11: 4863.300849 | AG11: 4887.257996 | AH11: 4911.333159 | AI11: 4935.526918 | AJ11: 4959.839859 | AK11: 4984.272567 | AL11: 5008.825634 | AM11: 5033.499652 | AN11: 5058.295217 | AO11: 5083.212927 | AP11: 5108.253385 | AQ11: 5133.417195 | AR11: 5158.704964 | AS11: 5184.117304 | AT11: 5209.654828 | AU11: 5235.318152 | AV11: 5261.107897 | AW11: 5287.024684 | AX11: 5313.069141 | AY11: 5339.241895 | AZ11: 5365.543579 | BA11: 5391.974829 | BB11: 5418.536281 | BC11: 5445.228578 | BD11: 5472.052364

Sheet KT_Reinigung (hidden)
A1: Bezeichnung | B1: Nummer | C1: Oberfläche | D1: Typ | E1: Einbauort | F1: Material | G1: Zugänglichkeit | H1: €/h | I1: m²/h | J1: Anzahl je Jahr
A2: =CONCATENATE(B2,"; ", C2,D2,"; ",E2,"; ",G2) -> 00001; Fenster, Tür, Festverglasung; außen; gut zugänglich | B2: 00001 | C2: Fenster, Tür, Festverglasung | E2: außen | F2: Glas | G2: gut zugänglich | H2: 22.5 | I2: 25 | J2: 2
A3: =CONCATENATE(B3,"; ", C3,"; ",D3,"; ",E3,"; ",G3) -> 00002; Fenster, Tür, Festverglasung; ; außen; mittel zugänglich | B3: 00002 | C3: Fenster, Tür, Festverglasung | E3: außen | F3: Glas | G3: mittel zugänglich | H3: 22.5 | I3: 20 | J3: 2
A4: =CONCATENATE(B4,"; ", C4,"; ",D4,"; ",E4,"; ",G4) -> 00003; Fenster, Tür, Festverglasung; ; außen; schwer zugänglich | B4: 00003 | C4: Fenster, Tür, Festverglasung | E4: außen | F4: Glas | G4: schwer zugänglich | H4: 22.5 | I4: 13 | J4: 2
A5: =CONCATENATE(B5,"; ", C5,"; ",D5,"; ",E5,"; ",G5) -> 00004; Glasfläche; Geländer; außen; gut zugänglich | B5: 00004 | C5: Glasfläche | D5: Geländer | E5: außen | F5: Glas | G5: gut zugänglich | H5: 22.5 | I5: 25 | J5: 2
A6: =CONCATENATE(B6,"; ", C6,"; ",D6,"; ",E6,"; ",G6) -> 00005; Glasfläche; Geländer; außen; mittel zugänglich | B6: 00005 | C6: Glasfläche | D6: Geländer | E6: außen | F6: Glas | G6: mittel zugänglich | H6: 22.5 | I6: 20 | J6: 2
A7: =CONCATENATE(B7,"; ", C7,"; ",D7,"; ",E7,"; ",G7) -> 00006; Glasfläche; Geländer; außen; schwer zugänglich | B7: 00006 | C7: Glasfläche | D7: Geländer | E7: außen | F7: Glas | G7: schwer zugänglich | H7: 22.5 | I7: 13 | J7: 2
A8: 00007; Glasfläche; sonstige Verglasung; außen; gut zugänglich | B8: 00007 | C8: Glasfläche | D8: sonstige Verglasung | E8: außen | F8: Glas | G8: gut zugänglich | H8: 22.5 | I8: 25 | J8: 2
A9: 00008; Glasfläche; sonstige Verglasung; außen; mittel zugänglich | B9: 00008 | C9: Glasfläche | D9: sonstige Verglasung | E9: außen | F9: Glas | G9: mittel zugänglich | H9: 22.5 | I9: 20 | J9: 2
A10: 00009; Glasfläche; sonstige Verglasung; außen; schwer zugänglich | B10: 00009 | C10: Glasfläche | D10: sonstige Verglasung | E10: außen | F10: Glas | G10: schwer zugänglich | H10: 22.5 | I10: 13 | J10: 2
A11: 00010; AW-Bekleidung; Naturstein weich; außen; | B11: 00010 | C11: AW-Bekleidung | D11: Naturstein weich | E11: außen | F11: Naturstein weich | H11: 17 | I11: 1.5 | J11: 0.25
A12: 00011; AW-Bekleidung; Naturstein hart; außen; | B12: 00011 | C12: AW-Bekleidung | D12: Naturstein hart | E12: außen | F12: Naturstein hart | H12: 17 | I12: 6 | J12: 0.25
A13: 00012; AW-Bekleidung; Aluminium; außen; | B13: 00012 | C13: AW-Bekleidung | D13: Aluminium | E13: außen | F13: Aluminium | H13: 17 | I13: 3 | J13: 0.25
A14: 00013; AW-Bekleidung; Edelstahl; außen; | B14: 00013 | C14: AW-Bekleidung | D14: Edelstahl | E14: außen | F14: Edelstahl | H14: 17 | I14: 3 | J14: 0.25
A15: 00014; AW-Bekleidung; Kupferblech; außen; | B15: 00014 | C15: AW-Bekleidung | D15: Kupferblech | E15: außen | F15: Kupferblech | H15: 17 | I15: 3 | J15: 0.25
A16: 00015; AW-Bekleidung; Stahl korrosionsgeschützt; außen; | B16: 00015 | C16: AW-Bekleidung | D16: Stahl korrosionsgeschützt | E16: außen | F16: Stahl korrosionsgeschützt | H16: 17 | I16: 3 | J16: 0.25
A17: 00016; AW-Bekleidung; Glas; außen; | B17: 00016 | C17: AW-Bekleidung | D17: Glas | E17: außen | F17: Glas | H17: 17 | I17: 20 | J17: 0.25
A18: 00017; AW-Bekleidung; Keramik; außen; | B18: 00017 | C18: AW-Bekleidung | D18: Keramik | E18: außen | F18: Keramik | H18: 17 | I18: 6 | J18: 0.25
A19: 00018; AW-Bekleidung; Kunst/ Werkstein; außen; | B19: 00018 | C19: AW-Bekleidung | D19: Kunst/ Werkstein | E19: außen | F19: Kunst/ Werkstein | H19: 17 | I19: 6 | J19: 0.25
